Workbook

Sheet 確率表
C1: 2変量 | D1: １変量
B2: 標準偏差 | C2: 確率 | D2: 両側確率 | E2: 片側確率 | F2: 二次元の確率は相関係数ρ＝０で分布中心が０，０ の場合です。
B3: 4 | C3: =1-(SQRT(EXP(-(B3^2)))) -> 0.9996645374 | D3: =1-((1-NORMSDIST(B3+0))*2) -> 0.9999366575 | E3: =(1-((1-NORMSDIST(B3+0))*2))/2 -> 0.4999683288 | F3: ←水色のセルに標準偏差の倍数を入力すると計算される。
B4: 0.05 | C4: =1-(SQRT(EXP(-(B4^2)))) -> 0.001249219075 | D4: =1-((1-NORMSDIST(B4+0))*2) -> 0.03987761168 | E4: =(1-((1-NORMSDIST(B4+0))*2))/2 -> 0.01993880584
B5: =B4+0.05 -> 0.1 | C5: =1-(SQRT(EXP(-(B5^2)))) -> 0.004987520807 | D5: =1-((1-NORMSDIST(B5+0))*2) -> 0.07965567455 | E5: =(1-((1-NORMSDIST(B5+0))*2))/2 -> 0.03982783728
B6: =B5+0.05 -> 0.15 | C6: =1-(SQRT(EXP(-(B6^2)))) -> 0.01118695539 | D6: 0.1192353847 | E6: 0.05961769237
B7: 0.2 | C7: 0.01980132669 | D7: 0.1585194189 | E7: 0.07925970944
B8: 0.25 | C8: 0.03076676552 | D8: 0.1974126514 | E8: 0.09870632568 | K8: 水色のセルに入力
B9: 0.3 | C9: 0.04400251817 | D9: 0.2358228444 | E9: 0.1179114222 | K9: 準拠点数 ｏｒ 求点数 | N9: 準拠点数 ｏｒ 求点数
B10: 0.35 | C10: 0.05941193664 | D10: 0.2736613024 | E10: 0.1368306512 | I10: 二変量は±の符号無し | J10: 2次元 | L10: 位置変量は± | M10: １次元
B11: 0.4 | C11: 0.07688365361 | D11: 0.3108434832 | E11: 0.1554217416 | I11: 標準偏差の倍数 | J11: 確率 ％ | K11: 294 | L11: 標準偏差の倍数 | M11: 両側確率 | N11: 110
B12: 0.45 | C12: =1-(SQRT(EXP(-(B12^2)))) -> 0.09629292213 | D12: =1-((1-NORMSDIST(B12+0))*2) -> 0.3472895594 | E12: 0.1736447797 | I12: 0.5 | J12: 11.8 | K12: =ROUND(J12/100*$K$11,0) -> 35 | L12: 0.5 | M12: 38.3 | N12: =ROUND(M12/100*$N$11,0) -> 42
B13: 0.5 | C13: 0.1175030974 | D13: 0.3829249225 | E13: 0.1914624613 | I13: 1 | J13: 39.3 | K13: =ROUND(J13/100*$K$11,0)-K12 -> 81 | L13: 1 | M13: 68.3 | N13: =ROUND(M13/100*$N$11,0)-N12 -> 33
B14: 0.55 | C14: 0.1403672364 | D14: 0.4176806264 | E14: 0.2088403132 | I14: 1.5 | J14: 67.5 | K14: =ROUND(J14/100*$K$11,0)-K12-K13 -> 82 | L14: 1.5 | M14: 86.6 | N14: =ROUND(M14/100*$N$11,0)-N12-N13 -> 20
B15: 0.6 | C15: 0.1647297886 | D15: 0.4514937645 | E15: 0.2257468822 | I15: 2 | J15: 86.5 | K15: =ROUND(J15/100*$K$11,0)-K12-K13-K14 -> 56 | L15: 2 | M15: 95.5 | N15: =ROUND(M15/100*$N$11,0)-N12-N13-N14 -> 10
B16: 0.65 | C16: 0.1904283513 | D16: 0.4843077784 | E16: 0.2421538892 | I16: 2.5 | J16: 95.6 | K16: =ROUND(J16/100*$K$11,0)-K12-K13-K14-K15 -> 27 | L16: 2.5 | M16: 98.8 | N16: =ROUND(M16/100*$N$11,0)-N12-N13-N14-N15 -> 4
B17: 0.7 | C17: 0.2172954618 | D17: 0.5160726956 | E17: 0.2580363478 | I17: 3 | J17: 98.9 | K17: =ROUND(J17/100*$K$11,0)-K12-K13-K14-K15-K16 -> 10 | L17: 3 | M17: 99.7 | N17: =ROUND(M17/100*$N$11,0)-N12-N13-N14-N15-N16 -> 1
B18: 0.75 | C18: 0.245160398 | D18: 0.5467452952 | E18: 0.2733726476 | I18: 3.5 | J18: 99.8 | K18: =ROUND(J18/100*$K$11,0)-K12-K13-K14-K15-K16-K17 -> 2 | L18: 3.5 | M18: 99.95 | N18: =ROUND(M18/100*$N$11,0)-N12-N13-N14-N15-N16-N17 -> 0
B19: 0.8 | C19: 0.2738509629 | D19: 0.5762892028 | E19: 0.2881446014 | I19: 4 | J19: 99.97 | K19: =ROUND(J19/100*$K$11,0)-K12-K13-K14-K15-K16-K17-K18 -> 1 | L19: 3.9 | M19: 99.99 | N19: =ROUND(M19/100*$N$11,0)-N12-N13-N14-N15-N16-N17-N18 -> 0
B20: 0.85 | C20: 0.3031952245 | D20: 0.6046749138 | E20: 0.3023374569 | I20: 4.3 | J20: 99.99 | K20: =ROUND(J20/100*$K$11,0)-K12-K13-K14-K15-K16-K17-K18-K19 -> 0
B21: 0.9 | C21: 0.3330231891 | D21: 0.6318797493 | E21: =(1-((1-NORMSDIST(B21+0))*2))/2 -> 0.3159398747 | J21: 計 | K21: =SUM(K12:K20) -> 294 | M21: 計 | N21: =SUM(N12:N20) -> 110
B22: 0.95 | C22: 0.3631683856 | D22: 0.6578877474 | E22: 0.3289438737 | I22: 一変量の確率から標準偏差を求める | J22: 標準偏差 | L22: 両側確率
B23: 1 | C23: 0.3934693403 | D23: =1-((1-NORMSDIST(B23+0))*2) -> 0.6826894921 | E23: 0.3413447461 | J23: 1.414 | L23: =1-((1-NORMSDIST(J23+0))*2) -> 0.8426380975
B24: 1.05 | C24: 0.4237709263 | D24: =1-((1-NORMSDIST(B24+0))*2) -> 0.7062818872 | E24: 0.3531409436 | I24: 一変量の確率から標準偏差を求める | L24: 両側確率
B25: 1.1 | C25: 0.4539255734 | D25: 0.7286678781 | E25: 0.3643339391 | I25: NORM.INV((1-(1-L25)/2),0,1) | J25: 標準偏差 | L25: 0.593
B26: 1.15 | C26: 0.4837943261 | D26: 0.7498561287 | E26: 0.3749280644 | J26: =_xlfn.NORM.INV((1-(1-L25)/2),0,1) -> 0.8291845254
B27: 1.2 | C27: 0.513247744 | D27: =1-((1-NORMSDIST(B27+0))*2) -> 0.7698606596 | E27: 0.3849303298
B28: 1.25 | C28: 0.5421666382 | D28: 0.7887004527 | E28: 0.3943502263 | I28: 二変量の確率から標準偏差を求める | M28: 水色のセルに入力し実行、％ではない
B29: 1.3 | C29: 0.5704426418 | D29: 0.8063990308 | E29: 0.4031995154 | J29: 標準偏差 | L29: 確率
B30: 1.35 | C30: 0.5979786169 | D30: 0.8229840171 | E30: 0.4114920086 | I30: 精度0．００１まで | J30: 2.039035 | L30: 0.8749237
B31: 1.4 | C31: 0.6246889011 | D31: 0.8384866815 | E31: 0.4192433408 | I31: 標準偏差から確率を求める | J31: 2.03903 | L31: =1-(SQRT(EXP(-(J31^2)))) -> 0.8749224921
B32: 1.45 | C32: 0.6504993998 | D32: 0.8529414808 | E32: 0.4264707404
B33: 1.5 | C33: 0.6753475326 | D33: 0.8663855975 | E33: 0.4331927987 | I33: 自由度・χ²値・確率
B34: 1.55 | C34: 0.6991820456 | D34: 0.878858484 | E34: 0.439429242 | J34: 自由度 | K34: χ²（χ2 ） | L34: 標準偏差 | M34: 上側Ｐ | N34: 確率
B35: 1.6 | C35: 0.7219626995 | D35: 0.8904014166 | E35: 0.4452007083 | I35: CHIDIST(標準偏差から確率） | J35: 2 | K35: =L35^2 -> 1.999396 | L35: 1.414 | M35: =CHIDIST(K35,J35) -> 0.3679905575 | N35: =1-M35 -> 0.6320094425
B36: 1.65 | C36: 0.7436598486 | D36: 0.9010570639 | E36: 0.450528532 | I36: CHIINV （確率から標準偏差） | J36: 1 | K36: =CHIINV(M36,J36) -> 3.841458821 | L36: =SQRT(K36) -> 1.959963985 | M36: 0.05 | N36: =1-M36 -> 0.95
B37: 1.7 | C37: 0.7642539234 | D37: 0.9108690745 | E37: 0.4554345372
B38: 1.75 | C38: 0.7837348332 | D38: 0.9198816863 | E38: 0.4599408431
B39: 1.8 | C39: 0.8021013009 | D39: 0.9281393618 | E39: 0.4640696809
B40: 1.85 | C40: 0.8193601484 | D40: 0.9356864504 | E40: 0.4678432252
B41: 1.9 | C41: 0.8355255434 | D41: 0.9425668804 | E41: 0.4712834402
B42: 1.95 | C42: 0.8506182247 | D42: 0.948823881 | E42: 0.4744119405
B43: 2 | C43: 0.8646647168 | D43: 0.9544997361 | E43: 0.4772498681
B44: 2.05 | C44: 0.8776965467 | D44: 0.9596355692 | E44: 0.4798177846
B45: 2.1 | C45: 0.8897494747 | D45: 0.9642711589 | E45: 0.4821355794
B46: 2.15 | C46: 0.9008627475 | D46: 0.9684447852 | E46: 0.4842223926
B47: 2.2 | C47: 0.9110783825 | D47: 0.972193105 | E47: 0.4860965525
B48: 2.25 | C48: 0.9204404913 | D48: 0.9755510547 | E48: 0.4877755273
B49: 2.3 | C49: 0.9289946463 | D49: 0.97855178 | E49: 0.48927589
B50: 2.35 | C50: 0.9367872969 | D50: 0.9812265889 | E50: 0.4906132945
B51: 2.4 | C51: 0.9438652372 | D51: 0.9836049282 | E51: 0.4918024641
B52: 2.45 | C52: 0.9502751266 | D52: =1-((1-NORMSDIST(B52+0))*2) -> 0.9857143785 | E52: 0.4928571893
B53: =B52+0.05 -> 2.5 | C53: 0.9560630664 | D53: =1-((1-NORMSDIST(B53+0))*2) -> 0.9875806693 | E53: 0.4937903347
B54: 2.55 | C54: 0.9612742296 | D54: 0.9892277081 | E54: 0.494613854
B55: 2.6 | C55: 0.9659525453 | D55: 0.990677624 | E55: 0.495338812
B56: 2.65 | C56: 0.9701404334 | D56: 0.9919508229 | E56: 0.4959754115
B57: 2.7 | C57: 0.9738785901 | D57: 0.9930660524 | E57: 0.4965330262
B58: 2.75 | C58: 0.9772058191 | D58: 0.9940404735 | E58: 0.4970202368
B59: 2.8 | C59: 0.9801589053 | D59: 0.9948897393 | E59: 0.4974448697
B60: 2.85 | C60: 0.9827725287 | D60: 0.9956280771 | E60: 0.4978140385
B61: 2.9 | C61: 0.9850792139 | D61: 0.9962683734 | E61: 0.4981341867
B62: 2.95 | C62: 0.9871093109 | D62: 0.9968222607 | E62: 0.4984111304
B63: 3 | C63: =1-(SQRT(EXP(-(B63^2)))) -> 0.9888910035 | D63: 0.9973002039 | E63: 0.498650102
B64: 3.05 | C64: 0.9904503426 | D64: 0.9977115863 | E64: 0.4988557932
B65: 3.1 | C65: 0.991811299 | D65: 0.9980647936 | E65: 0.4990323968
B66: 3.15 | C66: 0.9929958329 | D66: 0.9983672954 | E66: 0.4991836477
B67: 3.2 | C67: 0.9940239771 | D67: 0.9986257241 | E67: 0.4993128621
B68: 3.25 | C68: 0.9949139308 | D68: 0.9988459499 | E68: =(1-((1-NORMSDIST(B68+0))*2))/2 -> 0.499422975
B69: 3.3 | C69: =1-(SQRT(EXP(-(B69^2)))) -> 0.99568216 | D69: 0.9990331517 | E69: 0.4995165759
B70: =B69+0.05 -> 3.35 | C70: 0.9963435041 | D70: 0.9991918844 | E70: 0.4995959422
B71: 3.4 | C71: 0.9969112846 | D71: 0.9993261415 | E71: 0.4996630707
B72: 3.45 | C72: 0.9973974147 | D72: 0.9994394134 | E72: 0.4997197067
B73: 3.5 | C73: 0.9978125089 | D73: 0.9995347418 | E73: 0.4997673709
B74: 3.55 | C74: 0.9981659892 | D74: 0.9996147688 | E74: 0.4998073844
B75: 3.6 | C75: 0.9984661893 | D75: 0.9996817828 | E75: 0.4998408914
B76: 3.65 | C76: 0.9987204541 | D76: 0.9997377597 | E76: 0.4998688798
B77: 3.7 | C77: 0.9989352338 | D77: 0.9997844005 | E77: 0.4998922003
B78: 3.75 | C78: 0.9991161737 | D78: 0.9998231654 | E78: 0.4999115827
B79: 3.8 | C79: 0.9992681976 | D79: 0.9998553039 | E79: 0.499927652
B80: 3.85 | C80: 0.9993955853 | D80: 0.9998818822 | E80: 0.4999409411
B81: 3.9 | C81: 0.9995020446 | D81: 0.9999038073 | E81: 0.4999519037
B82: 3.95 | C82: 0.9995907769 | D82: 0.9999218488 | E82: 0.4999609244
B83: 4 | C83: 0.9996645374 | D83: 0.9999366575 | E83: 0.4999683288
B84: 4.05 | C84: 0.9997256895 | D84: 0.9999487824 | E84: 0.4999743912
B85: 4.1 | C85: 0.9997762542 | D85: 0.999958685 | E85: 0.4999793425
B86: 4.15 | C86: 0.9998179538 | D86: 0.9999667525 | E86: 0.4999833762
B87: 4.2 | C87: 0.9998522516 | D87: 0.9999733085 | E87: 0.4999866543
B88: 4.25 | C88: 0.9998803871 | D88: =1-((1-NORMSDIST(B88+0))*2) -> 0.9999786229 | E88: 0.4999893115
B89: 4.3 | C89: 0.9999034066 | D89: 0.9999829202 | E89: 0.4999914601
B90: 4.35 | C90: 0.9999221907 | D90: 0.9999863862 | E90: 0.4999931931
B91: 4.4 | C91: 0.9999374785 | D91: 0.9999891749 | E91: 0.4999945875
B92: 4.45 | C92: 0.999949888 | D92: 0.999991413 | E92: 0.4999957065
B93: 4.5 | C93: 0.9999599347 | D93: 0.9999932047 | E93: 0.4999966023
B94: 4.55 | C94: 0.9999680472 | D94: 0.9999946354 | E94: 0.4999973177
B95: 4.6 | C95: 0.9999745807 | D95: 0.9999957751 | E95: 0.4999978875
B96: 4.65 | C96: 0.9999798287 | D96: 0.9999966806 | E96: 0.4999983403
B97: 4.7 | C97: 0.9999840332 | D97: 0.9999973984 | E97: 0.4999986992
B98: 4.75 | C98: 0.9999873929 | D98: 0.9999979658 | E98: 0.4999989829
B99: 4.8 | C99: 0.9999900705 | D99: 0.9999984133 | E99: 0.4999992067
B100: 4.85 | C100: 0.9999921989 | D100: 0.9999987654 | E100: 0.4999993827
B101: 4.9 | C101: 0.9999938864 | D101: 0.9999990416 | E101: 0.4999995208

Sheet 標準偏差 (hidden)
C1: 幅の下限 | D1: =($B$2+($B$3*-5)) -> -0.01464818657 | E1: =($B$2+($B$3*-4)) -> -0.009345472336 | F1: =($B$2+($B$3*-3)) -> -0.004042758098 | G1: =($B$2+($B$3*-2)) -> 0.00125995614 | H1: =($B$2+($B$3*-1)) -> 0.006562670377 | I1: =($B$2+($B$3*0)) -> 0.01186538461 | J1: =($B$2+($B$3*1)) -> 0.01716809885 | K1: =($B$2+($B$3*2)) -> 0.02247081309 | L1: =($B$2+($B$3*3)) -> 0.02777352733 | M1: =($B$2+($B$3*4)) -> 0.03307624157
A2: 平均 | B2: =AVERAGE(B7:B106) -> 0.01186538461 | C2: 幅の上限 | D2: =$B$2+($B$3*-4) -> -0.009345472336 | E2: =$B$2+($B$3*-3) -> -0.004042758098 | F2: =$B$2+($B$3*-2) -> 0.00125995614 | G2: =$B$2+($B$3*-1) -> 0.006562670377 | H2: =$B$2+($B$3*0) -> 0.01186538461 | I2: =$B$2+($B$3*1) -> 0.01716809885 | J2: =$B$2+($B$3*2) -> 0.02247081309 | K2: =$B$2+($B$3*3) -> 0.02777352733 | L2: =$B$2+($B$3*4) -> 0.03307624157 | M2: =$B$2+($B$3*5) -> 0.0383789558
A3: 標準偏差 | B3: =STDEV(B7:B106) -> 0.005302714238 | C3: 幅の中心 | D3: =($B$2+($B$3*-4.5)) -> -0.01199682945 | E3: =($B$2+($B$3*-3.5)) -> -0.006694115217 | F3: =($B$2+($B$3*-2.5)) -> -0.001391400979 | G3: =($B$2+($B$3*-1.5)) -> 0.003911313258 | H3: =($B$2+($B$3*-0.5)) -> 0.009214027496 | I3: =($B$2+($B$3*0.5)) -> 0.01451674173 | J3: =($B$2+($B$3*1.5)) -> 0.01981945597 | K3: =($B$2+($B$3*2.5)) -> 0.02512217021 | L3: =($B$2+($B$3*3.5)) -> 0.03042488445 | M3: =($B$2+($B$3*4.5)) -> 0.03572759868
C4: 標準偏差幅 | D4: -4.5 | E4: -3.5 | F4: -2.5 | G4: -1.5 | H4: -0.5 | I4: 0.5 | J4: 1.5 | K4: 2.5 | L4: 3.5 | M4: 4.5
C5: ％ | D5: =D6/$C$6*100 -> 0 | E5: =E6/$C$6*100 -> 0 | F5: 1.923076923 | G5: 7.692307692 | H5: 48.07692308 | I5: 32.69230769 | J5: 5.769230769 | K5: 0 | L5: 3.846153846 | M5: 0
A6: № | B6: データXi | C6: =SUM(D6:M6) -> 52 | D6: =SUM(D7:D106) -> 0 | E6: 0 | F6: 1 | G6: 4 | H6: 25 | I6: 17 | J6: 3 | K6: 0 | L6: 2 | M6: 0
A7: №１ | B7: 0.01 | D7: =IF(B7="","",(IF(AND($D$1<=B7,$D$2>B7),1,0))) -> 0 | E7: =IF(B7="","",(IF(AND($E$1<=B7,$E$2>B7),1,0))) -> 0 | F7: =IF(B7="","",(IF(AND($F$1<=B7,$F$2>B7),1,0))) -> 0 | G7: =IF(B7="","",(IF(AND($G$1<=B7,$G$2>B7),1,0))) -> 0 | H7: =IF(B7="","",(IF(AND($H$1<=B7,$H$2>B7),1,0))) -> 1 | I7: =IF(B7="","",(IF(AND($I$1<=B7,$I$2>B7),1,0))) -> 0 | J7: =IF(B7="","",(IF(AND($J$1<=B7,$J$2>B7),1,0))) -> 0 | K7: =IF(B7="","",(IF(AND($K$1<=B7,$K$2>B7),1,0))) -> 0 | L7: =IF(B7="","",(IF(AND($L$1<=B7,$L$2>B7),1,0))) -> 0 | M7: =IF(B7="","",(IF(AND($M$1<=B7,$M$2>B7),1,0))) -> 0
A8: №２ | B8: 0.016 | D8: =IF(B8="","",(IF(AND($D$1<=B8,$D$2>B8),1,0))) -> 0 | E8: =IF(B8="","",(IF(AND($E$1<=B8,$E$2>B8),1,0))) -> 0 | F8: =IF(B8="","",(IF(AND($F$1<=B8,$F$2>B8),1,0))) -> 0 | G8: =IF(B8="","",(IF(AND($G$1<=B8,$G$2>B8),1,0))) -> 0 | H8: 0 | I8: =IF(B8="","",(IF(AND($I$1<=B8,$I$2>B8),1,0))) -> 1 | J8: =IF(B8="","",(IF(AND($J$1<=B8,$J$2>B8),1,0))) -> 0 | K8: =IF(B8="","",(IF(AND($K$1<=B8,$K$2>B8),1,0))) -> 0 | L8: =IF(B8="","",(IF(AND($L$1<=B8,$L$2>B8),1,0))) -> 0 | M8: =IF(B8="","",(IF(AND($M$1<=B8,$M$2>B8),1,0))) -> 0
A9: №３ | B9: 0.004000000001 | D9: 0 | E9: 0 | F9: 0 | G9: 1 | H9: 0 | I9: 0 | J9: 0 | K9: 0 | L9: 0 | M9: 0
A10: №４ | B10: 0.015 | D10: 0 | E10: 0 | F10: 0 | G10: 0 | H10: 0 | I10: 1 | J10: 0 | K10: 0 | L10: 0 | M10: 0
A11: №５ | B11: 0.011 | D11: 0 | E11: 0 | F11: 0 | G11: 0 | H11: 1 | I11: 0 | J11: 0 | K11: 0 | L11: 0 | M11: 0
A12: №６ | B12: 0.0009999999966 | D12: 0 | E12: 0 | F12: 1 | G12: 0 | H12: 0 | I12: 0 | J12: 0 | K12: 0 | L12: 0 | M12: 0
A13: №７ | B13: 0.01 | D13: 0 | E13: 0 | F13: 0 | G13: 0 | H13: 1 | I13: 0 | J13: 0 | K13: 0 | L13: 0 | M13: 0
A14: №８ | B14: 0.011 | D14: 0 | E14: 0 | F14: 0 | G14: 0 | H14: 1 | I14: 0 | J14: 0 | K14: 0 | L14: 0 | M14: 0
A15: №９ | B15: 0.015 | D15: 0 | E15: 0 | F15: 0 | G15: 0 | H15: 0 | I15: 1 | J15: 0 | K15: 0 | L15: 0 | M15: 0
A16: №１０ | B16: 0.011 | D16: 0 | E16: 0 | F16: 0 | G16: 0 | H16: 1 | I16: 0 | J16: 0 | K16: 0 | L16: 0 | M16: 0
A17: №１１ | B17: 0.02 | D17: 0 | E17: 0 | F17: 0 | G17: 0 | H17: 0 | I17: 0 | J17: 1 | K17: 0 | L17: 0 | M17: 0
A18: №１２ | B18: 0.008999999998 | D18: 0 | E18: 0 | F18: 0 | G18: 0 | H18: 1 | I18: 0 | J18: 0 | K18: 0 | L18: 0 | M18: 0
A19: №１３ | B19: 0.008000000002 | D19: 0 | E19: 0 | F19: 0 | G19: 0 | H19: 1 | I19: 0 | J19: 0 | K19: 0 | L19: 0 | M19: 0
A20: №１４ | B20: 0.006000000001 | D20: 0 | E20: 0 | F20: 0 | G20: 1 | H20: 0 | I20: 0 | J20: 0 | K20: 0 | L20: 0 | M20: 0
A21: №１５ | B21: 0.017 | D21: 0 | E21: 0 | F21: 0 | G21: 0 | H21: 0 | I21: 1 | J21: 0 | K21: 0 | L21: 0 | M21: 0
A22: №１６ | B22: 0.011 | D22: 0 | E22: 0 | F22: 0 | G22: 0 | H22: 1 | I22: 0 | J22: 0 | K22: 0 | L22: 0 | M22: 0
A23: №１７ | B23: 0.009999999995 | D23: 0 | E23: 0 | F23: 0 | G23: 0 | H23: 1 | I23: 0 | J23: 0 | K23: 0 | L23: 0 | M23: 0
A24: №１８ | B24: 0.006999999998 | D24: 0 | E24: 0 | F24: 0 | G24: 0 | H24: 1 | I24: 0 | J24: 0 | K24: 0 | L24: 0 | M24: 0
A25: №１９ | B25: 0.008000000002 | D25: 0 | E25: 0 | F25: 0 | G25: 0 | H25: 1 | I25: 0 | J25: 0 | K25: 0 | L25: 0 | M25: 0
A26: №２０ | B26: 0.007999999994 | D26: 0 | E26: 0 | F26: 0 | G26: 0 | H26: 1 | I26: 0 | J26: 0 | K26: 0 | L26: 0 | M26: 0
A27: №２１ | B27: 0.004999999997 | D27: 0 | E27: 0 | F27: 0 | G27: 1 | H27: 0 | I27: 0 | J27: 0 | K27: 0 | L27: 0 | M27: 0
A28: №２２ | B28: 0.01 | D28: 0 | E28: 0 | F28: 0 | G28: 0 | H28: 1 | I28: 0 | J28: 0 | K28: 0 | L28: 0 | M28: 0
A29: №２３ | B29: 0.01 | D29: 0 | E29: 0 | F29: 0 | G29: 0 | H29: 1 | I29: 0 | J29: 0 | K29: 0 | L29: 0 | M29: 0
A30: №２４ | B30: 0.006999999998 | D30: 0 | E30: 0 | F30: 0 | G30: 0 | H30: 1 | I30: 0 | J30: 0 | K30: 0 | L30: 0 | M30: 0
A31: №２５ | B31: 0.003999999994 | D31: 0 | E31: 0 | F31: 0 | G31: 1 | H31: 0 | I31: 0 | J31: 0 | K31: 0 | L31: 0 | M31: 0
A32: №２６ | B32: 0.009999999995 | D32: 0 | E32: 0 | F32: 0 | G32: 0 | H32: 1 | I32: 0 | J32: 0 | K32: 0 | L32: 0 | M32: 0
A33: №２７ | B33: 0.014 | D33: 0 | E33: 0 | F33: 0 | G33: 0 | H33: 0 | I33: 1 | J33: 0 | K33: 0 | L33: 0 | M33: 0
A34: №２８ | B34: 0.014 | D34: 0 | E34: 0 | F34: 0 | G34: 0 | H34: 0 | I34: 1 | J34: 0 | K34: 0 | L34: 0 | M34: 0
A35: №２９ | B35: 0.013 | D35: 0 | E35: 0 | F35: 0 | G35: 0 | H35: 0 | I35: 1 | J35: 0 | K35: 0 | L35: 0 | M35: 0
A36: №３０ | B36: 0.011 | D36: 0 | E36: 0 | F36: 0 | G36: 0 | H36: =IF(B36="","",(IF(AND($H$1<=B36,$H$2>B36),1,0))) -> 1 | I36: 0 | J36: 0 | K36: 0 | L36: 0 | M36: 0
A37: №３１ | B37: 0.011 | D37: 0 | E37: 0 | F37: 0 | G37: 0 | H37: =IF(B37="","",(IF(AND($H$1<=B37,$H$2>B37),1,0))) -> 1 | I37: 0 | J37: 0 | K37: 0 | L37: 0 | M37: 0
A38: №３２ | B38: 0.028 | D38: 0 | E38: 0 | F38: 0 | G38: 0 | H38: 0 | I38: 0 | J38: 0 | K38: 0 | L38: 1 | M38: 0
A39: №３３ | B39: 0.012 | D39: 0 | E39: 0 | F39: 0 | G39: 0 | H39: 0 | I39: 1 | J39: 0 | K39: 0 | L39: 0 | M39: 0
A40: №３４ | B40: 0.014 | D40: 0 | E40: 0 | F40: 0 | G40: 0 | H40: 0 | I40: 1 | J40: 0 | K40: 0 | L40: 0 | M40: 0
A41: №３５ | B41: 0.016 | D41: 0 | E41: 0 | F41: 0 | G41: 0 | H41: 0 | I41: 1 | J41: 0 | K41: 0 | L41: 0 | M41: 0
A42: №３６ | B42: 0.013 | D42: 0 | E42: 0 | F42: 0 | G42: 0 | H42: 0 | I42: 1 | J42: 0 | K42: 0 | L42: 0 | M42: 0
A43: №３７ | B43: 0.012 | D43: 0 | E43: 0 | F43: 0 | G43: 0 | H43: 0 | I43: 1 | J43: 0 | K43: 0 | L43: 0 | M43: 0
A44: №３８ | B44: 0.008999999998 | D44: 0 | E44: 0 | F44: 0 | G44: 0 | H44: 1 | I44: 0 | J44: 0 | K44: 0 | L44: 0 | M44: 0
A45: №３９ | B45: 0.011 | D45: 0 | E45: 0 | F45: 0 | G45: 0 | H45: 1 | I45: 0 | J45: 0 | K45: 0 | L45: 0 | M45: 0
A46: №４０ | B46: 0.007000000001 | D46: 0 | E46: 0 | F46: 0 | G46: 0 | H46: 1 | I46: 0 | J46: 0 | K46: 0 | L46: 0 | M46: 0
A47: №４１ | B47: 0.014 | D47: 0 | E47: 0 | F47: 0 | G47: 0 | H47: 0 | I47: 1 | J47: 0 | K47: 0 | L47: 0 | M47: 0
A48: №４２ | B48: 0.019 | D48: 0 | E48: 0 | F48: 0 | G48: 0 | H48: 0 | I48: 0 | J48: 1 | K48: 0 | L48: 0 | M48: 0
A49: №４３ | B49: 0.014 | D49: 0 | E49: 0 | F49: 0 | G49: 0 | H49: 0 | I49: 1 | J49: 0 | K49: 0 | L49: 0 | M49: 0
A50: №４４ | B50: 0.021 | D50: 0 | E50: 0 | F50: 0 | G50: 0 | H50: 0 | I50: 0 | J50: 1 | K50: 0 | L50: 0 | M50: 0
A51: №４５ | B51: 0.007999999998 | D51: 0 | E51: 0 | F51: 0 | G51: 0 | H51: 1 | I51: 0 | J51: 0 | K51: 0 | L51: 0 | M51: 0
A52: №４６ | B52: 0.016 | D52: 0 | E52: 0 | F52: 0 | G52: 0 | H52: 0 | I52: 1 | J52: 0 | K52: 0 | L52: 0 | M52: 0
A53: №４７ | B53: 0.016 | D53: 0 | E53: 0 | F53: 0 | G53: 0 | H53: 0 | I53: 1 | J53: 0 | K53: 0 | L53: 0 | M53: 0
A54: №４８ | B54: 0.015 | D54: 0 | E54: 0 | F54: 0 | G54: 0 | H54: 0 | I54: 1 | J54: 0 | K54: 0 | L54: 0 | M54: 0
A55: №４９ | B55: 0.01 | D55: 0 | E55: 0 | F55: 0 | G55: 0 | H55: 1 | I55: 0 | J55: 0 | K55: 0 | L55: 0 | M55: 0
A56: №５０ | B56: 0.007999999998 | D56: 0 | E56: 0 | F56: 0 | G56: 0 | H56: 1 | I56: 0 | J56: 0 | K56: 0 | L56: 0 | M56: 0
A57: №５１ | B57: 0.007999999998 | D57: 0 | E57: 0 | F57: 0 | G57: 0 | H57: 1 | I57: 0 | J57: 0 | K57: 0 | L57: 0 | M57: 0
A58: №５２ | B58: 0.029 | D58: 0 | E58: 0 | F58: 0 | G58: 0 | H58: 0 | I58: 0 | J58: 0 | K58: 0 | L58: 1 | M58: 0
A59: №５３
A60: №５４
A61: №５５
A62: №５６
A63: №５７
A64: №５８
A65: №５９
A66: №６０
A67: №６１
A68: №６２
A69: №６３
A70: №６４
A71: №６５
A72: №６６ | D72: =IF(B72="","",(IF(AND($D$1<=B72,$D$2>B72),1,0))) ->  | E72: =IF(B72="","",(IF(AND($E$1<=B72,$E$2>B72),1,0))) ->  | F72: =IF(B72="","",(IF(AND($F$1<=B72,$F$2>B72),1,0))) ->  | G72: =IF(B72="","",(IF(AND($G$1<=B72,$G$2>B72),1,0))) ->  | I72: =IF(B72="","",(IF(AND($I$1<=B72,$I$2>B72),1,0))) ->  | J72: =IF(B72="","",(IF(AND($J$1<=B72,$J$2>B72),1,0))) ->  | K72: =IF(B72="","",(IF(AND($K$1<=B72,$K$2>B72),1,0))) ->  | L72: =IF(B72="","",(IF(AND($L$1<=B72,$L$2>B72),1,0))) ->  | M72: =IF(B72="","",(IF(AND($M$1<=B72,$M$2>B72),1,0))) -> 
A73: №６７
A74: №６８
A75: №６９
A76: №７０
A77: №７１
A78: №７２
A79: №７３
A80: №７４
A81: №７５
A82: №７６
A83: №７７
A84: №７８
A85: №７９
A86: №８０
A87: №８１
A88: №８２
A89: №８３
A90: №８４
A91: №８５
A92: №８６
A93: №８７
A94: №８８
A95: №８９
A96: №９０
A97: №９１
A98: №９２
A99: №９３
A100: №９４
A101: №９５ | H101: =IF(B101="","",(IF(AND($H$1<=B101,$H$2>B101),1,0))) -> 
A102: №９６
A103: №９７
A104: №９８
A105: №９９
A106: №１００
C107: 枠内確率 | D107: 0 | E107: 0.13 | F107: 2.14 | G107: 13.59 | H107: 34.14 | I107: 34.14 | J107: 13.59 | K107: 2.14 | L107: 0.13 | M107: 0
D108: =D1+$B$3/2 -> -0.01199682945 | E108: =E1+$B$3/2 -> -0.006694115217 | F108: -0.001391400979 | G108: 0.003911313258 | H108: 0.009214027496 | I108: 0.01451674173 | J108: 0.01981945597 | K108: 0.02512217021 | L108: 0.03042488445 | M108: 0.03572759868

Sheet t検定 (hidden)
A1: 有意水準 | B1: 0.05
A3: No | B3: x | C3: τ | D3: 観測値T | E3: 判定 | F3: ランク | H3: 降順 | I3: t | J3: 大きい数値側に異常が出場合は降順
A4: 1 | B4: 0.002597446378 | C4: =IF(B4="","",(B4-$B$35)/$B$36) -> -0.6095888943 | D4: =IF(B4="","",ABS(SQRT($B$38-2)*C4/SQRT($B$38-1-C4^2))) -> 0.6017617176 | E4: =IF(B4="","",IF(D4>$B$37,"×","○")) -> ○ | F4: =IF(B4="","",RANK(B4,$B$4:$B$33,0)) -> 22 | H4: 0.028 | I4: 4.514579851 | J4: 小さい数値側に異常が出場合は昇順
A5: 2 | B5: 0.004307027912 | C5: =IF(B5="","",(B5-$B$35)/$B$36) -> -0.3405300575 | D5: =IF(B5="","",ABS(SQRT($B$38-2)*C5/SQRT($B$38-1-C5^2))) -> 0.3344264613 | E5: =IF(B5="","",IF(D5>$B$37,"×","○")) -> ○ | F5: =IF(B5="","",RANK(B5,$B$4:$B$33,0)) -> 15 | H5: 0.026 | I5: 3.818033724 | J5: ０を中心にバラツク場合はマイナスを絶対値化する
A6: 3 | B6: 0.007835979877 | C6: 0.214866507 | D6: 0.2107199806 | E6: ○ | F6: 6 | H6: 0.009976972879 | I6: 0.5439962155
A7: 4 | B7: 0.00586440789 | C7: -0.09542513748 | D7: 0.09351419046 | E7: =IF(B7="","",IF(D7>$B$37,"×","○")) -> ○ | F7: 9 | H7: 0.009715583797 | I7: 0.5029965316
A8: 5 | B8: 0.005070150131 | C8: -0.2204276978 | D8: 0.2161843369 | E8: ○ | F8: 11 | H8: 0.008260652525 | I8: 0.2764502647
A9: 6 | B9: 0.026 | C9: 3.073572002 | D9: 3.818033724 | E9: × | F9: 2 | H9: 0.007835979877 | I9: 0.2107199806
A10: 7 | B10: 0.003911316818 | C10: -0.4028082025 | D10: 0.3959568309 | E10: ○ | F10: 19 | H10: 0.006052552023 | I10: 0.06449033968
A11: 8 | B11: 0.001019718188 | C11: -0.8578962742 | D11: 0.8532161724 | E11: ○ | F11: 26 | H11: 0.005974225793 | I11: 0.07657225061
A12: 9 | B12: 0.004028352629 | C12: -0.3843887715 | D12: 0.3777404542 | E12: ○ | F12: 18 | H12: 0.00586440789 | I12: 0.09351419046
A13: 10 | B13: 0.001075573979 | C13: -0.84910553 | D13: 0.8442123779 | E13: ○ | F13: 25 | H13: 0.00569341058 | I13: 0.1199013658
A14: 11 | B14: 0.009715583797 | C14: 0.5106839537 | D14: 0.5029965316 | E14: ○ | F14: 4 | H14: 0.005070150131 | I14: 0.2161843369
A15: 12 | B15: 0.004199061025 | C15: -0.3575221953 | D15: 0.3511977475 | E15: ○ | F15: 17 | H15: 0.004811486265 | I15: 0.256210591
A16: 13 | B16: 0.001912370469 | C16: -0.7174081023 | D16: 0.7102626154 | E16: ○ | F16: 23 | H16: 0.004681951065 | I16: 0.2762739192
A17: 14 | B17: 0.00569341058 | C17: =IF(B17="","",(B17-$B$35)/$B$36) -> -0.1223371836 | D17: =IF(B17="","",ABS(SQRT($B$38-2)*C17/SQRT($B$38-1-C17^2))) -> 0.1199013658 | E17: =IF(B17="","",IF(D17>$B$37,"×","○")) -> ○ | F17: =IF(B17="","",RANK(B17,$B$4:$B$33,0)) -> 10 | H17: 0.004617902203 | I17: 0.2861993199
A18: 15 | B18: 0.008260652525 | C18: 0.2817027043 | D18: 0.2764502647 | E18: ○ | F18: 5 | H18: 0.004307027912 | I18: 0.3344264613
A19: 16 | B19: 0.004681951065 | C19: -0.2815235782 | D19: 0.2762739192 | E19: ○ | F19: 13 | H19: 0.004277089178 | I19: 0.3390758665
A20: 17 | B20: 0.003302101139 | C20: -0.4986883103 | D20: 0.4910613059 | E20: ○ | F20: 21 | H20: 0.004199061025 | I20: 0.3511977475
A21: 18 | B21: 0.009976972879 | C21: 0.5518221158 | D21: 0.5439962155 | E21: ○ | F21: 3 | H21: 0.004028352629 | I21: 0.3777404542
A22: 19 | B22: 0.006052552023 | C22: -0.06581447501 | D22: 0.06449033968 | E22: ○ | F22: 7 | H22: 0.003911316818 | I22: 0.3959568309
A23: 20 | B23: 0.004277089178 | C23: -0.3452419013 | D23: 0.3390758665 | E23: ○ | F23: 16 | H23: 0.003311100182 | I23: 0.4896527195
A24: 21 | B24: 0.005974225793 | C24: -0.07814168142 | D24: 0.07657225061 | E24: ○ | F24: 8 | H24: 0.003302101139 | I24: 0.4910613059
A25: 22 | B25: 0.001742617732 | C25: -0.7441242742 | D25: 0.7373008087 | E25: ○ | F25: 24 | H25: 0.002597446378 | I25: 0.6017617176
A26: 23 | B26: 0.003311100182 | C26: -0.4972720153 | D26: 0.4896527195 | E26: ○ | F26: 20 | H26: 0.001912370469 | I26: 0.7102626154
A27: 24 | B27: 0.004617902203 | C27: -0.2916037715 | D27: 0.2861993199 | E27: ○ | F27: 14 | H27: 0.001742617732 | I27: 0.7373008087
A28: 25 | B28: 0.004811486265 | C28: -0.2611369575 | D28: 0.256210591 | E28: ○ | F28: 12 | H28: 0.001075573979 | I28: 0.8442123779
A29: 26 | B29: 0.028 | C29: 3.388337728 | D29: 4.514579851 | E29: × | F29: 1 | H29: 0.001019718188 | I29: 0.8532161724
A30: 27
A31: 28
A32: 29
A33: 30
F34: 平均値 | H34: =AVERAGE(H4:H33) -> 0.006470732718
A35: 平均 | B35: =AVERAGE(B4:B33) -> 0.006470732718
A36: 標準偏差 | B36: =STDEVP(B4:B33) -> 0.00635393193
A37: 期待値t | B37: =TINV(B1,B38-2) -> 2.063898562
A38: データ数 | B38: =COUNT(B4:B33) -> 26
A39: 水色のセルにデータを入力して「グラフ作成」を実行する。
A40: 判定で"×"のデータが異常値となる。
A41: 判定とグラフを比較してｔ検定を理解する。
A42: 概ね、グラフの変化が最初に大きく表れるところが異常の境になっている。

Sheet χ²検定 (hidden)
O1: -4.5 | P1: -4 | Q1: -3.5 | R1: -3 | S1: -2.5 | T1: -2 | U1: -1.5 | V1: -1 | W1: -0.5 | X1: 0 | Y1: 0.5 | Z1: 1 | AA1: 1.5 | AB1: 2 | AC1: 2.5 | AD1: 3 | AE1: 3.5 | AF1: 4 | AG1: 4.5
A2: ｎ | B2: 階級中心 | C2: 確率 | D2: 観測度数 | E2: 期待度数 | F2: χ²観測値 | G2: ％ | I2: No | J2: x | K2: ランク | L2: 判定 | M2: 差 | O2: =SUM(O3:O32) -> 0 | P2: =SUM(P3:P32) -> 0 | Q2: 0 | R2: 0 | S2: 0 | T2: 0 | U2: 0 | V2: 2 | W2: 13 | X2: 6 | Y2: 3 | Z2: 0 | AA2: 0 | AB2: 0 | AC2: 0 | AD2: 1 | AE2: 1 | AF2: 0 | AG2: 0 | AH2: =SUM(O2:AG2) -> 26
A3: 1 | B3: -4.5 | C3: 9.677357159e-06 | D3: =O2 -> 0 | E3: =$D$22*C3 -> 0.0002516112861 | F3: =(D3-E3)^2/E3 -> 0.0002516112861 | G3: =(D3/$D$22)*100 -> 0 | I3: 1 | J3: 0.002597446378 | K3: =IF(J3="","",RANK(M3,$M$3:$M$33,0)) -> 7 | L3: =IF(J3="","",(IF(AND($F$23<$F$22,K3=1),"×","○"))) -> ○ | M3: =IF(J3="","",ABS(J3-$J$35)) -> 0.003873286339 | O3: =IF(J3="","",(IF(AND(0.1<=J3,$J$35-$J$33*4.25>J3),1,0))) -> 0 | P3: =IF(J3="","",(IF(AND($J$35-$J$33*4.25<=J3,$J$35-$J$33*3.75>J3),1,0))) -> 0 | Q3: =IF(J3="","",(IF(AND($J$35-$J$33*3.75<=J3,$J$35-$J$33*3.25>J3),1,0))) -> 0 | R3: =IF(J3="","",(IF(AND($J$35-$J$33*3.25<=J3,$J$35-$J$33*2.75>J3),1,0))) -> 0 | S3: =IF(J3="","",(IF(AND($J$35-$J$33*2.75<=J3,$J$35-$J$33*2.25>J3),1,0))) -> 0 | T3: =IF(J3="","",(IF(AND($J$35-$J$33*2.25<=J3,$J$35-$J$33*1.75>J3),1,0))) -> 0 | U3: =IF(J3="","",(IF(AND($J$35-$J$33*1.75<=J3,$J$35-$J$33*1.25>J3),1,0))) -> 0 | V3: =IF(J3="","",(IF(AND($J$35-$J$33*1.25<=J3,$J$35-$J$33*0.75>J3),1,0))) -> 0 | W3: =IF(J3="","",(IF(AND($J$35-$J$33*0.75<=J3,$J$35-$J$33*0.25>J3),1,0))) -> 1 | X3: =IF(J3="","",(IF(AND($J$35-$J$33*0.25<=J3,$J$35+$J$33*0.25>J3),1,0))) -> 0 | Y3: =IF(J3="","",(IF(AND($J$35+$J$33*0.25<=J3,$J$35+$J$33*0.75>J3),1,0))) -> 0 | Z3: =IF(J3="","",(IF(AND($J$35+$J$33*0.75<=J3,$J$35+$J$33*1.25>J3),1,0))) -> 0 | AA3: =IF(J3="","",(IF(AND($J$35+$J$33*1.25<=J3,$J$35+$J$33*1.75>J3),1,0))) -> 0 | AB3: =IF(J3="","",(IF(AND($J$35+$J$33*1.75<=J3,$J$35+$J$33*2.25>J3),1,0))) -> 0 | AC3: =IF(J3="","",(IF(AND($J$35+$J$33*2.25<=J3,$J$35+$J$33*2.75>J3),1,0))) -> 0 | AD3: =IF(J3="","",IF(AND($J$35+$J$33*2.75<=J3,$J$35+$J$33*3.25>J3),1,0)) -> 0 | AE3: =IF(J3="","",(IF(AND($J$35+$J$33*3.25<=J3,$J$35+$J$33*3.75>J3),1,0))) -> 0 | AF3: =IF(J3="","",(IF(AND($J$35+$J$33*3.75<=J3,$J$35+$J$33*4.25>J3),1,0))) -> 0 | AG3: =IF(J3="","",(IF(AND($J$35+$J$33*4.25<=J3,$J$35+$J$33*10>J3),1,0))) -> 0
A4: 2 | B4: -4 | C4: 7.774890478e-05 | D4: =P2 -> 0 | E4: 0.002021471524 | F4: 0.002021471524 | G4: =(D4/$D$22)*100 -> 0 | I4: 2 | J4: 0.004307027912 | K4: =IF(J4="","",RANK(M4,$M$3:$M$33,0)) -> 16 | L4: =IF(J4="","",(IF(AND($F$23<$F$22,K4=1),"×","○"))) -> ○ | M4: =IF(J4="","",ABS(J4-$J$35)) -> 0.002163704805 | O4: =IF(J4="","",(IF(AND(0.1<=J4,$J$35-$J$33*4.25>J4),1,0))) -> 0 | P4: =IF(J4="","",(IF(AND($J$35-$J$33*4.25<=J4,$J$35-$J$33*3.75>J4),1,0))) -> 0 | Q4: =IF(J4="","",(IF(AND($J$35-$J$33*3.75<=J4,$J$35-$J$33*3.25>J4),1,0))) -> 0 | R4: =IF(J4="","",(IF(AND($J$35-$J$33*3.25<=J4,$J$35-$J$33*2.75>J4),1,0))) -> 0 | S4: =IF(J4="","",(IF(AND($J$35-$J$33*2.75<=J4,$J$35-$J$33*2.25>J4),1,0))) -> 0 | T4: =IF(J4="","",(IF(AND($J$35-$J$33*2.25<=J4,$J$35-$J$33*1.75>J4),1,0))) -> 0 | U4: =IF(J4="","",(IF(AND($J$35-$J$33*1.75<=J4,$J$35-$J$33*1.25>J4),1,0))) -> 0 | V4: =IF(J4="","",(IF(AND($J$35-$J$33*1.25<=J4,$J$35-$J$33*0.75>J4),1,0))) -> 0 | W4: =IF(J4="","",(IF(AND($J$35-$J$33*0.75<=J4,$J$35-$J$33*0.25>J4),1,0))) -> 1 | X4: =IF(J4="","",(IF(AND($J$35-$J$33*0.25<=J4,$J$35+$J$33*0.25>J4),1,0))) -> 0 | Y4: =IF(J4="","",(IF(AND($J$35+$J$33*0.25<=J4,$J$35+$J$33*0.75>J4),1,0))) -> 0 | Z4: =IF(J4="","",(IF(AND($J$35+$J$33*0.75<=J4,$J$35+$J$33*1.25>J4),1,0))) -> 0 | AA4: =IF(J4="","",(IF(AND($J$35+$J$33*1.25<=J4,$J$35+$J$33*1.75>J4),1,0))) -> 0 | AB4: =IF(J4="","",(IF(AND($J$35+$J$33*1.75<=J4,$J$35+$J$33*2.25>J4),1,0))) -> 0 | AC4: =IF(J4="","",(IF(AND($J$35+$J$33*2.25<=J4,$J$35+$J$33*2.75>J4),1,0))) -> 0 | AD4: =IF(J4="","",IF(AND($J$35+$J$33*2.75<=J4,$J$35+$J$33*3.25>J4),1,0)) -> 0 | AE4: =IF(J4="","",(IF(AND($J$35+$J$33*3.25<=J4,$J$35+$J$33*3.75>J4),1,0))) -> 0 | AF4: =IF(J4="","",(IF(AND($J$35+$J$33*3.75<=J4,$J$35+$J$33*4.25>J4),1,0))) -> 0 | AG4: =IF(J4="","",(IF(AND($J$35+$J$33*4.25<=J4,$J$35+$J$33*10>J4),1,0))) -> 0
A5: 3 | B5: -3.5 | C5: 0.0004886419031 | D5: =Q2 -> 0 | E5: 0.01270468948 | F5: 0.01270468948 | G5: 0 | I5: 3 | J5: 0.007835979877 | K5: 22 | L5: ○ | M5: 0.001365247159 | O5: 0 | P5: 0 | Q5: 0 | R5: 0 | S5: 0 | T5: 0 | U5: 0 | V5: 0 | W5: 0 | X5: 1 | Y5: 0 | Z5: 0 | AA5: 0 | AB5: 0 | AC5: 0 | AD5: 0 | AE5: 0 | AF5: 0 | AG5: 0
A6: 4 | B6: -3 | C6: 0.002402732095 | D6: =R2 -> 0 | E6: 0.06247103446 | F6: 0.06247103446 | G6: 0 | I6: 4 | J6: 0.00586440789 | K6: 24 | L6: ○ | M6: 0.000606324828 | O6: 0 | P6: 0 | Q6: 0 | R6: 0 | S6: 0 | T6: 0 | U6: 0 | V6: 0 | W6: 0 | X6: 1 | Y6: 0 | Z6: 0 | AA6: 0 | AB6: 0 | AC6: 0 | AD6: 0 | AE6: 0 | AF6: 0 | AG6: 0
A7: 5 | B7: -2.5 | C7: 0.009244614824 | D7: =S2 -> 0 | E7: 0.2403599854 | F7: 0.2403599854 | G7: 0 | I7: 5 | J7: 0.005070150131 | K7: 21 | L7: ○ | M7: 0.001400582587 | O7: 0 | P7: 0 | Q7: 0 | R7: 0 | S7: 0 | T7: 0 | U7: 0 | V7: 0 | W7: 0 | X7: 1 | Y7: 0 | Z7: 0 | AA7: 0 | AB7: 0 | AC7: 0 | AD7: 0 | AE7: 0 | AF7: 0 | AG7: 0
A8: 6 | B8: -2 | C8: 0.02783468015 | D8: =T2 -> 0 | E8: 0.723701684 | F8: 0.723701684 | G8: 0 | I8: 6 | J8: 0.026 | K8: 2 | L8: ○ | M8: 0.01952926728 | O8: 0 | P8: 0 | Q8: 0 | R8: 0 | S8: 0 | T8: 0 | U8: 0 | V8: 0 | W8: 0 | X8: 0 | Y8: 0 | Z8: 0 | AA8: 0 | AB8: 0 | AC8: 0 | AD8: 1 | AE8: 0 | AF8: 0 | AG8: 0
A9: 7 | B9: -1.5 | C9: 0.06559072552 | D9: =U2 -> 0 | E9: 1.705358863 | F9: 1.705358863 | G9: 0 | I9: 7 | J9: 0.003911316818 | K9: 12 | L9: ○ | M9: 0.002559415899 | O9: 0 | P9: 0 | Q9: 0 | R9: 0 | S9: 0 | T9: 0 | U9: 0 | V9: 0 | W9: 1 | X9: 0 | Y9: 0 | Z9: 0 | AA9: 0 | AB9: 0 | AC9: 0 | AD9: 0 | AE9: 0 | AF9: 0 | AG9: 0
A10: 8 | B10: -1 | C10: 0.1209774406 | D10: =V2 -> 2 | E10: 3.145413457 | F10: 0.4171063693 | G10: 7.692307692 | I10: 8 | J10: 0.001019718188 | K10: 3 | L10: ○ | M10: 0.005451014529 | O10: 0 | P10: 0 | Q10: 0 | R10: 0 | S10: 0 | T10: 0 | U10: 0 | V10: 1 | W10: 0 | X10: 0 | Y10: 0 | Z10: 0 | AA10: 0 | AB10: 0 | AC10: 0 | AD10: 0 | AE10: 0 | AF10: 0 | AG10: 0
A11: 9 | B11: -0.5 | C11: 0.1746664465 | D11: =W2 -> 13 | E11: 4.541327609 | F11: 15.75511498 | G11: 50 | I11: 9 | J11: 0.004028352629 | K11: 13 | L11: ○ | M11: 0.002442380089 | O11: 0 | P11: 0 | Q11: 0 | R11: 0 | S11: 0 | T11: 0 | U11: 0 | V11: 0 | W11: 1 | X11: 0 | Y11: 0 | Z11: 0 | AA11: 0 | AB11: 0 | AC11: 0 | AD11: 0 | AE11: 0 | AF11: 0 | AG11: 0
A12: 10 | B12: 0 | C12: 0.1974125476 | D12: =X2 -> 6 | E12: 5.132726237 | F12: 0.1465427428 | G12: 23.07692308 | I12: 10 | J12: 0.001075573979 | K12: 4 | L12: ○ | M12: 0.005395158739 | O12: 0 | P12: 0 | Q12: 0 | R12: 0 | S12: 0 | T12: 0 | U12: 0 | V12: 1 | W12: 0 | X12: 0 | Y12: 0 | Z12: 0 | AA12: 0 | AB12: 0 | AC12: 0 | AD12: 0 | AE12: 0 | AF12: 0 | AG12: 0
A13: 11 | B13: 0.5 | C13: 0.1746664465 | D13: =Y2 -> 3 | E13: 4.541327609 | F13: 0.523126936 | G13: 11.53846154 | I13: 11 | J13: 0.009715583797 | K13: 9 | L13: ○ | M13: 0.003244851079 | O13: 0 | P13: 0 | Q13: 0 | R13: 0 | S13: 0 | T13: 0 | U13: 0 | V13: 0 | W13: 0 | X13: 0 | Y13: 1 | Z13: 0 | AA13: 0 | AB13: 0 | AC13: 0 | AD13: 0 | AE13: 0 | AF13: 0 | AG13: 0
A14: 12 | B14: 1 | C14: 0.1209774406 | D14: =Z2 -> 0 | E14: 3.145413457 | F14: 3.145413457 | G14: 0 | I14: 12 | J14: 0.004199061025 | K14: 14 | L14: ○ | M14: 0.002271671693 | O14: 0 | P14: 0 | Q14: 0 | R14: 0 | S14: 0 | T14: 0 | U14: 0 | V14: 0 | W14: 1 | X14: 0 | Y14: 0 | Z14: 0 | AA14: 0 | AB14: 0 | AC14: 0 | AD14: 0 | AE14: 0 | AF14: 0 | AG14: 0
A15: 13 | B15: 1.5 | C15: 0.06559072552 | D15: =AA2 -> 0 | E15: 1.705358863 | F15: 1.705358863 | G15: 0 | I15: 13 | J15: 0.001912370469 | K15: 6 | L15: ○ | M15: 0.004558362248 | O15: 0 | P15: 0 | Q15: 0 | R15: 0 | S15: 0 | T15: 0 | U15: 0 | V15: 0 | W15: 1 | X15: 0 | Y15: 0 | Z15: 0 | AA15: 0 | AB15: 0 | AC15: 0 | AD15: 0 | AE15: 0 | AF15: 0 | AG15: 0
A16: 14 | B16: 2 | C16: 0.02783468015 | D16: =AB2 -> 0 | E16: 0.723701684 | F16: 0.723701684 | G16: 0 | I16: 14 | J16: 0.00569341058 | K16: 23 | L16: =IF(J16="","",(IF(AND($F$23<$F$22,K16=1),"×","○"))) -> ○ | M16: 0.0007773221374 | O16: 0 | P16: 0 | Q16: 0 | R16: 0 | S16: 0 | T16: 0 | U16: 0 | V16: 0 | W16: 0 | X16: 1 | Y16: 0 | Z16: 0 | AA16: 0 | AB16: 0 | AC16: 0 | AD16: 0 | AE16: 0 | AF16: 0 | AG16: 0
A17: 15 | B17: 2.5 | C17: 0.009244614824 | D17: =AC2 -> 0 | E17: 0.2403599854 | F17: 0.2403599854 | G17: 0 | I17: 15 | J17: 0.008260652525 | K17: 18 | L17: ○ | M17: 0.001789919808 | O17: 0 | P17: 0 | Q17: 0 | R17: 0 | S17: 0 | T17: 0 | U17: 0 | V17: 0 | W17: 0 | X17: 0 | Y17: 1 | Z17: 0 | AA17: 0 | AB17: 0 | AC17: 0 | AD17: 0 | AE17: 0 | AF17: 0 | AG17: 0
A18: 16 | B18: 3 | C18: 0.002402732095 | D18: =AD2 -> 1 | E18: 0.06247103446 | F18: 14.06988965 | G18: 3.846153846 | I18: 16 | J18: 0.004681951065 | K18: 19 | L18: ○ | M18: 0.001788781653 | O18: 0 | P18: 0 | Q18: 0 | R18: 0 | S18: 0 | T18: 0 | U18: 0 | V18: 0 | W18: 1 | X18: 0 | Y18: 0 | Z18: 0 | AA18: 0 | AB18: 0 | AC18: 0 | AD18: 0 | AE18: 0 | AF18: 0 | AG18: 0
A19: 17 | B19: 3.5 | C19: 0.0004886419031 | D19: =AE2 -> 1 | E19: 0.01270468948 | F19: 76.72379806 | G19: 3.846153846 | I19: 17 | J19: 0.003302101139 | K19: 10 | L19: ○ | M19: 0.003168631578 | O19: 0 | P19: 0 | Q19: 0 | R19: 0 | S19: 0 | T19: 0 | U19: 0 | V19: 0 | W19: 1 | X19: 0 | Y19: 0 | Z19: 0 | AA19: 0 | AB19: 0 | AC19: 0 | AD19: 0 | AE19: 0 | AF19: 0 | AG19: 0
A20: 18 | B20: 4 | C20: 7.774890478e-05 | D20: =AF2 -> 0 | E20: 0.002021471524 | F20: 0.002021471524 | G20: 0 | I20: 18 | J20: 0.009976972879 | K20: 8 | L20: ○ | M20: 0.003506240161 | O20: 0 | P20: 0 | Q20: 0 | R20: 0 | S20: 0 | T20: 0 | U20: 0 | V20: 0 | W20: 0 | X20: 0 | Y20: 1 | Z20: 0 | AA20: 0 | AB20: 0 | AC20: 0 | AD20: 0 | AE20: 0 | AF20: 0 | AG20: 0
A21: 19 | B21: 4.5 | C21: 9.677357159e-06 | D21: =AG2 -> 0 | E21: 0.0002516112861 | F21: 0.0002516112861 | G21: 0 | I21: 19 | J21: 0.006052552023 | K21: 26 | L21: ○ | M21: 0.0004181806942 | O21: 0 | P21: 0 | Q21: 0 | R21: 0 | S21: 0 | T21: 0 | U21: 0 | V21: 0 | W21: 0 | X21: 1 | Y21: 0 | Z21: 0 | AA21: 0 | AB21: 0 | AC21: 0 | AD21: 0 | AE21: 0 | AF21: 0 | AG21: 0
B22: 計 | C22: =SUM(C3:C21) -> 0.9999979633 | D22: =SUM(D3:D21) -> 26 | E22: χ²観測値 | F22: =SUM(F3:F21) -> 116.1995551 | G22: =SUM(G3:G21) -> 100 | I22: 20 | J22: 0.004277089178 | K22: 15 | L22: ○ | M22: 0.00219364354 | O22: 0 | P22: 0 | Q22: 0 | R22: 0 | S22: 0 | T22: 0 | U22: 0 | V22: 0 | W22: 1 | X22: 0 | Y22: 0 | Z22: 0 | AA22: 0 | AB22: 0 | AC22: 0 | AD22: 0 | AE22: 0 | AF22: 0 | AG22: 0
E23: χ²期待値 | F23: =CHIINV(F24,F25) -> 12.59158724 | I23: 21 | J23: 0.005974225793 | K23: 25 | L23: ○ | M23: 0.0004965069246 | O23: 0 | P23: 0 | Q23: 0 | R23: 0 | S23: 0 | T23: 0 | U23: 0 | V23: 0 | W23: 0 | X23: 1 | Y23: 0 | Z23: 0 | AA23: 0 | AB23: 0 | AC23: 0 | AD23: 0 | AE23: 0 | AF23: 0 | AG23: 0
E24: 有意水準 | F24: 0.05 | I24: 22 | J24: 0.001742617732 | K24: 5 | L24: ○ | M24: 0.004728114986 | O24: 0 | P24: 0 | Q24: 0 | R24: 0 | S24: 0 | T24: 0 | U24: 0 | V24: 0 | W24: 1 | X24: 0 | Y24: 0 | Z24: 0 | AA24: 0 | AB24: 0 | AC24: 0 | AD24: 0 | AE24: 0 | AF24: 0 | AG24: 0
E25: 自由度 | F25: 6 | I25: 23 | J25: 0.003311100182 | K25: 11 | L25: ○ | M25: 0.003159632536 | O25: 0 | P25: 0 | Q25: 0 | R25: 0 | S25: 0 | T25: 0 | U25: 0 | V25: 0 | W25: 1 | X25: 0 | Y25: 0 | Z25: 0 | AA25: 0 | AB25: 0 | AC25: 0 | AD25: 0 | AE25: 0 | AF25: 0 | AG25: 0
I26: 24 | J26: 0.004617902203 | K26: 17 | L26: ○ | M26: 0.001852830515 | O26: 0 | P26: 0 | Q26: 0 | R26: 0 | S26: 0 | T26: 0 | U26: 0 | V26: 0 | W26: 1 | X26: 0 | Y26: 0 | Z26: 0 | AA26: 0 | AB26: 0 | AC26: 0 | AD26: 0 | AE26: 0 | AF26: 0 | AG26: 0
I27: 25 | J27: 0.004811486265 | K27: 20 | L27: ○ | M27: 0.001659246452 | O27: 0 | P27: 0 | Q27: 0 | R27: 0 | S27: 0 | T27: 0 | U27: 0 | V27: 0 | W27: 1 | X27: 0 | Y27: 0 | Z27: 0 | AA27: 0 | AB27: 0 | AC27: 0 | AD27: 0 | AE27: 0 | AF27: 0 | AG27: 0
I28: 26 | J28: 0.028 | K28: 1 | L28: × | M28: 0.02152926728 | O28: 0 | P28: 0 | Q28: 0 | R28: 0 | S28: 0 | T28: 0 | U28: 0 | V28: 0 | W28: 0 | X28: 0 | Y28: 0 | Z28: 0 | AA28: 0 | AB28: 0 | AC28: 0 | AD28: 0 | AE28: 1 | AF28: 0 | AG28: 0
I29: 27
I30: 28
I31: 29
I32: 30
I33: 標準偏差 | J33: =STDEVP(J3:J32) -> 0.00635393193
I34: データ数 | J34: =COUNTA(J3:J32) -> 26 | O34: =(O2/$AH$2)*100 -> 0 | P34: =(P2/$AH$2)*100 -> 0 | Q34: 0 | R34: 0 | S34: 0 | T34: 0 | U34: 0 | V34: 7.692307692 | W34: 50 | X34: 23.07692308 | Y34: 11.53846154 | Z34: 0 | AA34: 0 | AB34: 0 | AC34: 0 | AD34: 3.846153846 | AE34: 3.846153846 | AF34: 0 | AG34: 0 | AH34: ％
I35: 平均値 | J35: =AVERAGE(J3:J32) -> 0.006470732718
F37: ヒストグラムは「標準偏差」を使う
F38: xにデータを入力して判定の”×”がなくなるまでデータを消していく。

Sheet sa
E1: データ入力
J4: ⊿avgの*1000
J5: =G6*1000 -> 13.96153846
F6: ⊿Xavg・⊿Yavg | G6: =AVERAGE(G11:G109) -> 0.01396153846 | H6: =AVERAGE(H11:H109) -> -0.009769230768 | J6: =H6*1000 -> -9.769230768
C7: データ数 | D7: 相関係数 | E7: 二変量標準偏差 | H7: =SQRT(((G8^2+H8^2)/2)+ABS(D8)*G8*H8) -> 0.005102862059 | J7: 法平均二乗誤差
C8: =COUNT(C11:C109) -> 26 | D8: =CORREL(G11:G109,H11:H109) -> 0.1266166329 | E8: X軸Y軸標準偏差σx、σy | G8: =STDEVP(G11:G109) -> 0.005345600414 | H8: =STDEVP(H11:H109) -> 0.004218163037 | J8: =SQRT(SUM(J11:J109)/(C8-1)) -> 0.01871363139
C9: 図面データ(法１７条地図等） | E9: 実測データ | G9: 差
C10: ｘ | D10: ｙ | E10: ｘ | F10: ｙ | G10: ⊿ⅹ | H10: ⊿y | J10: ds^2
B11: 1 | C11: 0.014 | D11: -0.01 | E11: 0 | F11: 0 | G11: =IF(C11="","",C11-E11) -> 0.014 | H11: =IF(D11="","",D11-F11) -> -0.01 | J11: =IF(C11="","",G11^2+H11^2) -> 0.000296
B12: 2 | C12: 0.014 | D12: -0.016 | E12: 0 | F12: 0 | G12: =IF(C12="","",C12-E12) -> 0.014 | H12: =IF(D12="","",D12-F12) -> -0.016 | J12: =IF(C12="","",G12^2+H12^2) -> 0.0004519999998
B13: 3 | C13: 0.013 | D13: -0.004000000001 | E13: 0 | F13: 0 | G13: 0.013 | H13: -0.004000000001 | J13: 0.000185
B14: 4 | C14: 0.011 | D14: -0.015 | E14: 0 | F14: 0 | G14: 0.011 | H14: -0.015 | J14: 0.000346
B15: 5 | C15: 0.011 | D15: -0.011 | E15: 0 | F15: 0 | G15: 0.011 | H15: -0.011 | J15: 0.000242
B16: 6 | C16: 0.028 | D16: -0.0009999999966 | E16: 0 | F16: 0 | G16: 0.028 | H16: -0.0009999999966 | J16: 0.0007850000001
B17: 7 | C17: 0.012 | D17: -0.01 | E17: 0 | F17: 0 | G17: 0.012 | H17: -0.01 | J17: 0.0002440000001
B18: 8 | C18: 0.014 | D18: -0.011 | E18: 0 | F18: 0 | G18: 0.014 | H18: -0.011 | J18: 0.000317
B19: 9 | C19: 0.016 | D19: -0.015 | E19: 0 | F19: 0 | G19: 0.016 | H19: -0.015 | J19: 0.000481
B20: 10 | C20: 0.013 | D20: -0.011 | E20: 0 | F20: 0 | G20: 0.013 | H20: -0.011 | J20: 0.0002899999999
B21: 11 | C21: 0.012 | D21: -0.02 | E21: 0 | F21: 0 | G21: 0.012 | H21: -0.02 | J21: 0.0005439999998
B22: 12 | C22: 0.008999999998 | D22: -0.008999999998 | E22: 0 | F22: 0 | G22: 0.008999999998 | H22: -0.008999999998 | J22: 0.0001619999999
B23: 13 | C23: 0.011 | D23: -0.008000000002 | E23: 0 | F23: 0 | G23: 0.011 | H23: -0.008000000002 | J23: 0.0001850000001
B24: 14 | C24: 0.007000000001 | D24: -0.006000000001 | E24: 0 | F24: 0 | G24: 0.007000000001 | H24: -0.006000000001 | J24: 8.500000003e-05
B25: 15 | C25: 0.014 | D25: -0.017 | E25: 0 | F25: 0 | G25: 0.014 | H25: -0.017 | J25: 0.000485
B26: 16 | C26: 0.019 | D26: -0.011 | E26: 0 | F26: 0 | G26: 0.019 | H26: -0.011 | J26: 0.000482
B27: 17 | C27: 0.014 | D27: -0.009999999995 | E27: 0 | F27: 0 | G27: 0.014 | H27: -0.009999999995 | J27: 0.000296
B28: 18 | C28: 0.021 | D28: -0.006999999998 | E28: 0 | F28: 0 | G28: 0.021 | H28: -0.006999999998 | J28: 0.00049
B29: 19 | C29: 0.007999999998 | D29: -0.008000000002 | E29: 0 | F29: 0 | G29: 0.007999999998 | H29: -0.008000000002 | J29: 0.000128
B30: 20 | C30: 0.016 | D30: -0.007999999994 | E30: 0 | F30: 0 | G30: 0.016 | H30: -0.007999999994 | J30: 0.0003199999999
B31: 21 | C31: 0.016 | D31: -0.004999999997 | E31: 0 | F31: 0 | G31: 0.016 | H31: -0.004999999997 | J31: 0.000281
B32: 22 | C32: 0.015 | D32: -0.01 | E32: 0 | F32: 0 | G32: 0.015 | H32: -0.01 | J32: 0.0003250000001
B33: 23 | C33: 0.01 | D33: -0.01 | E33: 0 | F33: 0 | G33: 0.01 | H33: -0.01 | J33: 0.0002000000001
B34: 24 | C34: 0.007999999998 | D34: -0.006999999998 | E34: 0 | F34: 0 | G34: 0.007999999998 | H34: -0.006999999998 | J34: 0.0001129999999
B35: 25 | C35: 0.007999999998 | D35: -0.003999999994 | E35: 0 | F35: 0 | G35: 0.007999999998 | H35: -0.003999999994 | J35: 7.999999992e-05
B36: 26 | C36: 0.029 | D36: -0.009999999995 | E36: 0 | F36: 0 | G36: 0.029 | H36: -0.009999999995 | J36: 0.0009409999998
B37: 27
B38: 28
B39: 29
B40: 30
B41: 31
B42: 32
B43: 33
B44: 34
B45: 35
B46: 36
B47: 37
B48: 38
B49: 39
B50: 40
B51: 41
B52: 42
B53: 43
B54: 44
B55: 45
B56: 46
B57: 47
B58: 48
B59: 49
B60: 50
B61: 51
B62: 52
B63: 53
B64: 54
B65: 55
B66: 56
B67: 57
B68: 58
B69: 59
B70: 60
B71: 61
B72: 62
B73: 63
B74: 64
B75: 65
B76: 66 | G76: =IF(C76="","",C76-E76) ->  | H76: =IF(D76="","",D76-F76) ->  | J76: =IF(C76="","",G76^2+H76^2) -> 
B77: 67
B78: 68
B79: 69
B80: 70
B81: 71
B82: 72
B83: 73
B84: 74
B85: 75
B86: 76
B87: 77
B88: 78
B89: 79
B90: 80
B91: 81
B92: 82
B93: 83
B94: 84
B95: 85
B96: 86
B97: 87
B98: 88
B99: 89
B100: 90
B101: 91
B102: 92
B103: 93
B104: 94
B105: 95
B106: 96
B107: 97
B108: 98
B109: 99

Sheet Kakuritu
F1: このシートの操作はしないこと
F2: 6点以上必要です | AC2: 分布中心 | AG2: lam1 | AH2: lam2 | AJ2: slope
AA3: σm | AB3: σn | AC3: Xavg | AD3: Yavg | AE3: 相関係数 | AG3: =0.5*(AF9+AG9+SQRT((AF9-AG9)^2+4*AH9^2)) -> 0.0003128380343 | AH3: =0.5*(AF9+AG9-SQRT((AF9-AG9)^2+4*AH9^2)) -> 2.389273488e-05 | AJ3: 1.327286831
AA4: =BQ9 -> 0.004754226931 | AB4: =BR9 -> 0.004875004563 | AC4: =AVERAGE(AC11:AC110) -> 0.01396153846 | AD4: =AVERAGE(AD11:AD110) -> -0.009769230768 | AE4: =CORREL(AC11:AC109,AD11:AD109) -> 0.1266166329 | AG4: a | AH4: b | AJ4: 楕円回転角
AA5: σx | AB5: σy | AG5: =SQRT(AH9^2/((AH3-AF9)^2+AH9^2)) -> 0.5560455627 | AH5: =(AH3-AF9)*AG5/AH9 -> 0.8311518105 | AJ5: =90-(DEGREES(AJ3)) -> 13.95206636
AA6: =STDEVP(AC11:AC110) -> 0.005345600414 | AB6: =STDEVP(AD11:AD110) -> 0.004218163037 | AC6: =STDEV(AC11:AC110) -> 0.005451464165 | AD6: =STDEV(AD11:AD110) -> 0.004301699128 | AF6: 標準偏差（無相関） | AG6: slope | AH6: 回転角度 | AI6: 生角 | AJ6: 図の角度
AB7: カウント | AD7: 二変量σ | AF7: =SQRT((AC6^2/2)+AD6^2/2) -> 0.004910350137 | AG7: =-1*AG5/AH5 -> -0.6690060175 | AH7: =IF(AI7>=90,90-AI7,0-AI7) -> -56.21723922 | AI7: =DEGREES(ATAN(AG7))+180 -> 146.2172392 | AJ7: =AI7+AH7 -> 90 | BQ7: 短軸σ | BR7: 長軸σ
AB8: =COUNTA(G11:G109) -> 26 | AD8: =SQRT(AA6^2/2+AB6^2/2+ABS(AE4)*AA6*AB6) -> 0.005102862059 | AF8: sx=sx/n | AG8: sy=sy/n | AH8: sxy=sxy/n | AK8: 角判定 | AL8: σx | AM8: σy | AN8: =SUM(AN11:AN110) -> 4 | AO8: 2 | AP8: 1 | AQ8: 1 | AR8: 0 | AS8: 1 | AT8: 0 | AU8: 0 | AV8: 0 | AW8: 10 | AX8: 3 | AY8: 3 | AZ8: 1 | BA8: 0 | BB8: 0 | BC8: 0 | BD8: 0 | BE8: 0 | BQ8: σm | BR8: σn
AF9: =SUM(AF11:AF110)/(AB8) -> 0.0002235 | AG9: =SUM(AG11:AG110)/(AB8) -> 0.0001132307692 | AH9: =SUM(AH11:AH110)/(AB8) -> -0.0001335384615 | AK9: =IF(MAX(AK11:AK110)>360,"生角＋回転角が３６０度を超えないうに調整ください","OK") -> OK | AL9: =STDEVP(AL11:AL110) -> 0.004875004563 | AM9: =STDEVP(AM11:AM110) -> 0.004754226931 | BQ9: =STDEVP(BQ11:BQ109) -> 0.004754226931 | BR9: =STDEVP(BR11:BR109) -> 0.004875004563
G10: 準拠点 | W10: Δx | X10: Δy | Z10: 順 | AA10: NO, | AB10: 点名 | AC10: ⊿Ｘ | AD10: ⊿Ｙ | AE10: ベクトル | AF10: sx | AG10: sy | AH10: sxy | AI10: ⊿⊿ｘ | AJ10: ⊿⊿ｙ | AK10: 生角+回転 | AL10: Δxh | AM10: Δyh | AN10: 0.5 | AO10: 1 | AP10: 1.5 | AQ10: 2 | AR10: 2.5 | AS10: 3 | AT10: 3.5 | AU10: 4 | AV10: 4.5 | AW10: 0.5 | AX10: 1 | AY10: 1.5 | AZ10: 2 | BA10: 2.5 | BB10: 3 | BC10: 3.5 | BD10: 4 | BE10: 4.5 | BN10: ⊿⊿ｘ | BO10: ⊿⊿ｙ | BP10: 生角+回転 | BQ10: Δxh | BR10: Δyh
B11: 0.0123409198 | F11: 1 | G11: ○ | W11: 0.014 | X11: -0.01 | Y11: =IF(G11="","",SQRT(W11^2+X11^2)) -> 0.01720465053 | Z11: =IF(Y11="","",RANK(Y11,$Y$11:$Y$109,0)) -> 13 | AA11: 1 | AB11: 1 | AC11: 0.014 | AD11: -0.01 | AE11: =IF(AB11="","",SQRT(AC11^2+AD11^2)) -> 0.01720465053 | AF11: =IF(AB11="","",(AC11-$AC$5)^2) -> 0.000196 | AG11: =IF(AB11="","",(AD11-$AD$5)^2) -> 0.0001 | AH11: =IF(AB11="","",(AC11-$AC$5)*(AD11-$AD$5)) -> -0.00014 | AI11: =IF(AB11="","",ABS(COS(AK11*PI()/180)*AE11)) -> 0.0005268802292 | AJ11: =(IF(AB11="","",ABS(SQRT((AC11^2+AD11^2)-AI11^2)))) -> 0.01719658098 | AK11: =IF(AB11="","",IF((DEGREES((ATAN2(AC11,AD11))+($AH$7*PI()/180)))<0,(DEGREES((ATAN2(AC11,AD11))+($AH$7*PI()/180)))+360,(DEGREES((ATAN2(AC11,AD11))+($AH$7*PI()/180))))) -> 268.245083 | AL11: =IF(AB11="","",IF(AND(AK11>90,AK11<270),AI11*-1,AI11)) -> -0.0005268802292 | AM11: =IF(AB11="","",IF(AND(AK11>180,AK11<360),AJ11*-1,AJ11)) -> -0.01719658098 | AN11: =IF(AND(0<=AL11,$AD$8*0.5>AL11),1,0) -> 0 | AO11: =IF(AND($AD$8*0.5<=AL11,$AD$8*1>AL11),1,0) -> 0 | AP11: =IF(AND($AD$8*1<=AL11,$AD$8*1.5>AL11),1,0) -> 0 | AQ11: =IF(AND($AD$8*1.5<=AL11,$AD$8*2>AL11),1,0) -> 0 | AR11: =IF(AND($AD$8*2<=AL11,$AD$8*2.5>AL11),1,0) -> 0 | AS11: =IF(AND($AD$8*2.5<=AL11,$AD$8*3>AL11),1,0) -> 0 | AT11: =IF(AND($AD$8*3<=AL11,$AD$8*3.5>AL11),1,0) -> 0 | AU11: =IF(AND($AD$8*3.5<=AL11,$AD$8*4>AL11),1,0) -> 0 | AV11: =IF(AB11="",0,(IF($AD$8*4<=AL11,1,0))) -> 0 | AW11: =IF(AND(0>AL11,$AD$8*-0.5<AL11),1,0) -> 1 | AX11: =IF(AND($AD$8*-0.5>=AL11,$AD$8*-1<AL11),1,0) -> 0 | AY11: =IF(AND($AD$8*-1>=AL11,$AD$8*-1.5<AL11),1,0) -> 0 | AZ11: =IF(AND($AD$8*-1.5>=AL11,$AD$8*-2<AL11),1,0) -> 0 | BA11: =IF(AND($AD$8*-2>=AL11,$AD$8*-2.5<AL11),1,0) -> 0 | BB11: =IF(AND($AD$8*-2.5>=AL11,$AD$8*-3<AL11),1,0) -> 0 | BC11: =IF(AND($AD$8*-3>=AL11,$AD$8*-3.5<AL11),1,0) -> 0 | BD11: =IF(AND($AD$8*-3.5>=AL11,$AD$8*-4<AL11),1,0) -> 0 | BE11: =IF(AB11="",0,(IF($AD$8*-4>=AL11,1,0))) -> 0 | BG11: χ²値計算 | BN11: =IF(AB11="","",ABS(COS(BP11*PI()/180)*AE11)) -> 0.01719658098 | BO11: =(IF(AB11="","",ABS(SQRT((AC11^2+AD11^2)-BN11^2)))) -> 0.0005268802292 | BP11: =IF(AB11="","",IF((DEGREES((ATAN2(AC11,AD11))+(-$AI$7*PI()/180)))<0,(DEGREES((ATAN2(AC11,AD11))+(-$AI$7*PI()/180)))+360,(DEGREES((ATAN2(AC11,AD11))+(-$AI$7*PI()/180))))) -> 178.245083 | BQ11: =IF(AB11="","",IF(AND(BP11>90,BP11<270),BN11*-1,BN11)) -> -0.01719658098 | BR11: =IF(AB11="","",IF(AND(BP11>180,BP11<360),BO11*-1,BO11)) -> 0.0005268802292
B12: 0.03470537265 | F12: 2 | G12: ○ | W12: 0.014 | X12: -0.016 | Y12: =IF(G12="","",SQRT(W12^2+X12^2)) -> 0.02126029162 | Z12: =IF(Y12="","",RANK(Y12,$Y$11:$Y$109,0)) -> 8 | AA12: 2 | AB12: 2 | AC12: 0.014 | AD12: -0.016 | AE12: =IF(AB12="","",SQRT(AC12^2+AD12^2)) -> 0.02126029162 | AF12: =IF(AB12="","",(AC12-$AC$5)^2) -> 0.000196 | AG12: =IF(AB12="","",(AD12-$AD$5)^2) -> 0.0002559999999 | AH12: =IF(AB12="","",(AC12-$AC$5)*(AD12-$AD$5)) -> -0.0002239999999 | AI12: =IF(AB12="","",ABS(COS(AK12*PI()/180)*AE12)) -> 0.005513791087 | AJ12: =(IF(AB12="","",ABS(SQRT((AC12^2+AD12^2)-AI12^2)))) -> 0.02053285435 | AK12: =IF(AB12="","",IF((DEGREES((ATAN2(AC12,AD12))+($AH$7*PI()/180)))<0,(DEGREES((ATAN2(AC12,AD12))+($AH$7*PI()/180)))+360,(DEGREES((ATAN2(AC12,AD12))+($AH$7*PI()/180))))) -> 254.9686859 | AL12: =IF(AB12="","",IF(AND(AK12>90,AK12<270),AI12*-1,AI12)) -> -0.005513791087 | AM12: =IF(AB12="","",IF(AND(AK12>180,AK12<360),AJ12*-1,AJ12)) -> -0.02053285435 | AN12: =IF(AND(0<=AL12,$AD$8*0.5>AL12),1,0) -> 0 | AO12: =IF(AND($AD$8*0.5<=AL12,$AD$8*1>AL12),1,0) -> 0 | AP12: =IF(AND($AD$8*1<=AL12,$AD$8*1.5>AL12),1,0) -> 0 | AQ12: =IF(AND($AD$8*1.5<=AL12,$AD$8*2>AL12),1,0) -> 0 | AR12: =IF(AND($AD$8*2<=AL12,$AD$8*2.5>AL12),1,0) -> 0 | AS12: =IF(AND($AD$8*2.5<=AL12,$AD$8*3>AL12),1,0) -> 0 | AT12: =IF(AND($AD$8*3<=AL12,$AD$8*3.5>AL12),1,0) -> 0 | AU12: =IF(AND($AD$8*3.5<=AL12,$AD$8*4>AL12),1,0) -> 0 | AV12: =IF(AB12="",0,(IF($AD$8*4<=AL12,1,0))) -> 0 | AW12: =IF(AND(0>AL12,$AD$8*-0.5<AL12),1,0) -> 0 | AX12: =IF(AND($AD$8*-0.5>=AL12,$AD$8*-1<AL12),1,0) -> 0 | AY12: =IF(AND($AD$8*-1>=AL12,$AD$8*-1.5<AL12),1,0) -> 1 | AZ12: =IF(AND($AD$8*-1.5>=AL12,$AD$8*-2<AL12),1,0) -> 0 | BA12: =IF(AND($AD$8*-2>=AL12,$AD$8*-2.5<AL12),1,0) -> 0 | BB12: =IF(AND($AD$8*-2.5>=AL12,$AD$8*-3<AL12),1,0) -> 0 | BC12: =IF(AND($AD$8*-3>=AL12,$AD$8*-3.5<AL12),1,0) -> 0 | BD12: =IF(AND($AD$8*-3.5>=AL12,$AD$8*-4<AL12),1,0) -> 0 | BE12: =IF(AB12="",0,(IF($AD$8*-4>=AL12,1,0))) -> 0 | BG12: σ中心 | BH12: 確率 | BI12: 実点数 | BJ12: 期待度数 | BK12: ｘ＾2 | BN12: =IF(AB12="","",ABS(COS(BP12*PI()/180)*AE12)) -> 0.02053285435 | BO12: =(IF(AB12="","",ABS(SQRT((AC12^2+AD12^2)-BN12^2)))) -> 0.005513791087 | BP12: 164.9686859 | BQ12: =IF(AB12="","",IF(AND(BP12>90,BP12<270),BN12*-1,BN12)) -> -0.02053285435 | BR12: =IF(AB12="","",IF(AND(BP12>180,BP12<360),BO12*-1,BO12)) -> 0.005513791087
B13: -0.05291771277 | F13: 3 | G13: ○ | W13: 0.013 | X13: -0.004000000001 | Y13: 0.01360147051 | Z13: 21 | AA13: 3 | AB13: 3 | AC13: 0.013 | AD13: -0.004000000001 | AE13: 0.01360147051 | AF13: 0.000169 | AG13: 1.600000001e-05 | AH13: -5.200000001e-05 | AI13: 0.003903985072 | AJ13: 0.01302915579 | AK13: 286.6800318 | AL13: 0.003903985072 | AM13: -0.01302915579 | AN13: 0 | AO13: 1 | AP13: 0 | AQ13: 0 | AR13: 0 | AS13: 0 | AT13: 0 | AU13: 0 | AV13: 0 | AW13: 0 | AX13: 0 | AY13: 0 | AZ13: 0 | BA13: 0 | BB13: 0 | BC13: 0 | BD13: 0 | BE13: 0 | BG13: 4.25 | BH13: 5e-05 | BI13: =AV8 -> 0 | BJ13: =BH13*$BI$32 -> 0.0013 | BK13: =((BI13-BJ13)^2/BJ13) -> 0.0013 | BN13: 0.01302915579 | BO13: 0.003903985072 | BP13: 196.6800318 | BQ13: -0.01302915579 | BR13: -0.003903985072
B14: -0.03918064444 | F14: 4 | G14: ○ | W14: 0.011 | X14: -0.015 | Y14: 0.01860107524 | Z14: 9 | AA14: 4 | AB14: 4 | AC14: 0.011 | AD14: -0.015 | AE14: 0.01860107524 | AF14: 0.000121 | AG14: 0.000225 | AH14: -0.000165 | AI14: 0.006350775968 | AJ14: 0.01748335336 | AK14: 250.0365985 | AL14: -0.006350775968 | AM14: -0.01748335336 | AN14: 0 | AO14: 0 | AP14: 0 | AQ14: 0 | AR14: 0 | AS14: 0 | AT14: 0 | AU14: 0 | AV14: 0 | AW14: 0 | AX14: 0 | AY14: 1 | AZ14: 0 | BA14: 0 | BB14: 0 | BC14: 0 | BD14: 0 | BE14: 0 | BG14: 3.75 | BH14: 0.0002 | BI14: =AU8 -> 0 | BJ14: =BH14*$BI$32 -> 0.0052 | BK14: =((BI14-BJ14)^2/BJ14) -> 0.0052 | BN14: 0.01748335336 | BO14: 0.006350775968 | BP14: 160.0365985 | BQ14: -0.01748335336 | BR14: 0.006350775968
B15: 0.006755906258 | F15: 5 | G15: ○ | W15: 0.011 | X15: -0.011 | Y15: 0.01555634919 | Z15: 18 | AA15: 5 | AB15: 5 | AC15: 0.011 | AD15: -0.011 | AE15: 0.01555634919 | AF15: 0.000121 | AG15: 0.000121 | AH15: -0.000121 | AI15: 0.003026168723 | AJ15: 0.01525917111 | AK15: 258.7827608 | AL15: -0.003026168723 | AM15: -0.01525917111 | AN15: 0 | AO15: 0 | AP15: 0 | AQ15: 0 | AR15: 0 | AS15: 0 | AT15: 0 | AU15: 0 | AV15: 0 | AW15: 0 | AX15: 1 | AY15: 0 | AZ15: 0 | BA15: 0 | BB15: 0 | BC15: 0 | BD15: 0 | BE15: 0 | BG15: 3.25 | BH15: 0.0011 | BI15: =AT8 -> 0 | BJ15: 0.0286 | BK15: 0.0286 | BN15: 0.01525917111 | BO15: 0.003026168723 | BP15: 168.7827608 | BQ15: -0.01525917111 | BR15: 0.003026168723
B16: -0.002969586778 | F16: 6 | G16: ○ | W16: 0.028 | X16: -0.0009999999966 | Y16: 0.02801785145 | Z16: 2 | AA16: 6 | AB16: 6 | AC16: 0.028 | AD16: -0.0009999999966 | AE16: 0.02801785145 | AF16: 0.0007840000001 | AG16: 9.999999931e-07 | AH16: -2.799999991e-05 | AI16: 0.01473812395 | AJ16: 0.02382829626 | AK16: 301.7373523 | AL16: 0.01473812395 | AM16: -0.02382829626 | AN16: 0 | AO16: 0 | AP16: 0 | AQ16: 0 | AR16: 0 | AS16: 1 | AT16: 0 | AU16: 0 | AV16: 0 | AW16: 0 | AX16: 0 | AY16: 0 | AZ16: 0 | BA16: 0 | BB16: 0 | BC16: 0 | BD16: 0 | BE16: 0 | BG16: 2.75 | BH16: 0.00485 | BI16: =AS8 -> 1 | BJ16: 0.1261 | BK16: 6.056314116 | BN16: 0.02382829626 | BO16: 0.01473812395 | BP16: 211.7373523 | BQ16: -0.02382829626 | BR16: -0.01473812395
B17: 0.1074530062 | F17: 7 | G17: ○ | W17: 0.012 | X17: -0.01 | Y17: 0.01562049935 | Z17: 17 | AA17: 7 | AB17: 7 | AC17: 0.012 | AD17: -0.01 | AE17: 0.01562049935 | AF17: 0.0001440000001 | AG17: 0.0001 | AH17: -0.00012 | AI17: 0.001638971353 | AJ17: 0.01553427736 | AK17: 263.9771897 | AL17: -0.001638971353 | AM17: -0.01553427736 | AN17: 0 | AO17: 0 | AP17: 0 | AQ17: 0 | AR17: 0 | AS17: 0 | AT17: 0 | AU17: 0 | AV17: 0 | AW17: 1 | AX17: 0 | AY17: 0 | AZ17: 0 | BA17: 0 | BB17: 0 | BC17: 0 | BD17: 0 | BE17: 0 | BG17: 2.25 | BH17: 0.01155 | BI17: =AR8 -> 0 | BJ17: 0.3003 | BK17: 0.3003 | BN17: 0.01553427736 | BO17: 0.001638971353 | BP17: 173.9771897 | BQ17: -0.01553427736 | BR17: 0.001638971353
B18: -0.02469699237 | F18: 8 | G18: ○ | W18: 0.014 | X18: -0.011 | Y18: 0.01780449382 | Z18: 12 | AA18: 8 | AB18: 8 | AC18: 0.014 | AD18: -0.011 | AE18: 0.01780449382 | AF18: 0.0001960000001 | AG18: 0.000121 | AH18: -0.000154 | AI18: 0.001358032035 | AJ18: 0.01775262654 | AK18: 265.6255342 | AL18: -0.001358032035 | AM18: -0.01775262654 | AN18: 0 | AO18: 0 | AP18: 0 | AQ18: 0 | AR18: 0 | AS18: 0 | AT18: 0 | AU18: 0 | AV18: 0 | AW18: 1 | AX18: 0 | AY18: 0 | AZ18: 0 | BA18: 0 | BB18: 0 | BC18: 0 | BD18: 0 | BE18: 0 | BG18: 1.75 | BH18: 0.04905 | BI18: =AQ8 -> 1 | BJ18: 1.2753 | BK18: 0.0594292245 | BN18: 0.01775262654 | BO18: 0.001358032035 | BP18: 175.6255342 | BQ18: -0.01775262654 | BR18: 0.001358032035
B19: -0.0008875693981 | F19: 9 | G19: ○ | W19: 0.016 | X19: -0.015 | Y19: 0.0219317122 | Z19: 7 | AA19: 9 | AB19: 9 | AC19: 0.016 | AD19: -0.015 | AE19: 0.0219317122 | AF19: 0.000256 | AG19: 0.000225 | AH19: -0.00024 | AI19: 0.003570548154 | AJ19: 0.02163911241 | AK19: 260.630371 | AL19: -0.003570548154 | AM19: -0.02163911241 | AN19: 0 | AO19: 0 | AP19: 0 | AQ19: 0 | AR19: 0 | AS19: 0 | AT19: 0 | AU19: 0 | AV19: 0 | AW19: 0 | AX19: 1 | AY19: 0 | AZ19: 0 | BA19: 0 | BB19: 0 | BC19: 0 | BD19: 0 | BE19: 0 | BG19: 1.25 | BH19: 0.09185 | BI19: =AP8 -> 1 | BJ19: 2.3881 | BK19: 0.8068429337 | BN19: 0.02163911241 | BO19: 0.003570548154 | BP19: 170.630371 | BQ19: -0.02163911241 | BR19: 0.003570548154
B20: 0.01151549648 | F20: 10 | G20: ○ | W20: 0.013 | X20: -0.011 | Y20: 0.01702938636 | Z20: 15 | AA20: 10 | AB20: 10 | AC20: 0.013 | AD20: -0.011 | AE20: 0.01702938636 | AF20: 0.000169 | AG20: 0.000121 | AH20: -0.000143 | AI20: 0.0019140776 | AJ20: 0.01692147473 | AK20: 263.5464025 | AL20: -0.0019140776 | AM20: -0.01692147473 | AN20: 0 | AO20: 0 | AP20: 0 | AQ20: 0 | AR20: 0 | AS20: 0 | AT20: 0 | AU20: 0 | AV20: 0 | AW20: 1 | AX20: 0 | AY20: 0 | AZ20: 0 | BA20: 0 | BB20: 0 | BC20: 0 | BD20: 0 | BE20: 0 | BG20: 0.75 | BH20: 0.1499 | BI20: =AO8 -> 2 | BJ20: 3.8974 | BK20: 0.9237252425 | BN20: 0.01692147473 | BO20: 0.0019140776 | BP20: 173.5464025 | BQ20: -0.01692147473 | BR20: 0.0019140776
B21: -0.03059493027 | F21: 11 | G21: ○ | W21: 0.012 | X21: -0.02 | Y21: 0.02332380758 | Z21: 3 | AA21: 11 | AB21: 11 | AC21: 0.012 | AD21: -0.02 | AE21: 0.02332380758 | AF21: 0.000144 | AG21: 0.0003999999999 | AH21: -0.0002399999999 | AI21: 0.009950489456 | AJ21: 0.02109473298 | AK21: 244.7465173 | AL21: -0.009950489456 | AM21: -0.02109473298 | AN21: 0 | AO21: 0 | AP21: 0 | AQ21: 0 | AR21: 0 | AS21: 0 | AT21: 0 | AU21: 0 | AV21: 0 | AW21: 0 | AX21: 0 | AY21: 0 | AZ21: 1 | BA21: 0 | BB21: 0 | BC21: 0 | BD21: 0 | BE21: 0 | BG21: 0.25 | BH21: 0.19145 | BI21: =AN8 -> 4 | BJ21: 4.9777 | BK21: 0.1920359383 | BN21: 0.02109473298 | BO21: 0.009950489456 | BP21: 154.7465173 | BQ21: -0.02109473298 | BR21: 0.009950489456
B22: -0.02922818061 | F22: 12 | G22: ○ | W22: 0.008999999998 | X22: -0.008999999998 | Y22: 0.01272792206 | Z22: 22 | AA22: 12 | AB22: 12 | AC22: 0.008999999998 | AD22: -0.008999999998 | AE22: 0.01272792206 | AF22: 8.099999997e-05 | AG22: 8.099999997e-05 | AH22: -8.099999997e-05 | AI22: 0.00247595623 | AJ22: 0.01248477636 | AK22: 258.7827608 | AL22: -0.00247595623 | AM22: -0.01248477636 | AN22: 0 | AO22: 0 | AP22: 0 | AQ22: 0 | AR22: 0 | AS22: 0 | AT22: 0 | AU22: 0 | AV22: 0 | AW22: 1 | AX22: 0 | AY22: 0 | AZ22: 0 | BA22: 0 | BB22: 0 | BC22: 0 | BD22: 0 | BE22: 0 | BG22: -0.25 | BH22: 0.19145 | BI22: =AW8 -> 10 | BJ22: 4.9777 | BK22: 5.067299614 | BN22: 0.01248477636 | BO22: 0.00247595623 | BP22: 168.7827608 | BQ22: -0.01248477636 | BR22: 0.00247595623
B23: -0.0154667403 | F23: 13 | G23: ○ | W23: 0.011 | X23: -0.008000000002 | Y23: 0.01360147051 | Z23: 20 | AA23: 13 | AB23: 13 | AC23: 0.011 | AD23: -0.008000000002 | AE23: 0.01360147051 | AF23: 0.000121 | AG23: 6.400000003e-05 | AH23: -8.800000004e-05 | AI23: 0.0005327132943 | AJ23: 0.01359103442 | AK23: 267.7553874 | AL23: -0.0005327132943 | AM23: -0.01359103442 | AN23: 0 | AO23: 0 | AP23: 0 | AQ23: 0 | AR23: 0 | AS23: 0 | AT23: 0 | AU23: 0 | AV23: 0 | AW23: 1 | AX23: 0 | AY23: 0 | AZ23: 0 | BA23: 0 | BB23: 0 | BC23: 0 | BD23: 0 | BE23: 0 | BG23: -0.75 | BH23: 0.1499 | BI23: =AX8 -> 3 | BJ23: 3.8974 | BK23: 0.2066317956 | BN23: 0.01359103442 | BO23: 0.0005327132943 | BP23: 177.7553874 | BQ23: -0.01359103442 | BR23: 0.0005327132943
B24: -0.0408629019 | F24: 14 | G24: ○ | W24: 0.007000000001 | X24: -0.006000000001 | Y24: 0.009219544459 | Z24: 25 | AA24: 14 | AB24: 14 | AC24: 0.007000000001 | AD24: -0.006000000001 | AE24: 0.009219544459 | AF24: 4.900000002e-05 | AG24: 3.600000001e-05 | AH24: -4.200000002e-05 | AI24: 0.001094591924 | AJ24: 0.009154336052 | AK24: 263.1814661 | AL24: -0.001094591924 | AM24: -0.009154336052 | AN24: 0 | AO24: 0 | AP24: 0 | AQ24: 0 | AR24: 0 | AS24: 0 | AT24: 0 | AU24: 0 | AV24: 0 | AW24: 1 | AX24: 0 | AY24: 0 | AZ24: 0 | BA24: 0 | BB24: 0 | BC24: 0 | BD24: 0 | BE24: 0 | BG24: -1.25 | BH24: 0.09185 | BI24: =AY8 -> 3 | BJ24: 2.3881 | BK24: 0.1567864034 | BN24: 0.009154336052 | BO24: 0.001094591924 | BP24: 173.1814661 | BQ24: -0.009154336052 | BR24: 0.001094591924
B25: 0.05014579393 | F25: 15 | G25: ○ | W25: 0.014 | X25: -0.017 | Y25: 0.02202271554 | Z25: 5 | AA25: 15 | AB25: 15 | AC25: 0.014 | AD25: -0.017 | AE25: 0.02202271554 | AF25: 0.000196 | AG25: 0.000289 | AH25: -0.000238 | AI25: 0.006344942901 | AJ25: 0.02108889991 | AK25: 253.2552206 | AL25: -0.006344942901 | AM25: -0.02108889991 | AN25: 0 | AO25: 0 | AP25: 0 | AQ25: 0 | AR25: 0 | AS25: 0 | AT25: 0 | AU25: 0 | AV25: 0 | AW25: 0 | AX25: 0 | AY25: 1 | AZ25: 0 | BA25: 0 | BB25: 0 | BC25: 0 | BD25: 0 | BE25: 0 | BG25: -1.75 | BH25: 0.04905 | BI25: =AZ8 -> 1 | BJ25: 1.2753 | BK25: 0.0594292245 | BN25: 0.02108889991 | BO25: 0.006344942901 | BP25: 163.2552206 | BQ25: -0.02108889991 | BR25: 0.006344942901
B26: -0.02739584602 | F26: 16 | G26: ○ | W26: 0.019 | X26: -0.011 | Y26: 0.0219544984 | Z26: 6 | AA26: 16 | AB26: 16 | AC26: 0.019 | AD26: -0.011 | AE26: 0.0219544984 | AF26: 0.000361 | AG26: 0.000121 | AH26: -0.000209 | AI26: 0.001422195777 | AJ26: 0.02190838559 | AK26: 273.714178 | AL26: 0.001422195777 | AM26: -0.02190838559 | AN26: 1 | AO26: 0 | AP26: 0 | AQ26: 0 | AR26: 0 | AS26: 0 | AT26: 0 | AU26: 0 | AV26: 0 | AW26: 0 | AX26: 0 | AY26: 0 | AZ26: 0 | BA26: 0 | BB26: 0 | BC26: 0 | BD26: 0 | BE26: 0 | BG26: -2.25 | BH26: 0.01155 | BI26: =BA8 -> 0 | BJ26: 0.3003 | BK26: 0.3003 | BN26: 0.02190838559 | BO26: 0.001422195777 | BP26: 183.714178 | BQ26: -0.02190838559 | BR26: -0.001422195777
B27: 0.03056531169 | F27: 17 | G27: ○ | W27: 0.014 | X27: -0.009999999995 | Y27: 0.01720465053 | Z27: 14 | AA27: 17 | AB27: 17 | AC27: 0.014 | AD27: -0.009999999995 | AE27: 0.01720465053 | AF27: 0.0001960000001 | AG27: 9.99999999e-05 | AH27: -0.00014 | AI27: 0.0005268802211 | AJ27: 0.01719658097 | AK27: 268.245083 | AL27: -0.0005268802211 | AM27: -0.01719658097 | AN27: 0 | AO27: 0 | AP27: 0 | AQ27: 0 | AR27: 0 | AS27: 0 | AT27: 0 | AU27: 0 | AV27: 0 | AW27: 1 | AX27: 0 | AY27: 0 | AZ27: 0 | BA27: 0 | BB27: 0 | BC27: 0 | BD27: 0 | BE27: 0 | BG27: -2.75 | BH27: 0.00485 | BI27: =BB8 -> 0 | BJ27: 0.1261 | BK27: 0.1261 | BN27: 0.01719658097 | BO27: 0.0005268802211 | BP27: 178.245083 | BQ27: -0.01719658097 | BR27: 0.0005268802211
B28: 0.02192277372 | F28: 18 | G28: ○ | W28: 0.021 | X28: -0.006999999998 | Y28: 0.02213594362 | Z28: 4 | AA28: 18 | AB28: 18 | AC28: 0.021 | AD28: -0.006999999998 | AE28: 0.02213594362 | AF28: 0.000441 | AG28: 4.899999997e-05 | AH28: -0.000147 | AI28: 0.005858894146 | AJ28: 0.02134650696 | AK28: 285.347812 | AL28: 0.005858894146 | AM28: -0.02134650696 | AN28: 0 | AO28: 0 | AP28: 1 | AQ28: 0 | AR28: 0 | AS28: 0 | AT28: 0 | AU28: 0 | AV28: 0 | AW28: 0 | AX28: 0 | AY28: 0 | AZ28: 0 | BA28: 0 | BB28: 0 | BC28: 0 | BD28: 0 | BE28: 0 | BG28: -3.25 | BH28: 0.0011 | BI28: =BC8 -> 0 | BJ28: 0.0286 | BK28: 0.0286 | BN28: 0.02134650696 | BO28: 0.005858894146 | BP28: 195.347812 | BQ28: -0.02134650696 | BR28: -0.005858894146
B29: -0.002226318381 | F29: 19 | G29: ○ | W29: 0.007999999998 | X29: -0.008000000002 | Y29: 0.0113137085 | Z29: 23 | AA29: 19 | AB29: 19 | AC29: 0.007999999998 | AD29: -0.008000000002 | AE29: 0.0113137085 | AF29: 6.399999997e-05 | AG29: 6.400000003e-05 | AH29: -6.4e-05 | AI29: 0.002200849985 | AJ29: 0.01109757899 | AK29: 258.7827608 | AL29: -0.002200849985 | AM29: -0.01109757899 | AN29: 0 | AO29: 0 | AP29: 0 | AQ29: 0 | AR29: 0 | AS29: 0 | AT29: 0 | AU29: 0 | AV29: 0 | AW29: 1 | AX29: 0 | AY29: 0 | AZ29: 0 | BA29: 0 | BB29: 0 | BC29: 0 | BD29: 0 | BE29: 0 | BG29: -3.75 | BH29: 0.0002 | BI29: =BD8 -> 0 | BJ29: 0.0052 | BK29: 0.0052 | BN29: 0.01109757899 | BO29: 0.002200849985 | BP29: 168.7827608 | BQ29: -0.01109757899 | BR29: 0.002200849985
B30: -0.06357371444 | F30: 20 | G30: ○ | W30: 0.016 | X30: -0.007999999994 | Y30: 0.01788854382 | Z30: 11 | AA30: 20 | AB30: 20 | AC30: 0.016 | AD30: -0.007999999994 | AE30: 0.01788854382 | AF30: 0.000256 | AG30: 6.399999991e-05 | AH30: -0.0001279999999 | AI30: 0.002247514524 | AJ30: 0.01774679347 | AK30: 277.2177096 | AL30: 0.002247514524 | AM30: -0.01774679347 | AN30: 1 | AO30: 0 | AP30: 0 | AQ30: 0 | AR30: 0 | AS30: 0 | AT30: 0 | AU30: 0 | AV30: 0 | AW30: 0 | AX30: 0 | AY30: 0 | AZ30: 0 | BA30: 0 | BB30: 0 | BC30: 0 | BD30: 0 | BE30: 0 | BG30: -4.25 | BH30: 5e-05 | BI30: =BE8 -> 0 | BJ30: 0.0013 | BK30: 0.0013 | BN30: 0.01774679347 | BO30: 0.002247514524 | BP30: 187.2177096 | BQ30: -0.01774679347 | BR30: -0.002247514524
B31: 0.04741237766 | F31: 21 | G31: ○ | W31: 0.016 | X31: -0.004999999997 | Y31: 0.01676305461 | Z31: 16 | AA31: 21 | AB31: 21 | AC31: 0.016 | AD31: -0.004999999997 | AE31: 0.01676305461 | AF31: 0.000256 | AG31: 2.499999997e-05 | AH31: -7.999999996e-05 | AI31: 0.004740969953 | AJ31: 0.01607865678 | AK31: 286.4287362 | AL31: 0.004740969953 | AM31: -0.01607865678 | AN31: 0 | AO31: 1 | AP31: 0 | AQ31: 0 | AR31: 0 | AS31: 0 | AT31: 0 | AU31: 0 | AV31: 0 | AW31: 0 | AX31: 0 | AY31: 0 | AZ31: 0 | BA31: 0 | BB31: 0 | BC31: 0 | BD31: 0 | BE31: 0 | BH31: =SUM(BH13:BH30) -> 1 | BI31: =SUM(BI13:BI30) -> 26 | BK31: =SUM(BK13:BK30) -> 14.32539449 | BN31: 0.01607865678 | BO31: 0.004740969953 | BP31: 196.4287362 | BQ31: -0.01607865678 | BR31: -0.004740969953
B32: -0.05744180425 | F32: 22 | G32: ○ | W32: 0.015 | X32: -0.01 | Y32: 0.01802775638 | Z32: 10 | AA32: 22 | AB32: 22 | AC32: 0.015 | AD32: -0.01 | AE32: 0.01802775638 | AF32: 0.0002250000001 | AG32: 0.0001 | AH32: -0.0001500000001 | AI32: 2.916533568e-05 | AJ32: 0.01802773279 | AK32: 270.0926933 | AL32: 2.916533568e-05 | AM32: -0.01802773279 | AN32: 1 | AO32: 0 | AP32: 0 | AQ32: 0 | AR32: 0 | AS32: 0 | AT32: 0 | AU32: 0 | AV32: 0 | AW32: 0 | AX32: 0 | AY32: 0 | AZ32: 0 | BA32: 0 | BB32: 0 | BC32: 0 | BD32: 0 | BE32: 0 | BI32: =BI31 -> 26 | BJ32: =SUM(BJ13:BJ30) -> 26 | BK32: =BK31 -> 14.32539449 | BN32: 0.01802773279 | BO32: 2.916533568e-05 | BP32: 180.0926933 | BQ32: -0.01802773279 | BR32: -2.916533568e-05
B33: 0.0008165380147 | F33: 23 | G33: ○ | W33: 0.01 | X33: -0.01 | Y33: 0.01414213563 | Z33: 19 | AA33: 23 | AB33: 23 | AC33: 0.01 | AD33: -0.01 | AE33: 0.01414213563 | AF33: 0.0001 | AG33: 0.0001 | AH33: -0.0001 | AI33: 0.002751062479 | AJ33: 0.01387197374 | AK33: 258.7827608 | AL33: -0.002751062479 | AM33: -0.01387197374 | AN33: 0 | AO33: 0 | AP33: 0 | AQ33: 0 | AR33: 0 | AS33: 0 | AT33: 0 | AU33: 0 | AV33: 0 | AW33: 0 | AX33: 1 | AY33: 0 | AZ33: 0 | BA33: 0 | BB33: 0 | BC33: 0 | BD33: 0 | BE33: 0 | BN33: 0.01387197374 | BO33: 0.002751062479 | BP33: 168.7827608 | BQ33: -0.01387197374 | BR33: 0.002751062479
B34: 0.001453307966 | F34: 24 | G34: ○ | W34: 0.007999999998 | X34: -0.006999999998 | Y34: 0.01063014581 | Z34: 24 | AA34: 24 | AB34: 24 | AC34: 0.007999999998 | AD34: -0.006999999998 | AE34: 0.01063014581 | AF34: 6.399999997e-05 | AG34: 4.899999997e-05 | AH34: -5.599999997e-05 | AI34: 0.001369698171 | AJ34: 0.01054153342 | AK34: 262.5968356 | AL34: -0.001369698171 | AM34: -0.01054153342 | AN34: 0 | AO34: 0 | AP34: 0 | AQ34: 0 | AR34: 0 | AS34: 0 | AT34: 0 | AU34: 0 | AV34: 0 | AW34: 1 | AX34: 0 | AY34: 0 | AZ34: 0 | BA34: 0 | BB34: 0 | BC34: 0 | BD34: 0 | BE34: 0 | BN34: 0.01054153342 | BO34: 0.001369698171 | BP34: 172.5968356 | BQ34: -0.01054153342 | BR34: 0.001369698171
B35: -0.09089354616 | F35: 25 | G35: ○ | W35: 0.007999999998 | X35: -0.003999999994 | Y35: 0.008944271905 | Z35: 26 | AA35: 25 | AB35: 25 | AC35: 0.007999999998 | AD35: -0.003999999994 | AE35: 0.008944271905 | AF35: 6.399999997e-05 | AG35: 1.599999995e-05 | AH35: -3.199999994e-05 | AI35: 0.001123757264 | AJ35: 0.00887339673 | AK35: 277.2177096 | AL35: 0.001123757264 | AM35: -0.00887339673 | AN35: 1 | AO35: 0 | AP35: 0 | AQ35: 0 | AR35: 0 | AS35: 0 | AT35: 0 | AU35: 0 | AV35: 0 | AW35: 0 | AX35: 0 | AY35: 0 | AZ35: 0 | BA35: 0 | BB35: 0 | BC35: 0 | BD35: 0 | BE35: 0 | BN35: 0.00887339673 | BO35: 0.001123757264 | BP35: 187.2177096 | BQ35: -0.00887339673 | BR35: -0.001123757264
B36: 0.1034377246 | F36: 26 | G36: ○ | W36: 0.029 | X36: -0.009999999995 | Y36: 0.0306757233 | Z36: 1 | AA36: 26 | AB36: 26 | AC36: 0.029 | AD36: -0.009999999995 | AE36: 0.0306757233 | AF36: 0.0008409999999 | AG36: 9.99999999e-05 | AH36: -0.0002899999998 | AI36: 0.007813803218 | AJ36: 0.02966385813 | AK36: 284.7571547 | AL36: 0.007813803218 | AM36: -0.02966385813 | AN36: 0 | AO36: 0 | AP36: 0 | AQ36: 1 | AR36: 0 | AS36: 0 | AT36: 0 | AU36: 0 | AV36: 0 | AW36: 0 | AX36: 0 | AY36: 0 | AZ36: 0 | BA36: 0 | BB36: 0 | BC36: 0 | BD36: 0 | BE36: 0 | BG36: 正規分布データ | BN36: 0.02966385813 | BO36: 0.007813803218 | BP36: 194.7571547 | BQ36: -0.02966385813 | BR36: -0.007813803218
B37: -0.06865670363 | F37: 27 | AA37: 27 | AN37: 0 | AO37: 0 | AP37: 0 | AQ37: 0 | AR37: 0 | AS37: 0 | AT37: 0 | AU37: 0 | AV37: 0 | AW37: 0 | AX37: 0 | AY37: 0 | AZ37: 0 | BA37: 0 | BB37: 0 | BC37: 0 | BD37: 0 | BE37: 0 | BG37: σ中心 | BH37: 確率 | BI37: 実点数 | BJ37: 実度数
B38: 0.06465270919 | F38: 28 | AA38: 28 | AN38: 0 | AO38: 0 | AP38: 0 | AQ38: 0 | AR38: 0 | AS38: 0 | AT38: 0 | AU38: 0 | AV38: 0 | AW38: 0 | AX38: 0 | AY38: 0 | AZ38: 0 | BA38: 0 | BB38: 0 | BC38: 0 | BD38: 0 | BE38: 0 | BG38: 4.5 | BH38: 0 | BI38: =AV8 -> 0 | BJ38: =(BI38/$BI$32)*100 -> 0
B39: 0.0654820786 | F39: 29 | AA39: 29 | AN39: 0 | AO39: 0 | AP39: 0 | AQ39: 0 | AR39: 0 | AS39: 0 | AT39: 0 | AU39: 0 | AV39: 0 | AW39: 0 | AX39: 0 | AY39: 0 | AZ39: 0 | BA39: 0 | BB39: 0 | BC39: 0 | BD39: 0 | BE39: 0 | BG39: 3.5 | BH39: 0.13 | BI39: =AU8+AT8 -> 0 | BJ39: =(BI39/$BI$32)*100 -> 0 | BK39: =SUM($BJ$38:BJ39) -> 0
B40: 0.05295625543 | F40: 30 | AA40: 30 | AN40: 0 | AO40: 0 | AP40: 0 | AQ40: 0 | AR40: 0 | AS40: 0 | AT40: 0 | AU40: 0 | AV40: 0 | AW40: 0 | AX40: 0 | AY40: 0 | AZ40: 0 | BA40: 0 | BB40: 0 | BC40: 0 | BD40: 0 | BE40: 0 | BG40: 2.5 | BH40: 2.14 | BI40: =AR8+AS8 -> 1 | BJ40: 3.846153846 | BK40: =SUM($BJ$38:BJ40) -> 3.846153846
B41: 0.004211363099 | F41: 31 | AA41: 31 | AN41: 0 | AO41: 0 | AP41: 0 | AQ41: 0 | AR41: 0 | AS41: 0 | AT41: 0 | AU41: 0 | AV41: 0 | AW41: 0 | AX41: 0 | AY41: 0 | AZ41: 0 | BA41: 0 | BB41: 0 | BC41: 0 | BD41: 0 | BE41: 0 | BG41: 1.5 | BH41: 13.59 | BI41: =AP8+AQ8 -> 2 | BJ41: 7.692307692 | BK41: =SUM($BJ$38:BJ41) -> 11.53846154
B42: -0.01389875345 | F42: 32 | AA42: 32 | AN42: 0 | AO42: 0 | AP42: 0 | AQ42: 0 | AR42: 0 | AS42: 0 | AT42: 0 | AU42: 0 | AV42: 0 | AW42: 0 | AX42: 0 | AY42: 0 | AZ42: 0 | BA42: 0 | BB42: 0 | BC42: 0 | BD42: 0 | BE42: 0 | BG42: 0.5 | BH42: 34.14 | BI42: =AN8+AO8 -> 6 | BJ42: 23.07692308 | BK42: =SUM($BJ$38:BJ42) -> 34.61538462
B43: -0.01643954807 | F43: 33 | AA43: 33 | AN43: 0 | AO43: 0 | AP43: 0 | AQ43: 0 | AR43: 0 | AS43: 0 | AT43: 0 | AU43: 0 | AV43: 0 | AW43: 0 | AX43: 0 | AY43: 0 | AZ43: 0 | BA43: 0 | BB43: 0 | BC43: 0 | BD43: 0 | BE43: 0 | BG43: -0.5 | BH43: 34.14 | BI43: =AW8+AX8 -> 13 | BJ43: 50 | BK43: =SUM($BJ$38:BJ43) -> 84.61538462 | BP43: =IF(AB43="","",IF((DEGREES((ATAN2(AC43,AD43))+(-$AI$7*PI()/180)))<0,(DEGREES((ATAN2(AC43,AD43))+(-$AI$7*PI()/180)))+360,(DEGREES((ATAN2(AC43,AD43))+(-$AI$7*PI()/180))))) -> 
B44: 0.02699018752 | F44: 34 | AA44: 34 | AN44: 0 | AO44: 0 | AP44: 0 | AQ44: 0 | AR44: 0 | AS44: 0 | AT44: 0 | AU44: 0 | AV44: 0 | AW44: 0 | AX44: 0 | AY44: 0 | AZ44: 0 | BA44: 0 | BB44: 0 | BC44: 0 | BD44: 0 | BE44: 0 | BG44: -1.5 | BH44: 13.59 | BI44: =AY8+AZ8 -> 4 | BJ44: 15.38461538 | BK44: =SUM($BJ$38:BJ44) -> 100
B45: 0.03995989035 | F45: 35 | AA45: 35 | AN45: 0 | AO45: 0 | AP45: 0 | AQ45: 0 | AR45: 0 | AS45: 0 | AT45: 0 | AU45: 0 | AV45: 0 | AW45: 0 | AX45: 0 | AY45: 0 | AZ45: 0 | BA45: 0 | BB45: 0 | BC45: 0 | BD45: 0 | BE45: 0 | BG45: -2.5 | BH45: 2.14 | BI45: =BA8+BB8 -> 0 | BJ45: 0 | BK45: =SUM($BJ$38:BJ45) -> 100
B46: 0.013875366 | F46: 36 | AA46: 36 | AN46: 0 | AO46: 0 | AP46: 0 | AQ46: 0 | AR46: 0 | AS46: 0 | AT46: 0 | AU46: 0 | AV46: 0 | AW46: 0 | AX46: 0 | AY46: 0 | AZ46: 0 | BA46: 0 | BB46: 0 | BC46: 0 | BD46: 0 | BE46: 0 | BG46: -3.5 | BH46: 0.13 | BI46: =BC8+BD8 -> 0 | BJ46: 0 | BK46: =SUM($BJ$38:BJ46) -> 100
B47: 0.02516271408 | F47: 37 | AA47: 37 | AN47: 0 | AO47: 0 | AP47: 0 | AQ47: 0 | AR47: 0 | AS47: 0 | AT47: 0 | AU47: 0 | AV47: 0 | AW47: 0 | AX47: 0 | AY47: 0 | AZ47: 0 | BA47: 0 | BB47: 0 | BC47: 0 | BD47: 0 | BE47: 0 | BG47: -4.5 | BH47: 0 | BI47: =BE8 -> 0 | BJ47: 0 | BK47: =SUM($BJ$38:BJ47) -> 100
B48: 0.007465199384 | F48: 38 | AA48: 38 | AN48: 0 | AO48: 0 | AP48: 0 | AQ48: 0 | AR48: 0 | AS48: 0 | AT48: 0 | AU48: 0 | AV48: 0 | AW48: 0 | AX48: 0 | AY48: 0 | AZ48: 0 | BA48: 0 | BB48: 0 | BC48: 0 | BD48: 0 | BE48: 0 | BH48: =SUM(BH38:BH47) -> 100 | BI48: =SUM(BI38:BI47) -> 26
B49: -0.0004619608968 | F49: 39 | AA49: 39 | AN49: 0 | AO49: 0 | AP49: 0 | AQ49: 0 | AR49: 0 | AS49: 0 | AT49: 0 | AU49: 0 | AV49: 0 | AW49: 0 | AX49: 0 | AY49: 0 | AZ49: 0 | BA49: 0 | BB49: 0 | BC49: 0 | BD49: 0 | BE49: 0
B50: -0.0230106264 | F50: 40 | AA50: 40 | AN50: 0 | AO50: 0 | AP50: 0 | AQ50: 0 | AR50: 0 | AS50: 0 | AT50: 0 | AU50: 0 | AV50: 0 | AW50: 0 | AX50: 0 | AY50: 0 | AZ50: 0 | BA50: 0 | BB50: 0 | BC50: 0 | BD50: 0 | BE50: 0
B51: -0.01431472701 | F51: 41 | AA51: 41 | AN51: 0 | AO51: 0 | AP51: 0 | AQ51: 0 | AR51: 0 | AS51: 0 | AT51: 0 | AU51: 0 | AV51: 0 | AW51: 0 | AX51: 0 | AY51: 0 | AZ51: 0 | BA51: 0 | BB51: 0 | BC51: 0 | BD51: 0 | BE51: 0 | BG51: 自由度 | BH51: ｎ | BI51: 差
B52: 0.04803277023 | F52: 42 | AA52: 42 | AN52: 0 | AO52: 0 | AP52: 0 | AQ52: 0 | AR52: 0 | AS52: 0 | AT52: 0 | AU52: 0 | AV52: 0 | AW52: 0 | AX52: 0 | AY52: 0 | AZ52: 0 | BA52: 0 | BB52: 0 | BC52: 0 | BD52: 0 | BE52: 0 | BG52: 12 | BH52: 49 | BI52: =BH53-BH52 -> 39
B53: 0.02571615264 | F53: 43 | AA53: 43 | AN53: 0 | AO53: 0 | AP53: 0 | AQ53: 0 | AR53: 0 | AS53: 0 | AT53: 0 | AU53: 0 | AV53: 0 | AW53: 0 | AX53: 0 | AY53: 0 | AZ53: 0 | BA53: 0 | BB53: 0 | BC53: 0 | BD53: 0 | BE53: 0 | BG53: 13 | BH53: 88 | BI53: 0
B54: 0.05944373716 | F54: 44 | AA54: 44 | AN54: 0 | AO54: 0 | AP54: 0 | AQ54: 0 | AR54: 0 | AS54: 0 | AT54: 0 | AU54: 0 | AV54: 0 | AW54: 0 | AX54: 0 | AY54: 0 | AZ54: 0 | BA54: 0 | BB54: 0 | BC54: 0 | BD54: 0 | BE54: 0 | BG54: 14 | BH54: 88 | BI54: 0
B55: 0.03590359413 | F55: 45 | AA55: 45 | AN55: 0 | AO55: 0 | AP55: 0 | AQ55: 0 | AR55: 0 | AS55: 0 | AT55: 0 | AU55: 0 | AV55: 0 | AW55: 0 | AX55: 0 | AY55: 0 | AZ55: 0 | BA55: 0 | BB55: 0 | BC55: 0 | BD55: 0 | BE55: 0 | BG55: 15 | BH55: 88 | BI55: 0
B56: 0.002836021522 | F56: 46 | AA56: 46 | AN56: 0 | AO56: 0 | AP56: 0 | AQ56: 0 | AR56: 0 | AS56: 0 | AT56: 0 | AU56: 0 | AV56: 0 | AW56: 0 | AX56: 0 | AY56: 0 | AZ56: 0 | BA56: 0 | BB56: 0 | BC56: 0 | BD56: 0 | BE56: 0 | BG56: 16 | BH56: 88 | BI56: 0
B57: -0.01834612323 | F57: 47 | AA57: 47 | AN57: 0 | AO57: 0 | AP57: 0 | AQ57: 0 | AR57: 0 | AS57: 0 | AT57: 0 | AU57: 0 | AV57: 0 | AW57: 0 | AX57: 0 | AY57: 0 | AZ57: 0 | BA57: 0 | BB57: 0 | BC57: 0 | BD57: 0 | BE57: 0 | BG57: 17 | BH57: 88 | BI57: 0
B58: -0.009760157756 | F58: 48 | AA58: 48 | AN58: 0 | AO58: 0 | AP58: 0 | AQ58: 0 | AR58: 0 | AS58: 0 | AT58: 0 | AU58: 0 | AV58: 0 | AW58: 0 | AX58: 0 | AY58: 0 | AZ58: 0 | BA58: 0 | BB58: 0 | BC58: 0 | BD58: 0 | BE58: 0 | BG58: 18 | BH58: 88 | BI58: 0
B59: 0.01429951677 | F59: 49 | AA59: 49 | AN59: 0 | AO59: 0 | AP59: 0 | AQ59: 0 | AR59: 0 | AS59: 0 | AT59: 0 | AU59: 0 | AV59: 0 | AW59: 0 | AX59: 0 | AY59: 0 | AZ59: 0 | BA59: 0 | BB59: 0 | BC59: 0 | BD59: 0 | BE59: 0 | BG59: 19 | BH59: 88 | BI59: 0
B60: 0.01232315444 | F60: 50 | AA60: 50 | AN60: 0 | AO60: 0 | AP60: 0 | AQ60: 0 | AR60: 0 | AS60: 0 | AT60: 0 | AU60: 0 | AV60: 0 | AW60: 0 | AX60: 0 | AY60: 0 | AZ60: 0 | BA60: 0 | BB60: 0 | BC60: 0 | BD60: 0 | BE60: 0 | BG60: 20 | BH60: 88
B61: 0.01166812364 | F61: 51 | AA61: 51 | AN61: 0 | AO61: 0 | AP61: 0 | AQ61: 0 | AR61: 0 | AS61: 0 | AT61: 0 | AU61: 0 | AV61: 0 | AW61: 0 | AX61: 0 | AY61: 0 | AZ61: 0 | BA61: 0 | BB61: 0 | BC61: 0 | BD61: 0 | BE61: 0
B62: 0.05117628088 | F62: 52 | AA62: 52 | AN62: 0 | AO62: 0 | AP62: 0 | AQ62: 0 | AR62: 0 | AS62: 0 | AT62: 0 | AU62: 0 | AV62: 0 | AW62: 0 | AX62: 0 | AY62: 0 | AZ62: 0 | BA62: 0 | BB62: 0 | BC62: 0 | BD62: 0 | BE62: 0
B63: -0.04070496506 | F63: 53 | AA63: 53 | AN63: 0 | AO63: 0 | AP63: 0 | AQ63: 0 | AR63: 0 | AS63: 0 | AT63: 0 | AU63: 0 | AV63: 0 | AW63: 0 | AX63: 0 | AY63: 0 | AZ63: 0 | BA63: 0 | BB63: 0 | BC63: 0 | BD63: 0 | BE63: 0
B64: 0.04612591096 | F64: 54 | AA64: 54 | AN64: 0 | AO64: 0 | AP64: 0 | AQ64: 0 | AR64: 0 | AS64: 0 | AT64: 0 | AU64: 0 | AV64: 0 | AW64: 0 | AX64: 0 | AY64: 0 | AZ64: 0 | BA64: 0 | BB64: 0 | BC64: 0 | BD64: 0 | BE64: 0
B65: -0.02616348089 | F65: 55 | AA65: 55 | AN65: 0 | AO65: 0 | AP65: 0 | AQ65: 0 | AR65: 0 | AS65: 0 | AT65: 0 | AU65: 0 | AV65: 0 | AW65: 0 | AX65: 0 | AY65: 0 | AZ65: 0 | BA65: 0 | BB65: 0 | BC65: 0 | BD65: 0 | BE65: 0
B66: 0.01642662282 | F66: 56 | AA66: 56 | AN66: 0 | AO66: 0 | AP66: 0 | AQ66: 0 | AR66: 0 | AS66: 0 | AT66: 0 | AU66: 0 | AV66: 0 | AW66: 0 | AX66: 0 | AY66: 0 | AZ66: 0 | BA66: 0 | BB66: 0 | BC66: 0 | BD66: 0 | BE66: 0
B67: -0.03533559079 | F67: 57 | AA67: 57 | AN67: 0 | AO67: 0 | AP67: 0 | AQ67: 0 | AR67: 0 | AS67: 0 | AT67: 0 | AU67: 0 | AV67: 0 | AW67: 0 | AX67: 0 | AY67: 0 | AZ67: 0 | BA67: 0 | BB67: 0 | BC67: 0 | BD67: 0 | BE67: 0
B68: 0.01071456659 | F68: 58 | AA68: 58 | AN68: 0 | AO68: 0 | AP68: 0 | AQ68: 0 | AR68: 0 | AS68: 0 | AT68: 0 | AU68: 0 | AV68: 0 | AW68: 0 | AX68: 0 | AY68: 0 | AZ68: 0 | BA68: 0 | BB68: 0 | BC68: 0 | BD68: 0 | BE68: 0
B69: -0.02458464145 | F69: 59 | AA69: 59 | AN69: 0 | AO69: 0 | AP69: 0 | AQ69: 0 | AR69: 0 | AS69: 0 | AT69: 0 | AU69: 0 | AV69: 0 | AW69: 0 | AX69: 0 | AY69: 0 | AZ69: 0 | BA69: 0 | BB69: 0 | BC69: 0 | BD69: 0 | BE69: 0
B70: -0.05358326454 | F70: 60 | AA70: 60 | AN70: 0 | AO70: 0 | AP70: 0 | AQ70: 0 | AR70: 0 | AS70: 0 | AT70: 0 | AU70: 0 | AV70: 0 | AW70: 0 | AX70: 0 | AY70: 0 | AZ70: 0 | BA70: 0 | BB70: 0 | BC70: 0 | BD70: 0 | BE70: 0
B71: -0.04617291951 | F71: 61 | AA71: 61 | AN71: 0 | AO71: 0 | AP71: 0 | AQ71: 0 | AR71: 0 | AS71: 0 | AT71: 0 | AU71: 0 | AV71: 0 | AW71: 0 | AX71: 0 | AY71: 0 | AZ71: 0 | BA71: 0 | BB71: 0 | BC71: 0 | BD71: 0 | BE71: 0
B72: -0.03438069872 | F72: 62 | AA72: 62 | AN72: 0 | AO72: 0 | AP72: 0 | AQ72: 0 | AR72: 0 | AS72: 0 | AT72: 0 | AU72: 0 | AV72: 0 | AW72: 0 | AX72: 0 | AY72: 0 | AZ72: 0 | BA72: 0 | BB72: 0 | BC72: 0 | BD72: 0 | BE72: 0
B73: -0.02188357903 | F73: 63 | AA73: 63 | AN73: 0 | AO73: 0 | AP73: 0 | AQ73: 0 | AR73: 0 | AS73: 0 | AT73: 0 | AU73: 0 | AV73: 0 | AW73: 0 | AX73: 0 | AY73: 0 | AZ73: 0 | BA73: 0 | BB73: 0 | BC73: 0 | BD73: 0 | BE73: 0
B74: 0.007968738659 | F74: 64 | AA74: 64 | AN74: 0 | AO74: 0 | AP74: 0 | AQ74: 0 | AR74: 0 | AS74: 0 | AT74: 0 | AU74: 0 | AV74: 0 | AW74: 0 | AX74: 0 | AY74: 0 | AZ74: 0 | BA74: 0 | BB74: 0 | BC74: 0 | BD74: 0 | BE74: 0
B75: 0.06343596702 | F75: 65 | AA75: 65 | AN75: 0 | AO75: 0 | AP75: 0 | AQ75: 0 | AR75: 0 | AS75: 0 | AT75: 0 | AU75: 0 | AV75: 0 | AW75: 0 | AX75: 0 | AY75: 0 | AZ75: 0 | BA75: 0 | BB75: 0 | BC75: 0 | BD75: 0 | BE75: 0
B76: 0.01427867281 | F76: 66 | Y76: =IF(G76="","",SQRT(W76^2+X76^2)) ->  | Z76: =IF(Y76="","",RANK(Y76,$Y$11:$Y$109,0)) ->  | AA76: 66 | AE76: =IF(AB76="","",SQRT(AC76^2+AD76^2)) ->  | AF76: =IF(AB76="","",(AC76-$AC$5)^2) ->  | AG76: =IF(AB76="","",(AD76-$AD$5)^2) ->  | AH76: =IF(AB76="","",(AC76-$AC$5)*(AD76-$AD$5)) ->  | AI76: =IF(AB76="","",ABS(COS(AK76*PI()/180)*AE76)) ->  | AJ76: =(IF(AB76="","",ABS(SQRT((AC76^2+AD76^2)-AI76^2)))) ->  | AK76: =IF(AB76="","",IF((DEGREES((ATAN2(AC76,AD76))+($AH$7*PI()/180)))<0,(DEGREES((ATAN2(AC76,AD76))+($AH$7*PI()/180)))+360,(DEGREES((ATAN2(AC76,AD76))+($AH$7*PI()/180))))) ->  | AL76: =IF(AB76="","",IF(AND(AK76>90,AK76<270),AI76*-1,AI76)) ->  | AM76: =IF(AB76="","",IF(AND(AK76>180,AK76<360),AJ76*-1,AJ76)) ->  | AN76: =IF(AND(0<=AL76,$AD$8*0.5>AL76),1,0) -> 0 | AO76: =IF(AND($AD$8*0.5<=AL76,$AD$8*1>AL76),1,0) -> 0 | AP76: =IF(AND($AD$8*1<=AL76,$AD$8*1.5>AL76),1,0) -> 0 | AQ76: =IF(AND($AD$8*1.5<=AL76,$AD$8*2>AL76),1,0) -> 0 | AR76: =IF(AND($AD$8*2<=AL76,$AD$8*2.5>AL76),1,0) -> 0 | AS76: =IF(AND($AD$8*2.5<=AL76,$AD$8*3>AL76),1,0) -> 0 | AT76: =IF(AND($AD$8*3<=AL76,$AD$8*3.5>AL76),1,0) -> 0 | AU76: =IF(AND($AD$8*3.5<=AL76,$AD$8*4>AL76),1,0) -> 0 | AV76: =IF(AB76="",0,(IF($AD$8*4<=AL76,1,0))) -> 0 | AW76: =IF(AND(0>AL76,$AD$8*-0.5<AL76),1,0) -> 0 | AX76: =IF(AND($AD$8*-0.5>=AL76,$AD$8*-1<AL76),1,0) -> 0 | AY76: =IF(AND($AD$8*-1>=AL76,$AD$8*-1.5<AL76),1,0) -> 0 | AZ76: =IF(AND($AD$8*-1.5>=AL76,$AD$8*-2<AL76),1,0) -> 0 | BA76: =IF(AND($AD$8*-2>=AL76,$AD$8*-2.5<AL76),1,0) -> 0 | BB76: =IF(AND($AD$8*-2.5>=AL76,$AD$8*-3<AL76),1,0) -> 0 | BC76: =IF(AND($AD$8*-3>=AL76,$AD$8*-3.5<AL76),1,0) -> 0 | BD76: =IF(AND($AD$8*-3.5>=AL76,$AD$8*-4<AL76),1,0) -> 0 | BE76: =IF(AB76="",0,(IF($AD$8*-4>=AL76,1,0))) -> 0 | BN76: =IF(AB76="","",ABS(COS(BP76*PI()/180)*AE76)) ->  | BO76: =(IF(AB76="","",ABS(SQRT((AC76^2+AD76^2)-BN76^2)))) ->  | BP76: =IF(AB76="","",IF((DEGREES((ATAN2(AC76,AD76))+(-$AI$7*PI()/180)))<0,(DEGREES((ATAN2(AC76,AD76))+(-$AI$7*PI()/180)))+360,(DEGREES((ATAN2(AC76,AD76))+(-$AI$7*PI()/180))))) ->  | BQ76: =IF(AB76="","",IF(AND(BP76>90,BP76<270),BN76*-1,BN76)) ->  | BR76: =IF(AB76="","",IF(AND(BP76>180,BP76<360),BO76*-1,BO76)) -> 
B77: -0.04237038769 | F77: 67 | AA77: 67 | AN77: 0 | AO77: 0 | AP77: 0 | AQ77: 0 | AR77: 0 | AS77: 0 | AT77: 0 | AU77: 0 | AV77: 0 | AW77: 0 | AX77: 0 | AY77: 0 | AZ77: 0 | BA77: 0 | BB77: 0 | BC77: 0 | BD77: 0 | BE77: 0
B78: 0.06564758618 | F78: 68 | AA78: 68 | AN78: 0 | AO78: 0 | AP78: 0 | AQ78: 0 | AR78: 0 | AS78: 0 | AT78: 0 | AU78: 0 | AV78: 0 | AW78: 0 | AX78: 0 | AY78: 0 | AZ78: 0 | BA78: 0 | BB78: 0 | BC78: 0 | BD78: 0 | BE78: 0
B79: 0.05213530259 | F79: 69 | AA79: 69 | AN79: 0 | AO79: 0 | AP79: 0 | AQ79: 0 | AR79: 0 | AS79: 0 | AT79: 0 | AU79: 0 | AV79: 0 | AW79: 0 | AX79: 0 | AY79: 0 | AZ79: 0 | BA79: 0 | BB79: 0 | BC79: 0 | BD79: 0 | BE79: 0
B80: -0.01328075445 | F80: 70 | AA80: 70 | AN80: 0 | AO80: 0 | AP80: 0 | AQ80: 0 | AR80: 0 | AS80: 0 | AT80: 0 | AU80: 0 | AV80: 0 | AW80: 0 | AX80: 0 | AY80: 0 | AZ80: 0 | BA80: 0 | BB80: 0 | BC80: 0 | BD80: 0 | BE80: 0
B81: -0.03432646983 | F81: 71 | AA81: 71 | AN81: 0 | AO81: 0 | AP81: 0 | AQ81: 0 | AR81: 0 | AS81: 0 | AT81: 0 | AU81: 0 | AV81: 0 | AW81: 0 | AX81: 0 | AY81: 0 | AZ81: 0 | BA81: 0 | BB81: 0 | BC81: 0 | BD81: 0 | BE81: 0
B82: -0.01542324263 | F82: 72 | AA82: 72 | AN82: 0 | AO82: 0 | AP82: 0 | AQ82: 0 | AR82: 0 | AS82: 0 | AT82: 0 | AU82: 0 | AV82: 0 | AW82: 0 | AX82: 0 | AY82: 0 | AZ82: 0 | BA82: 0 | BB82: 0 | BC82: 0 | BD82: 0 | BE82: 0
B83: -0.04353506981 | F83: 73 | AA83: 73 | AN83: 0 | AO83: 0 | AP83: 0 | AQ83: 0 | AR83: 0 | AS83: 0 | AT83: 0 | AU83: 0 | AV83: 0 | AW83: 0 | AX83: 0 | AY83: 0 | AZ83: 0 | BA83: 0 | BB83: 0 | BC83: 0 | BD83: 0 | BE83: 0
B84: 0.07631544977 | F84: 74 | AA84: 74 | AN84: 0 | AO84: 0 | AP84: 0 | AQ84: 0 | AR84: 0 | AS84: 0 | AT84: 0 | AU84: 0 | AV84: 0 | AW84: 0 | AX84: 0 | AY84: 0 | AZ84: 0 | BA84: 0 | BB84: 0 | BC84: 0 | BD84: 0 | BE84: 0
B85: 0.006385482906 | F85: 75 | AA85: 75 | AN85: 0 | AO85: 0 | AP85: 0 | AQ85: 0 | AR85: 0 | AS85: 0 | AT85: 0 | AU85: 0 | AV85: 0 | AW85: 0 | AX85: 0 | AY85: 0 | AZ85: 0 | BA85: 0 | BB85: 0 | BC85: 0 | BD85: 0 | BE85: 0
B86: -0.01680546742 | F86: 76 | AA86: 76 | AN86: 0 | AO86: 0 | AP86: 0 | AQ86: 0 | AR86: 0 | AS86: 0 | AT86: 0 | AU86: 0 | AV86: 0 | AW86: 0 | AX86: 0 | AY86: 0 | AZ86: 0 | BA86: 0 | BB86: 0 | BC86: 0 | BD86: 0 | BE86: 0
B87: -0.04043833532 | F87: 77 | AA87: 77 | AN87: 0 | AO87: 0 | AP87: 0 | AQ87: 0 | AR87: 0 | AS87: 0 | AT87: 0 | AU87: 0 | AV87: 0 | AW87: 0 | AX87: 0 | AY87: 0 | AZ87: 0 | BA87: 0 | BB87: 0 | BC87: 0 | BD87: 0 | BE87: 0
B88: -0.04512139211 | F88: 78 | AA88: 78 | AN88: 0 | AO88: 0 | AP88: 0 | AQ88: 0 | AR88: 0 | AS88: 0 | AT88: 0 | AU88: 0 | AV88: 0 | AW88: 0 | AX88: 0 | AY88: 0 | AZ88: 0 | BA88: 0 | BB88: 0 | BC88: 0 | BD88: 0 | BE88: 0
B89: -0.02105267058 | F89: 79 | AA89: 79 | AN89: 0 | AO89: 0 | AP89: 0 | AQ89: 0 | AR89: 0 | AS89: 0 | AT89: 0 | AU89: 0 | AV89: 0 | AW89: 0 | AX89: 0 | AY89: 0 | AZ89: 0 | BA89: 0 | BB89: 0 | BC89: 0 | BD89: 0 | BE89: 0
B90: 0.07259227857 | F90: 80 | AA90: 80 | AN90: 0 | AO90: 0 | AP90: 0 | AQ90: 0 | AR90: 0 | AS90: 0 | AT90: 0 | AU90: 0 | AV90: 0 | AW90: 0 | AX90: 0 | AY90: 0 | AZ90: 0 | BA90: 0 | BB90: 0 | BC90: 0 | BD90: 0 | BE90: 0
B91: -0.03719782452 | F91: 81 | AA91: 81 | AN91: 0 | AO91: 0 | AP91: 0 | AQ91: 0 | AR91: 0 | AS91: 0 | AT91: 0 | AU91: 0 | AV91: 0 | AW91: 0 | AX91: 0 | AY91: 0 | AZ91: 0 | BA91: 0 | BB91: 0 | BC91: 0 | BD91: 0 | BE91: 0
B92: -0.03483588351 | F92: 82 | AA92: 82 | AN92: 0 | AO92: 0 | AP92: 0 | AQ92: 0 | AR92: 0 | AS92: 0 | AT92: 0 | AU92: 0 | AV92: 0 | AW92: 0 | AX92: 0 | AY92: 0 | AZ92: 0 | BA92: 0 | BB92: 0 | BC92: 0 | BD92: 0 | BE92: 0
B93: -0.06700132566 | F93: 83 | AA93: 83 | AN93: 0 | AO93: 0 | AP93: 0 | AQ93: 0 | AR93: 0 | AS93: 0 | AT93: 0 | AU93: 0 | AV93: 0 | AW93: 0 | AX93: 0 | AY93: 0 | AZ93: 0 | BA93: 0 | BB93: 0 | BC93: 0 | BD93: 0 | BE93: 0
B94: 0.03129494464 | F94: 84 | AA94: 84 | AN94: 0 | AO94: 0 | AP94: 0 | AQ94: 0 | AR94: 0 | AS94: 0 | AT94: 0 | AU94: 0 | AV94: 0 | AW94: 0 | AX94: 0 | AY94: 0 | AZ94: 0 | BA94: 0 | BB94: 0 | BC94: 0 | BD94: 0 | BE94: 0
B95: 0.003815326726 | F95: 85 | AA95: 85 | AN95: 0 | AO95: 0 | AP95: 0 | AQ95: 0 | AR95: 0 | AS95: 0 | AT95: 0 | AU95: 0 | AV95: 0 | AW95: 0 | AX95: 0 | AY95: 0 | AZ95: 0 | BA95: 0 | BB95: 0 | BC95: 0 | BD95: 0 | BE95: 0
B96: 0.0152380587 | F96: 86 | AA96: 86 | AN96: 0 | AO96: 0 | AP96: 0 | AQ96: 0 | AR96: 0 | AS96: 0 | AT96: 0 | AU96: 0 | AV96: 0 | AW96: 0 | AX96: 0 | AY96: 0 | AZ96: 0 | BA96: 0 | BB96: 0 | BC96: 0 | BD96: 0 | BE96: 0
B97: 0.03969848644 | F97: 87 | AA97: 87 | AN97: 0 | AO97: 0 | AP97: 0 | AQ97: 0 | AR97: 0 | AS97: 0 | AT97: 0 | AU97: 0 | AV97: 0 | AW97: 0 | AX97: 0 | AY97: 0 | AZ97: 0 | BA97: 0 | BB97: 0 | BC97: 0 | BD97: 0 | BE97: 0
B98: -0.01928652471 | F98: 88 | AA98: 88 | AN98: 0 | AO98: 0 | AP98: 0 | AQ98: 0 | AR98: 0 | AS98: 0 | AT98: 0 | AU98: 0 | AV98: 0 | AW98: 0 | AX98: 0 | AY98: 0 | AZ98: 0 | BA98: 0 | BB98: 0 | BC98: 0 | BD98: 0 | BE98: 0
B99: -0.01803252801 | F99: 89 | AA99: 89 | AN99: 0 | AO99: 0 | AP99: 0 | AQ99: 0 | AR99: 0 | AS99: 0 | AT99: 0 | AU99: 0 | AV99: 0 | AW99: 0 | AX99: 0 | AY99: 0 | AZ99: 0 | BA99: 0 | BB99: 0 | BC99: 0 | BD99: 0 | BE99: 0
B100: -0.04751619001 | F100: 90 | AA100: 90 | AN100: 0 | AO100: 0 | AP100: 0 | AQ100: 0 | AR100: 0 | AS100: 0 | AT100: 0 | AU100: 0 | AV100: 0 | AW100: 0 | AX100: 0 | AY100: 0 | AZ100: 0 | BA100: 0 | BB100: 0 | BC100: 0 | BD100: 0 | BE100: 0
B101: -0.02208048081 | F101: 91 | AA101: 91 | AN101: 0 | AO101: 0 | AP101: 0 | AQ101: 0 | AR101: 0 | AS101: 0 | AT101: 0 | AU101: 0 | AV101: 0 | AW101: 0 | AX101: 0 | AY101: 0 | AZ101: 0 | BA101: 0 | BB101: 0 | BC101: 0 | BD101: 0 | BE101: 0
B102: 0.01880120699 | F102: 92 | AA102: 92 | AN102: 0 | AO102: 0 | AP102: 0 | AQ102: 0 | AR102: 0 | AS102: 0 | AT102: 0 | AU102: 0 | AV102: 0 | AW102: 0 | AX102: 0 | AY102: 0 | AZ102: 0 | BA102: 0 | BB102: 0 | BC102: 0 | BD102: 0 | BE102: 0
B103: -0.08316908072 | F103: 93 | AA103: 93 | AN103: 0 | AO103: 0 | AP103: 0 | AQ103: 0 | AR103: 0 | AS103: 0 | AT103: 0 | AU103: 0 | AV103: 0 | AW103: 0 | AX103: 0 | AY103: 0 | AZ103: 0 | BA103: 0 | BB103: 0 | BC103: 0 | BD103: 0 | BE103: 0
B104: -0.005736536077 | F104: 94 | AA104: 94 | AN104: 0 | AO104: 0 | AP104: 0 | AQ104: 0 | AR104: 0 | AS104: 0 | AT104: 0 | AU104: 0 | AV104: 0 | AW104: 0 | AX104: 0 | AY104: 0 | AZ104: 0 | BA104: 0 | BB104: 0 | BC104: 0 | BD104: 0 | BE104: 0
B105: 0.0632108421 | F105: 95 | AA105: 95 | AN105: 0 | AO105: 0 | AP105: 0 | AQ105: 0 | AR105: 0 | AS105: 0 | AT105: 0 | AU105: 0 | AV105: 0 | AW105: 0 | AX105: 0 | AY105: 0 | AZ105: 0 | BA105: 0 | BB105: 0 | BC105: 0 | BD105: 0 | BE105: 0
B106: 0.03199178992 | F106: 96 | AA106: 96 | AN106: 0 | AO106: 0 | AP106: 0 | AQ106: 0 | AR106: 0 | AS106: 0 | AT106: 0 | AU106: 0 | AV106: 0 | AW106: 0 | AX106: 0 | AY106: 0 | AZ106: 0 | BA106: 0 | BB106: 0 | BC106: 0 | BD106: 0 | BE106: 0
B107: -0.03215301401 | F107: 97 | AA107: 97 | AN107: 0 | AO107: 0 | AP107: 0 | AQ107: 0 | AR107: 0 | AS107: 0 | AT107: 0 | AU107: 0 | AV107: 0 | AW107: 0 | AX107: 0 | AY107: 0 | AZ107: 0 | BA107: 0 | BB107: 0 | BC107: 0 | BD107: 0 | BE107: 0
B108: -0.005658584443 | F108: 98 | AA108: 98 | AN108: 0 | AO108: 0 | AP108: 0 | AQ108: 0 | AR108: 0 | AS108: 0 | AT108: 0 | AU108: 0 | AV108: 0 | AW108: 0 | AX108: 0 | AY108: 0 | AZ108: 0 | BA108: 0 | BB108: 0 | BC108: 0 | BD108: 0 | BE108: 0
B109: -0.05570088757 | F109: 99 | AA109: 99 | AN109: 0 | AO109: 0 | AP109: 0 | AQ109: 0 | AR109: 0 | AS109: 0 | AT109: 0 | AU109: 0 | AV109: 0 | AW109: 0 | AX109: 0 | AY109: 0 | AZ109: 0 | BA109: 0 | BB109: 0 | BC109: 0 | BD109: 0 | BE109: 0
AN110: 0 | AO110: 0 | AP110: 0 | AQ110: 0 | AR110: 0 | AS110: 0 | AT110: 0 | AU110: 0 | AV110: 0 | AW110: 0 | AX110: 0 | AY110: 0 | AZ110: 0 | BA110: 0 | BB110: 0 | BC110: 0 | BD110: 0 | BE110: 0

Sheet Daen
A5: n= | B5: =COUNT(A7:A106) -> 26 | J5: 準拠点が6点以上でないと作図されません。
A6: ⊿x | B6: ⊿y | J6: 分布中心Y | K6: 分布中心X | L6: 楕円角
A7: -0.01 | B7: 0.014 | C7: 標本サイズ = 26 | J7: =SUM(A7:A106)/B5 -> -0.009769230768 | K7: =SUM(B7:B106)/B5 -> 0.01396153846 | L7: 13.95200212 | M7: =IF(L7>=0, TEXT(L7/24,"[h]°mm′ss″"), TEXT(L7*-1/24,"-[h]°mm′ss″")) -> 13°57′07″
A8: -0.016 | B8: 0.014 | C8: x | D8: 観察値 | E8: 2σ惰円 | F8: 4σ円 | G8: 3σ楕円 | H8: 1σ惰円 | J8: =IF(B5<6,"5個以下では作図されません","") -> 
A9: -0.004000000001 | B9: 0.013 | C9: -0.01 | D9: 0.014
A10: -0.015 | B10: 0.011 | C10: -0.016 | D10: 0.014
A11: -0.011 | B11: 0.011 | C11: -0.004000000001 | D11: 0.013
A12: -0.0009999999966 | B12: 0.028 | C12: -0.015 | D12: 0.011
A13: -0.01 | B13: 0.012 | C13: -0.011 | D13: 0.011
A14: -0.011 | B14: 0.014 | C14: -0.0009999999966 | D14: 0.028
A15: -0.015 | B15: 0.016 | C15: -0.01 | D15: 0.012
A16: -0.011 | B16: 0.013 | C16: -0.011 | D16: 0.014
A17: -0.02 | B17: 0.012 | C17: -0.015 | D17: 0.016
A18: -0.008999999998 | B18: 0.008999999998 | C18: -0.011 | D18: 0.013
A19: -0.008000000002 | B19: 0.011 | C19: -0.02 | D19: 0.012
A20: -0.006000000001 | B20: 0.007000000001 | C20: -0.008999999998 | D20: 0.008999999998
A21: -0.017 | B21: 0.014 | C21: -0.008000000002 | D21: 0.011
A22: -0.011 | B22: 0.019 | C22: -0.006000000001 | D22: 0.007000000001
A23: -0.009999999995 | B23: 0.014 | C23: -0.017 | D23: 0.014
A24: -0.006999999998 | B24: 0.021 | C24: -0.011 | D24: 0.019
A25: -0.008000000002 | B25: 0.007999999998 | C25: -0.009999999995 | D25: 0.014
A26: -0.007999999994 | B26: 0.016 | C26: -0.006999999998 | D26: 0.021
A27: -0.004999999997 | B27: 0.016 | C27: -0.008000000002 | D27: 0.007999999998
A28: -0.01 | B28: 0.015 | C28: -0.007999999994 | D28: 0.016
A29: -0.01 | B29: 0.01 | C29: -0.004999999997 | D29: 0.016
A30: -0.006999999998 | B30: 0.007999999998 | C30: -0.01 | D30: 0.015
A31: -0.003999999994 | B31: 0.007999999998 | C31: -0.01 | D31: 0.01
A32: -0.009999999995 | B32: 0.029 | C32: -0.006999999998 | D32: 0.007999999998
C33: -0.003999999994 | D33: 0.007999999998
C34: -0.009999999995 | D34: 0.029
C35: -0.01243046413 | E35: 0.0032497455
C36: -0.01400533052 | E36: 0.00386846362
C37: -0.0146148251 | E37: 0.004247345173
C38: -0.01506209702 | E38: 0.004585924193
C39: -0.01542403195 | E39: 0.004903302129
C40: -0.01573055888 | E40: 0.005206914524
C41: -0.01599709688 | E41: 0.005500592087
C42: -0.01623284443 | E42: 0.005786620083
C43: -0.01644381863 | E43: 0.006066493399
C44: -0.01663421446 | E44: 0.006341254232
C45: -0.01680709669 | E45: 0.006611663995
C46: -0.01696478623 | E46: 0.00687829929
C47: -0.01710909125 | E47: 0.007141609342
C48: -0.01724145327 | E48: 0.007401952282
C49: -0.01736304357 | E49: 0.007659619096
C50: -0.01747482907 | E50: 0.007914850015
C51: -0.01757761897 | E51: 0.008167846065
C52: -0.01767209828 | E52: 0.008418777441
C53: -0.01775885284 | E53: 0.00866778968
C54: -0.01783838801 | E54: 0.008915008336
C55: -0.0179111431 | E55: 0.009160542554
C56: -0.01797750261 | E56: 0.009404487857
C57: -0.01803780504 | E57: 0.009646928341
C58: -0.01809234999 | E58: 0.009887938438
C59: -0.01814140381 | E59: 0.01012758432
C60: -0.01818520432 | E60: 0.01036592508
C61: -0.01822396456 | E61: 0.01060301363
C62: -0.01825787599 | E62: 0.01083889754
C63: -0.01828711115 | E63: 0.01107361969
C64: -0.01831182583 | E64: 0.01130721876
C65: -0.018332161 | E65: 0.0115397298
C66: -0.01834824437 | E66: 0.01177118452
C67: -0.01836019176 | E67: 0.0120016117
C68: -0.01836810827 | E68: 0.01223103744
C69: -0.01837208928 | E69: 0.01245948546
C70: -0.01837222134 | E70: 0.01268697724
C71: -0.01836858289 | E71: 0.01291353228
C72: -0.01836124492 | E72: 0.01313916821
C73: -0.01835027156 | E73: 0.01336390096
C74: -0.01833572055 | E74: 0.01358774489
C75: -0.01831764367 | E75: 0.01381071285
C76: -0.0182960871 | E76: 0.01403281632
C77: -0.0182710918 | E77: 0.01425406547
C78: -0.0182426937 | E78: 0.01447446923
C79: -0.01821092401 | E79: 0.01469403536
C80: -0.01817580939 | E80: 0.01491277047
C81: -0.01813737212 | E81: 0.0151306801
C82: -0.01809563025 | E82: 0.01534776874
C83: -0.0180505977 | E83: 0.01556403985
C84: -0.01800228437 | E84: 0.01577949588
C85: -0.01795069616 | E85: 0.0159941383
C86: -0.01789583504 | E86: 0.0162079676
C87: -0.01783769904 | E87: 0.01642098329
C88: -0.01777628225 | E88: 0.0166331839
C89: -0.01771157478 | E89: 0.01684456698
C90: -0.01764356272 | E90: 0.01705512906
C91: -0.017572228 | E91: 0.01726486567
C92: -0.01749754836 | E92: 0.01747377126
C93: -0.01741949712 | E93: 0.01768183922
C94: -0.01733804309 | E94: 0.01788906179
C95: -0.01725315032 | E95: 0.01809543004
C96: -0.01716477787 | E96: 0.01830093379
C97: -0.01707287955 | E97: 0.01850556159
C98: -0.01697740357 | E98: 0.01870930055
C99: -0.01687829221 | E99: 0.01891213633
C100: -0.01677548133 | E100: 0.01911405302
C101: -0.01666889993 | E101: 0.01931503295
C102: -0.01655846958 | E102: 0.01951505666
C103: -0.01644410374 | E103: 0.01971410263
C104: -0.01632570702 | E104: 0.01991214717
C105: -0.01620317432 | E105: 0.02010916417
C106: -0.01607638981 | E106: 0.02030512485
C107: -0.01594522579 | E107: 0.02049999749
C108: -0.0158095413 | E108: 0.02069374707
C109: -0.01566918053 | E109: 0.02088633487
C110: -0.01552397096 | E110: 0.02107771804
C111: -0.01537372112 | E111: 0.021267849
C112: -0.01521821796 | E112: 0.02145667484
C113: -0.01505722368 | E113: 0.02164413646
C114: -0.01489047191 | E114: 0.02183016769
C115: -0.01471766307 | E115: 0.02201469411
C116: -0.01453845864 | E116: 0.02219763161
C117: -0.01435247414 | E117: 0.02237888467
C118: -0.01415927025 | E118: 0.02255834415
C119: -0.0139583416 | E119: 0.02273588449
C120: -0.01374910237 | E120: 0.02291136016
C121: -0.01353086753 | E121: 0.02308460096
C122: -0.0133028279 | E122: 0.02325540587
C123: -0.01306401654 | E123: 0.02342353464
C124: -0.01281326219 | E124: 0.02358869631
C125: -0.01254912332 | E125: 0.02375053273
C126: -0.01226979175 | E126: 0.02390859469
C127: -0.01197294659 | E127: 0.02406230558
C128: -0.01165552305 | E128: 0.02421090398
C129: -0.01131332617 | E129: 0.0243533477
C130: -0.01094033883 | E130: 0.02448814186
C131: -0.01052736257 | E131: 0.02461300118
C132: -0.0100589783 | E132: 0.02472409496
C133: -0.009505257054 | E133: 0.02481398766
C134: -0.008789313134 | E134: 0.02486357782
C135: -0.007107997795 | E135: 0.02467333152
C136: -0.007107997409 | E136: 0.02467333142
C137: -0.005533131019 | E137: 0.0240546133
C138: -0.004923636433 | E138: 0.02367573175
C139: -0.004476364518 | E139: 0.02333715273
C140: -0.004114429587 | E140: 0.02301977479
C141: -0.003807902659 | E141: 0.0227161624
C142: -0.003541364657 | E142: 0.02242248484
C143: -0.003305617108 | E143: 0.02213645684
C144: -0.003094642902 | E144: 0.02185658352
C145: -0.002904247075 | E145: 0.02158182269
C146: -0.002731364844 | E146: 0.02131141293
C147: -0.00257367531 | E147: 0.02104477763
C148: -0.002429370289 | E148: 0.02078146758
C149: -0.002297008261 | E149: 0.02052112464
C150: -0.002175417969 | E150: 0.02026345783
C151: -0.002063632461 | E151: 0.02000822691
C152: -0.001960842569 | E152: 0.01975523086
C153: -0.001866363252 | E153: 0.01950429948
C154: -0.001779608694 | E154: 0.01925528724
C155: -0.00170007353 | E155: 0.01900806859
C156: -0.001627318437 | E156: 0.01876253437
C157: -0.001560958926 | E157: 0.01851858907
C158: -0.001500656492 | E158: 0.01827614858
C159: -0.001446111548 | E159: 0.01803513849
C160: -0.001397057722 | E160: 0.0177954926
C161: -0.001353257216 | E161: 0.01755715185
C162: -0.001314496979 | E162: 0.0173200633
C163: -0.001280585545 | E163: 0.01708417938
C164: -0.001251350387 | E164: 0.01684945724
C165: -0.001226635702 | E165: 0.01661585816
C166: -0.001206300531 | E166: 0.01638334712
C167: -0.001190217162 | E167: 0.01615189241
C168: -0.001178269775 | E168: 0.01592146523
C169: -0.001170353268 | E169: 0.01569203948
C170: -0.001166372254 | E170: 0.01546359147
C171: -0.001166240195 | E171: 0.01523609968
C172: -0.001169878648 | E172: 0.01500954465
C173: -0.001177216615 | E173: 0.01478390872
C174: -0.001188189973 | E174: 0.01455917596
C175: -0.001202740985 | E175: 0.01433533203
C176: -0.00122081787 | E176: 0.01411236407
C177: -0.001242374432 | E177: 0.0138902606
C178: -0.001267369737 | E178: 0.01366901145
C179: -0.001295767835 | E179: 0.01344860769
C180: -0.001327537525 | E180: 0.01322904157
C181: -0.001362652147 | E181: 0.01301030646
C182: -0.001401089417 | E182: 0.01279239682
C183: -0.001442831287 | E183: 0.01257530818
C184: -0.001487863831 | E184: 0.01235903707
C185: -0.001536177162 | E185: 0.01214358104
C186: -0.001587765373 | E186: 0.01192893862
C187: -0.001642626497 | E187: 0.01171510933
C188: -0.0017007625 | E188: 0.01150209364
C189: -0.00176217929 | E189: 0.01128989303
C190: -0.001826886754 | E190: 0.01107850995
C191: -0.001894898819 | E191: 0.01086794786
C192: -0.001966233531 | E192: 0.01065821126
C193: -0.002040913176 | E193: 0.01044930566
C194: -0.002118964412 | E194: 0.01024123771
C195: -0.002200418441 | E195: 0.01003401514
C196: -0.002285311213 | E196: 0.009827646888
C197: -0.002373683662 | E197: 0.009622143129
C198: -0.002465581985 | E198: 0.009417515337
C199: -0.002561057961 | E199: 0.009213776375
C200: -0.002660169329 | E200: 0.009010940589
C201: -0.00276298021 | E201: 0.008809023908
C202: -0.002869561603 | E202: 0.008608043971
C203: -0.002979991951 | E203: 0.008408020267
C204: -0.003094357793 | E204: 0.008208974296
... 640 more rows

Sheet huryou
N1: 筆界判定 | AA1: =IFERROR(R7,"") -> 99.38163393 | AM1: ％
K2: 作図限界値～20 | R2: =ROUND((R5+R6)/R3,4) -> 9.2184 | AP2: 前処理前データ
K3: 標準偏差 σ | R3: 0.005102862059 | AF3: 良 | AL3: 公差控(作図用) | AQ3: 誤差楕円角(度) | AW3: 度分秒
K4: 相関係数(-1～1) | R4: 0.1266166329 | W4: 基準は誤差楕円中心からの値 | AQ4: =Daen!L7 -> 13.95200212 | AV4: =IF(AQ4>=0, TEXT(AQ4/24,"[h]°mm′ss″"), TEXT(AQ4*-1/24,"-[h]°mm′ss″")) -> 13°57′07″
K5: 位置公差の半径 | R5: 0.03 | W5: 縦軸 X | AA5: 横軸 Y | AF5: 判定良率 | AL5: 0.03 | AQ5: 縦軸Xavｇ控 | AV5: 横軸Yavｇ控
K6: 公差からの距離 | R6: =SQRT(W6^2+AA6^2) -> 0.01704002424 | W6: 0.006922807214 | AA6: -0.0155703939 | AF6: 99.966 | AJ6: ％ | AQ6: =sa!G6 -> 0.01396153846 | AV6: =sa!H6 -> -0.009769230768
K7: 良 率 ％ | R7: =IFERROR((R9/R10)*100,"") -> 99.38163393 | AQ7: 誤差楕円回転修正角
K8: 不良率 ％ | R8: =IFERROR(100-R7,"") -> 0.618366074 | W8: 20 | AQ8: =IF(R4>0,45-AQ4,135-AQ4) -> 31.04799788 | AV8: =IF(AQ8>=0, TEXT(AQ8/24,"[h]°mm′ss″"), TEXT(AQ8*-1/24,"-[h]°mm′ss″")) -> 31°02′53″
K9: 選択 密度 | R9: 251799.8428
K10: 全体 密度 | R10: 253366.5757
A11: 0 | B11: 0 | C11: 0 | D11: 0 | E11: 0 | F11: 0
A12: 0 | B12: 0 | C12: 0 | D12: 0 | E12: 0 | F12: 0
A13: 0 | B13: 0 | C13: 0 | D13: 0 | E13: 0 | F13: 0
A14: 0 | B14: 0 | C14: 0 | D14: 0 | E14: 0 | F14: 0
A15: 0 | B15: 0 | C15: 0 | D15: 0 | E15: 0 | F15: 0
A16: 0 | B16: 0 | C16: 0 | D16: 0 | E16: 0 | F16: 0
A17: 0 | B17: 0 | C17: 0 | D17: 0 | E17: 0 | F17: 0
A18: 0 | B18: 0 | C18: 0 | D18: 0 | E18: 0 | F18: 0
A19: 0 | B19: 0 | C19: 0 | D19: 0 | E19: 0 | F19: 0
A20: 0 | B20: 0 | C20: 0 | D20: 0 | E20: 0 | F20: 0
A21: 0 | B21: 0 | C21: 0 | D21: 0 | E21: 0 | F21: 0
A22: 0 | B22: 0 | C22: 0 | D22: 0 | E22: 0 | F22: 0
A23: 0 | B23: 0 | C23: 0 | D23: 0 | E23: 0 | F23: 0
A24: 0 | B24: 0 | C24: 0 | D24: 0 | E24: 0 | F24: 0
A25: 0 | B25: 0 | C25: 0 | D25: 0 | E25: 0 | F25: 0
A26: 0 | B26: 0 | C26: 0 | D26: 0 | E26: 0 | F26: 0
A27: 0 | B27: 0 | C27: 0 | D27: 0 | E27: 0 | F27: 0
A28: 0 | B28: 0 | C28: 0 | D28: 0 | E28: 0 | F28: 0
A29: 0 | B29: 0 | C29: 0 | D29: 0 | E29: 0 | F29: 0
A30: 0 | B30: 0 | C30: 0 | D30: 0 | E30: 0 | F30: 0
A31: 0 | B31: 0 | C31: 0 | D31: 0 | E31: 0 | F31: 0
A32: 0 | B32: 0 | C32: 0 | D32: 0 | E32: 0 | F32: 0
A33: 0 | B33: 0 | C33: 0 | D33: 0 | E33: 0 | F33: 0
A34: 0 | B34: 0 | C34: 0 | D34: 0 | E34: 0 | F34: 0
A35: 0 | B35: 0 | C35: 0 | D35: 0 | E35: 0 | F35: 0
A36: 0 | B36: 0 | C36: 0 | D36: 0 | E36: 0 | F36: 0
A37: 0 | B37: 0 | C37: 0 | D37: 0 | E37: 0 | F37: 0
A38: 0 | B38: 0 | C38: 0 | D38: 0 | E38: 0 | F38: 0
A39: 0 | B39: 0 | C39: 0 | D39: 0 | E39: 0 | F39: 0
A40: 0 | B40: 0 | C40: 0 | D40: 0 | E40: 0 | F40: 0
A41: 0 | B41: 0 | C41: 0 | D41: 0 | E41: 0 | F41: 0
A42: 0 | B42: 0 | C42: 0 | D42: 0 | E42: 0 | F42: 0
A43: 0 | B43: 0 | C43: 0 | D43: 0 | E43: 0 | F43: 0
A44: 0 | B44: 0 | C44: 0 | D44: 0 | E44: 0 | F44: 0
A45: 0 | B45: 0 | C45: 0 | D45: 0 | E45: 0 | F45: 0
A46: 0 | B46: 0 | C46: 0 | D46: 0 | E46: 0 | F46: 0
A47: 0 | B47: 0 | C47: 0 | D47: 0 | E47: 0 | F47: 0
A48: 0 | B48: 0 | C48: 0 | D48: 0 | E48: 0 | F48: 0
A49: 0 | B49: 0 | C49: 0 | D49: 0 | E49: 0 | F49: 0
A50: 0 | B50: 0 | C50: 0 | D50: 0 | E50: 0 | F50: 0
A51: 0 | B51: 0 | C51: 0 | D51: 0 | E51: 0 | F51: 0
A52: 108 | B52: 114 | C52: 0 | D52: 0 | E52: 0 | F52: 0
A53: 100 | B53: 122 | C53: 0 | D53: 0 | E53: 0 | F53: 0
A54: 95 | B54: 127 | C54: 0 | D54: 0 | E54: 0 | F54: 0
A55: 92 | B55: 130 | C55: 0 | D55: 0 | E55: 0 | F55: 0
A56: 89 | B56: 133 | C56: 0 | D56: 0 | E56: 0 | F56: 0
A57: 87 | B57: 135 | C57: 0 | D57: 0 | E57: 0 | F57: 0
A58: 85 | B58: 137 | C58: 0 | D58: 0 | E58: 0 | F58: 0
A59: 83 | B59: 139 | C59: 0 | D59: 0 | E59: 0 | F59: 0
A60: 81 | B60: 141 | C60: 0 | D60: 0 | E60: 0 | F60: 0
A61: 80 | B61: 142 | C61: 0 | D61: 0 | E61: 0 | F61: 0
A62: 78 | B62: 144 | C62: 0 | D62: 0 | E62: 0 | F62: 0
A63: 77 | B63: 145 | C63: 0 | D63: 0 | E63: 0 | F63: 0
A64: 75 | B64: 147 | C64: 0 | D64: 0 | E64: 0 | F64: 0
A65: 74 | B65: 148 | C65: 0 | D65: 0 | E65: 0 | F65: 0
A66: 73 | B66: 149 | C66: 108 | D66: 114 | E66: 138 | F66: 144 | EI66: 1.56766837e-05 | EJ66: 1.248030721e-05 | EK66: 9.836790246e-06 | EL66: 7.676064249e-06 | EM66: 5.930357115e-06
A67: 72 | B67: 150 | C67: 100 | D67: 122 | E67: 130 | F67: 152 | EA67: 0.0001031342243 | EB67: 8.883161462e-05 | EC67: 7.575117272e-05 | ED67: 6.395407478e-05 | EE67: 5.345694495e-05 | EF67: 4.423816514e-05 | EG67: 3.624491877e-05 | EH67: 2.940046581e-05 | EI67: 2.36112156e-05 | EJ67: 1.877325321e-05 | EK67: 1.477807219e-05 | EL67: 1.15173638e-05 | EM67: 8.886800718e-06 | EN67: 6.78882874e-06 | EO67: 5.134537378e-06 | EP67: 3.844721105e-06 | EQ67: 2.850266174e-06 | ER67: 2.092006604e-06 | ES67: 1.520189535e-06 | ET67: 1.093678013e-06 | EU67: 7.790014734e-07
A68: 70 | B68: 152 | C68: 95 | D68: 127 | E68: 125 | F68: 157 | DV68: 0.0002838602959 | DW68: 0.0002567049455 | DX68: 0.0002298374927 | DY68: 0.0002037344964 | DZ68: 0.0001787990966 | EA68: 0.0001553542452 | EB68: 0.0001336404673 | EC68: 0.0001138177251 | ED68: 9.597074626e-05 | EE68: 8.011704042e-05 | EF68: 6.621676793e-05 | EG68: 5.418363226e-05 | EH68: 4.389603632e-05 | EI68: 3.520785388e-05 | EJ68: 2.795830607e-05 | EK68: 2.198058324e-05 | EL68: 1.710899991e-05 | EM68: 1.318460404e-05 | EN68: 1.005927345e-05 | EO68: 7.598418186e-06 | EP68: 5.682465721e-06 | EQ68: 4.207339064e-06 | ER68: 3.084148322e-06 | ES68: 2.238309069e-06 | ET68: 1.608280914e-06 | EU68: 1.144091652e-06 | EV68: 8.057805511e-07 | EW68: 5.6186218e-07 | EX68: 3.878822215e-07 | EY68: 2.651105457e-07 | EZ68: 1.793953528e-07
A69: 69 | B69: 153 | C69: 92 | D69: 130 | E69: 122 | F69: 160 | DS69: 0.0005445461791 | DT69: 0.0005068077472 | DU69: 0.0004669913433 | DV69: 0.000426021454 | DW69: 0.0003847788264 | DX69: 0.0003440708784 | DY69: 0.0003046082924 | DZ69: 0.0002669885169 | EA69: 0.0002316863774 | EB69: 0.0001990515072 | EC69: 0.0001693119053 | ED69: 0.000142582616 | EE69: 0.0001188783354 | EF69: 9.812866882e-05 | EG69: 8.019479002e-05 | EH69: 6.488636676e-05 | EI69: 5.197779053e-05 | EJ69: 4.122296516e-05 | EK69: 3.236813638e-05 | EL69: 2.5162467e-05 | EM69: 1.936626172e-05 | EN69: 1.475691005e-05 | EO69: 1.113274134e-05 | EP69: 8.3150691e-06 | EQ69: 6.148747538e-06 | ER69: 4.501575266e-06 | ES69: 3.262867403e-06 | ET69: 2.341485053e-06 | EU69: 1.663567432e-06 | EV69: 1.170163331e-06 | EW69: 8.149099388e-07 | EX69: 5.6186218e-07 | EY69: 3.835367999e-07 | EZ69: 2.592037832e-07 | FA69: 1.734333795e-07 | FB69: 1.148896993e-07 | FC69: 7.53505721e-08
A70: 68 | B70: 154 | C70: 89 | D70: 133 | E70: 119 | F70: 163 | DP70: 0.0009524335059 | DQ70: 0.0009122673682 | DR70: 0.0008651007149 | DS70: 0.0008122098583 | DT70: 0.0007549651374 | DU70: 0.000694772457 | DV70: 0.0006330169579 | DW70: 0.0005710118891 | DX70: 0.0005099551856 | DY70: 0.0004508955291 | DZ70: 0.0003947088835 | EA70: 0.0003420857063 | EB70: 0.0002935283209 | EC70: 0.000249357335 | ED70: 0.0002097255492 | EE70: 0.0001746375332 | EF70: 0.0001439729459 | EG70: 0.0001175117379 | EH70: 9.495955322e-05 | EI70: 7.597192506e-05 | EJ70: 6.01761855e-05 | EK70: 4.719035384e-05 | EL70: 3.663859978e-05 | EM70: 2.816317132e-05 | EN70: 2.143291796e-05 | EO70: 1.614871988e-05 | EP70: 1.204625233e-05 | EQ70: 8.896575442e-06 | ER70: 6.505052875e-06 | ES70: 4.709077645e-06 | ET70: 3.375032248e-06 | EU70: 2.394843056e-06 | EV70: 1.682415433e-06 | EW70: 1.170163331e-06 | EX70: 8.057805511e-07 | EY70: 5.493436796e-07 | EZ70: 3.707904489e-07 | FA70: 2.477821406e-07 | FB70: 1.639338043e-07 | FC70: 1.073801706e-07 | FD70: 6.963646505e-08 | FE70: 4.471017806e-08 | FF70: 2.842059312e-08
A71: 68 | B71: 154 | C71: 87 | D71: 135 | E71: 117 | F71: 165 | DN71: 0.00149716933 | DO71: 0.001461148639 | DP71: 0.001411805693 | DQ71: 0.001350555746 | DR71: 0.001279107827 | DS71: 0.001199385663 | DT71: 0.001113442014 | DU71: 0.001023371721 | DV71: 0.000931228532 | DW71: 0.0008389502179 | DX71: 0.000748295552 | DY71: 0.0006607956743 | DZ71: 0.0005777211595 | EA71: 0.0005000649462 | EB71: 0.000428540237 | EC71: 0.0003635916105 | ED71: 0.0003054169652 | EE71: 0.0002539975433 | EF71: 0.0002091331746 | EG71: 0.0001704799853 | EH71: 0.0001375881159 | EI71: 0.0001099374104 | EJ71: 8.696953291e-05 | EK71: 6.811548095e-05 | EL71: 5.281795381e-05 | EM71: 4.054846074e-05 | EN71: 3.081940344e-05 | EO71: 2.319162279e-05 | EP71: 1.727806503e-05 | EQ71: 1.274430408e-05 | ER71: 9.306667569e-06 | ES71: 6.7286716e-06 | ET71: 4.816388592e-06 | EU71: 3.41327092e-06 | EV71: 2.394843056e-06 | EW71: 1.663567432e-06 | EX71: 1.144091652e-06 | EY71: 7.790014734e-07 | EZ71: 5.251372151e-07 | FA71: 3.504809113e-07 | FB71: 2.31586371e-07 | FC71: 1.515021097e-07 | FD71: 9.812539515e-08 | FE71: 6.292181074e-08 | FF71: 3.994643811e-08 | FG71: 2.510799102e-08 | FH71: 1.56243847e-08
A72: 67 | B72: 155 | C72: 85 | D72: 137 | E72: 115 | F72: 167 | DL72: 0.002250049181 | DM72: 0.002237440461 | DN72: 0.002202764248 | DO72: 0.002147047269 | DP72: 0.002071916494 | DQ72: 0.001979520232 | DR72: 0.001872426148 | DS72: 0.001753502966 | DT72: 0.001625793443 | DU72: 0.001492386409 | DV72: 0.001356295305 | DW72: 0.001220349666 | DX72: 0.001087104692 | DY72: 0.0009587723674 | DZ72: 0.0008371758709 | EA72: 0.0007237272941 | EB72: 0.0006194271768 | EC72: 0.0005248831306 | ED72: 0.0004403439457 | EE72: 0.0003657450855 | EF72: 0.000300761349 | EG72: 0.0002448626832 | EH72: 0.0001973695902 | EI72: 0.0001575052121 | EJ72: 0.0001244419121 | EK72: 9.734092666e-05 | EL72: 7.538437391e-05 | EM72: 5.779952154e-05 | EN72: 4.387571529e-05 | EO72: 3.297472871e-05 | EP72: 2.453552233e-05 | EQ72: 1.807450615e-05 | ER72: 1.318240429e-05 | ES72: 9.518748869e-06 | ET72: 6.804906565e-06 | EU72: 4.816388592e-06 | EV72: 3.375032248e-06 | EW72: 2.341485053e-06 | EX72: 1.608280914e-06 | EY72: 1.093678013e-06 | EZ72: 7.363327376e-07 | FA72: 4.908127019e-07 | FB72: 3.239026732e-07 | FC72: 2.11626635e-07 | FD72: 1.368936098e-07 | FE72: 8.767041856e-08 | FF72: 5.558787082e-08 | FG72: 3.489506843e-08 | FH72: 2.168728188e-08 | FI72: 1.334452899e-08 | FJ72: 8.129398812e-09
A73: 66 | B73: 156 | C73: 83 | D73: 139 | E73: 113 | F73: 169 | DJ73: 0.003232942139 | DK73: 0.003275619207 | DL73: 0.003285836437 | DM73: 0.003263288937 | DN73: 0.003208648703 | DO73: 0.003123531348 | DP73: 0.003010416751 | DQ73: 0.002872529054 | DR73: 0.00271368412 | DS73: 0.002538114509 | DT73: 0.002350283142 | DU73: 0.002154697036 | DV73: 0.001955731804 | DW73: 0.001757476139 | DX73: 0.001563603493 | DY73: 0.001377275688 | DZ73: 0.001201080694 | EA73: 0.001037004273 | EB73: 0.0008864330932 | EC73: 0.0007501850956 | ED73: 0.0006285617611 | EE73: 0.0005214162209 | EF73: 0.0004282310694 | EG73: 0.0003482000783 | EH73: 0.0002803087216 | EI73: 0.0002234093845 | EJ73: 0.0001762882102 | EK73: 0.0001377216383 | EL73: 0.0001065217143 | EM73: 8.157013279e-05 | EN73: 6.184167536e-05 | EO73: 4.641820894e-05 | EP73: 3.449471545e-05 | EQ73: 2.537895932e-05 | ER73: 1.848638985e-05 | ES73: 1.33317592e-05 | ET73: 9.518748869e-06 | EU73: 6.7286716e-06 | EV73: 4.709077645e-06 | EW73: 3.262867403e-06 | EX73: 2.238309069e-06 | EY73: 1.520189535e-06 | EZ73: 1.022192001e-06 | FA73: 6.804939567e-07 | FB73: 4.485110244e-07 | FC73: 2.926705525e-07 | FD73: 1.890784301e-07 | FE73: 1.20937783e-07 | FF73: 7.658418122e-08 | FG73: 4.801458718e-08 | FH73: 2.980330177e-08 | FI73: 1.83152401e-08 | FJ73: 1.114340481e-08 | FK73: 6.712437484e-09 | FL73: 4.003129647e-09
A74: 65 | B74: 157 | C74: 81 | D74: 141 | E74: 111 | F74: 171 | DH74: 0.004441080907 | DI74: 0.004584797543 | DJ74: 0.004686069178 | DK74: 0.004741920663 | DL74: 0.004750692567 | DM74: 0.004712123073 | DN74: 0.004627360964 | DO74: 0.004498908778 | DP74: 0.004330500082 | DQ74: 0.00412691924 | DR74: 0.003893775825 | DS74: 0.003637248504 | DT74: 0.003363814656 | DU74: 0.003079982141 | DV74: 0.00279203844 | DW74: 0.002505830225 | DX74: 0.002226583307 | DY74: 0.001958769393 | DZ74: 0.001706022384 | EA74: 0.001471103388 | EB74: 0.001255910588 | EC74: 0.001061527631 | ED74: 0.0008883026128 | EE74: 0.0007359488502 | EF74: 0.0006036585802 | EG74: 0.0004902213029 | EH74: 0.0003941395687 | EI74: 0.0003137364292 | EJ74: 0.000247250351 | EK74: 0.0001929149743 | EL74: 0.0001490225592 | EM74: 0.0001139712077 | EN74: 8.629692854e-05 | EO74: 6.469229854e-05 | EP74: 4.801388862e-05 | EQ74: 3.528078458e-05 | ER74: 2.566649959e-05 | ES74: 1.848638985e-05 | ET74: 1.318240429e-05 | EU74: 9.306667569e-06 | EV74: 6.505052875e-06 | EW74: 4.501575266e-06 | EX74: 3.084148322e-06 | EY74: 2.092006604e-06 | EZ74: 1.404908052e-06 | FA74: 9.340923323e-07 | FB74: 6.148777358e-07 | FC74: 4.007234741e-07 | FD74: 2.585579257e-07 | FE74: 1.651687877e-07 | FF74: 1.044612366e-07 | FG74: 6.540928463e-08 | FH74: 4.054905069e-08 | FI74: 2.488737194e-08 | FJ74: 1.512287772e-08 | FK74: 9.098020223e-09 | FL74: 5.418965804e-09 | FM74: 3.195530582e-09 | FN74: 1.865634658e-09
A75: 64 | B75: 158 | C75: 80 | D75: 142 | E75: 110 | F75: 172 | DG75: 0.006135242717 | DH75: 0.006389344161 | DI75: 0.006587761542 | DJ75: 0.00672475574 | DK75: 0.006796294869 | DL75: 0.006800251381 | DM75: 0.006736507174 | DN75: 0.006606959446 | DO75: 0.006415426899 | DP75: 0.006167462757 | DQ75: 0.005870087374 | DR75: 0.005531458403 | DS75: 0.005160500105 | DT75: 0.004766515249 | DU75: 0.004358802963 | DV75: 0.003946304052 | DW75: 0.00353729194 | DX75: 0.003139122912 | DY75: 0.002758054173 | DZ75: 0.002399132969 | EA75: 0.00206615501 | EB75: 0.001761686141 | EC75: 0.001487137859 | ED75: 0.001242885088 | EE75: 0.001028413526 | EF75: 0.0008424839531 | EG75: 0.0006833017775 | EH75: 0.0005486817543 | EI75: 0.0004361998801 | EJ75: 0.0003433267325 | EK75: 0.0002675387872 | EL75: 0.0002064062971 | EM75: 0.0001576580631 | EN75: 0.000119224768 | EO75: 8.926348538e-05 | EP75: 6.616651331e-05 | EQ75: 4.855787967e-05 | ER75: 3.528078458e-05 | ES75: 2.537895932e-05 | ET75: 1.807450615e-05 | EU75: 1.274430408e-05 | EV75: 8.896575442e-06 | EW75: 6.148747538e-06 | EX75: 4.207339064e-06 | EY75: 2.850266174e-06 | EZ75: 1.911702817e-06 | FA75: 1.269440637e-06 | FB75: 8.345675003e-07 | FC75: 5.432097986e-07 | FD75: 3.500505605e-07 | FE75: 2.233320306e-07 | FF75: 1.410679344e-07 | FG75: 8.821910647e-08 | FH75: 5.462029702e-08 | FI75: 3.348131566e-08 | FJ75: 2.03192666e-08 | FK75: 1.220873303e-08 | FL75: 7.262568146e-09 | FM75: 4.2772723e-09 | FN75: 2.494024027e-09 | FO75: 1.439764371e-09
A76: 63 | B76: 159 | C76: 78 | D76: 144 | E76: 108 | F76: 174 | DE76: 0.007849250088 | DF76: 0.008328920189 | DG76: 0.008749964473 | DH76: 0.009100828575 | DI76: 0.009371576044 | DJ76: 0.009554355317 | DK76: 0.009643777861 | DL76: 0.009637182053 | DM76: 0.009534764776 | DN76: 0.009339571663 | DO76: 0.009057346644 | DP76: 0.008696251178 | DQ76: 0.008266472326 | DR76: 0.007779745899 | DS76: 0.007248825809 | DT76: 0.006686932975 | DU76: 0.006107216724 | DV76: 0.005522258708 | DW76: 0.004943644362 | DX76: 0.004381620381 | DY76: 0.003844849373 | DZ76: 0.003340265347 | EA76: 0.002873026692 | EB76: 0.002446557396 | EC76: 0.002062662685 | ED76: 0.001721702342 | EE76: 0.001422803693 | EF76: 0.001164096417 | EG76: 0.0009429528474 | EH76: 0.0007562198192 | EI76: 0.0006004311146 | EJ76: 0.0004719928056 | EK76: 0.0003673369566 | EL76: 0.0002830420254 | EM76: 0.0002159206994 | EN76: 0.0001630777416 | EO76: 0.0001219416743 | EP76: 9.027482894e-05 | EQ76: 6.616651331e-05 | ER76: 4.801388862e-05 | ES76: 3.449471545e-05 | ET76: 2.453552233e-05 | EU76: 1.727806503e-05 | EV76: 1.204625233e-05 | EW76: 8.3150691e-06 | EX76: 5.682465721e-06 | EY76: 3.844721105e-06 | EZ76: 2.575430971e-06 | FA76: 1.70801642e-06 | FB76: 1.121479203e-06 | FC76: 7.290334611e-07 | FD76: 4.692029727e-07 | FE76: 2.989724038e-07 | FF76: 1.886073037e-07 | FG76: 1.177993693e-07 | FH76: 7.284243899e-08 | FI76: 4.459467958e-08 | FJ76: 2.702954107e-08 | FK76: 1.622001873e-08 | FL76: 9.636539052e-09 | FM76: 5.668235365e-09 | FN76: 3.300895079e-09 | FO76: 1.903148251e-09 | FP76: 1.086352018e-09 | FQ76: 6.139395136e-10
A77: 63 | B77: 159 | C77: 77 | D77: 145 | E77: 107 | F77: 175 | DD77: 0.01038020549 | DE77: 0.01111116357 | DF77: 0.01177525134 | DG77: 0.01235486163 | DH77: 0.01283401792 | DI77: 0.01319910403 | DJ77: 0.01343950637 | DK77: 0.01354812635 | DL77: 0.01352172858 | DM77: 0.01336110095 | DN77: 0.01307101556 | DO77: 0.01265999323 | DP77: 0.01213988772 | DQ77: 0.01152531813 | DR77: 0.01083298718 | DS77: 0.01008092982 | DT77: 0.009287739133 | DU77: 0.00847181535 | DV77: 0.007650679504 | DW77: 0.006840385729 | DX77: 0.006055056925 | DY77: 0.005306558103 | DZ77: 0.004604311231 | EA77: 0.003955245782 | EB77: 0.003363871017 | EC77: 0.00283244998 | ED77: 0.002361251345 | EE77: 0.001948853722 | EF77: 0.001592477564 | EG77: 0.001288322101 | EH77: 0.001031888202 | EI77: 0.0008182723803 | EJ77: 0.0006424216858 | EK77: 0.0004993436693 | EL77: 0.0003842695387 | EM77: 0.0002927719227 | EN77: 0.0002208411225 | EO77: 0.0001649253909 | EP77: 0.0001219416743 | EQ77: 8.926348538e-05 | ER77: 6.469229854e-05 | ES77: 4.641820894e-05 | ET77: 3.297472871e-05 | EU77: 2.319162279e-05 | EV77: 1.614871988e-05 | EW77: 1.113274134e-05 | EX77: 7.598418186e-06 | EY77: 5.134537378e-06 | EZ77: 3.435077209e-06 | FA77: 2.275248001e-06 | FB77: 1.492031647e-06 | FC77: 9.686890351e-07 | FD77: 6.226554415e-07 | FE77: 3.962490618e-07 | FF77: 2.496581576e-07 | FG77: 1.557328856e-07 | FH77: 9.617716151e-08 | FI77: 5.880586403e-08 | FJ77: 3.559806326e-08 | FK77: 2.133482872e-08 | FL77: 1.265928001e-08 | FM77: 7.436796656e-09 | FN77: 4.325336126e-09 | FO77: 2.490639512e-09 | FP77: 1.419903859e-09 | FQ77: 8.014271684e-10 | FR77: 4.47843461e-10
A78: 62 | B78: 160 | C78: 75 | D78: 147 | E78: 105 | F78: 177 | DB78: 0.0123682437 | DC78: 0.01348955503 | DD78: 0.01456613296 | DE78: 0.0155721282 | DF78: 0.01648195508 | DG78: 0.01727136003 | DH78: 0.01791848979 | DI78: 0.01840489419 | DJ78: 0.01871639929 | DK78: 0.01884379337 | DL78: 0.01878327947 | DM78: 0.01853666334 | DN78: 0.01811126395 | DO78: 0.01751955264 | DP78: 0.01677854589 | DQ78: 0.01590899271 | DR78: 0.01493441106 | DS78: 0.01388003541 | DT78: 0.01277174099 | DU78: 0.011635008 | DV78: 0.01049398224 | DW78: 0.00937067809 | DX78: 0.008284356279 | DY78: 0.00725109462 | DZ78: 0.006283555159 | EA78: 0.005390938116 | EB78: 0.004579101987 | EC78: 0.003850821087 | ED78: 0.003206146933 | EE78: 0.002642838087 | EF78: 0.002156824199 | EG78: 0.001742673364 | EH78: 0.001394036979 | EI78: 0.001104052309 | EJ78: 0.0008656893241 | EK78: 0.0006720344371 | EL78: 0.0005165091861 | EM78: 0.0003930263125 | EN78: 0.0002960889901 | EO78: 0.0002208411225 | EP78: 0.0001630777416 | EQ78: 0.000119224768 | ER78: 8.629692854e-05 | ES78: 6.184167536e-05 | ET78: 4.387571529e-05 | EU78: 3.081940344e-05 | EV78: 2.143291796e-05 | EW78: 1.475691005e-05 | EX78: 1.005927345e-05 | EY78: 6.78882874e-06 | EZ78: 4.536074171e-06 | FA78: 3.000699436e-06 | FB78: 1.965268536e-06 | FC78: 1.274319594e-06 | FD78: 8.180726544e-07 | FE78: 5.199510337e-07 | FF78: 3.271825035e-07 | FG78: 2.038331198e-07 | FH78: 1.257235071e-07 | FI78: 7.677419619e-08 | FJ78: 4.641636474e-08 | FK78: 2.77833126e-08 | FL78: 1.646470606e-08 | FM78: 9.660086011e-09 | FN78: 5.611320308e-09 | FO78: 3.227053622e-09 | FP78: 1.837402737e-09 | FQ78: 1.035761088e-09 | FR78: 5.78058616e-10 | FS78: 3.194046404e-10 | FT78: 1.747300572e-10
A79: 61 | B79: 161 | C79: 74 | D79: 148 | E79: 104 | F79: 178 | DA79: 0.0156574322 | DB79: 0.01722674344 | DC79: 0.01876475451 | DD79: 0.02023669767 | DE79: 0.02160694941 | DF79: 0.02284043243 | DG79: 0.02390409158 | DH79: 0.02476835828 | DI79: 0.02540851325 | DJ79: 0.02580586025 | DK79: 0.02594863301 | DL79: 0.02583257398 | DM79: 0.02546114527 | DN79: 0.02484535709 | DO79: 0.02400322558 | DP79: 0.02295889729 | DQ79: 0.02174149976 | DR79: 0.0203837943 | DS79: 0.01892071797 | DT79: 0.01738790471 | DU79: 0.015820272 | DV79: 0.01425074916 | DW79: 0.01270920839 | DX79: 0.01122164074 | DY79: 0.009809599486 | DZ79: 0.00848991313 | EA79: 0.007274652828 | EB79: 0.006171324072 | EC79: 0.005183242034 | ED79: 0.004310043765 | EE79: 0.003548288522 | EF79: 0.002892099484 | EG79: 0.002333805101 | EH79: 0.001864545546 | EI79: 0.001474818116 | EJ79: 0.001154944157 | EK79: 0.000895448397 | EL79: 0.0006873488271 | EM79: 0.0005223611673 | EN79: 0.0003930263125 | EO79: 0.0002927719227 | EP79: 0.0002159206994 | EQ79: 0.0001576580631 | ER79: 0.0001139712077 | ES79: 8.157013279e-05 | ET79: 5.779952154e-05 | EU79: 4.054846074e-05 | EV79: 2.816317132e-05 | EW79: 1.936626172e-05 | EX79: 1.318460404e-05 | EY79: 8.886800718e-06 | EZ79: 5.930357115e-06 | FA79: 3.918080069e-06 | FB79: 2.562847841e-06 | FC79: 1.659699232e-06 | FD79: 1.064125913e-06 | FE79: 6.754818747e-07 | FF79: 4.24513432e-07 | FG79: 2.641351674e-07 | FH79: 1.627114346e-07 | FI79: 9.923548031e-08 | FJ79: 5.992015568e-08 | FK79: 3.582085479e-08 | FL79: 2.120098372e-08 | FM79: 1.242319022e-08 | FN79: 7.20721226e-09 | FO79: 4.139601594e-09 | FP79: 2.354002033e-09 | FQ79: 1.325293832e-09 | FR79: 7.387110156e-10 | FS79: 4.076561784e-10 | FT79: 2.227258052e-10 | FU79: 1.20476988e-10
A80: 61 | B80: 161 | C80: 73 | D80: 149 | E80: 103 | F80: 179 | CZ80: 0.01947811537 | DA80: 0.02161835458 | DB80: 0.02375501958 | DC80: 0.02584313552 | DD80: 0.02783505427 | DE80: 0.02968219371 | DF80: 0.03133696791 | DG80: 0.03275480406 | DH80: 0.03389612823 | DI80: 0.03472819706 | DJ80: 0.03522665741 | DK80: 0.0353767302 | DL80: 0.03517393837 | DM80: 0.03462432873 | DN80: 0.03374417242 | DO80: 0.0325591648 | DP80: 0.03110317941 | DQ80: 0.02941666064 | DR80: 0.02754476111 | DS80: 0.02553534356 | DT80: 0.02343696955 | DU80: 0.02129699168 | DV80: 0.01915985076 | DW80: 0.01706565799 | DX80: 0.01504911666 | DY80: 0.01313881008 | DZ80: 0.01135685593 | EA80: 0.009718903118 | EB80: 0.008234428154 | EC80: 0.00690727412 | ED80: 0.005736367858 | EE80: 0.004716549004 | EF80: 0.003839447765 | EG80: 0.003094355673 | EH80: 0.002469043571 | EI80: 0.001950492713 | EJ80: 0.001525516696 | EK80: 0.001181263143 | EL80: 0.0009055937096 | EM80: 0.0006873488271 | EN80: 0.0005165091861 | EO80: 0.0003842695387 | EP80: 0.0002830420254 | EQ80: 0.0002064062971 | ER80: 0.0001490225592 | ES80: 0.0001065217143 | ET80: 7.538437391e-05 | EU80: 5.281795381e-05 | EV80: 3.663859978e-05 | EW80: 2.5162467e-05 | EX80: 1.710899991e-05 | EY80: 1.15173638e-05 | EZ80: 7.676064249e-06 | FA80: 5.065020091e-06 | FB80: 3.308878336e-06 | FC80: 2.140116821e-06 | FD80: 1.370412203e-06 | FE80: 8.688043953e-07 | FF80: 5.453180293e-07 | FG80: 3.388712767e-07 | FH80: 2.084859133e-07 | FI80: 1.269918147e-07 | FJ80: 7.658289808e-08 | FK80: 4.572407413e-08 | FL80: 2.702807395e-08 | FM80: 1.581766349e-08 | FN80: 9.164876573e-09 | FO80: 5.257363e-09 | FP80: 2.985838842e-09 | FQ80: 1.678888358e-09 | FR80: 9.346184002e-10 | FS80: 5.15114638e-10 | FT80: 2.810803665e-10 | FU80: 1.518497866e-10 | FV80: 8.121849098e-11
A81: 60 | B81: 162 | C81: 72 | D81: 150 | E81: 102 | F81: 180 | CY81: 0.02381152533 | CZ81: 0.02665974396 | DA81: 0.02955165358 | DB81: 0.03243132221 | DC81: 0.03523745857 | DD81: 0.03790544125 | DE81: 0.04036970633 | DF81: 0.04256637619 | DG81: 0.04443598615 | DH81: 0.04592614809 | DI81: 0.04699398524 | DJ81: 0.04760818069 | DK81: 0.04775050294 | DL81: 0.04741670484 | DM81: 0.04661673418 | DN81: 0.04537424118 | DO81: 0.04372541706 | DP81: 0.04171724318 | DQ81: 0.03940526902 | DR81: 0.03685106535 | DS81: 0.03411951536 | DT81: 0.03127610878 | DU81: 0.02838439432 | DV81: 0.02550372419 | DW81: 0.02268739487 | DX81: 0.01998125268 | DY81: 0.0174227959 | DZ81: 0.015040769 | EA81: 0.01285521335 | EB81: 0.01087791326 | EC81: 0.00911315904 | ED81: 0.007558739226 | EE81: 0.006207072682 | EF81: 0.005046396312 | EG81: 0.004061934658 | EH81: 0.003236991557 | EI81: 0.002553919803 | EJ81: 0.001994940742 | EK81: 0.0015428006 | EL81: 0.001181263143 | EM81: 0.000895448397 | EN81: 0.0006720344371 | EO81: 0.0004993436693 | EP81: 0.0003673369566 | EQ81: 0.0002675387872 | ER81: 0.0001929149743 | ES81: 0.0001377216383 | ET81: 9.734092666e-05 | EU81: 6.811548095e-05 | EV81: 4.719035384e-05 | EW81: 3.236813638e-05 | EX81: 2.198058324e-05 | EY81: 1.477807219e-05 | EZ81: 9.836790246e-06 | FA81: 6.482553253e-06 | FB81: 4.229566236e-06 | FC81: 2.732137946e-06 | FD81: 1.747295952e-06 | FE81: 1.106336839e-06 | FF81: 6.935301276e-07 | FG81: 4.304278317e-07 | FH81: 2.644797427e-07 | FI81: 1.608946256e-07 | FJ81: 9.690534149e-08 | FK81: 5.778444553e-08 | FL81: 3.411388959e-08 | FM81: 1.993923923e-08 | FN81: 1.153833074e-08 | FO81: 6.61050196e-09 | FP81: 3.7495828e-09 | FQ81: 2.105661291e-09 | FR81: 1.170714867e-09 | FS81: 6.444226689e-10 | FT81: 3.511943658e-10 | FU81: 1.894878315e-10 | FV81: 1.012213597e-10 | FW81: 5.353281276e-11
A82: 60 | B82: 162 | C82: 70 | D82: 152 | E82: 100 | F82: 182 | CW82: 0.02507475103 | CX82: 0.02860496283 | CY82: 0.0323074887 | CZ82: 0.03612618235 | DA82: 0.0399942902 | DB82: 0.04383600547 | DC82: 0.04756866975 | DD82: 0.05110555345 | DE82: 0.05435909783 | DF82: 0.05724445699 | DG82: 0.05968314428 | DH82: 0.06160656649 | DI82: 0.06295922453 | DJ82: 0.06370137263 | DK82: 0.0638109582 | DL82: 0.06328471038 | DM82: 0.0621383022 | DN82: 0.06040557518 | DO82: 0.0581368799 | DP82: 0.05539664609 | DQ82: 0.05226034572 | DR82: 0.0488110489 | DS82: 0.04513579095 | DT82: 0.04132197109 | DU82: 0.03745398713 | DV82: 0.0336102807 | DW82: 0.02986092641 | DX82: 0.02626585063 | DY82: 0.02287371567 | DZ82: 0.01972145812 | EA82: 0.0168344286 | EB82: 0.0142270479 | EC82: 0.01190387239 | ED82: 0.009860950678 | EE82: 0.008087352367 | EF82: 0.006566757823 | EG82: 0.005279012492 | EH82: 0.004201568365 | EI82: 0.003310756454 | EJ82: 0.002582855379 | EK82: 0.001994940742 | EL82: 0.001525516696 | EM82: 0.001154944157 | EN82: 0.0008656893241 | EO82: 0.0006424216858 | EP82: 0.0004719928056 | EQ82: 0.0003433267325 | ER82: 0.000247250351 | ES82: 0.0001762882102 | ET82: 0.0001244419121 | EU82: 8.696953291e-05 | EV82: 6.01761855e-05 | EW82: 4.122296516e-05 | EX82: 2.795830607e-05 | EY82: 1.877325321e-05 | EZ82: 1.248030721e-05 | FA82: 8.214252885e-06 | FB82: 5.352638547e-06 | FC82: 3.453224559e-06 | FD82: 2.205661078e-06 | FE82: 1.39479311e-06 | FF82: 8.732485287e-07 | FG82: 5.412812543e-07 | FH82: 3.321736406e-07 | FI82: 2.018200925e-07 | FJ82: 1.214005602e-07 | FK82: 7.229929055e-08 | FL82: 4.26289304e-08 | FM82: 2.488467031e-08 | FN82: 1.438190454e-08 | FO82: 8.229206634e-09 | FP82: 4.661831675e-09 | FQ82: 2.614642189e-09 | FR82: 1.451860854e-09 | FS82: 7.981688638e-10 | FT82: 4.344318161e-10 | FU82: 2.341022138e-10 | FV82: 1.248954084e-10 | FW82: 6.596969554e-11 | FX82: 3.449844676e-11 | FY82: 1.78612422e-11
A83: 59 | B83: 163 | C83: 69 | D83: 153 | E83: 99 | F83: 183 | CV83: 0.02934348105 | CW83: 0.03376831943 | CX83: 0.03847373209 | CY83: 0.04339865207 | CZ83: 0.04846689752 | DA83: 0.05358845734 | DB83: 0.05866165954 | DC83: 0.06357618886 | DD83: 0.06821685455 | DE83: 0.07246794496 | DF83: 0.07621794875 | DG83: 0.07936437898 | DH83: 0.08181841147 | DI83: 0.08350904543 | DJ83: 0.08438651481 | DK83: 0.08442472163 | DL83: 0.08362252538 | DM83: 0.08200379965 | DN83: 0.07961625182 | DO83: 0.07652908754 | DP83: 0.07282967932 | DQ83: 0.06861946304 | DR83: 0.06400933099 | DS83: 0.05911481245 | DT83: 0.0540513318 | DU83: 0.04892981093 | DV83: 0.04385284067 | DW83: 0.03891159023 | DX83: 0.03418355952 | DY83: 0.02973121399 | DZ83: 0.0256014791 | EA83: 0.02182601887 | EB83: 0.01842218126 | EC83: 0.01539446607 | ED83: 0.01273635823 | EE83: 0.01043236938 | EF83: 0.008460142949 | EG83: 0.006792497727 | EH83: 0.005399311173 | EI83: 0.004249171582 | EJ83: 0.003310756454 | EK83: 0.002553919803 | EL83: 0.001950492713 | EM83: 0.001474818116 | EN83: 0.001104052309 | EO83: 0.0008182723803 | EP83: 0.0006004311146 | EQ83: 0.0004361998801 | ER83: 0.0003137364292 | ES83: 0.0002234093845 | ET83: 0.0001575052121 | EU83: 0.0001099374104 | EV83: 7.597192506e-05 | EW83: 5.197779053e-05 | EX83: 3.520785388e-05 | EY83: 2.36112156e-05 | EZ83: 1.56766837e-05 | FA83: 1.030497874e-05 | FB83: 6.706517456e-06 | FC83: 4.321197079e-06 | FD83: 2.756564402e-06 | FE83: 1.740961906e-06 | FF83: 1.08859779e-06 | FG83: 6.739112147e-07 | FH83: 4.130427219e-07 | FI83: 2.506365014e-07 | FJ83: 1.50574254e-07 | FK83: 8.956001884e-08 | FL83: 5.273933962e-08 | FM83: 3.0747673e-08 | FN83: 1.7747896e-08 | FO83: 1.014234903e-08 | FP83: 5.738353303e-09 | FQ83: 3.21434931e-09 | FR83: 1.782608253e-09 | FS83: 9.787590941e-10 | FT83: 5.320503863e-10 | FU83: 2.863431318e-10 | FV83: 1.525730519e-10 | FW83: 8.04870392e-11 | FX83: 4.203694292e-11 | FY83: 2.173668709e-11 | FZ83: 1.112788521e-11
A84: 58 | B84: 164 | C84: 68 | D84: 154 | E84: 98 | F84: 184 | CU84: 0.03374430794 | CV84: 0.03917341157 | CW84: 0.045023507 | CX84: 0.05123235275 | CY84: 0.05771734374 | CZ84: 0.06437621315 | DA84: 0.07108886362 | DB84: 0.07772035449 | DC84: 0.08412499063 | DD84: 0.09015137189 | DE84: 0.09564817908 | DF84: 0.1004703992 | DG84: 0.1044856394 | DH84: 0.1075801478 | DI84: 0.1096641619 | DJ84: 0.1106762323 | DK84: 0.1105862328 | DL84: 0.1093968498 | DM84: 0.1071434494 | DN84: 0.1038923302 | DO84: 0.0997374833 | DP84: 0.09479607999 | DQ84: 0.08920298909 | DR84: 0.08310468182 | DS84: 0.07665290704 | DT84: 0.06999851459 | DU84: 0.06328577071 | DV84: 0.05664745171 | DW84: 0.05020092708 | DX84: 0.04404535882 | DY84: 0.03826005785 | DZ84: 0.03290395841 | EA84: 0.02801610316 | EB84: 0.02361698009 | EC84: 0.01971051874 | ED84: 0.01628653887 | EE84: 0.01332344708 | EF84: 0.01079099416 | EG84: 0.008652933558 | EH84: 0.006869455834 | EI84: 0.005399311173 | EJ84: 0.004201568365 | EK84: 0.003236991557 | EL84: 0.002469043571 | EM84: 0.001864545546 | EN84: 0.001394036979 | EO84: 0.001031888202 | EP84: 0.0007562198192 | EQ84: 0.0005486817543 | ER84: 0.0003941395687 | ES84: 0.0002803087216 | ET84: 0.0001973695902 | EU84: 0.0001375881159 | EV84: 9.495955322e-05 | EW84: 6.488636676e-05 | EX84: 4.389603632e-05 | EY84: 2.940046581e-05 | EZ84: 1.949576006e-05 | FA84: 1.279921063e-05 | FB84: 8.319232398e-06 | FC84: 5.353531741e-06 | FD84: 3.410786714e-06 | FE84: 2.151422956e-06 | FF84: 1.343550792e-06 | FG84: 8.306908667e-07 | FH84: 5.084893214e-07 | FI84: 3.081635677e-07 | FJ84: 1.849003806e-07 | FK84: 1.098376853e-07 | FL84: 6.459843462e-08 | FM84: 3.761401309e-08 | FN84: 2.168375061e-08 | FO84: 1.23758829e-08 | FP84: 6.993185271e-09 | FQ84: 3.912289032e-09 | FR84: 2.166925026e-09 | FS84: 1.18826661e-09 | FT84: 6.4512067e-10 | FU84: 3.467568714e-10 | FV84: 1.84529689e-10 | FW84: 9.722198386e-11 | FX84: 5.071305377e-11 | FY84: 2.618979521e-11 | FZ84: 1.339064502e-11 | GA84: 6.77841176e-12
A85: 58 | B85: 164 | C85: 68 | D85: 154 | E85: 98 | F85: 184 | CU85: 0.04465676222 | CV85: 0.05177596627 | CW85: 0.05943280785 | CX85: 0.06754315447 | CY85: 0.07599648154 | CZ85: 0.08465696356 | DA85: 0.09336604103 | DB85: 0.1019464849 | DC85: 0.1102078735 | DD85: 0.1179532862 | DE85: 0.1249869074 | DF85: 0.1311221479 | DG85: 0.1361898189 | DH85: 0.1400458634 | DI85: 0.1425781527 | DJ85: 0.1437119018 | DK85: 0.1434133383 | DL85: 0.141691373 | DM85: 0.1385971588 | DN85: 0.134221566 | DO85: 0.1286907496 | DP85: 0.12216011 | DQ85: 0.1148070491 | DR85: 0.1068229948 | DS85: 0.09840518884 | DT85: 0.08974872843 | DU85: 0.0810392969 | DV85: 0.07244694555 | DW85: 0.06412118657 | DX85: 0.0561875475 | DY85: 0.04874562657 | DZ85: 0.04186858593 | EA85: 0.03560393378 | EB85: 0.02997538233 | EC85: 0.02498552808 | ED85: 0.02061908504 | EE85: 0.0168464075 | EF85: 0.01362706316 | EG85: 0.01091325471 | EH85: 0.008652933558 | EI85: 0.006792497727 | EJ85: 0.005279012492 | EK85: 0.004061934658 | EL85: 0.003094355673 | EM85: 0.002333805101 | EN85: 0.001742673364 | EO85: 0.001288322101 | EP85: 0.0009429528474 | EQ85: 0.0006833017775 | ER85: 0.0004902213029 | ES85: 0.0003482000783 | ET85: 0.0002448626832 | EU85: 0.0001704799853 | EV85: 0.0001175117379 | EW85: 8.019479002e-05 | EX85: 5.418363226e-05 | EY85: 3.624491877e-05 | EZ85: 2.400397698e-05 | FA85: 1.573897073e-05 | FB85: 1.021707329e-05 | FC85: 6.566496925e-06 | FD85: 4.178284779e-06 | FE85: 2.632203023e-06 | FF85: 1.641715073e-06 | FG85: 1.013755545e-06 | FH85: 6.197631566e-07 | FI85: 3.751244074e-07 | FJ85: 2.247925661e-07 | FK85: 1.333661527e-07 | FL85: 7.833689541e-08 | FM85: 4.555584893e-08 | FN85: 2.622883418e-08 | FO85: 1.495102219e-08 | FP85: 8.437617618e-09 | FQ85: 4.714393711e-09 | FR85: 2.607887861e-09 | FS85: 1.428265784e-09 | FT85: 7.74437201e-10 | FU85: 4.157386833e-10 | FV85: 2.209590129e-10 | FW85: 1.162679623e-10 | FX85: 6.057109938e-11 | FY85: 3.124121436e-11 | FZ85: 1.59531854e-11 | GA85: 8.06536401e-12
A86: 57 | B86: 165 | C86: 67 | D86: 155 | E86: 97 | F86: 185 | CT86: 0.05002613571 | CU86: 0.05851012062 | CV86: 0.06775199458 | CW86: 0.07767302728 | CX86: 0.08816078204 | CY86: 0.09906897991 | CZ86: 0.1102191363 | DA86: 0.1214041049 | DB86: 0.1323935398 | DC86: 0.14294115 | DD86: 0.1527934739 | DE86: 0.1616997667 | DF86: 0.1694224808 | DG86: 0.1757477345 | DH86: 0.1804951303 | DI86: 0.1835262954 | DJ86: 0.1847515805 | DK86: 0.1841344639 | DL86: 0.18169336 | DM86: 0.1775007065 | DN86: 0.1716793938 | DO86: 0.1643967816 | DP86: 0.1558567107 | DQ86: 0.1462900394 | DR86: 0.1359443187 | DS86: 0.1250732466 | DT86: 0.113926522 | DU86: 0.1027406504 | DV86: 0.09173114975 | DW86: 0.08108647451 | DX86: 0.07096383137 | DY86: 0.06148692116 | DZ86: 0.0527455098 | EA86: 0.04479662513 | EB86: 0.03766709731 | EC86: 0.03135711268 | ED86: 0.02584443454 | EE86: 0.02108895487 | EF86: 0.01703727509 | EG86: 0.01362706316 | EH86: 0.01079099416 | EI86: 0.008460142949 | EJ86: 0.006566757823 | EK86: 0.005046396312 | EL86: 0.003839447765 | EM86: 0.002892099484 | EN86: 0.002156824199 | EO86: 0.001592477564 | EP86: 0.001164096417 | EQ86: 0.0008424839531 | ER86: 0.0006036585802 | ES86: 0.0004282310694 | ET86: 0.000300761349 | EU86: 0.0002091331746 | EV86: 0.0001439729459 | EW86: 9.812866882e-05 | EX86: 6.621676793e-05 | EY86: 4.423816514e-05 | EZ86: 2.926060404e-05 | FA86: 1.916136855e-05 | FB86: 1.242300947e-05 | FC86: 7.974145647e-06 | FD86: 5.067556112e-06 | FE86: 3.188379616e-06 | FF86: 1.986088226e-06 | FG86: 1.22485338e-06 | FH86: 7.478710605e-07 | FI86: 4.520915675e-07 | FJ86: 2.705721797e-07 | FK86: 1.603234054e-07 | FL86: 9.405194322e-08 | FM86: 5.462553106e-08 | FN86: 3.141091781e-08 | FO86: 1.788226951e-08 | FP86: 1.007909876e-08 | FQ86: 5.624420993e-09 | FR86: 3.107355884e-09 | FS86: 1.69965676e-09 | FT86: 9.204252227e-10 | FU86: 4.93483745e-10 | FV86: 2.619474938e-10 | FW86: 1.376615638e-10 | FX86: 7.162558874e-11 | FY86: 3.689612578e-11 | FZ86: 1.88169999e-11 | GA86: 9.501169245e-12 | GB86: 4.749640959e-12
A87: 57 | B87: 165 | C87: 66 | D87: 156 | E87: 96 | F87: 186 | CS87: 0.05507069665 | CT87: 0.06497520564 | CU87: 0.07589825834 | CV87: 0.0877754395 | CW87: 0.1005012054 | CX87: 0.1139269796 | CY87: 0.1278612517 | CZ87: 0.142071961 | DA87: 0.156291318 | DB87: 0.1702230576 | DC87: 0.1835519388 | DD87: 0.1959551222 | DE87: 0.2071148885 | DF87: 0.2167320175 | DG87: 0.2245390513 | DH87: 0.2303126266 | DI87: 0.2338840837 | DJ87: 0.2351476503 | DK87: 0.2340656444 | DL87: 0.2306703418 | DM87: 0.2250623762 | DN87: 0.2174057848 | DO87: 0.2079200385 | DP87: 0.1968695974 | DQ87: 0.1845516849 | DR87: 0.1712830671 | DS87: 0.1573866541 | DT87: 0.1431787049 | DU87: 0.1289573238 | DV87: 0.1149928001 | DW87: 0.1015201713 | DX87: 0.08873421047 | DY87: 0.07678685712 | DZ87: 0.06578694972 | EA87: 0.055801987 | EB87: 0.04686154813 | EC87: 0.03896194739 | ED87: 0.0320716818 | EE87: 0.02613724858 | EF87: 0.02108895487 | EG87: 0.0168464075 | EH87: 0.01332344708 | EI87: 0.01043236938 | EJ87: 0.008087352367 | EK87: 0.006207072682 | EL87: 0.004716549004 | EM87: 0.003548288522 | EN87: 0.002642838087 | EO87: 0.001948853722 | EP87: 0.001422803693 | EQ87: 0.001028413526 | ER87: 0.0007359488502 | ES87: 0.0005214162209 | ET87: 0.0003657450855 | EU87: 0.0002539975433 | EV87: 0.0001746375332 | EW87: 0.0001188783354 | EX87: 8.011704042e-05 | EY87: 5.345694495e-05 | EZ87: 3.531347272e-05 | FA87: 2.309584073e-05 | FB87: 1.495492293e-05 | FC87: 9.58719669e-06 | FD87: 6.084937907e-06 | FE87: 3.823646368e-06 | FF87: 2.37879131e-06 | FG87: 1.465183511e-06 | FH87: 8.934798376e-07 | FI87: 5.394293171e-07 | FJ87: 3.224344154e-07 | FK87: 1.908118272e-07 | FL87: 1.117959949e-07 | FM87: 6.484914512e-08 | FN87: 3.724254238e-08 | FO87: 2.117539114e-08 | FP87: 1.19201197e-08 | FQ87: 6.643345625e-09 | FR87: 3.665642723e-09 | FS87: 2.002490547e-09 | FT87: 1.083048415e-09 | FU87: 5.799390097e-10 | FV87: 3.074495271e-10 | FW87: 1.613698485e-10 | FX87: 8.385481563e-11 | FY87: 4.314104698e-11 | FZ87: 2.197406517e-11 | GA87: 1.108121014e-11 | GB87: 5.53249498e-12 | GC87: 2.734714048e-12
A88: 57 | B88: 165 | C88: 65 | D88: 157 | E88: 95 | F88: 187 | CR88: 0.05957417987 | CS88: 0.07090522188 | CT88: 0.08355172555 | CU88: 0.09747420055 | CV88: 0.1125851201 | CW88: 0.1287447014 | CX88: 0.1457588013 | CY88: 0.1633793889 | CZ88: 0.1813079308 | DA88: 0.1992018608 | DB88: 0.2166840956 | DC88: 0.2333553357 | DD88: 0.248808659 | DE88: 0.2626457035 | DF88: 0.274493564 | DG88: 0.284021415 | DH88: 0.2909558291 | DI88: 0.2950938057 | DJ88: 0.2963126411 | DK88: 0.2945759729 | DL88: 0.2899355822 | DM88: 0.2825288286 | DN88: 0.2725718963 | DO88: 0.260349314 | DP88: 0.2462004571 | DQ88: 0.2305039262 | DR88: 0.2136608023 | DS88: 0.1960778054 | DT88: 0.1781513326 | DU88: 0.1602532214 | DV88: 0.1427189089 | DW88: 0.1258384384 | DX88: 0.1098505356 | DY88: 0.09493975194 | DZ88: 0.08123647338 | EA88: 0.06881943231 | EB88: 0.05772024492 | EC88: 0.04792943392 | ED88: 0.03940338113 | EE88: 0.0320716818 | EF88: 0.02584443454 | EG88: 0.02061908504 | EH88: 0.01628653887 | EI88: 0.01273635823 | EJ88: 0.009860950678 | EK88: 0.007558739226 | EL88: 0.005736367858 | EM88: 0.004310043765 | EN88: 0.003206146933 | EO88: 0.002361251345 | EP88: 0.001721702342 | EQ88: 0.001242885088 | ER88: 0.0008883026128 | ES88: 0.0006285617611 | ET88: 0.0004403439457 | EU88: 0.0003054169652 | EV88: 0.0002097255492 | EW88: 0.000142582616 | EX88: 9.597074626e-05 | EY88: 6.395407478e-05 | EZ88: 4.219438139e-05 | FA88: 2.756119748e-05 | FB88: 1.78237301e-05 | FC88: 1.141185294e-05 | FD88: 7.233871514e-06 | FE88: 4.539860104e-06 | FF88: 2.820792921e-06 | FG88: 1.73522979e-06 | FH88: 1.05681712e-06 | FI88: 6.372351749e-07 | FJ88: 3.804141792e-07 | FK88: 2.248385142e-07 | FL88: 1.315654249e-07 | FM88: 7.622016659e-08 | FN88: 4.371747495e-08 | FO88: 2.482545982e-08 | FP88: 1.395714492e-08 | FQ88: 7.768781907e-09 | FR88: 4.281207984e-09 | FS88: 2.335806049e-09 | FT88: 1.261723773e-09 | FU88: 6.747592527e-10 | FV88: 3.572649953e-10 | FW88: 1.872790248e-10 | FX88: 9.719521106e-11 | FY88: 4.994104786e-11 | FZ88: 2.540548492e-11 | GA88: 1.279541518e-11 | GB88: 6.380259328e-12 | GC88: 3.149773575e-12 | GD88: 1.539491851e-12
A89: 56 | B89: 166 | C89: 64 | D89: 158 | E89: 94 | F89: 188 | CQ89: 0.06332999631 | CR89: 0.07603659606 | CS89: 0.09038428472 | CT89: 0.1063702646 | CU89: 0.1239380358 | CV89: 0.1429703675 | CW89: 0.1632843317 | CX89: 0.1846290555 | CY89: 0.2066867508 | CZ89: 0.2290774201 | DA89: 0.2513674178 | DB89: 0.273081789 | DC89: 0.2937200207 | DD89: 0.3127745559 | DE89: 0.329751164 | DF89: 0.3441900518 | DG89: 0.3556864698 | DH89: 0.3639095324 | DI89: 0.3686180299 | DJ89: 0.3696721818 | DK89: 0.3670405297 | DL89: 0.3608014966 | DM89: 0.3511395053 | DN89: 0.3383359223 | DO89: 0.3227554495 | DP89: 0.304828881 | DQ89: 0.2850333618 | DR89: 0.2638714075 | DS89: 0.2418499641 | DT89: 0.2194607081 | DU89: 0.1971626198 | DV89: 0.1753676327 | DW89: 0.1544298871 | DX89: 0.1346388283 | DY89: 0.1162161136 | DZ89: 0.09931604764 | EA89: 0.08402907122 | EB89: 0.07038769663 | EC89: 0.05837420771 | ED89: 0.04792943392 | EE89: 0.03896194739 | EF89: 0.03135711268 | EG89: 0.02498552808 | EH89: 0.01971051874 | EI89: 0.01539446607 | EJ89: 0.01190387239 | EK89: 0.00911315904 | EL89: 0.00690727412 | EM89: 0.005183242034 | EN89: 0.003850821087 | EO89: 0.00283244998 | EP89: 0.002062662685 | EQ89: 0.001487137859 | ER89: 0.001061527631 | ES89: 0.0007501850956 | ET89: 0.0005248831306 | EU89: 0.0003635916105 | EV89: 0.000249357335 | EW89: 0.0001693119053 | EX89: 0.0001138177251 | EY89: 7.575117272e-05 | EZ89: 4.991440233e-05 | FA89: 3.25626278e-05 | FB89: 2.103149137e-05 | FC89: 1.344862086e-05 | FD89: 8.5141733e-06 | FE89: 5.336595384e-06 | FF89: 3.311640018e-06 | FG89: 2.034599919e-06 | FH89: 1.237576286e-06 | FI89: 7.452843304e-07 | FJ89: 4.443539619e-07 | FK89: 2.622969124e-07 | FL89: 1.532901874e-07 | FM89: 8.869366214e-08 | FN89: 5.080750568e-08 | FO89: 2.881510568e-08 | FP89: 1.617966832e-08 | FQ89: 8.994480136e-09 | FR89: 4.950391826e-09 | FS89: 2.69749183e-09 | FT89: 1.455250497e-09 | FU89: 7.772709378e-10 | FV89: 4.11021139e-10 | FW89: 2.151854696e-10 | FX89: 1.115369543e-10 | FY89: 5.723763427e-11 | FZ89: 2.908048362e-11 | GA89: 1.462778705e-11 | GB89: 7.28471707e-12 | GC89: 3.591731007e-12 | GD89: 1.753282807e-12 | GE89: 8.473390064e-13
A90: 56 | B90: 166 | C90: 63 | D90: 159 | E90: 93 | F90: 189 | CP90: 0.06615683828 | CQ90: 0.08012739083 | CR90: 0.09608250471 | CS90: 0.1140682256 | CT90: 0.1340732419 | CU90: 0.1560186771 | CV90: 0.1797496803 | CW90: 0.2050296722 | CX90: 0.2315380456 | CY90: 0.2588719911 | CZ90: 0.2865529081 | DA90: 0.314037587 | DB90: 0.3407340209 | DC90: 0.3660213513 | DD90: 0.3892731029 | DE90: 0.4098825496 | DF90: 0.4272888068 | DG90: 0.4410021012 | DH90: 0.4506266335 | DI90: 0.4558795482 | DJ90: 0.4566047417 | DK90: 0.4527805684 | DL90: 0.4445209141 | DM90: 0.4320695616 | DN90: 0.4157882393 | DO90: 0.3961391678 | DP90: 0.373663282 | DQ90: 0.3489555566 | DR90: 0.3226390035 | DS90: 0.2953389131 | DT90: 0.2676588035 | DU90: 0.2401593211 | DV90: 0.2133410446 | DW90: 0.187631799 | DX90: 0.1633787328 | DY90: 0.1408450729 | DZ90: 0.1202111771 | EA90: 0.101579272 | EB90: 0.08498110955 | EC90: 0.07038769663 | ED90: 0.05772024492 | EE90: 0.04686154813 | EF90: 0.03766709731 | EG90: 0.02997538233 | EH90: 0.02361698009 | EI90: 0.01842218126 | EJ90: 0.0142270479 | EK90: 0.01087791326 | EL90: 0.008234428154 | EM90: 0.006171324072 | EN90: 0.004579101987 | EO90: 0.003363871017 | EP90: 0.002446557396 | EQ90: 0.001761686141 | ER90: 0.001255910588 | ES90: 0.0008864330932 | ET90: 0.0006194271768 | EU90: 0.000428540237 | EV90: 0.0002935283209 | EW90: 0.0001990515072 | EX90: 0.0001336404673 | EY90: 8.883161462e-05 | EZ90: 5.845937684e-05 | FA90: 3.808885018e-05 | FB90: 2.456962898e-05 | FC90: 1.569120837e-05 | FD90: 9.921360626e-06 | FE90: 6.210736976e-06 | FF90: 3.849214331e-06 | FG90: 2.361881508e-06 | FH90: 1.434832393e-06 | FI90: 8.629811214e-07 | FJ90: 5.138761629e-07 | FK90: 3.029512196e-07 | FL90: 1.768251328e-07 | FM90: 1.021815146e-07 | FN90: 5.845985503e-08 | FO90: 3.311312643e-08 | FP90: 1.856947801e-08 | FQ90: 1.030994289e-08 | FR90: 5.667217471e-09 | FS90: 3.084185936e-09 | FT90: 1.661759926e-09 | FU90: 8.864475949e-10 | FV90: 4.681606481e-10 | FW90: 2.447900722e-10 | FX90: 1.267213382e-10 | FY90: 6.494754739e-11 | FZ90: 3.295587264e-11 | GA90: 1.655617206e-11 | GB90: 8.234630223e-12 | GC90: 4.05494836e-12 | GD90: 1.976895026e-12 | GE90: 9.541989735e-13 | GF90: 4.559858189e-13
A91: 55 | B91: 167 | C91: 63 | D91: 159 | E91: 93 | F91: 189 | CP91: 0.0829761393 | CQ91: 0.1003713105 | CR91: 0.120205135 | CS91: 0.1425258046 | CT91: 0.167309668 | CU91: 0.1944489617 | CV91: 0.2237418759 | CW91: 0.2548859969 | CX91: 0.2874760927 | CY91: 0.3210070314 | CZ91: 0.3548823599 | DA91: 0.388428721 | DB91: 0.4209158815 | DC91: 0.4515817112 | DD91: 0.4796610268 | DE91: 0.5044168386 | DF91: 0.525172255 | DG91: 0.5413411329 | DH91: 0.5524555439 | DI91: 0.5581882624 | DJ91: 0.5583687687 | DK91: 0.5529916746 | DL91: 0.5422169906 | DM91: 0.5263622161 | DN91: 0.5058867987 | DO91: 0.4813700229 | DP91: 0.4534838148 | DQ91: 0.4229622392 | DR91: 0.390569618 | DS91: 0.3570691852 | DT91: 0.3231940399 | DU91: 0.2896218806 | DV91: 0.2569546317 | DW91: 0.2257036522 | DX91: 0.1962807813 | DY91: 0.1689950659 | DZ91: 0.1440546649 | EA91: 0.121573154 | EB91: 0.101579272 | EC91: 0.08402907122 | ED91: 0.06881943231 | EE91: 0.055801987 | EF91: 0.04479662513 | EG91: 0.03560393378 | EH91: 0.02801610316 | EI91: 0.02182601887 | EJ91: 0.0168344286 | EK91: 0.01285521335 | EL91: 0.009718903118 | EM91: 0.007274652828 | EN91: 0.005390938116 | EO91: 0.003955245782 | EP91: 0.002873026692 | EQ91: 0.00206615501 | ER91: 0.001471103388 | ES91: 0.001037004273 | ET91: 0.0007237272941 | EU91: 0.0005000649462 | EV91: 0.0003420857063 | EW91: 0.0002316863774 | EX91: 0.0001553542452 | EY91: 0.0001031342243 | EZ91: 6.778592756e-05 | FA91: 4.410962188e-05 | FB91: 2.841738962e-05 | FC91: 1.812558716e-05 | FD91: 1.144608696e-05 | FE91: 7.156143712e-06 | FF91: 4.429534833e-06 | FG91: 2.71452749e-06 | FH91: 1.646976574e-06 | FI91: 9.893219738e-07 | FJ91: 5.883624444e-07 | FK91: 3.464250491e-07 | FL91: 2.019438752e-07 | FM91: 1.165491579e-07 | FN91: 6.659546395e-08 | FO91: 3.767360788e-08 | FP91: 2.110021267e-08 | FQ91: 1.170020597e-08 | FR91: 6.423285666e-09 | FS91: 3.491226473e-09 | FT91: 1.878693195e-09 | FU91: 1.000900157e-09 | FV91: 5.279377389e-10 | FW91: 2.756967927e-10 | FX91: 1.425403348e-10 | FY91: 7.296269899e-11 | FZ91: 3.697609654e-11 | GA91: 1.855232264e-11 | GB91: 9.215790003e-12 | GC91: 4.532354874e-12 | GD91: 2.206847377e-12 | GE91: 1.063843504e-12 | GF91: 5.077386785e-13
A92: 55 | B92: 167 | C92: 62 | D92: 160 | E92: 92 | F92: 190 | CO92: 0.08443827175 | CP92: 0.1030359458 | CQ92: 0.1244787572 | CR92: 0.148887686 | CS92: 0.1763109851 | CT92: 0.2067078734 | CU92: 0.2399339596 | CV92: 0.2757296557 | CW92: 0.3137128376 | CX92: 0.3533769018 | CY92: 0.3940951423 | CZ92: 0.435132037 | DA92: 0.4756616007 | DB92: 0.514792465 | DC92: 0.5515988158 | DD92: 0.5851558133 | DE92: 0.6145776719 | DF92: 0.6390562508 | DG92: 0.6578978263 | DH92: 0.6705557193 | DI92: 0.6766566367 | DJ92: 0.6760189586 | DK92: 0.6686617194 | DL92: 0.6548036642 | DM92: 0.6348524449 | DN92: 0.6093847014 | DO92: 0.5791183855 | DP92: 0.5448791802 | DQ92: 0.5075632038 | DR92: 0.4680983404 | DS92: 0.4274065052 | DT92: 0.3863689428 | DU92: 0.3457963036 | DV92: 0.3064047817 | DW92: 0.2687990849 | DX92: 0.2334624766 | DY92: 0.200753648 | DZ92: 0.1709097578 | EA92: 0.1440546649 | EB92: 0.1202111771 | EC92: 0.09931604764 | ED92: 0.08123647338 | EE92: 0.06578694972 | EF92: 0.0527455098 | EG92: 0.04186858593 | EH92: 0.03290395841 | EI92: 0.0256014791 | EJ92: 0.01972145812 | EK92: 0.015040769 | EL92: 0.01135685593 | EM92: 0.00848991313 | EN92: 0.006283555159 | EO92: 0.004604311231 | EP92: 0.003340265347 | EQ92: 0.002399132969 | ER92: 0.001706022384 | ES92: 0.001201080694 | ET92: 0.0008371758709 | EU92: 0.0005777211595 | EV92: 0.0003947088835 | EW92: 0.0002669885169 | EX92: 0.0001787990966 | EY92: 0.0001185482405 | EZ92: 7.781833957e-05 | FA92: 5.057383212e-05 | FB92: 3.254069471e-05 | FC92: 2.072930939e-05 | FD92: 1.307374174e-05 | FE92: 8.16341782e-06 | FF92: 5.046626963e-06 | FG92: 3.088783278e-06 | FH92: 1.871676236e-06 | FI92: 1.122874115e-06 | FJ92: 6.669426178e-07 | FK92: 3.921957872e-07 | FL92: 2.283360238e-07 | FM92: 1.316142759e-07 | FN92: 7.510841875e-08 | FO92: 4.243569254e-08 | FP92: 2.373728393e-08 | FQ92: 1.31458239e-08 | FR92: 7.207782132e-09 | FS92: 3.912663931e-09 | FT92: 2.102812248e-09 | FU92: 1.118885135e-09 | FV92: 5.894236612e-10 | FW92: 3.074161522e-10 | FX92: 1.587387128e-10 | FY92: 8.115141209e-11 | FZ92: 4.107393991e-11 | GA92: 2.058229037e-11 | GB92: 1.021123082e-11 | GC92: 5.015561282e-12 | GD92: 2.439035065e-12 | GE92: 1.17428524e-12 | GF92: 5.597398351e-13 | GG92: 2.641532047e-13
A93: 55 | B93: 167 | C93: 61 | D93: 161 | E93: 91 | F93: 191 | CN93: 0.08443827175 | CO93: 0.1039397859 | CP93: 0.1266722122 | CQ93: 0.1528403232 | CR93: 0.1825793241 | CS93: 0.2159346305 | CT93: 0.2528424883 | CU93: 0.2931128572 | CV93: 0.3364160732 | CW93: 0.382274792 | CX93: 0.4300625636 | CY93: 0.4790101028 | CZ93: 0.5282199044 | DA93: 0.5766893173 | DB93: 0.6233415921 | DC93: 0.6670637806 | DD93: 0.7067497609 | DE93: 0.7413461478 | DF93: 0.7698984678 | DG93: 0.7915947963 | DH93: 0.8058040784 | DI93: 0.8121066127 | DJ93: 0.8103146442 | DK93: 0.8004816554 | DL93: 0.7828997149 | DM93: 0.758085066 | DN93: 0.7267529493 | DO93: 0.6897833698 | DP93: 0.6481800971 | DQ93: 0.6030255573 | DR93: 0.555434435 | DS93: 0.5065087339 | DT93: 0.4572967671 | DU93: 0.4087581067 | DV93: 0.3617359584 | DW93: 0.3169378009 | DX93: 0.2749245061 | DY93: 0.2361075758 | DZ93: 0.200753648 | EA93: 0.1689950659 | EB93: 0.1408450729 | EC93: 0.1162161136 | ED93: 0.09493975194 | EE93: 0.07678685712 | EF93: 0.06148692116 | EG93: 0.04874562657 | EH93: 0.03826005785 | EI93: 0.02973121399 | EJ93: 0.02287371567 | EK93: 0.0174227959 | EL93: 0.01313881008 | EM93: 0.009809599486 | EN93: 0.00725109462 | EO93: 0.005306558103 | EP93: 0.003844849373 | EQ93: 0.002758054173 | ER93: 0.001958769393 | ES93: 0.001377275688 | ET93: 0.0009587723674 | EU93: 0.0006607956743 | EV93: 0.0004508955291 | EW93: 0.0003046082924 | EX93: 0.0002037344964 | EY93: 0.0001349101028 | EZ93: 8.844665887e-05 | FA93: 5.740840032e-05 | FB93: 3.689151702e-05 | FC93: 2.347116455e-05 | FD93: 1.478426769e-05 | FE93: 9.219811708e-06 | FF93: 5.692477744e-06 | FG93: 3.479667012e-06 | FH93: 2.105867712e-06 | FI93: 1.261773904e-06 | FJ93: 7.484952545e-07 | FK93: 4.395958833e-07 | FL93: 2.55608468e-07 | FM93: 1.471478474e-07 | FN93: 8.386671727e-08 | FO93: 4.732410729e-08 | FP93: 2.643822362e-08 | FQ93: 1.462309051e-08 | FR93: 8.00761381e-09 | FS93: 4.341343269e-09 | FT93: 2.330248241e-09 | FU93: 1.2383326e-09 | FV93: 6.515225901e-10 | FW93: 3.393741085e-10 | FX93: 1.750189157e-10 | FY93: 8.936106312e-11 | FZ93: 4.517193765e-11 | GA93: 2.260716835e-11 | GB93: 1.120161577e-11 | GC93: 5.495057366e-12 | GD93: 2.668829592e-12 | GE93: 1.283295034e-12 | GF93: 6.109268854e-13 | GG93: 2.879446523e-13 | GH93: 1.343649057e-13
A94: 54 | B94: 168 | C94: 61 | D94: 161 | E94: 91 | F94: 191 | CN94: 0.1030359458 | CO94: 0.1266722122 | CP94: 0.1541810515 | CQ94: 0.1857965761 | CR94: 0.2216672151 | CS94: 0.2618317322 | CT94: 0.3061964475 | CU94: 0.3545153725 | CV94: 0.4063750642 | CW94: 0.4611859686 | CX94: 0.5181818237 | CY94: 0.5764283338 | CZ94: 0.6348418082 | DA94: 0.6922178198 | DB94: 0.7472692053 | DC94: 0.7986719851 | DD94: 0.8451170659 | DE94: 0.8853649961 | DF94: 0.9183006225 | DG94: 0.9429843062 | DH94: 0.9586964218 | DI94: 0.9649722026 | DJ94: 0.961624578 | DK94: 0.9487534362 | DL94: 0.9267406733 | DM94: 0.8962313705 | DN94: 0.8581023945 | DO94: 0.8134205528 | DP94: 0.7633930898 | DQ94: 0.7093137236 | DR94: 0.6525075719 | DS94: 0.5942782067 | DT94: 0.5358597138 | DU94: 0.478376092 | DV94: 0.42280964 | DW94: 0.3699792347 | DX94: 0.3205286645 | DY94: 0.2749245061 | DZ94: 0.2334624766 | EA94: 0.1962807813 | EB94: 0.1633787328 | EC94: 0.1346388283 | ED94: 0.1098505356 | EE94: 0.08873421047 | EF94: 0.07096383137 | EG94: 0.0561875475 | EH94: 0.04404535882 | EI94: 0.03418355952 | EJ94: 0.02626585063 | EK94: 0.01998125268 | EL94: 0.01504911666 | EM94: 0.01122164074 | EN94: 0.008284356279 | EO94: 0.006055056925 | EP94: 0.004381620381 | EQ94: 0.003139122912 | ER94: 0.002226583307 | ES94: 0.001563603493 | ET94: 0.001087104692 | EU94: 0.000748295552 | EV94: 0.0005099551856 | EW94: 0.0003440708784 | EX94: 0.0002298374927 | EY94: 0.0001520025555 | EZ94: 9.952632289e-05 | FA94: 6.451817638e-05 | FB94: 4.140790547e-05 | FC94: 2.631125103e-05 | FD94: 1.655224052e-05 | FE94: 1.030929895e-05 | FF94: 6.357092549e-06 | FG94: 3.881012037e-06 | FH94: 2.345786597e-06 | FI94: 1.403747729e-06 | FJ94: 8.316616736e-07 | FK94: 4.878219796e-07 | FL94: 2.832912077e-07 | FM94: 1.628777955e-07 | FN94: 9.271451365e-08 | FO94: 5.225052056e-08 | FP94: 2.915349146e-08 | FQ94: 1.610451245e-08 | FR94: 8.807682364e-09 | FS94: 4.769059731e-09 | FT94: 2.556589111e-09 | FU94: 1.356894753e-09 | FV94: 7.129982214e-10 | FW94: 3.709264346e-10 | FX94: 1.910487405e-10 | FY94: 9.74221316e-11 | FZ94: 4.91844854e-11 | GA94: 2.458417797e-11 | GB94: 1.216578972e-11 | GC94: 5.960490159e-12 | GD94: 2.891217075e-12 | GE94: 1.388469934e-12 | GF94: 6.601601657e-13 | GG94: 3.107557732e-13 | GH94: 1.448258717e-13
A95: 54 | B95: 168 | C95: 60 | D95: 162 | E95: 90 | F95: 192 | CM95: 0.1003713105 | CN95: 0.1244787572 | CO95: 0.1528403232 | CP95: 0.1857965761 | CQ95: 0.2236116987 | CR95: 0.2664455003 | CS95: 0.3143252829 | CT95: 0.3671193662 | CU95: 0.4245143055 | CV95: 0.4859979308 | CW95: 0.5508502686 | CX95: 0.6181441537 | CY95: 0.6867568847 | CZ95: 0.7553936554 | DA95: 0.8226227178 | DB95: 0.8869213722 | DC95: 0.9467309973 | DD95: 1.000518512 | DE95: 1.04684098 | DF95: 1.084409609 | DG95: 1.112149202 | DH95: 1.12924924 | DI95: 1.13520322 | DJ95: 1.129833577 | DK95: 1.113300477 | DL95: 1.086093884 | DM95: 1.04900944 | DN95: 1.003109815 | DO95: 0.9496741542 | DP95: 0.8901389655 | DQ95: 0.8260342626 | DR95: 0.758918895 | DS95: 0.6903188383 | DT95: 0.6216717601 | DU95: 0.5542805119 | DV95: 0.4892773757 | DW95: 0.4276000176 | DX95: 0.3699792347 | DY95: 0.3169378009 | DZ95: 0.2687990849 | EA95: 0.2257036522 | EB95: 0.187631799 | EC95: 0.1544298871 | ED95: 0.1258384384 | EE95: 0.1015201713 | EF95: 0.08108647451 | EG95: 0.06412118657 | EH95: 0.05020092708 | EI95: 0.03891159023 | EJ95: 0.02986092641 | EK95: 0.02268739487 | EL95: 0.01706565799 | EM95: 0.01270920839 | EN95: 0.00937067809 | EO95: 0.006840385729 | EP95: 0.004943644362 | EQ95: 0.00353729194 | ER95: 0.002505830225 | ES95: 0.001757476139 | ET95: 0.001220349666 | EU95: 0.0008389502179 | EV95: 0.0005710118891 | EW95: 0.0003847788264 | EX95: 0.0002567049455 | EY95: 0.0001695564678 | EZ95: 0.0001108795721 | FA95: 7.178699542e-05 | FB95: 4.601475006e-05 | FC95: 2.9201517e-05 | FD95: 1.834724306e-05 | FE95: 1.141282796e-05 | FF95: 7.02866399e-06 | FG95: 4.285577455e-06 | FH95: 2.587038968e-06 | FI95: 1.546157201e-06 | FJ95: 9.148741984e-07 | FK95: 5.359523345e-07 | FL95: 3.108479514e-07 | FM95: 1.784953502e-07 | FN95: 1.014758879e-07 | FO95: 5.711574792e-08 | FP95: 3.182774951e-08 | FQ95: 1.755953657e-08 | FR95: 9.591294439e-09 | FS95: 5.18678746e-09 | FT95: 2.777005476e-09 | FU95: 1.472014457e-09 | FV95: 7.725106398e-10 | FW95: 4.013783277e-10 | FX95: 2.064716478e-10 | FY95: 1.051535608e-10 | FZ95: 5.302059521e-11 | GA95: 2.646806966e-11 | GB95: 1.30814834e-11 | GC95: 6.401013971e-12 | GD95: 3.100970329e-12 | GE95: 1.487316863e-12 | GF95: 7.062629888e-13 | GG95: 3.320369755e-13 | GH95: 1.545480415e-13 | GI95: 7.121928634e-14
A96: 54 | B96: 168 | C96: 60 | D96: 162 | E96: 90 | F96: 192 | CM96: 0.120205135 | CN96: 0.148887686 | CO96: 0.1825793241 | CP96: 0.2216672151 | CQ96: 0.2664455003 | CR96: 0.3170825709 | CS96: 0.3735884203 | CT96: 0.4357842171 | CU96: 0.5032764899 | CV96: 0.5754384062 | CW96: 0.6514005197 | CX96: 0.7300530375 | CY96: 0.810061103 | CZ96: 0.8898938407 | DA96: 0.9678669897 | DB96: 1.04219794 | DC96: 1.111070963 | DD96: 1.172709492 | DE96: 1.225451529 | DF96: 1.267823773 | DG96: 1.298609869 | DH96: 1.316908384 | DI96: 1.322176644 | DJ96: 1.314257472 | DK96: 1.293386977 | DL96: 1.260182858 | DM96: 1.215614039 | DN96: 1.160953704 | DO96: 1.097718923 | DP96: 1.027600852 | DQ96: 0.9523899759 | DR96: 0.8739009891 | DS96: 0.7939016439 | DT96: 0.7140493476 | DU96: 0.6358384803 | DV96: 0.5605604373 | DW96: 0.4892773757 | DX96: 0.42280964 | DY96: 0.3617359584 | DZ96: 0.3064047817 | EA96: 0.2569546317 | EB96: 0.2133410446 | EC96: 0.1753676327 | ED96: 0.1427189089 | EE96: 0.1149928001 | EF96: 0.09173114975 | EG96: 0.07244694555 | EH96: 0.05664745171 | EI96: 0.04385284067 | EJ96: 0.0336102807 | EK96: 0.02550372419 | EL96: 0.01915985076 | EM96: 0.01425074916 | EN96: 0.01049398224 | EO96: 0.007650679504 | EP96: 0.005522258708 | EQ96: 0.003946304052 | ER96: 0.00279203844 | ES96: 0.001955731804 | ET96: 0.001356295305 | EU96: 0.000931228532 | EV96: 0.0006330169579 | EW96: 0.000426021454 | EX96: 0.0002838602959 | EY96: 0.0001872556314 | EZ96: 0.0001222987952 | FA96: 7.907997532e-05 | FB96: 5.062533695e-05 | FC96: 3.208679825e-05 | FD96: 2.013454851e-05 | FE96: 1.250876584e-05 | FF96: 7.693856558e-06 | FG96: 4.685228353e-06 | FH96: 2.824714085e-06 | FI96: 1.686068767e-06 | FJ96: 9.963986411e-07 | FK96: 5.829724412e-07 | FL96: 3.376913827e-07 | FM96: 1.936640398e-07 | FN96: 1.099600809e-07 | FO96: 6.181276486e-08 | FP96: 3.440157641e-08 | FQ96: 1.895551435e-08 | FR96: 1.034069808e-08 | FS96: 5.584974541e-09 | FT96: 2.98641111e-09 | FU96: 1.58101155e-09 | FV96: 8.28662237e-10 | FW96: 4.300085674e-10 | FX96: 2.209193334e-10 | FY96: 1.123692274e-10 | FZ96: 5.658718904e-11 | GA96: 2.821278129e-11 | GB96: 1.392613941e-11 | GC96: 6.805697319e-12 | GD96: 3.292847188e-12 | GE96: 1.577348215e-12 | GF96: 7.480672394e-13 | GG96: 3.512454831e-13 | GH96: 1.632818512e-13 | GI96: 7.514881525e-14
A97: 54 | B97: 168 | C97: 59 | D97: 163 | E97: 89 | F97: 193 | CL97: 0.1140682256 | CM97: 0.1425258046 | CN97: 0.1763109851 | CO97: 0.2159346305 | CP97: 0.2618317322 | CQ97: 0.3143252829 | CR97: 0.3735884203 | CS97: 0.4396069532 | CT97: 0.512144785 | CU97: 0.5907150173 | CV97: 0.6745595946 | CW97: 0.7626401951 | CX97: 0.8536426663 | CY97: 0.9459966343 | CZ97: 1.037911022 | DA97: 1.127425133 | DB97: 1.212473779 | DC97: 1.290963768 | DD97: 1.360857989 | DE97: 1.420262486 | DF97: 1.467511388 | DG97: 1.501244395 | DH97: 1.520471813 | DI97: 1.524622774 | DJ97: 1.513573403 | DK97: 1.487652948 | DL97: 1.447627492 | DM97: 1.394662336 | DN97: 1.330265653 | DO97: 1.256217209 | DP97: 1.174486838 | DQ97: 1.087147885 | DR97: 0.9962908717 | DS97: 0.9039423474 | DT97: 0.8119931564 | DU97: 0.7221394329 | DV97: 0.6358384803 | DW97: 0.5542805119 | DX97: 0.478376092 | DY97: 0.4087581067 | DZ97: 0.3457963036 | EA97: 0.2896218806 | EB97: 0.2401593211 | EC97: 0.1971626198 | ED97: 0.1602532214 | EE97: 0.1289573238 | EF97: 0.1027406504 | EG97: 0.0810392969 | EH97: 0.06328577071 | EI97: 0.04892981093 | EJ97: 0.03745398713 | EK97: 0.02838439432 | EL97: 0.02129699168 | EM97: 0.015820272 | EN97: 0.011635008 | EO97: 0.00847181535 | EP97: 0.006107216724 | EQ97: 0.004358802963 | ER97: 0.003079982141 | ES97: 0.002154697036 | ET97: 0.001492386409 | EU97: 0.001023371721 | EV97: 0.000694772457 | EW97: 0.0004669913433 | EX97: 0.0003107650154 | EY97: 0.0002047446059 | EZ97: 0.0001335518386 | FA97: 8.624706575e-05 | FB97: 5.514369219e-05 | FC97: 3.49063476e-05 | FD97: 2.187610665e-05 | FE97: 1.357352697e-05 | FF97: 8.338202604e-06 | FG97: 5.071182406e-06 | FH97: 3.05353622e-06 | FI97: 1.820346129e-06 | FJ97: 1.074389929e-06 | FK97: 6.278081336e-07 | FL97: 3.632026448e-07 | FM97: 2.080310313e-07 | FN97: 1.179680218e-07 | FO97: 6.623042268e-08 | FP97: 3.681355954e-08 | FQ97: 2.025886695e-08 | FR97: 1.103772444e-08 | FS97: 5.953892629e-09 | FT97: 3.179651366e-09 | FU97: 1.681183292e-09 | FV97: 8.800506774e-10 | FW97: 4.560971442e-10 | FX97: 2.340259838e-10 | FY97: 1.188852188e-10 | FZ97: 5.979277344e-11 | GA97: 2.977327374e-11 | GB97: 1.467781933e-11 | GC97: 7.1639664e-12 | GD97: 3.461804977e-12 | GE97: 1.656184481e-12 | GF97: 7.844619422e-13 | GG97: 3.67868077e-13 | GH97: 1.7079273e-13 | GI97: 7.85061562e-14 | GJ97: 3.572688095e-14
A98: 53 | B98: 169 | C98: 58 | D98: 164 | E98: 88 | F98: 194 | CK98: 0.1063702646 | CL98: 0.1340732419 | CM98: 0.167309668 | CN98: 0.2067078734 | CO98: 0.2528424883 | CP98: 0.3061964475 | CQ98: 0.3671193662 | CR98: 0.4357842171 | CS98: 0.512144785 | CT98: 0.5958968195 | CU98: 0.6864460896 | CV98: 0.7828865977 | CW98: 0.883992004 | CX98: 0.9882228012 | CY98: 1.093750989 | CZ98: 1.198502937 | DA98: 1.300219878 | DB98: 1.396534136 | DC98: 1.485057827 | DD98: 1.563479638 | DE98: 1.62966429 | DF98: 1.681748791 | DG98: 1.718229433 | DH98: 1.738033885 | DI98: 1.740573551 | DJ98: 1.725772624 | DK98: 1.694071851 | DL98: 1.646406728 | DM98: 1.584161642 | DN98: 1.509103094 | DO98: 1.423296499 | DP98: 1.329012017 | DQ98: 1.228625401 | DR98: 1.124519852 | DS98: 1.018994451 | DT98: 0.9141838954 | DU98: 0.8119931564 | DV98: 0.7140493476 | DW98: 0.6216717601 | DX98: 0.5358597138 | DY98: 0.4572967671 | DZ98: 0.3863689428 | EA98: 0.3231940399 | EB98: 0.2676588035 | EC98: 0.2194607081 | ED98: 0.1781513326 | EE98: 0.1431787049 | EF98: 0.113926522 | EG98: 0.08974872843 | EH98: 0.06999851459 | EI98: 0.0540513318 | EJ98: 0.04132197109 | EK98: 0.03127610878 | EL98: 0.02343696955 | EM98: 0.01738790471 | EN98: 0.01277174099 | EO98: 0.009287739133 | EP98: 0.006686932975 | EQ98: 0.004766515249 | ER98: 0.003363814656 | ES98: 0.002350283142 | ET98: 0.001625793443 | EU98: 0.001113442014 | EV98: 0.0007549651374 | EW98: 0.0005068077472 | EX98: 0.0003368345624 | EY98: 0.0002216394715 | EZ98: 0.0001443891697 | FA98: 9.312776652e-05 | FB98: 5.94676547e-05 | FC98: 3.759581378e-05 | FD98: 2.353180407e-05 | FE98: 1.458236662e-05 | FF98: 8.946596631e-06 | FG98: 5.434314347e-06 | FH98: 3.268050141e-06 | FI98: 1.945762016e-06 | FJ98: 1.146958716e-06 | FK98: 6.693648553e-07 | FL98: 3.867542382e-07 | FM98: 2.212403374e-07 | FN98: 1.252998635e-07 | FO98: 7.025770169e-08 | FP98: 3.900266968e-08 | FQ98: 2.143639673e-08 | FR98: 1.166450444e-08 | FS98: 6.284024278e-09 | FT98: 3.351710278e-09 | FU98: 1.769913913e-09 | FV98: 9.253262238e-10 | FW98: 4.789549352e-10 | FX98: 2.454434745e-10 | FY98: 1.245275326e-10 | FZ98: 6.255129867e-11 | GA98: 3.110744442e-11 | GB98: 1.531614228e-11 | GC98: 7.466060513e-12 | GD98: 3.603219127e-12 | GE98: 1.721658052e-12 | GF98: 8.144420287e-13 | GG98: 3.814437569e-13 | GH98: 1.768715169e-13 | GI98: 8.119744152e-14 | GJ98: 3.690488402e-14 | GK98: 1.660666404e-14
A99: 53 | B99: 169 | C99: 58 | D99: 164 | E99: 88 | F99: 194 | CK99: 0.1239380358 | CL99: 0.1560186771 | CM99: 0.1944489617 | CN99: 0.2399339596 | CO99: 0.2931128572 | CP99: 0.3545153725 | CQ99: 0.4245143055 | CR99: 0.5032764899 | CS99: 0.5907150173 | CT99: 0.6864460896 | CU99: 0.7897541454 | CV99: 0.8995689325 | CW99: 1.014457921 | CX99: 1.132636836 | CY99: 1.252000151 | CZ99: 1.370172151 | DA99: 1.484577746 | DB99: 1.592530692 | DC99: 1.691335371 | DD99: 1.778396958 | DE99: 1.851333831 | DF99: 1.908085465 | DG99: 1.947009024 | DH99: 1.966958335 | DI99: 1.967339954 | DJ99: 1.948142489 | DK99: 1.909937167 | DL99: 1.853849598 | DM99: 1.781504687 | DN99: 1.694948459 | DO99: 1.59655204 | DP99: 1.488904068 | DQ99: 1.374698344 | DR99: 1.256623443 | DS99: 1.137260514 | DT99: 1.018994451 | DU99: 0.9039423474 | DV99: 0.7939016439 | DW99: 0.6903188383 | DX99: 0.5942782067 | DY99: 0.5065087339 | DZ99: 0.4274065052 | EA99: 0.3570691852 | EB99: 0.2953389131 | EC99: 0.2418499641 | ED99: 0.1960778054 | EE99: 0.1573866541 | EF99: 0.1250732466 | EG99: 0.09840518884 | EH99: 0.07665290704 | EI99: 0.05911481245 | EJ99: 0.04513579095 | EK99: 0.03411951536 | EL99: 0.02553534356 | EM99: 0.01892071797 | EN99: 0.01388003541 | EO99: 0.01008092982 | EP99: 0.007248825809 | EQ99: 0.005160500105 | ER99: 0.003637248504 | ES99: 0.002538114509 | ET99: 0.001753502966 | EU99: 0.001199385663 | EV99: 0.0008122098583 | EW99: 0.0005445461791 | EX99: 0.0003614583226 | EY99: 0.0002375411189 | EZ99: 0.0001545526379 | FA99: 9.955683954e-05 | FB99: 6.349255968e-05 | FC99: 4.0089591e-05 | FD99: 2.506094656e-05 | FE99: 1.551030616e-05 | FF99: 9.503866469e-06 | FG99: 5.765504775e-06 | FH99: 3.462831837e-06 | FI99: 2.059124104e-06 | FJ99: 1.212245829e-06 | FK99: 7.06571197e-07 | FL99: 4.077352094e-07 | FM99: 2.329472337e-07 | FN99: 1.317631456e-07 | FO99: 7.378828322e-08 | FP99: 4.091079444e-08 | FQ99: 2.245667611e-08 | FR99: 1.220422182e-08 | FS99: 6.566466989e-09 | FT99: 3.497924997e-09 | FU99: 1.844787197e-09 | FV99: 9.63250214e-10 | FW99: 4.979537502e-10 | FX99: 2.548566417e-10 | FY99: 1.291397554e-10 | FZ99: 6.47859779e-11 | GA99: 3.217800631e-11 | GB99: 1.582319943e-11 | GC99: 7.703472316e-12 | GD99: 3.713092819e-12 | GE99: 1.771911964e-12 | GF99: 8.37154335e-13 | GG99: 3.915849352e-13 | GH99: 1.81344119e-13 | GI99: 8.314536255e-14 | GJ99: 3.774241121e-14 | GK99: 1.696204878e-14
A100: 53 | B100: 169 | C100: 57 | D100: 165 | E100: 87 | F100: 195 | CJ100: 0.1125851201 | CK100: 0.1429703675 | CL100: 0.1797496803 | CM100: 0.2237418759 | CN100: 0.2757296557 | CO100: 0.3364160732 | CP100: 0.4063750642 | CQ100: 0.4859979308 | CR100: 0.5754384062 | CS100: 0.6745595946 | CT100: 0.7828865977 | CU100: 0.8995689325 | CV100: 1.023356832 | CW100: 1.152595165 | CX100: 1.285237973 | CY100: 1.418885528 | CZ100: 1.550844395 | DA100: 1.678209386 | DB100: 1.797964538 | DC100: 1.907098625 | DD100: 2.002729244 | DE100: 2.082228474 | DF100: 2.143342511 | DG100: 2.184297707 | DH100: 2.203886055 | DI100: 2.20152438 | DJ100: 2.177283176 | DK100: 2.131883113 | DL100: 2.066659445 | DM100: 1.983496783 | DN100: 1.884738658 | DO100: 1.773077962 | DP100: 1.651435365 | DQ100: 1.522833368 | DR100: 1.390273495 | DS100: 1.256623443 | DT100: 1.124519852 | DU100: 0.9962908717 | DV100: 0.8739009891 | DW100: 0.758918895 | DX100: 0.6525075719 | DY100: 0.555434435 | DZ100: 0.4680983404 | EA100: 0.390569618 | EB100: 0.3226390035 | EC100: 0.2638714075 | ED100: 0.2136608023 | EE100: 0.1712830671 | EF100: 0.1359443187 | EG100: 0.1068229948 | EH100: 0.08310468182 | EI100: 0.06400933099 | EJ100: 0.0488110489 | EK100: 0.03685106535 | EL100: 0.02754476111 | EM100: 0.0203837943 | EN100: 0.01493441106 | EO100: 0.01083298718 | EP100: 0.007779745899 | EQ100: 0.005531458403 | ER100: 0.003893775825 | ES100: 0.00271368412 | ET100: 0.001872426148 | EU100: 0.001279107827 | EV100: 0.0008651007149 | EW100: 0.0005792729387 | EX100: 0.0003840226721 | EY100: 0.0002520504894 | EZ100: 0.0001637854356 | FA100: 0.0001053707498 | FB100: 6.711535875e-05 | FC100: 4.232342608e-05 | FD100: 2.64238912e-05 | FE100: 1.633314372e-05 | FF100: 9.995392429e-06 | FG100: 6.056015402e-06 | FH100: 3.632713497e-06 | FI100: 2.157408469e-06 | FJ100: 1.268500568e-06 | FK100: 7.384243481e-07 | FL100: 4.255772516e-07 | FM100: 2.428330854e-07 | FN100: 1.371811267e-07 | FO100: 7.67251822e-08 | FP100: 4.248528603e-08 | FQ100: 2.329143356e-08 | FR100: 1.264185917e-08 | FS100: 6.793330308e-09 | FT100: 3.614194913e-09 | FU100: 1.903695416e-09 | FV100: 9.92751183e-10 | FW100: 5.125549328e-10 | FX100: 2.619976989e-10 | FY100: 1.325902506e-10 | FZ100: 6.64328312e-11 | GA100: 3.295421618e-11 | GB100: 1.618438744e-11 | GC100: 7.869345295e-12 | GD100: 3.788244422e-12 | GE100: 1.805487301e-12 | GF100: 8.519378999e-13 | GG100: 3.979958055e-13 | GH100: 1.840797884e-13 | GI100: 8.429285677e-14 | GJ100: 3.821487949e-14 | GK100: 1.715265179e-14 | GL100: 7.622318698e-15
A101: 53 | B101: 169 | C101: 57 | D101: 165 | E101: 87 | F101: 195 | CJ101: 0.1287447014 | CK101: 0.1632843317 | CL101: 0.2050296722 | CM101: 0.2548859969 | CN101: 0.3137128376 | CO101: 0.382274792 | CP101: 0.4611859686 | CQ101: 0.5508502686 | CR101: 0.6514005197 | CS101: 0.7626401951 | CT101: 0.883992004 | CU101: 1.014457921 | CV101: 1.152595165 | CW101: 1.29651219 | CX101: 1.443887879 | CY101: 1.592015868 | CZ101: 1.737874332 | DA101: 1.87821974 | DB101: 2.009701181 | DC101: 2.128990041 | DD101: 2.23291827 | DE101: 2.318617342 | DF101: 2.383649455 | DG101: 2.426122639 | DH101: 2.444782164 | DI101: 2.439072119 | DJ101: 2.40916292 | DK101: 2.355942864 | DL101: 2.280974303 | DM101: 2.186417459 | DN101: 2.074927066 | DO101: 1.949528732 | DP101: 1.813483046 | DQ101: 1.67014591 | DR101: 1.522833368 | DS101: 1.374698344 | DT101: 1.228625401 | DU101: 1.087147885 | DV101: 0.9523899759 | DW101: 0.8260342626 | DX101: 0.7093137236 | DY101: 0.6030255573 | DZ101: 0.5075632038 | EA101: 0.4229622392 | EB101: 0.3489555566 | EC101: 0.2850333618 | ED101: 0.2305039262 | EE101: 0.1845516849 | EF101: 0.1462900394 | EG101: 0.1148070491 | EH101: 0.08920298909 | EI101: 0.06861946304 | EJ101: 0.05226034572 | EK101: 0.03940526902 | EL101: 0.02941666064 | EM101: 0.02174149976 | EN101: 0.01590899271 | EO101: 0.01152531813 | EP101: 0.008266472326 | EQ101: 0.005870087374 | ER101: 0.00412691924 | ES101: 0.002872529054 | ET101: 0.001979520232 | EU101: 0.001350555746 | EV101: 0.0009122673682 | EW101: 0.0006100828559 | EX101: 0.0004039359964 | EY101: 0.0002647849809 | EZ101: 0.0001718427419 | FA101: 0.0001104144961 | FB101: 7.023895655e-05 | FC101: 4.423714218e-05 | FD101: 2.758373867e-05 | FE101: 1.702849443e-05 | FF101: 1.040773986e-05 | FG101: 6.297869554e-06 | FH101: 3.773009933e-06 | FI101: 2.237892863e-06 | FJ101: 1.31415832e-06 | FK101: 7.640348034e-07 | FL101: 4.397801776e-07 | FM101: 2.506197046e-07 | FN101: 1.414007888e-07 | FO101: 7.89851607e-08 | FP101: 4.36813684e-08 | FQ101: 2.391685217e-08 | FR101: 1.296489066e-08 | FS101: 6.958101392e-09 | FT101: 3.697172403e-09 | FU101: 1.944937758e-09 | FV101: 1.012975094e-09 | FW101: 5.223347056e-10 | FX101: 2.666588815e-10 | FY101: 1.347783945e-10 | FZ101: 6.744372664e-11 | GA101: 3.341334042e-11 | GB101: 1.638910684e-11 | GC101: 7.958802594e-12 | GD101: 3.826460498e-12 | GE101: 1.821393536e-12 | GF101: 8.583559121e-13 | GG101: 4.004866741e-13 | GH101: 1.849974712e-13 | GI101: 8.460588436e-14 | GJ101: 3.830825785e-14 | GK101: 1.717280703e-14 | GL101: 7.621618961e-15
A102: 53 | B102: 169 | C102: 57 | D102: 165 | E102: 87 | F102: 195 | CJ102: 0.1457588013 | CK102: 0.1846290555 | CL102: 0.2315380456 | CM102: 0.2874760927 | CN102: 0.3533769018 | CO102: 0.4300625636 | CP102: 0.5181818237 | CQ102: 0.6181441537 | CR102: 0.7300530375 | CS102: 0.8536426663 | CT102: 0.9882228012 | CU102: 1.132636836 | CV102: 1.285237973 | CW102: 1.443887879 | CX102: 1.605981166 | CY102: 1.768497623 | CZ102: 1.928082301 | DA102: 2.081151569 | DB102: 2.224021128 | DC102: 2.353050034 | DD102: 2.464793103 | DE102: 2.556152932 | DF102: 2.62452221 | DG102: 2.667907243 | DH102: 2.685024514 | DI102: 2.675363757 | DJ102: 2.639213225 | DK102: 2.577645406 | DL102: 2.492464166 | DM102: 2.386116963 | DN102: 2.261578091 | DO102: 2.122210718 | DP102: 1.971616636 | DQ102: 1.813483046 | DR102: 1.651435365 | DS102: 1.488904068 | DT102: 1.329012017 | DU102: 1.174486838 | DV102: 1.027600852 | DW102: 0.8901389655 | DX102: 0.7633930898 | DY102: 0.6481800971 | DZ102: 0.5448791802 | EA102: 0.4534838148 | EB102: 0.373663282 | EC102: 0.304828881 | ED102: 0.2462004571 | EE102: 0.1968695974 | EF102: 0.1558567107 | EG102: 0.12216011 | EH102: 0.09479607999 | EI102: 0.07282967932 | EJ102: 0.05539664609 | EK102: 0.04171724318 | EL102: 0.03110317941 | EM102: 0.02295889729 | EN102: 0.01677854589 | EO102: 0.01213988772 | EP102: 0.008696251178 | EQ102: 0.006167462757 | ER102: 0.004330500082 | ES102: 0.003010416751 | ET102: 0.002071916494 | EU102: 0.001411805693 | EV102: 0.0009524335059 | EW102: 0.0006361381721 | EX102: 0.0004206542715 | EY102: 0.0002753950977 | EZ102: 0.0001785024421 | FA102: 0.0001145484387 | FB102: 7.277651277e-05 | FC102: 4.577732006e-05 | FD102: 2.850798633e-05 | FE102: 1.757679853e-05 | FF102: 1.072926725e-05 | FG102: 6.484214995e-06 | FH102: 3.879732694e-06 | FI102: 2.298281696e-06 | FJ102: 1.347912706e-06 | FK102: 7.826675555e-07 | FL102: 4.499351786e-07 | FM102: 2.56082337e-07 | FN102: 1.443000077e-07 | FO102: 8.050264297e-08 | FP102: 4.446425077e-08 | FQ102: 2.431469767e-08 | FR102: 1.316387725e-08 | FS102: 7.055955441e-09 | FT102: 3.744422879e-09 | FU102: 1.967301875e-09 | FV102: 1.023326397e-09 | FW102: 5.270045965e-10 | FX102: 2.68702486e-10 | FY102: 1.356394503e-10 | FZ102: 6.778871674e-11 | GA102: 3.354176096e-11 | GB102: 1.643127869e-11 | GC102: 7.969185184e-12 | GD102: 3.82660409e-12 | GE102: 1.819157071e-12 | GF102: 8.562171485e-13 | GG102: 3.989832831e-13 | GH102: 1.840697968e-13 | GI102: 8.407510554e-14 | GJ102: 3.801975944e-14 | GK102: 1.702191288e-14 | GL102: 7.545089874e-15
A103: 52 | B103: 170 | C103: 56 | D103: 166 | E103: 86 | F103: 196 | CI103: 0.1278612517 | CJ103: 0.1633793889 | CK103: 0.2066867508 | CL103: 0.2588719911 | CM103: 0.3210070314 | CN103: 0.3940951423 | CO103: 0.4790101028 | CP103: 0.5764283338 | CQ103: 0.6867568847 | CR103: 0.810061103 | CS103: 0.9459966343 | CT103: 1.093750989 | CU103: 1.252000151 | CV103: 1.418885528 | CW103: 1.592015868 | CX103: 1.768497623 | CY103: 1.944995602 | CZ103: 2.117823789 | DA103: 2.283063947 | DB103: 2.436707415 | DC103: 2.574813331 | DD103: 2.69367483 | DE103: 2.78998355 | DF103: 2.860982309 | DG103: 2.904596148 | DH103: 2.919533058 | DI103: 2.905347552 | DJ103: 2.862462742 | DK103: 2.792149373 | DL103: 2.69646327 | DM103: 2.578145507 | DN103: 2.440492042 | DO103: 2.287201473 | DP103: 2.122210718 | DQ103: 1.949528732 | DR103: 1.773077962 | DS103: 1.59655204 | DT103: 1.423296499 | DU103: 1.256217209 | DV103: 1.097718923 | DW103: 0.9496741542 | DX103: 0.8134205528 | DY103: 0.6897833698 | DZ103: 0.5791183855 | EA103: 0.4813700229 | EB103: 0.3961391678 | EC103: 0.3227554495 | ED103: 0.260349314 | EE103: 0.2079200385 | EF103: 0.1643967816 | EG103: 0.1286907496 | EH103: 0.0997374833 | EI103: 0.07652908754 | EJ103: 0.0581368799 | EK103: 0.04372541706 | EL103: 0.0325591648 | EM103: 0.02400322558 | EN103: 0.01751955264 | EO103: 0.01265999323 | EP103: 0.009057346644 | EQ103: 0.006415426899 | ER103: 0.004498908778 | ES103: 0.003123531348 | ET103: 0.002147047269 | EU103: 0.001461148639 | EV103: 0.0009844739869 | EW103: 0.0006567062469 | EX103: 0.0004337056752 | EY103: 0.0002835803393 | EZ103: 0.0001835752743 | FA103: 0.0001176547076 | FB103: 7.465544478e-05 | FC103: 4.689977085e-05 | FD103: 2.917003898e-05 | FE103: 1.796223414e-05 | FF103: 1.095067153e-05 | FG103: 6.609646098e-06 | FH103: 3.949778268e-06 | FI103: 2.336814725e-06 | FJ103: 1.368777634e-06 | FK103: 7.937771176e-07 | FL103: 4.557443627e-07 | FM103: 2.590604351e-07 | FN103: 1.457934225e-07 | FO103: 8.123287551e-08 | FP103: 4.481080828e-08 | FQ103: 2.447320137e-08 | FR103: 1.323292481e-08 | FS103: 7.083990356e-09 | FT103: 3.754543435e-09 | FU103: 1.970123084e-09 | FV103: 1.023497159e-09 | FW103: 5.264255732e-10 | FX103: 2.680676277e-10 | FY103: 1.351477496e-10 | FZ103: 6.745751228e-11 | GA103: 3.333564626e-11 | GB103: 1.630964439e-11 | GC103: 7.900183159e-12 | GD103: 3.788670911e-12 | GE103: 1.798844663e-12 | GF103: 8.455854391e-13 | GG103: 3.935304886e-13 | GH103: 1.813244333e-13 | GI103: 8.271634352e-14 | GJ103: 3.735797977e-14 | GK103: 1.670446198e-14 | GL103: 7.395008152e-15 | GM103: 3.241170497e-15
A104: 52 | B104: 170 | C104: 56 | D104: 166 | E104: 86 | F104: 196 | CI104: 0.142071961 | CJ104: 0.1813079308 | CK104: 0.2290774201 | CL104: 0.2865529081 | CM104: 0.3548823599 | CN104: 0.435132037 | CO104: 0.5282199044 | CP104: 0.6348418082 | CQ104: 0.7553936554 | CR104: 0.8898938407 | CS104: 1.037911022 | CT104: 1.198502937 | CU104: 1.370172151 | CV104: 1.550844395 | CW104: 1.737874332 | CX104: 1.928082301 | CY104: 2.117823789 | CZ104: 2.303091178 | DA104: 2.479644927 | DB104: 2.643168904 | DC104: 2.789442357 | DD104: 2.914519206 | DE104: 3.014904132 | DF104: 3.087714573 | DG104: 3.130818153 | DH104: 3.14293641 | DI104: 3.123707788 | DJ104: 3.073705552 | DK104: 2.994409405 | DL104: 2.88813274 | DM104: 2.757910553 | DN104: 2.607355557 | DO104: 2.440492042 | DP104: 2.261578091 | DQ104: 2.074927066 | DR104: 1.884738658 | DS104: 1.694948459 | DT104: 1.509103094 | DU104: 1.330265653 | DV104: 1.160953704 | DW104: 1.003109815 | DX104: 0.8581023945 | DY104: 0.7267529493 | DZ104: 0.6093847014 | EA104: 0.5058867987 | EB104: 0.4157882393 | EC104: 0.3383359223 | ED104: 0.2725718963 | EE104: 0.2174057848 | EF104: 0.1716793938 | EG104: 0.134221566 | EH104: 0.1038923302 | EI104: 0.07961625182 | EJ104: 0.06040557518 | EK104: 0.04537424118 | EL104: 0.03374417242 | EM104: 0.02484535709 | EN104: 0.01811126395 | EO104: 0.01307101556 | EP104: 0.009339571663 | EQ104: 0.006606959446 | ER104: 0.004627360964 | ES104: 0.003208648703 | ET104: 0.002202764248 | EU104: 0.00149716933 | EV104: 0.001007467117 | EW104: 0.0006711937342 | EX104: 0.0004427126811 | EY104: 0.0002891033245 | EZ104: 0.000186913756 | FA104: 0.0001196427809 | FB104: 7.582087431e-05 | FC104: 4.757164097e-05 | FD104: 2.955047949e-05 | FE104: 1.817347538e-05 | FF104: 1.106543514e-05 | FG104: 6.670464268e-06 | FH104: 3.981077961e-06 | FI104: 2.352352265e-06 | FJ104: 1.376135152e-06 | FK104: 7.970340488e-07 | FL104: 4.570352692e-07 | FM104: 2.594654953e-07 | FN104: 1.45836611e-07 | FO104: 8.115411947e-08 | FP104: 4.471071672e-08 | FQ104: 2.43876385e-08 | FR104: 1.31699741e-08 | FS104: 7.041369718e-09 | FT104: 3.72723204e-09 | FU104: 1.953317174e-09 | FV104: 1.013482284e-09 | FW104: 5.206149191e-10 | FX104: 2.647732539e-10 | FY104: 1.333179635e-10 | FZ104: 6.6459992e-11 | GA104: 3.280114118e-11 | GB104: 1.602782816e-11 | GC104: 7.753851096e-12 | GD104: 3.713789559e-12 | GE104: 1.761060112e-12 | GF104: 8.267765024e-13 | GG104: 3.842900368e-13 | GH104: 1.768427175e-13 | GI104: 8.056980088e-14 | GJ104: 3.634247126e-14 | GK104: 1.622981899e-14 | GL104: 7.175793826e-15 | GM104: 3.141110995e-15
A105: 52 | B105: 170 | C105: 55 | D105: 167 | E105: 85 | F105: 197 | CH105: 0.1214041049 | CI105: 0.156291318 | CJ105: 0.1992018608 | CK105: 0.2513674178 | CL105: 0.314037587 | CM105: 0.388428721 | CN105: 0.4756616007 | CO105: 0.5766893173 | CP105: 0.6922178198 | CQ105: 0.8226227178 | CR105: 0.9678669897 | CS105: 1.127425133 | CT105: 1.300219878 | CU105: 1.484577746 | CV105: 1.678209386 | CW105: 1.87821974 | CX105: 2.081151569 | CY105: 2.283063947 | CZ105: 2.479644927 | DA105: 2.666355006 | DB105: 2.838595454 | DC105: 2.991893215 | DD105: 3.122092241 | DE105: 3.225539958 | DF105: 3.299257236 | DG105: 3.341080846 | DH105: 3.349768902 | DI105: 3.325062121 | DJ105: 3.267696672 | DK105: 3.17936774 | DL105: 3.062646315 | DM105: 2.920854905 | DN105: 2.757910553 | DO105: 2.578145507 | DP105: 2.386116963 | DQ105: 2.186417459 | DR105: 1.983496783 | DS105: 1.781504687 | DT105: 1.584161642 | DU105: 1.394662336 | DV105: 1.215614039 | DW105: 1.04900944 | DX105: 0.8962313705 | DY105: 0.758085066 | DZ105: 0.6348524449 | EA105: 0.5263622161 | EB105: 0.4320695616 | EC105: 0.3511395053 | ED105: 0.2825288286 | EE105: 0.2250623762 | EF105: 0.1775007065 | EG105: 0.1385971588 | EH105: 0.1071434494 | EI105: 0.08200379965 | EJ105: 0.0621383022 | EK105: 0.04661673418 | EL105: 0.03462432873 | EM105: 0.02546114527 | EN105: 0.01853666334 | EO105: 0.01336110095 | EP105: 0.009534764776 | EQ105: 0.006736507174 | ER105: 0.004712123073 | ES105: 0.003263288937 | ET105: 0.002237440461 | EU105: 0.001518813684 | EV105: 0.001020738676 | EW105: 0.0006791750052 | EX105: 0.0004474101932 | EY105: 0.0002918012238 | EZ105: 0.0001884193055 | FA105: 0.0001204538661 | FB105: 7.623828954e-05 | FC105: 4.777300934e-05 | FD105: 2.963801476e-05 | FE105: 1.820424517e-05 | FF105: 1.107014468e-05 | FG105: 6.664859104e-06 | FH105: 3.972699394e-06 | FI105: 2.34443119e-06 | FJ105: 1.369765843e-06 | FK105: 7.923411822e-07 | FL105: 4.537693742e-07 | FM105: 2.572854273e-07 | FN105: 1.444282838e-07 | FO105: 8.026872568e-08 | FP105: 4.416696337e-08 | FQ105: 2.40605621e-08 | FR105: 1.297690281e-08 | FS105: 6.929364238e-09 | FT105: 3.663302513e-09 | FU105: 1.917384589e-09 | FV105: 9.935797607e-10 | FW105: 5.097453765e-10 | FX105: 2.589172046e-10 | FY105: 1.302043755e-10 | FZ105: 6.48257132e-11 | GA105: 3.195406271e-11 | GB105: 1.559415757e-11 | GC105: 7.534506437e-12 | GD105: 3.604165735e-12 | GE105: 1.706914446e-12 | GF105: 8.003423712e-13 | GG105: 3.715325946e-13 | GH105: 1.707556515e-13 | GI105: 7.769808368e-14 | GJ105: 3.500278368e-14 | GK105: 1.561176177e-14 | GL105: 6.893794009e-15 | GM105: 3.013850768e-15 | GN105: 1.304494467e-15
A106: 52 | B106: 170 | C106: 55 | D106: 167 | E106: 85 | F106: 197 | CH106: 0.1323935398 | CI106: 0.1702230576 | CJ106: 0.2166840956 | CK106: 0.273081789 | CL106: 0.3407340209 | CM106: 0.4209158815 | CN106: 0.514792465 | CO106: 0.6233415921 | CP106: 0.7472692053 | CQ106: 0.8869213722 | CR106: 1.04219794 | CS106: 1.212473779 | CT106: 1.396534136 | CU106: 1.592530692 | CV106: 1.797964538 | CW106: 2.009701181 | CX106: 2.224021128 | CY106: 2.436707415 | CZ106: 2.643168904 | DA106: 2.838595454 | DB106: 3.018138356 | DC106: 3.177107001 | DD106: 3.311170877 | DE106: 3.416554878 | DF106: 3.490215665 | DG106: 3.52998761 | DH106: 3.534688557 | DI106: 3.504178188 | DJ106: 3.439364982 | DK106: 3.342161281 | DL106: 3.215389558 | DM106: 3.062646315 | DN106: 2.88813274 | DO106: 2.69646327 | DP106: 2.492464166 | DQ106: 2.280974303 | DR106: 2.066659445 | DS106: 1.853849598 | DT106: 1.646406728 | DU106: 1.447627492 | DV106: 1.260182858 | DW106: 1.086093884 | DX106: 0.9267406733 | DY106: 0.7828997149 | DZ106: 0.6548036642 | EA106: 0.5422169906 | EB106: 0.4445209141 | EC106: 0.3608014966 | ED106: 0.2899355822 | EE106: 0.2306703418 | EF106: 0.18169336 | EG106: 0.141691373 | EH106: 0.1093968498 | EI106: 0.08362252538 | EJ106: 0.06328471038 | EK106: 0.04741670484 | EL106: 0.03517393837 | EM106: 0.02583257398 | EN106: 0.01878327947 | EO106: 0.01352172858 | EP106: 0.009637182053 | EQ106: 0.006800251381 | ER106: 0.004750692567 | ES106: 0.003285836437 | ET106: 0.002250049181 | EU106: 0.00152544002 | EV106: 0.001023894749 | EW106: 0.0006804129193 | EX106: 0.0004476585067 | EY106: 0.000291593734 | EZ106: 0.0001880470774 | FA106: 0.0001200637888 | FB106: 7.589524289e-05 | FC106: 4.749786858e-05 | FD106: 2.943003259e-05 | FE106: 1.80536251e-05 | FF106: 1.096465955e-05 | FG106: 6.59299792e-06 | FH106: 3.924892633e-06 | FI106: 2.313287858e-06 | FJ106: 1.349859698e-06 | FK106: 7.798384402e-07 | FL106: 4.46044e-07 | FM106: 2.525851535e-07 | FN106: 1.416103491e-07 | FO106: 7.860301809e-08 | FP106: 4.319569893e-08 | FQ106: 2.350167652e-08 | FR106: 1.265943253e-08 | FS106: 6.751288823e-09 | FT106: 3.564644235e-09 | FU106: 1.863385672e-09 | FV106: 9.643759395e-10 | FW106: 4.941366157e-10 | FX106: 2.506713856e-10 | FY106: 1.258982061e-10 | FZ106: 6.260245683e-11 | GA106: 3.081912243e-11 | GB106: 1.502125484e-11 | GC106: 7.248517889e-12 | GD106: 3.462974322e-12 | GE106: 1.637971657e-12 | GF106: 7.670444807e-13 | GG106: 3.556245802e-13 | GH106: 1.632375425e-13 | GI106: 7.418316871e-14 | GJ106: 3.337703602e-14 | GK106: 1.48678171e-14 | GL106: 6.556977715e-15 | GM106: 2.862973054e-15 | GN106: 1.237621566e-15
A107: 52 | B107: 170 | C107: 55 | D107: 167 | E107: 85 | F107: 197 | CH107: 0.14294115 | CI107: 0.1835519388 | CJ107: 0.2333553357 | CK107: 0.2937200207 | CL107: 0.3660213513 | CM107: 0.4515817112 | CN107: 0.5515988158 | CO107: 0.6670637806 | CP107: 0.7986719851 | CQ107: 0.9467309973 | CR107: 1.111070963 | CS107: 1.290963768 | CT107: 1.485057827 | CU107: 1.691335371 | CV107: 1.907098625 | CW107: 2.128990041 | CX107: 2.353050034 | CY107: 2.574813331 | CZ107: 2.789442357 | DA107: 2.991893215 | DB107: 3.177107001 | DC107: 3.340216749 | DD107: 3.476758399 | DE107: 3.582873136 | DF107: 3.65548835 | DG107: 3.692465386 | DH107: 3.692704168 | DI107: 3.656197569 | DJ107: 3.584031761 | DK107: 3.478332535 | DL107: 3.342161281 | DM107: 3.17936774 | DN107: 2.994409405 | DO107: 2.792149373 | DP107: 2.577645406 | DQ107: 2.355942864 | DR107: 2.131883113 | DS107: 1.909937167 | DT107: 1.694071851 | DU107: 1.487652948 | DV107: 1.293386977 | DW107: 1.113300477 | DX107: 0.9487534362 | DY107: 0.8004816554 | DZ107: 0.6686617194 | EA107: 0.5529916746 | EB107: 0.4527805684 | EC107: 0.3670405297 | ED107: 0.2945759729 | EE107: 0.2340656444 | EF107: 0.1841344639 | EG107: 0.1434133383 | EH107: 0.1105862328 | EI107: 0.08442472163 | EJ107: 0.0638109582 | EK107: 0.04775050294 | EL107: 0.0353767302 | EM107: 0.02594863301 | EN107: 0.01884379337 | EO107: 0.01354812635 | EP107: 0.009643777861 | EQ107: 0.006796294869 | ER107: 0.004741920663 | ES107: 0.003275619207 | ET107: 0.002240214427 | EU107: 0.001516850662 | EV107: 0.001016841158 | EW107: 0.0006748705282 | EX107: 0.0004434502093 | EY107: 0.0002884870487 | EZ107: 0.0001858081813 | FA107: 0.0001184841888 | FB107: 7.480196756e-05 | FC107: 4.675442269e-05 | FD107: 2.893273114e-05 | FE107: 1.772610098e-05 | FF107: 1.075211899e-05 | FG107: 6.457017446e-06 | FH107: 3.839077797e-06 | FI107: 2.2598464e-06 | FJ107: 1.317006702e-06 | FK107: 7.598959042e-07 | FL107: 4.340874976e-07 | FM107: 2.455033975e-07 | FN107: 1.374658403e-07 | FO107: 7.62059937e-08 | FP107: 4.182544065e-08 | FQ107: 2.272735915e-08 | FR107: 1.222684706e-08 | FS107: 6.512339607e-09 | FT107: 3.4341294e-09 | FU107: 1.792888684e-09 | FV107: 9.267168333e-10 | FW107: 4.742396187e-10 | FX107: 2.402733861e-10 | FY107: 1.205231739e-10 | FZ107: 5.985390729e-11 | GA107: 2.942872917e-11 | GB107: 1.432542664e-11 | GC107: 6.90399832e-12 | GD107: 3.294206685e-12 | GE107: 1.556173683e-12 | GF107: 7.278172492e-13 | GG107: 3.370106899e-13 | GH107: 1.544977165e-13 | GI107: 7.012251885e-14 | GJ107: 3.15101163e-14 | GK107: 1.401843588e-14 | GL107: 6.174562176e-15 | GM107: 2.692587542e-15 | GN107: 1.162493548e-15
A108: 52 | B108: 170 | C108: 54 | D108: 168 | E108: 84 | F108: 198 | CG108: 0.1179532862 | CH108: 0.1527934739 | CI108: 0.1959551222 | CJ108: 0.248808659 | CK108: 0.3127745559 | CL108: 0.3892731029 | CM108: 0.4796610268 | CN108: 0.5851558133 | CO108: 0.7067497609 | CP108: 0.8451170659 | CQ108: 1.000518512 | CR108: 1.172709492 | CS108: 1.360857989 | CT108: 1.563479638 | CU108: 1.778396958 | CV108: 2.002729244 | CW108: 2.23291827 | CX108: 2.464793103 | CY108: 2.69367483 | CZ108: 2.914519206 | DA108: 3.122092241 | DB108: 3.311170877 | DC108: 3.476758399 | DD108: 3.614302403 | DE108: 3.719902146 | DF108: 3.790492137 | DG108: 3.823989927 | DH108: 3.819398159 | DI108: 3.776853891 | DJ108: 3.697621807 | DK108: 3.584031761 | DL108: 3.439364982 | DM108: 3.267696672 | DN108: 3.073705552 | DO108: 2.862462742 | DP108: 2.639213225 | DQ108: 2.40916292 | DR108: 2.177283176 | DS108: 1.948142489 | DT108: 1.725772624 | DU108: 1.513573403 | DV108: 1.314257472 | DW108: 1.129833577 | DX108: 0.961624578 | DY108: 0.8103146442 | DZ108: 0.6760189586 | EA108: 0.5583687687 | EB108: 0.4566047417 | EC108: 0.3696721818 | ED108: 0.2963126411 | EE108: 0.2351476503 | EF108: 0.1847515805 | EG108: 0.1437119018 | EH108: 0.1106762323 | EI108: 0.08438651481 | EJ108: 0.06370137263 | EK108: 0.04760818069 | EL108: 0.03522665741 | EM108: 0.02580586025 | EN108: 0.01871639929 | EO108: 0.01343950637 | EP108: 0.009554355317 | EQ108: 0.00672475574 | ER108: 0.004686069178 | ES108: 0.003232942139 | ET108: 0.002208229583 | EU108: 0.001493301737 | EV108: 0.000999788121 | EW108: 0.0006627129078 | EX108: 0.000434910549 | EY108: 0.0002825735511 | EZ108: 0.0001817691315 | FA108: 0.0001157619436 | FB108: 7.299087049e-05 | FC108: 4.556468071e-05 | FD108: 2.816081209e-05 | FE108: 1.723134085e-05 | FF108: 1.043878679e-05 | FG108: 6.260918292e-06 | FH108: 3.717774979e-06 | FI108: 2.185673162e-06 | FJ108: 1.272167786e-06 | FK108: 7.330956184e-07 | FL108: 4.182480344e-07 | FM108: 2.362458829e-07 | FN108: 1.321148524e-07 | FO108: 7.314692848e-08 | FP108: 4.009568154e-08 | FQ108: 2.17598632e-08 | FR108: 1.169154153e-08 | FS108: 6.219342124e-09 | FT108: 3.275474134e-09 | FU108: 1.707894169e-09 | FV108: 8.816674192e-10 | FW108: 4.506150414e-10 | FX108: 2.280151119e-10 | FY108: 1.142295941e-10 | FZ108: 5.665662377e-11 | GA108: 2.782145273e-11 | GB108: 1.352589374e-11 | GC108: 6.510422811e-12 | GD108: 3.102483442e-12 | GE108: 1.463749655e-12 | GF108: 6.837245816e-13 | GG108: 3.161932815e-13 | GH108: 1.447708541e-13 | GI108: 6.562460324e-14 | GJ108: 2.945162757e-14 | GK108: 1.308606172e-14 | GL108: 5.756595103e-15 | GM108: 2.507145039e-15 | GN108: 1.08106122e-15 | GO108: 4.615068736e-16
A109: 52 | B109: 170 | C109: 54 | D109: 168 | E109: 84 | F109: 198 | CG109: 0.1249869074 | CH109: 0.1616997667 | CI109: 0.2071148885 | CJ109: 0.2626457035 | CK109: 0.329751164 | CL109: 0.4098825496 | CM109: 0.5044168386 | CN109: 0.6145776719 | CO109: 0.7413461478 | CP109: 0.8853649961 | CQ109: 1.04684098 | CR109: 1.225451529 | CS109: 1.420262486 | CT109: 1.62966429 | CU109: 1.851333831 | CV109: 2.082228474 | CW109: 2.318617342 | CX109: 2.556152932 | CY109: 2.78998355 | CZ109: 3.014904132 | DA109: 3.225539958 | DB109: 3.416554878 | DC109: 3.582873136 | DD109: 3.719902146 | DE109: 3.823742656 | DF109: 3.89137291 | DG109: 3.920794693 | DH109: 3.911131404 | DI109: 3.862671438 | DJ109: 3.776853891 | DK109: 3.656197569 | DL109: 3.504178188 | DM109: 3.325062121 | DN109: 3.123707788 | DO109: 2.905347552 | DP109: 2.675363757 | DQ109: 2.439072119 | DR109: 2.20152438 | DS109: 1.967339954 | DT109: 1.740573551 | DU109: 1.524622774 | DV109: 1.322176644 | DW109: 1.13520322 | DX109: 0.9649722026 | DY109: 0.8121066127 | DZ109: 0.6766566367 | EA109: 0.5581882624 | EB109: 0.4558795482 | EC109: 0.3686180299 | ED109: 0.2950938057 | EE109: 0.2338840837 | EF109: 0.1835262954 | EG109: 0.1425781527 | EH109: 0.1096641619 | EI109: 0.08350904543 | EJ109: 0.06295922453 | EK109: 0.04699398524 | EL109: 0.03472819706 | EM109: 0.02540851325 | EN109: 0.01840489419 | EO109: 0.01319910403 | EP109: 0.009371576044 | EQ109: 0.006587761542 | ER109: 0.004584797543 | ES109: 0.003159071897 | ET109: 0.002155042864 | EU109: 0.001455490484 | EV109: 0.0009732398506 | EW109: 0.0006442989914 | EX109: 0.0004222912422 | EY109: 0.0002740272506 | EZ109: 0.000176048564 | FA109: 0.0001119768576 | FB109: 7.05149366e-05 | FC109: 4.396337437e-05 | FD109: 2.713675873e-05 | FE109: 1.658372101e-05 | FF109: 1.003374472e-05 | FG109: 6.010369439e-06 | FH109: 3.564481316e-06 | FI109: 2.092900458e-06 | FJ109: 1.216628143e-06 | FK109: 7.002033739e-07 | FL109: 3.98976756e-07 | FM109: 2.250754079e-07 | FN109: 1.257087628e-07 | FO109: 6.951205269e-08 | FP109: 3.805500032e-08 | FQ109: 2.062625591e-08 | FR109: 1.10684327e-08 | FS109: 5.880427646e-09 | FT109: 3.093062873e-09 | FU109: 1.610740729e-09 | FV109: 8.304616618e-10 | FW109: 4.239070027e-10 | FX109: 2.142291915e-10 | FY109: 1.071874063e-10 | FZ109: 5.309650441e-11 | GA109: 2.604025027e-11 | GB109: 1.264391107e-11 | GC109: 6.078196926e-12 | GD109: 2.892844941e-12 | GE109: 1.363115323e-12 | GF109: 6.359121156e-13 | GG109: 2.937099464e-13 | GH109: 1.343065718e-13 | GI109: 6.080410899e-14 | GJ109: 2.725371116e-14 | GK109: 1.209415205e-14 | GL109: 5.313519207e-15 | GM109: 2.31124583e-15 | GN109: 9.953299706e-16 | GO109: 4.243703936e-16
A110: 52 | B110: 170 | C110: 54 | D110: 168 | E110: 84 | F110: 198 | CG110: 0.1311221479 | CH110: 0.1694224808 | CI110: 0.2167320175 | CJ110: 0.274493564 | CK110: 0.3441900518 | CL110: 0.4272888068 | CM110: 0.525172255 | CN110: 0.6390562508 | CO110: 0.7698984678 | CP110: 0.9183006225 | CQ110: 1.084409609 | CR110: 1.267823773 | CS110: 1.467511388 | CT110: 1.681748791 | CU110: 1.908085465 | CV110: 2.143342511 | CW110: 2.383649455 | CX110: 2.62452221 | CY110: 2.860982309 | CZ110: 3.087714573 | DA110: 3.299257236 | DB110: 3.490215665 | DC110: 3.65548835 | DD110: 3.790492137 | DE110: 3.89137291 | DF110: 3.955188237 | DG110: 3.980049917 | DH110: 3.965216782 | DI110: 3.911131404 | DJ110: 3.819398159 | DK110: 3.692704168 | DL110: 3.534688557 | DM110: 3.349768902 | DN110: 3.14293641 | DO110: 2.919533058 | DP110: 2.685024514 | DQ110: 2.444782164 | DR110: 2.203886055 | DS110: 1.966958335 | DT110: 1.738033885 | DU110: 1.520471813 | DV110: 1.316908384 | DW110: 1.12924924 | DX110: 0.9586964218 | DY110: 0.8058040784 | DZ110: 0.6705557193 | EA110: 0.5524555439 | EB110: 0.4506266335 | EC110: 0.3639095324 | ED110: 0.2909558291 | EE110: 0.2303126266 | EF110: 0.1804951303 | EG110: 0.1400458634 | EH110: 0.1075801478 | EI110: 0.08181841147 | EJ110: 0.06160656649 | EK110: 0.04592614809 | EL110: 0.03389612823 | EM110: 0.02476835828 | EN110: 0.01791848979 | EO110: 0.01283401792 | EP110: 0.009100828575 | EQ110: 0.006389344161 | ER110: 0.004441080907 | ES110: 0.00305617447 | ET110: 0.002082210619 | EU110: 0.001404520963 | EV110: 0.0009379697871 | EW110: 0.0006201639663 | EX110: 0.0004059581483 | EY110: 0.0002630952773 | EZ110: 0.0001688114487 | FA110: 0.0001072377755 | FB110: 6.744515415e-05 | FC110: 4.199627412e-05 | FD110: 2.588974823e-05 | FE110: 1.580163215e-05 | FF110: 9.548455387e-06 | FG110: 5.712436089e-06 | FH110: 3.383503579e-06 | FI110: 1.984124782e-06 | FJ110: 1.151936071e-06 | FK110: 6.621323845e-07 | FL110: 3.768064569e-07 | FM110: 2.122994643e-07 | FN110: 1.184231245e-07 | FO110: 6.540051793e-08 | FP110: 3.575879826e-08 | FQ110: 1.935716259e-08 | FR110: 1.037426974e-08 | FS110: 5.504659102e-09 | FT110: 2.891747554e-09 | FU110: 1.503998421e-09 | FV110: 7.744465313e-10 | FW110: 3.948140077e-10 | FX110: 1.992740382e-10 | FY110: 9.957858387e-11 | FZ110: 4.926497028e-11 | GA110: 2.413056883e-11 | GB110: 1.170183444e-11 | GC110: 5.61820257e-12 | GD110: 2.670532663e-12 | GE110: 1.25676897e-12 | GF110: 5.855581901e-13 | GG110: 2.701106608e-13 | GH110: 1.233588881e-13 | GI110: 5.577713745e-14 | GJ110: 2.496887948e-14 | GK110: 1.106621082e-14 | GL110: 4.855745104e-15 | GM110: 2.109453117e-15 | GN110: 9.072791476e-16 | GO110: 3.863394315e-16
A111: 52 | B111: 170 | C111: 54 | D111: 168 | E111: 84 | F111: 198 | CG111: 0.1361898189 | CH111: 0.1757477345 | CI111: 0.2245390513 | CJ111: 0.284021415 | CK111: 0.3556864698 | CL111: 0.4410021012 | CM111: 0.5413411329 | CN111: 0.6578978263 | CO111: 0.7915947963 | CP111: 0.9429843062 | CQ111: 1.112149202 | CR111: 1.298609869 | CS111: 1.501244395 | CT111: 1.718229433 | CU111: 1.947009024 | CV111: 2.184297707 | CW111: 2.426122639 | CX111: 2.667907243 | CY111: 2.904596148 | CZ111: 3.130818153 | DA111: 3.341080846 | DB111: 3.52998761 | DC111: 3.692465386 | DD111: 3.823989927 | DE111: 3.920794693 | DF111: 3.980049917 | DG111: 4 | DH111: 3.980049917 | DI111: 3.920794693 | DJ111: 3.823989927 | DK111: 3.692465386 | DL111: 3.52998761 | DM111: 3.341080846 | DN111: 3.130818153 | DO111: 2.904596148 | DP111: 2.667907243 | DQ111: 2.426122639 | DR111: 2.184297707 | DS111: 1.947009024 | DT111: 1.718229433 | DU111: 1.501244395 | DV111: 1.298609869 | DW111: 1.112149202 | DX111: 0.9429843062 | DY111: 0.7915947963 | DZ111: 0.6578978263 | EA111: 0.5413411329 | EB111: 0.4410021012 | EC111: 0.3556864698 | ED111: 0.284021415 | EE111: 0.2245390513 | EF111: 0.1757477345 | EG111: 0.1361898189 | EH111: 0.1044856394 | EI111: 0.07936437898 | EJ111: 0.05968314428 | EK111: 0.04443598615 | EL111: 0.03275480406 | EM111: 0.02390409158 | EN111: 0.01727136003 | EO111: 0.01235486163 | EP111: 0.008749964473 | EQ111: 0.006135242717 | ER111: 0.004259064947 | ES111: 0.002927209676 | ET111: 0.001991821686 | EU111: 0.001341850512 | EV111: 0.0008949831749 | EW111: 0.0005909934409 | EX111: 0.0003863736549 | EY111: 0.0002500860151 | EZ111: 0.0001602611896 | FA111: 0.0001016773861 | FB111: 6.386713559e-05 | FC111: 3.971801722e-05 | FD111: 2.445427187e-05 | FE111: 1.490661269e-05 | FF111: 8.996223868e-06 | FG111: 5.375249111e-06 | FH111: 3.179757446e-06 | FI111: 1.862286286e-06 | FJ111: 1.079831401e-06 | FK111: 6.199012543e-07 | FL111: 3.523271679e-07 | FM111: 1.982562128e-07 | FN111: 1.104496983e-07 | FO111: 6.091991898e-08 | FP111: 3.326680983e-08 | FQ111: 1.798539785e-08 | FR111: 9.626889745e-09 | FS111: 5.101630518e-09 | FT111: 2.676634437e-09 | FU111: 1.390356512e-09 | FV111: 7.150235485e-10 | FW111: 3.640588306e-10 | FX111: 1.835184995e-10 | FY111: 9.158939383e-11 | FZ111: 4.52551048e-11 | GA111: 2.213844029e-11 | GB111: 1.072219055e-11 | GC111: 5.141348901e-12 | GD111: 2.440774671e-12 | GE111: 1.147190004e-12 | GF111: 5.338264339e-13 | GG111: 2.459358565e-13 | GH111: 1.121761895e-13 | GI111: 5.06566622e-14 | GJ111: 2.264798207e-14 | GK111: 1.002488755e-14 | GL111: 4.393256519e-15 | GM111: 1.906121894e-15 | GN111: 8.187886853e-16 | GO111: 3.482170649e-16
A112: 52 | B112: 170 | C112: 53 | D112: 169 | E112: 83 | F112: 199 | CF112: 0.1075801478 | CG112: 0.1400458634 | CH112: 0.1804951303 | CI112: 0.2303126266 | CJ112: 0.2909558291 | CK112: 0.3639095324 | CL112: 0.4506266335 | CM112: 0.5524555439 | CN112: 0.6705557193 | CO112: 0.8058040784 | CP112: 0.9586964218 | CQ112: 1.12924924 | CR112: 1.316908384 | CS112: 1.520471813 | CT112: 1.738033885 | CU112: 1.966958335 | CV112: 2.203886055 | CW112: 2.444782164 | CX112: 2.685024514 | CY112: 2.919533058 | CZ112: 3.14293641 | DA112: 3.349768902 | DB112: 3.534688557 | DC112: 3.692704168 | DD112: 3.819398159 | DE112: 3.911131404 | DF112: 3.965216782 | DG112: 3.980049917 | DH112: 3.955188237 | DI112: 3.89137291 | DJ112: 3.790492137 | DK112: 3.65548835 | DL112: 3.490215665 | DM112: 3.299257236 | DN112: 3.087714573 | DO112: 2.860982309 | DP112: 2.62452221 | DQ112: 2.383649455 | DR112: 2.143342511 | DS112: 1.908085465 | DT112: 1.681748791 | DU112: 1.467511388 | DV112: 1.267823773 | DW112: 1.084409609 | DX112: 0.9183006225 | DY112: 0.7698984678 | DZ112: 0.6390562508 | EA112: 0.525172255 | EB112: 0.4272888068 | EC112: 0.3441900518 | ED112: 0.274493564 | EE112: 0.2167320175 | EF112: 0.1694224808 | EG112: 0.1311221479 | EH112: 0.1004703992 | EI112: 0.07621794875 | EJ112: 0.05724445699 | EK112: 0.04256637619 | EL112: 0.03133696791 | EM112: 0.02284043243 | EN112: 0.01648195508 | EO112: 0.01177525134 | EP112: 0.008328920189 | EQ112: 0.005832627893 | ER112: 0.004043867297 | ES112: 0.002775789801 | ET112: 0.00188639793 | EU112: 0.001269220569 | EV112: 0.0008454695044 | EW112: 0.0005575911196 | EX112: 0.0003640749551 | EY112: 0.0002353546677 | EZ112: 0.0001506301409 | FA112: 9.544605969e-05 | FB112: 5.987715829e-05 | FC112: 3.718959193e-05 | FD112: 2.286855377e-05 | FE112: 1.392236587e-05 | FF112: 8.391593545e-06 | FG112: 5.007637615e-06 | FH112: 2.958546509e-06 | FI112: 1.730537298e-06 | FJ112: 1.002168118e-06 | FK112: 5.745889316e-07 | FL112: 3.261602149e-07 | FM112: 1.83299706e-07 | FN112: 1.01988125e-07 | FO112: 5.618165153e-08 | FP112: 3.064054255e-08 | FQ112: 1.654456891e-08 | FR112: 8.844463936e-09 | FS112: 4.681064555e-09 | FT112: 2.452871519e-09 | FU112: 1.272512408e-09 | FV112: 6.535913656e-10 | FW112: 3.323591518e-10 | FX112: 1.673270031e-10 | FY112: 8.340296281e-11 | FZ112: 4.11579732e-11 | GA112: 2.010867877e-11 | GB112: 9.726803625e-12 | GC112: 4.658153704e-12 | GD112: 2.208587128e-12 | GE112: 1.036745869e-12 | GF112: 4.81822577e-13 | GG112: 2.216966004e-13 | GH112: 1.009922333e-13 | GI112: 4.554848895e-14 | GJ112: 2.033841136e-14 | GK112: 8.991189173e-15 | GL112: 3.93526786e-15 | GM112: 1.705251802e-15 | GN112: 7.315765749e-16 | GO112: 3.107335308e-16 | GP112: 1.306692818e-16
A113: 52 | B113: 170 | C113: 53 | D113: 169 | E113: 83 | F113: 199 | CF113: 0.1096641619 | CG113: 0.1425781527 | CH113: 0.1835262954 | CI113: 0.2338840837 | CJ113: 0.2950938057 | CK113: 0.3686180299 | CL113: 0.4558795482 | CM113: 0.5581882624 | CN113: 0.6766566367 | CO113: 0.8121066127 | CP113: 0.9649722026 | CQ113: 1.13520322 | CR113: 1.322176644 | CS113: 1.524622774 | CT113: 1.740573551 | CU113: 1.967339954 | CV113: 2.20152438 | CW113: 2.439072119 | CX113: 2.675363757 | CY113: 2.905347552 | CZ113: 3.123707788 | DA113: 3.325062121 | DB113: 3.504178188 | DC113: 3.656197569 | DD113: 3.776853891 | DE113: 3.862671438 | DF113: 3.911131404 | DG113: 3.920794693 | DH113: 3.89137291 | DI113: 3.823742656 | DJ113: 3.719902146 | DK113: 3.582873136 | DL113: 3.416554878 | DM113: 3.225539958 | DN113: 3.014904132 | DO113: 2.78998355 | DP113: 2.556152932 | DQ113: 2.318617342 | DR113: 2.082228474 | DS113: 1.851333831 | DT113: 1.62966429 | DU113: 1.420262486 | DV113: 1.225451529 | DW113: 1.04684098 | DX113: 0.8853649961 | DY113: 0.7413461478 | DZ113: 0.6145776719 | EA113: 0.5044168386 | EB113: 0.4098825496 | EC113: 0.329751164 | ED113: 0.2626457035 | EE113: 0.2071148885 | EF113: 0.1616997667 | EG113: 0.1249869074 | EH113: 0.09564817908 | EI113: 0.07246794496 | EJ113: 0.05435909783 | EK113: 0.04036970633 | EL113: 0.02968219371 | EM113: 0.02160694941 | EN113: 0.0155721282 | EO113: 0.01111116357 | EP113: 0.007849250088 | EQ113: 0.00548976618 | ER113: 0.003801338843 | ES113: 0.00260601178 | ET113: 0.001768777564 | EU113: 0.001188576454 | EV113: 0.0007907479582 | EW113: 0.0005208421118 | EX113: 0.0003396496397 | EY113: 0.0002192871991 | EZ113: 0.0001401691559 | FA113: 8.870512058e-05 | FB113: 5.557788021e-05 | FC113: 3.447563875e-05 | FD113: 2.117286944e-05 | FE113: 1.287372337e-05 | FF113: 7.749714109e-06 | FG113: 4.618747761e-06 | FH113: 2.725334814e-06 | FI113: 1.59210805e-06 | FJ113: 9.208359528e-07 | FK113: 5.272894133e-07 | FL113: 2.989323329e-07 | FM113: 1.677852527e-07 | FN113: 9.323773962e-08 | FO113: 5.129638278e-08 | FP113: 2.794079776e-08 | FQ113: 1.506773305e-08 | FR113: 8.044778445e-09 | FS113: 4.252431376e-09 | FT113: 2.225448738e-09 | FU113: 1.153068031e-09 | FV113: 5.914926096e-10 | FW113: 3.004005817e-10 | FX113: 1.510460147e-10 | FY113: 7.519255256e-11 | FZ113: 3.705931949e-11 | GA113: 1.808327586e-11 | GB113: 8.736024234e-12 | GC113: 4.178376861e-12 | GD113: 1.978601986e-12 | GE113: 9.27611937e-13 | GF113: 4.305576123e-13 | GG113: 1.978578431e-13 | GH113: 9.001861444e-14 | GI113: 4.054790617e-14 | GJ113: 1.808263003e-14 | GK113: 7.983839835e-15 | GL113: 3.489949078e-15 | GM113: 1.51037024e-15 | GN113: 6.471497749e-16 | GO113: 2.745258496e-16 | GP113: 1.152971944e-16
A114: 52 | B114: 170 | C114: 53 | D114: 169 | E114: 83 | F114: 199 | CF114: 0.1106762323 | CG114: 0.1437119018 | CH114: 0.1847515805 | CI114: 0.2351476503 | CJ114: 0.2963126411 | CK114: 0.3696721818 | CL114: 0.4566047417 | CM114: 0.5583687687 | CN114: 0.6760189586 | CO114: 0.8103146442 | CP114: 0.961624578 | CQ114: 1.129833577 | CR114: 1.314257472 | CS114: 1.513573403 | CT114: 1.725772624 | CU114: 1.948142489 | CV114: 2.177283176 | CW114: 2.40916292 | CX114: 2.639213225 | CY114: 2.862462742 | CZ114: 3.073705552 | DA114: 3.267696672 | DB114: 3.439364982 | DC114: 3.584031761 | DD114: 3.697621807 | DE114: 3.776853891 | DF114: 3.819398159 | DG114: 3.823989927 | DH114: 3.790492137 | DI114: 3.719902146 | DJ114: 3.614302403 | DK114: 3.476758399 | DL114: 3.311170877 | DM114: 3.122092241 | DN114: 2.914519206 | DO114: 2.69367483 | DP114: 2.464793103 | DQ114: 2.23291827 | DR114: 2.002729244 | DS114: 1.778396958 | DT114: 1.563479638 | DU114: 1.360857989 | DV114: 1.172709492 | DW114: 1.000518512 | DX114: 0.8451170659 | DY114: 0.7067497609 | DZ114: 0.5851558133 | EA114: 0.4796610268 | EB114: 0.3892731029 | EC114: 0.3127745559 | ED114: 0.248808659 | EE114: 0.1959551222 | EF114: 0.1527934739 | EG114: 0.1179532862 | EH114: 0.09015137189 | EI114: 0.06821685455 | EJ114: 0.05110555345 | EK114: 0.03790544125 | EL114: 0.02783505427 | EM114: 0.02023669767 | EN114: 0.01456613296 | EO114: 0.01038020549 | EP114: 0.00732360121 | EQ114: 0.005115645948 | ER114: 0.003537800398 | ES114: 0.002422273782 | ET114: 0.001641988783 | EU114: 0.001101981233 | EV114: 0.0007322093429 | EW114: 0.0004816742047 | EX114: 0.0003137101476 | EY114: 0.0002022836588 | EZ114: 0.0001291368203 | FA114: 8.161997026e-05 | FB114: 5.107399516e-05 | FC114: 3.16417347e-05 | FD114: 1.940786641e-05 | FE114: 1.178561794e-05 | FF114: 7.085719855e-06 | FG114: 4.217670544e-06 | FH114: 2.485526412e-06 | FI114: 1.450177516e-06 | FJ114: 8.376855185e-07 | FK114: 4.790688168e-07 | FL114: 2.712513158e-07 | FM114: 1.520557541e-07 | FN114: 8.438998706e-08 | FO114: 4.636988688e-08 | FP114: 2.522540849e-08 | FQ114: 1.358618219e-08 | FR114: 7.244588395e-09 | FS114: 3.824609088e-09 | FT114: 1.999021406e-09 | FU114: 1.034439015e-09 | FV114: 5.299676913e-10 | FW114: 2.688134235e-10 | FX114: 1.349924765e-10 | FY114: 6.711587129e-11 | FZ114: 3.303679859e-11 | GA114: 1.610006888e-11 | GB114: 7.768095702e-12 | GC114: 3.710722316e-12 | GD114: 1.754928391e-12 | GE114: 8.217077799e-13 | GF114: 3.8091884e-13 | GG114: 1.748254128e-13 | GH114: 7.943899241e-14 | GI114: 3.573715261e-14 | GJ114: 1.59170735e-14 | GK114: 7.01881106e-15 | GL114: 3.064227015e-15 | GM114: 1.32444942e-15 | GN114: 5.667700246e-16 | GO114: 2.401239197e-16 | GP114: 1.007212322e-16
A115: 52 | B115: 170 | C115: 53 | D115: 169 | E115: 83 | F115: 199 | CF115: 0.1105862328 | CG115: 0.1434133383 | CH115: 0.1841344639 | CI115: 0.2340656444 | CJ115: 0.2945759729 | CK115: 0.3670405297 | CL115: 0.4527805684 | CM115: 0.5529916746 | CN115: 0.6686617194 | CO115: 0.8004816554 | CP115: 0.9487534362 | CQ115: 1.113300477 | CR115: 1.293386977 | CS115: 1.487652948 | CT115: 1.694071851 | CU115: 1.909937167 | CV115: 2.131883113 | CW115: 2.355942864 | CX115: 2.577645406 | CY115: 2.792149373 | CZ115: 2.994409405 | DA115: 3.17936774 | DB115: 3.342161281 | DC115: 3.478332535 | DD115: 3.584031761 | DE115: 3.656197569 | DF115: 3.692704168 | DG115: 3.692465386 | DH115: 3.65548835 | DI115: 3.582873136 | DJ115: 3.476758399 | DK115: 3.340216749 | DL115: 3.177107001 | DM115: 2.991893215 | DN115: 2.789442357 | DO115: 2.574813331 | DP115: 2.353050034 | DQ115: 2.128990041 | DR115: 1.907098625 | DS115: 1.691335371 | DT115: 1.485057827 | DU115: 1.290963768 | DV115: 1.111070963 | DW115: 0.9467309973 | DX115: 0.7986719851 | DY115: 0.6670637806 | DZ115: 0.5515988158 | EA115: 0.4515817112 | EB115: 0.3660213513 | EC115: 0.2937200207 | ED115: 0.2333553357 | EE115: 0.1835519388 | EF115: 0.14294115 | EG115: 0.1102078735 | EH115: 0.08412499063 | EI115: 0.06357618886 | EJ115: 0.04756866975 | EK115: 0.03523745857 | EL115: 0.02584313552 | EM115: 0.01876475451 | EN115: 0.01348955503 | EO115: 0.009600844077 | EP115: 0.006765162987 | EQ115: 0.004719588855 | ER115: 0.003259771247 | ES115: 0.00222908761 | ET115: 0.001509121499 | EU115: 0.00101152898 | EV115: 0.0006712580519 | EW115: 0.0004410194487 | EX115: 0.0002868686113 | EY115: 0.0001847418869 | EZ115: 0.0001177890108 | FA115: 7.435346789e-05 | FB115: 4.646808111e-05 | FC115: 2.875181754e-05 | FD115: 1.761298332e-05 | FE115: 1.068212361e-05 | FF115: 6.414153211e-06 | FG115: 3.813099298e-06 | FH115: 2.244264066e-06 | FI115: 1.307756393e-06 | FJ115: 7.544610141e-07 | FK115: 4.309271026e-07 | FL115: 2.436844803e-07 | FM115: 1.364297199e-07 | FN115: 7.562182594e-08 | FO115: 4.149945436e-08 | FP115: 2.254730651e-08 | FQ115: 1.212841381e-08 | FR115: 6.459076062e-09 | FS115: 3.405601642e-09 | FT115: 1.777764991e-09 | FU115: 9.18780793e-10 | FV115: 4.701176116e-10 | FW115: 2.381541696e-10 | FX115: 1.194447081e-10 | FY115: 5.931065117e-11 | FZ115: 2.915785193e-11 | GA115: 1.419173246e-11 | GB115: 6.83868122e-12 | GC115: 3.262618989e-12 | GD115: 1.541052429e-12 | GE115: 7.206518805e-13 | GF115: 3.336496621e-13 | GG115: 1.529371207e-13 | GH115: 6.9405228e-14 | GI115: 3.118376263e-14 | GJ115: 1.387145131e-14 | GK115: 6.109031195e-15 | GL115: 2.66366644e-15 | GM115: 1.149858475e-15 | GN115: 4.91434902e-16 | GO115: 2.079431693e-16 | GP115: 8.711247959e-17
A116: 52 | B116: 170 | C116: 53 | D116: 169 | E116: 83 | F116: 199 | CF116: 0.1093968498 | CG116: 0.141691373 | CH116: 0.18169336 | CI116: 0.2306703418 | CJ116: 0.2899355822 | CK116: 0.3608014966 | CL116: 0.4445209141 | CM116: 0.5422169906 | CN116: 0.6548036642 | CO116: 0.7828997149 | CP116: 0.9267406733 | CQ116: 1.086093884 | CR116: 1.260182858 | CS116: 1.447627492 | CT116: 1.646406728 | CU116: 1.853849598 | CV116: 2.066659445 | CW116: 2.280974303 | CX116: 2.492464166 | CY116: 2.69646327 | CZ116: 2.88813274 | DA116: 3.062646315 | DB116: 3.215389558 | DC116: 3.342161281 | DD116: 3.439364982 | DE116: 3.504178188 | DF116: 3.534688557 | DG116: 3.52998761 | DH116: 3.490215665 | DI116: 3.416554878 | DJ116: 3.311170877 | DK116: 3.177107001 | DL116: 3.018138356 | DM116: 2.838595454 | DN116: 2.643168904 | DO116: 2.436707415 | DP116: 2.224021128 | DQ116: 2.009701181 | DR116: 1.797964538 | DS116: 1.592530692 | DT116: 1.396534136 | DU116: 1.212473779 | DV116: 1.04219794 | DW116: 0.8869213722 | DX116: 0.7472692053 | DY116: 0.6233415921 | DZ116: 0.514792465 | EA116: 0.4209158815 | EB116: 0.3407340209 | EC116: 0.273081789 | ED116: 0.2166840956 | EE116: 0.1702230576 | EF116: 0.1323935398 | EG116: 0.1019464849 | EH116: 0.07772035449 | EI116: 0.05866165954 | EJ116: 0.04383600547 | EK116: 0.03243132221 | EL116: 0.02375501958 | EM116: 0.01722674344 | EN116: 0.0123682437 | EO116: 0.008791640828 | EP116: 0.006187125077 | EQ116: 0.004310869832 | ER116: 0.002973705652 | ES116: 0.002030897955 | ET116: 0.001373204701 | EU116: 0.0009192624404 | EV116: 0.0006092573897 | EW116: 0.0003997782386 | EX116: 0.0002597135151 | EY116: 0.0001670425093 | EZ116: 0.0001063693525 | FA116: 6.705992773e-05 | FB116: 4.185686542e-05 | FC116: 2.58658871e-05 | FD116: 1.582505065e-05 | FE116: 9.585613079e-06 | FF116: 5.748462945e-06 | FG116: 3.413034142e-06 | FH116: 2.00625709e-06 | FI116: 1.167587916e-06 | FJ116: 6.727437219e-07 | FK116: 3.837662433e-07 | FL116: 2.167409354e-07 | FM116: 1.211915028e-07 | FN116: 6.709041122e-08 | FO116: 3.677102972e-08 | FP116: 1.99529992e-08 | FQ116: 1.071932981e-08 | FR116: 5.701434469e-09 | FS116: 3.002324953e-09 | FT116: 1.565266569e-09 | FU116: 8.079341749e-10 | FV116: 4.12877012e-10 | FW116: 2.088923244e-10 | FX116: 1.046360453e-10 | FY116: 5.189161736e-11 | FZ116: 2.547828269e-11 | GA116: 1.23851181e-11 | GB116: 5.96056197e-12 | GC116: 2.840084869e-12 | GD116: 1.339776895e-12 | GE116: 6.257353705e-13 | GF116: 2.893383369e-13 | GG116: 1.324580362e-13 | GH116: 6.003544009e-14 | GI116: 2.693978592e-14 | GJ116: 1.196844248e-14 | GK116: 5.264270403e-15 | GL116: 2.292428485e-15 | GM116: 9.88349299e-16 | GN116: 4.218734321e-16 | GO116: 1.782834168e-16 | GP116: 7.459277718e-17
A117: 52 | B117: 170 | C117: 52 | D117: 170 | E117: 82 | F117: 200 | CE117: 0.08200379965 | CF117: 0.1071434494 | CG117: 0.1385971588 | CH117: 0.1775007065 | CI117: 0.2250623762 | CJ117: 0.2825288286 | CK117: 0.3511395053 | CL117: 0.4320695616 | CM117: 0.5263622161 | CN117: 0.6348524449 | CO117: 0.758085066 | CP117: 0.8962313705 | CQ117: 1.04900944 | CR117: 1.215614039 | CS117: 1.394662336 | CT117: 1.584161642 | CU117: 1.781504687 | CV117: 1.983496783 | CW117: 2.186417459 | CX117: 2.386116963 | CY117: 2.578145507 | CZ117: 2.757910553 | DA117: 2.920854905 | DB117: 3.062646315 | DC117: 3.17936774 | DD117: 3.267696672 | DE117: 3.325062121 | DF117: 3.349768902 | DG117: 3.341080846 | DH117: 3.299257236 | DI117: 3.225539958 | DJ117: 3.122092241 | DK117: 2.991893215 | DL117: 2.838595454 | DM117: 2.666355006 | DN117: 2.479644927 | DO117: 2.283063947 | DP117: 2.081151569 | DQ117: 1.87821974 | DR117: 1.678209386 | DS117: 1.484577746 | DT117: 1.300219878 | DU117: 1.127425133 | DV117: 0.9678669897 | DW117: 0.8226227178 | DX117: 0.6922178198 | DY117: 0.5766893173 | DZ117: 0.4756616007 | EA117: 0.388428721 | EB117: 0.314037587 | EC117: 0.2513674178 | ED117: 0.1992018608 | EE117: 0.156291318 | EF117: 0.1214041049 | EG117: 0.09336604103 | EH117: 0.07108886362 | EI117: 0.05358845734 | EJ117: 0.0399942902 | EK117: 0.02955165358 | EL117: 0.02161835458 | EM117: 0.0156574322 | EN117: 0.01122730443 | EO117: 0.007970535731 | EP117: 0.005602173856 | EQ117: 0.003898366866 | ER117: 0.002685751871 | ES117: 0.001831918388 | ET117: 0.001237096027 | EU117: 0.0008270994983 | EV117: 0.0005474811337 | EW117: 0.0003587877558 | EX117: 0.000232789359 | EY117: 0.0001495359763 | EZ117: 9.510104997e-05 | FA117: 5.988002711e-05 | FB117: 3.732808582e-05 | FC117: 2.303809192e-05 | FD117: 1.407713737e-05 | FE117: 8.516070456e-06 | FF117: 5.100599197e-06 | FG117: 3.024546081e-06 | FH117: 1.775645514e-06 | FI117: 1.032070551e-06 | FJ117: 5.939085252e-07 | FK117: 3.383660547e-07 | FL117: 1.908583087e-07 | FM117: 1.065840969e-07 | FN117: 5.892923502e-08 | FO117: 3.225716921e-08 | FP117: 1.748150249e-08 | FQ117: 9.379686344e-09 | FR117: 4.982587456e-09 | FS117: 2.620466427e-09 | FT117: 1.364455339e-09 | FU117: 7.033914824e-10 | FV117: 3.589979265e-10 | FW117: 1.81402735e-10 | FX117: 9.075128355e-11 | FY117: 4.494886988e-11 | FZ117: 2.204153484e-11 | GA117: 1.070094037e-11 | GB117: 5.143504338e-12 | GC117: 2.447672632e-12 | GD117: 1.153199933e-12 | GE117: 5.37914115e-13 | GF117: 2.484152925e-13 | GG117: 1.135797137e-13 | GH117: 5.141386669e-14 | GI117: 2.304182213e-14 | GJ117: 1.022375486e-14 | GK117: 4.491186506e-15 | GL117: 1.953299364e-15 | GM117: 8.410727876e-16 | GN117: 3.585546923e-16 | GO117: 1.513332274e-16 | GP117: 6.323685066e-17 | GQ117: 2.616153529e-17
A118: 52 | B118: 170 | C118: 52 | D118: 170 | E118: 82 | F118: 200 | CE118: 0.07961625182 | CF118: 0.1038923302 | CG118: 0.134221566 | CH118: 0.1716793938 | CI118: 0.2174057848 | CJ118: 0.2725718963 | CK118: 0.3383359223 | CL118: 0.4157882393 | CM118: 0.5058867987 | CN118: 0.6093847014 | CO118: 0.7267529493 | CP118: 0.8581023945 | CQ118: 1.003109815 | CR118: 1.160953704 | CS118: 1.330265653 | CT118: 1.509103094 | CU118: 1.694948459 | CV118: 1.884738658 | CW118: 2.074927066 | CX118: 2.261578091 | CY118: 2.440492042 | CZ118: 2.607355557 | DA118: 2.757910553 | DB118: 2.88813274 | DC118: 2.994409405 | DD118: 3.073705552 | DE118: 3.123707788 | DF118: 3.14293641 | DG118: 3.130818153 | DH118: 3.087714573 | DI118: 3.014904132 | DJ118: 2.914519206 | DK118: 2.789442357 | DL118: 2.643168904 | DM118: 2.479644927 | DN118: 2.303091178 | DO118: 2.117823789 | DP118: 1.928082301 | DQ118: 1.737874332 | DR118: 1.550844395 | DS118: 1.370172151 | DT118: 1.198502937 | DU118: 1.037911022 | DV118: 0.8898938407 | DW118: 0.7553936554 | DX118: 0.6348418082 | DY118: 0.5282199044 | DZ118: 0.435132037 | EA118: 0.3548823599 | EB118: 0.2865529081 | EC118: 0.2290774201 | ED118: 0.1813079308 | EE118: 0.142071961 | EF118: 0.1102191363 | EG118: 0.08465696356 | EH118: 0.06437621315 | EI118: 0.04846689752 | EJ118: 0.03612618235 | EK118: 0.02665974396 | EL118: 0.01947811537 | EM118: 0.01408947948 | EN118: 0.01009020567 | EO118: 0.007154217577 | EP118: 0.005022053378 | EQ118: 0.003490258231 | ER118: 0.002401545674 | ES118: 0.001635992079 | ET118: 0.001103388867 | EU118: 0.0007367719005 | EV118: 0.0004870735716 | EW118: 0.0003187961972 | EX118: 0.0002065802288 | EY118: 0.0001325322073 | EZ118: 8.418043454e-05 | FA118: 5.293683239e-05 | FB118: 3.295807162e-05 | FC118: 2.031527432e-05 | FD118: 1.239768632e-05 | FE118: 7.490583541e-06 | FF118: 4.480719067e-06 | FG118: 2.653608403e-06 | FH118: 1.555904753e-06 | FI118: 9.032047986e-07 | FJ118: 5.19094611e-07 | FK118: 2.953682837e-07 | FL118: 1.663942267e-07 | FM118: 9.280464278e-08 | FN118: 5.124579184e-08 | FO118: 2.801584771e-08 | FP118: 1.516374188e-08 | FQ118: 8.125798589e-09 | FR118: 4.311047211e-09 | FS118: 2.264417797e-09 | FT118: 1.177571796e-09 | FU118: 6.06282854e-10 | FV118: 3.090439404e-10 | FW118: 1.559632347e-10 | FX118: 7.792580376e-11 | FY118: 3.854760519e-11 | FZ118: 1.88786341e-11 | GA118: 9.15378676e-12 | GB118: 4.394283461e-12 | GC118: 2.088490004e-12 | GD118: 9.827290371e-13 | GE118: 4.578173333e-13 | GF118: 2.111580921e-13 | GG118: 9.642292074e-14 | GH118: 4.359231076e-14 | GI118: 1.95117649e-14 | GJ118: 8.646498553e-15 | GK118: 3.793508373e-15 | GL118: 1.647778668e-15 | GM118: 7.086205788e-16 | GN118: 3.017072177e-16 | GO118: 1.271787917e-16 | GP118: 5.307631272e-17 | GQ118: 2.193026347e-17
A119: 52 | B119: 170 | C119: 52 | D119: 170 | E119: 82 | F119: 200 | CE119: 0.07652908754 | CF119: 0.0997374833 | CG119: 0.1286907496 | CH119: 0.1643967816 | CI119: 0.2079200385 | CJ119: 0.260349314 | CK119: 0.3227554495 | CL119: 0.3961391678 | CM119: 0.4813700229 | CN119: 0.5791183855 | CO119: 0.6897833698 | CP119: 0.8134205528 | CQ119: 0.9496741542 | CR119: 1.097718923 | CS119: 1.256217209 | CT119: 1.423296499 | CU119: 1.59655204 | CV119: 1.773077962 | CW119: 1.949528732 | CX119: 2.122210718 | CY119: 2.287201473 | CZ119: 2.440492042 | DA119: 2.578145507 | DB119: 2.69646327 | DC119: 2.792149373 | DD119: 2.862462742 | DE119: 2.905347552 | DF119: 2.919533058 | DG119: 2.904596148 | DH119: 2.860982309 | DI119: 2.78998355 | DJ119: 2.69367483 | DK119: 2.574813331 | DL119: 2.436707415 | DM119: 2.283063947 | DN119: 2.117823789 | DO119: 1.944995602 | DP119: 1.768497623 | DQ119: 1.592015868 | DR119: 1.418885528 | DS119: 1.252000151 | DT119: 1.093750989 | DU119: 0.9459966343 | DV119: 0.810061103 | DW119: 0.6867568847 | DX119: 0.5764283338 | DY119: 0.4790101028 | DZ119: 0.3940951423 | EA119: 0.3210070314 | EB119: 0.2588719911 | EC119: 0.2066867508 | ED119: 0.1633793889 | EE119: 0.1278612517 | EF119: 0.09906897991 | EG119: 0.07599648154 | EH119: 0.05771734374 | EI119: 0.04339865207 | EJ119: 0.0323074887 | EK119: 0.02381152533 | EL119: 0.01737513898 | EM119: 0.01255238968 | EN119: 0.008978041199 | EO119: 0.006357609225 | EP119: 0.004457210259 | EQ119: 0.003093780288 | ER119: 0.002126047042 | ES119: 0.001446482976 | ET119: 0.0009743406876 | EU119: 0.0006497786028 | EV119: 0.000429019496 | EW119: 0.0002804437114 | EX119: 0.0001814978308 | EY119: 0.0001162931748 | EZ119: 7.377242676e-05 | FA119: 4.633305837e-05 | FB119: 2.881011035e-05 | FC119: 1.773601022e-05 | FD119: 1.080995769e-05 | FE119: 6.523026057e-06 | FF119: 3.897007913e-06 | FG119: 2.30499781e-06 | FH119: 1.34979185e-06 | FI119: 7.825644975e-07 | FJ119: 4.491904727e-07 | FK119: 2.552689468e-07 | FL119: 1.436225032e-07 | FM119: 8.000259098e-08 | FN119: 4.412072782e-08 | FO119: 2.409008536e-08 | FP119: 1.302240101e-08 | FQ119: 6.969487543e-09 | FR119: 3.692901148e-09 | FS119: 1.937276339e-09 | FT119: 1.00617268e-09 | FU119: 5.17381056e-10 | FV119: 2.633938195e-10 | FW119: 1.327570803e-10 | FX119: 6.624709821e-11 | FY119: 3.272902611e-11 | FZ119: 1.600871085e-11 | GA119: 7.752409292e-12 | GB119: 3.716841843e-12 | GC119: 1.76428412e-12 | GD119: 8.291250255e-13 | GE119: 3.857701123e-13 | GF119: 1.777027654e-13 | GG119: 8.104325031e-14 | GH119: 3.659287817e-14 | GI119: 1.635811829e-14 | GJ119: 7.239810085e-15 | GK119: 3.172327813e-15 | GL119: 1.376214086e-15 | GM119: 5.910864368e-16 | GN119: 2.513466171e-16 | GO119: 1.058161972e-16 | GP119: 4.410504919e-17 | GQ119: 1.820042489e-17
A120: 53 | B120: 169 | C120: 52 | D120: 170 | E120: 82 | F120: 200 | CE120: 0.07282967932 | CF120: 0.09479607999 | CG120: 0.12216011 | CH120: 0.1558567107 | CI120: 0.1968695974 | CJ120: 0.2462004571 | CK120: 0.304828881 | CL120: 0.373663282 | CM120: 0.4534838148 | CN120: 0.5448791802 | CO120: 0.6481800971 | CP120: 0.7633930898 | CQ120: 0.8901389655 | CR120: 1.027600852 | CS120: 1.174486838 | CT120: 1.329012017 | CU120: 1.488904068 | CV120: 1.651435365 | CW120: 1.813483046 | CX120: 1.971616636 | CY120: 2.122210718 | CZ120: 2.261578091 | DA120: 2.386116963 | DB120: 2.492464166 | DC120: 2.577645406 | DD120: 2.639213225 | DE120: 2.675363757 | DF120: 2.685024514 | DG120: 2.667907243 | DH120: 2.62452221 | DI120: 2.556152932 | DJ120: 2.464793103 | DK120: 2.353050034 | DL120: 2.224021128 | DM120: 2.081151569 | DN120: 1.928082301 | DO120: 1.768497623 | DP120: 1.605981166 | DQ120: 1.443887879 | DR120: 1.285237973 | DS120: 1.132636836 | DT120: 0.9882228012 | DU120: 0.8536426663 | DV120: 0.7300530375 | DW120: 0.6181441537 | DX120: 0.5181818237 | DY120: 0.4300625636 | DZ120: 0.3533769018 | EA120: 0.2874760927 | EB120: 0.2315380456 | EC120: 0.1846290555 | ED120: 0.1457588013 | EE120: 0.1139269796 | EF120: 0.08816078204 | EG120: 0.06754315447 | EH120: 0.05123235275 | EI120: 0.03847373209 | EJ120: 0.02860496283 | EK120: 0.02105598265 | EL120: 0.01534499304 | EM120: 0.01107171588 | EN120: 0.007908975394 | EO120: 0.005593486207 | EP120: 0.003916534656 | EQ120: 0.002715053747 | ER120: 0.001863425112 | ES120: 0.001266200591 | ET120: 0.0008518245152 | EU120: 0.0005673549038 | EV120: 0.0003741248419 | EW120: 0.0002442504288 | EX120: 0.0001578742057 | EY120: 0.0001010285402 | EZ120: 6.400796673e-05 | FA120: 4.014958318e-05 | FB120: 2.493360674e-05 | FC120: 1.533014367e-05 | FD120: 9.33177803e-06 | FE120: 5.623926419e-06 | FF120: 3.355613362e-06 | FG120: 1.982262912e-06 | FH120: 1.15933154e-06 | FI120: 6.712914283e-07 | FJ120: 3.848323809e-07 | FK120: 2.184183735e-07 | FL120: 1.227336882e-07 | FM120: 6.828030565e-08 | FN120: 3.760834162e-08 | FO120: 2.050831432e-08 | FP120: 1.107217145e-08 | FQ120: 5.918241651e-09 | FR120: 3.131912654e-09 | FS120: 1.640905777e-09 | FT120: 8.511668515e-10 | FU120: 4.371221509e-10 | FV120: 2.222531796e-10 | FW120: 1.118794199e-10 | FX120: 5.57582949e-11 | FY120: 2.751223156e-11 | FZ120: 1.343999809e-11 | GA120: 6.500243877e-12 | GB120: 3.11255583e-12 | GC120: 1.475576413e-12 | GD120: 6.925694237e-13 | GE120: 3.218266308e-13 | GF120: 1.480599841e-13 | GG120: 6.743889934e-14 | GH120: 3.041167242e-14 | GI120: 1.357773066e-14 | GJ120: 6.001656426e-15 | GK120: 2.626468072e-15 | GL120: 1.137968333e-15 | GM120: 4.881409959e-16 | GN120: 2.073086599e-16 | GO120: 8.716590845e-17 | GP120: 3.628548501e-17 | GQ120: 1.495465021e-17
A121: 53 | B121: 169 | C121: 52 | D121: 170 | E121: 82 | F121: 200 | CE121: 0.06861946304 | CF121: 0.08920298909 | CG121: 0.1148070491 | CH121: 0.1462900394 | CI121: 0.1845516849 | CJ121: 0.2305039262 | CK121: 0.2850333618 | CL121: 0.3489555566 | CM121: 0.4229622392 | CN121: 0.5075632038 | CO121: 0.6030255573 | CP121: 0.7093137236 | CQ121: 0.8260342626 | CR121: 0.9523899759 | CS121: 1.087147885 | CT121: 1.228625401 | CU121: 1.374698344 | CV121: 1.522833368 | CW121: 1.67014591 | CX121: 1.813483046 | CY121: 1.949528732 | CZ121: 2.074927066 | DA121: 2.186417459 | DB121: 2.280974303 | DC121: 2.355942864 | DD121: 2.40916292 | DE121: 2.439072119 | DF121: 2.444782164 | DG121: 2.426122639 | DH121: 2.383649455 | DI121: 2.318617342 | DJ121: 2.23291827 | DK121: 2.128990041 | DL121: 2.009701181 | DM121: 1.87821974 | DN121: 1.737874332 | DO121: 1.592015868 | DP121: 1.443887879 | DQ121: 1.29651219 | DR121: 1.152595165 | DS121: 1.014457921 | DT121: 0.883992004 | DU121: 0.7626401951 | DV121: 0.6514005197 | DW121: 0.5508502686 | DX121: 0.4611859686 | DY121: 0.382274792 | DZ121: 0.3137128376 | EA121: 0.2548859969 | EB121: 0.2050296722 | EC121: 0.1632843317 | ED121: 0.1287447014 | EE121: 0.1005012054 | EF121: 0.07767302728 | EG121: 0.05943280785 | EH121: 0.045023507 | EI121: 0.03376831943 | EJ121: 0.02507475103 | EK121: 0.01843405449 | EL121: 0.01341720821 | EM121: 0.00966853129 | EN121: 0.00689788437 | EO121: 0.004872236579 | EP121: 0.003407201994 | EQ121: 0.002358981037 | ER121: 0.001616992752 | ES121: 0.001097359056 | ET121: 0.0007373038235 | EU121: 0.0004904573815 | EV121: 0.0003230078816 | EW121: 0.0002106114698 | EX121: 0.0001359590038 | EY121: 8.68942389e-05 | EZ121: 5.498333124e-05 | FA121: 3.444515702e-05 | FB121: 2.136398893e-05 | FC121: 1.31187838e-05 | FD121: 7.975572379e-06 | FE121: 4.800508043e-06 | FF121: 2.860682095e-06 | FG121: 1.687753624e-06 | FH121: 9.858380027e-07 | FI121: 5.701106019e-07 | FJ121: 3.26414719e-07 | FK121: 1.850279794e-07 | FL121: 1.038393912e-07 | FM121: 5.76957623e-08 | FN121: 3.173823368e-08 | FO121: 1.728536865e-08 | FP121: 9.320336538e-09 | FQ121: 4.975555755e-09 | FR121: 2.62971483e-09 | FS121: 1.37604542e-09 | FT121: 7.12875908e-10 | FU121: 3.656387046e-10 | FV121: 1.856724383e-10 | FW121: 9.334687313e-11 | FX121: 4.646320504e-11 | FY121: 2.289684313e-11 | FZ121: 1.117118152e-11 | GA121: 5.396095951e-12 | GB121: 2.580579682e-12 | GC121: 1.221833248e-12 | GD121: 5.72748103e-13 | GE121: 2.658106853e-13 | GF121: 1.221344739e-13 | GG121: 5.555986118e-14 | GH121: 2.502309894e-14 | GI121: 1.115778759e-14 | GJ121: 4.925747449e-15 | GK121: 2.152896977e-15 | GL121: 9.316041399e-16 | GM121: 3.99113692e-16 | GN121: 1.692851642e-16 | GO121: 7.108831604e-17 | GP121: 2.95552481e-17 | GQ121: 1.216544633e-17
A122: 53 | B122: 169 | C122: 52 | D122: 170 | E122: 82 | F122: 200 | CE122: 0.06400933099 | CF122: 0.08310468182 | CG122: 0.1068229948 | CH122: 0.1359443187 | CI122: 0.1712830671 | CJ122: 0.2136608023 | CK122: 0.2638714075 | CL122: 0.3226390035 | CM122: 0.390569618 | CN122: 0.4680983404 | CO122: 0.555434435 | CP122: 0.6525075719 | CQ122: 0.758918895 | CR122: 0.8739009891 | CS122: 0.9962908717 | CT122: 1.124519852 | CU122: 1.256623443 | CV122: 1.390273495 | CW122: 1.522833368 | CX122: 1.651435365 | CY122: 1.773077962 | CZ122: 1.884738658 | DA122: 1.983496783 | DB122: 2.066659445 | DC122: 2.131883113 | DD122: 2.177283176 | DE122: 2.20152438 | DF122: 2.203886055 | DG122: 2.184297707 | DH122: 2.143342511 | DI122: 2.082228474 | DJ122: 2.002729244 | DK122: 1.907098625 | DL122: 1.797964538 | DM122: 1.678209386 | DN122: 1.550844395 | DO122: 1.418885528 | DP122: 1.285237973 | DQ122: 1.152595165 | DR122: 1.023356832 | DS122: 0.8995689325 | DT122: 0.7828865977 | DU122: 0.6745595946 | DV122: 0.5754384062 | DW122: 0.4859979308 | DX122: 0.4063750642 | DY122: 0.3364160732 | DZ122: 0.2757296557 | EA122: 0.2237418759 | EB122: 0.1797496803 | EC122: 0.1429703675 | ED122: 0.1125851201 | EE122: 0.0877754395 | EF122: 0.06775199458 | EG122: 0.05177596627 | EH122: 0.03917341157 | EI122: 0.02934348105 | EJ122: 0.02176150495 | EK122: 0.01597803156 | EL122: 0.01161487869 | EM122: 0.008359169602 | EN122: 0.005956191475 | EO122: 0.004201759781 | EP122: 0.002934613046 | EQ122: 0.002029212474 | ER122: 0.001389188751 | ES122: 0.0009415687748 | ET122: 0.0006318294903 | EU122: 0.0004197636162 | EV122: 0.0002761002169 | EW122: 0.0001797983734 | EX122: 0.0001159209213 | EY122: 7.399373414e-05 | EZ122: 4.676114328e-05 | FA122: 2.925717248e-05 | FB122: 1.812327324e-05 | FC122: 1.111470601e-05 | FD122: 6.748641786e-06 | FE122: 4.056876888e-06 | FF122: 2.414484021e-06 | FG122: 1.422701855e-06 | FH122: 8.299664084e-07 | FI122: 4.79362645e-07 | FJ122: 2.741100228e-07 | FK122: 1.551824838e-07 | FL122: 8.697962621e-08 | FM122: 4.826690263e-08 | FN122: 2.651785423e-08 | FO122: 1.442395579e-08 | FP122: 7.767610524e-09 | FQ122: 4.141403589e-09 | FR122: 2.186073325e-09 | FS122: 1.142454596e-09 | FT122: 5.911126165e-10 | FU122: 3.028018775e-10 | FV122: 1.535691405e-10 | FW122: 7.710923577e-11 | FX122: 3.83323901e-11 | FY122: 1.886611402e-11 | FZ122: 9.192974711e-12 | GA122: 4.434929611e-12 | GB122: 2.118236525e-12 | GC122: 1.001657457e-12 | GD122: 4.689440826e-13 | GE122: 2.173601608e-13 | GF122: 9.974609182e-14 | GG122: 4.5317807e-14 | GH122: 2.038444716e-14 | GI122: 9.077913599e-15 | GJ122: 4.002489557e-15 | GK122: 1.747154959e-15 | GL122: 7.550743163e-16 | GM122: 3.230762446e-16 | GN122: 1.368602753e-16 | GO122: 5.739933327e-17 | GP122: 2.383380278e-17 | GQ122: 9.797987706e-18
A123: 53 | B123: 169 | C123: 52 | D123: 170 | E123: 82 | F123: 200 | CE123: 0.05911481245 | CF123: 0.07665290704 | CG123: 0.09840518884 | CH123: 0.1250732466 | CI123: 0.1573866541 | CJ123: 0.1960778054 | CK123: 0.2418499641 | CL123: 0.2953389131 | CM123: 0.3570691852 | CN123: 0.4274065052 | CO123: 0.5065087339 | CP123: 0.5942782067 | CQ123: 0.6903188383 | CR123: 0.7939016439 | CS123: 0.9039423474 | CT123: 1.018994451 | CU123: 1.137260514 | CV123: 1.256623443 | CW123: 1.374698344 | CX123: 1.488904068 | CY123: 1.59655204 | CZ123: 1.694948459 | DA123: 1.781504687 | DB123: 1.853849598 | DC123: 1.909937167 | DD123: 1.948142489 | DE123: 1.967339954 | DF123: 1.966958335 | DG123: 1.947009024 | DH123: 1.908085465 | DI123: 1.851333831 | DJ123: 1.778396958 | DK123: 1.691335371 | DL123: 1.592530692 | DM123: 1.484577746 | DN123: 1.370172151 | DO123: 1.252000151 | DP123: 1.132636836 | DQ123: 1.014457921 | DR123: 0.8995689325 | DS123: 0.7897541454 | DT123: 0.6864460896 | DU123: 0.5907150173 | DV123: 0.5032764899 | DW123: 0.4245143055 | DX123: 0.3545153725 | DY123: 0.2931128572 | DZ123: 0.2399339596 | EA123: 0.1944489617 | EB123: 0.1560186771 | EC123: 0.1239380358 | ED123: 0.09747420055 | EE123: 0.07589825834 | EF123: 0.05851012062 | EG123: 0.04465676222 | EH123: 0.03374430794 | EI123: 0.02524473839 | EJ123: 0.01869813446 | EK123: 0.01371142959 | EL123: 0.009954610052 | EM123: 0.007155217206 | EN123: 0.005091883359 | EO123: 0.003587493531 | EP123: 0.002502423799 | EQ123: 0.001728174736 | ER123: 0.001181602762 | ES123: 0.000799857089 | ET123: 0.0005360562379 | EU123: 0.0003556848483 | EV123: 0.0002336562656 | EW123: 0.0001519660422 | EX123: 9.785268107e-05 | EY123: 6.238152123e-05 | EZ123: 3.937279523e-05 | FA123: 2.460331292e-05 | FB123: 1.522116829e-05 | FC123: 9.323080628e-06 | FD123: 5.653637354e-06 | FE123: 3.394325686e-06 | FF123: 2.017604922e-06 | FG123: 1.187341922e-06 | FH123: 6.917872131e-07 | FI123: 3.9904908e-07 | FJ123: 2.278962362e-07 | FK123: 1.288561189e-07 | FL123: 7.213233578e-08 | FM123: 3.997716568e-08 | FN123: 2.193567786e-08 | FO123: 1.191645766e-08 | FP123: 6.409148643e-09 | FQ123: 3.412797886e-09 | FR123: 1.7991934e-09 | FS123: 9.390791207e-10 | FT123: 4.852701472e-10 | FU123: 2.482687291e-10 | FV123: 1.257527589e-10 | FW123: 6.306233947e-11 | FX123: 3.130975645e-11 | FY123: 1.539027414e-11 | FZ123: 7.489797526e-12 | GA123: 3.608700621e-12 | GB123: 1.721427301e-12 | GC123: 8.129869484e-13 | GD123: 3.8013295e-13 | GE123: 1.759723823e-13 | GF123: 8.065115035e-14 | GG123: 3.659600465e-14 | GH123: 1.644045517e-14 | GI123: 7.312250411e-15 | GJ123: 3.219921834e-15 | GK123: 1.403772265e-15 | GL123: 6.059057047e-16 | GM123: 2.589229107e-16 | GN123: 1.095451047e-16 | GO123: 4.588518891e-17 | GP123: 1.902870041e-17 | GQ123: 7.812729507e-18
A124: 53 | B124: 169 | C124: 52 | D124: 170 | E124: 82 | F124: 200 | CE124: 0.0540513318 | CF124: 0.06999851459 | CG124: 0.08974872843 | CH124: 0.113926522 | CI124: 0.1431787049 | CJ124: 0.1781513326 | CK124: 0.2194607081 | CL124: 0.2676588035 | CM124: 0.3231940399 | CN124: 0.3863689428 | CO124: 0.4572967671 | CP124: 0.5358597138 | CQ124: 0.6216717601 | CR124: 0.7140493476 | CS124: 0.8119931564 | CT124: 0.9141838954 | CU124: 1.018994451 | CV124: 1.124519852 | CW124: 1.228625401 | CX124: 1.329012017 | CY124: 1.423296499 | CZ124: 1.509103094 | DA124: 1.584161642 | DB124: 1.646406728 | DC124: 1.694071851 | DD124: 1.725772624 | DE124: 1.740573551 | DF124: 1.738033885 | DG124: 1.718229433 | DH124: 1.681748791 | DI124: 1.62966429 | DJ124: 1.563479638 | DK124: 1.485057827 | DL124: 1.396534136 | DM124: 1.300219878 | DN124: 1.198502937 | DO124: 1.093750989 | DP124: 0.9882228012 | DQ124: 0.883992004 | DR124: 0.7828865977 | DS124: 0.6864460896 | DT124: 0.5958968195 | DU124: 0.512144785 | DV124: 0.4357842171 | DW124: 0.3671193662 | DX124: 0.3061964475 | DY124: 0.2528424883 | DZ124: 0.2067078734 | EA124: 0.167309668 | EB124: 0.1340732419 | EC124: 0.1063702646 | ED124: 0.08355172555 | EE124: 0.06497520564 | EF124: 0.05002613571 | EG124: 0.03813320485 | EH124: 0.0287784044 | EI124: 0.0215024116 | EJ124: 0.0159061358 | EK124: 0.01164928462 | EL124: 0.008446774136 | EM124: 0.006063725906 | EN124: 0.004309682713 | EO124: 0.003032550828 | EP124: 0.002112651852 | EQ124: 0.001457151931 | ER124: 0.0009950359974 | ES124: 0.0006727129748 | ET124: 0.0004502750374 | EU124: 0.0002983891264 | EV124: 0.0001957695624 | EW124: 0.000127164065 | EX124: 8.177879181e-05 | EY124: 5.206837605e-05 | EZ124: 3.282195386e-05 | FA124: 2.0483864e-05 | FB124: 1.265658068e-05 | FC124: 7.742441907e-06 | FD124: 4.689176438e-06 | FE124: 2.811721151e-06 | FF124: 1.669186935e-06 | FG124: 9.81058175e-07 | FH124: 5.708757569e-07 | FI124: 3.288860818e-07 | FJ124: 1.875886011e-07 | FK124: 1.05931336e-07 | FL124: 5.922424182e-08 | FM124: 3.278171157e-08 | FN124: 1.796473418e-08 | FO124: 9.746911459e-09 | FP124: 5.235646326e-09 | FQ124: 2.78439367e-09 | FR124: 1.466047457e-09 | FS124: 7.642271725e-10 | FT124: 3.944155027e-10 | FU124: 2.015313126e-10 | FV124: 1.019502148e-10 | FW124: 5.106117594e-11 | FX124: 2.531923237e-11 | FY124: 1.242989077e-11 | FZ124: 6.041449432e-12 | GA124: 2.907180738e-12 | GB124: 1.385032536e-12 | GC124: 6.532884403e-13 | GD124: 3.050752859e-13 | GE124: 1.410477412e-13 | GF124: 6.456279142e-14 | GG124: 2.925873315e-14 | GH124: 1.312761381e-14 | GI124: 5.831403878e-15 | GJ124: 2.564587409e-15 | GK124: 1.116654821e-15 | GL124: 4.813682482e-16 | GM124: 2.054437767e-16 | GN124: 8.680916827e-17 | GO124: 3.631576989e-17 | GP124: 1.504118216e-17 | GQ124: 6.167735511e-18
A125: 54 | B125: 168 | C125: 52 | D125: 170 | E125: 82 | F125: 200 | CE125: 0.04892981093 | CF125: 0.06328577071 | CG125: 0.0810392969 | CH125: 0.1027406504 | CI125: 0.1289573238 | CJ125: 0.1602532214 | CK125: 0.1971626198 | CL125: 0.2401593211 | CM125: 0.2896218806 | CN125: 0.3457963036 | CO125: 0.4087581067 | CP125: 0.478376092 | CQ125: 0.5542805119 | CR125: 0.6358384803 | CS125: 0.7221394329 | CT125: 0.8119931564 | CU125: 0.9039423474 | CV125: 0.9962908717 | CW125: 1.087147885 | CX125: 1.174486838 | CY125: 1.256217209 | CZ125: 1.330265653 | DA125: 1.394662336 | DB125: 1.447627492 | DC125: 1.487652948 | DD125: 1.513573403 | DE125: 1.524622774 | DF125: 1.520471813 | DG125: 1.501244395 | DH125: 1.467511388 | DI125: 1.420262486 | DJ125: 1.360857989 | DK125: 1.290963768 | DL125: 1.212473779 | DM125: 1.127425133 | DN125: 1.037911022 | DO125: 0.9459966343 | DP125: 0.8536426663 | DQ125: 0.7626401951 | DR125: 0.6745595946 | DS125: 0.5907150173 | DT125: 0.512144785 | DU125: 0.4396069532 | DV125: 0.3735884203 | DW125: 0.3143252829 | DX125: 0.2618317322 | DY125: 0.2159346305 | DZ125: 0.1763109851 | EA125: 0.1425258046 | EB125: 0.1140682256 | EC125: 0.09038428472 | ED125: 0.07090522188 | EE125: 0.05507069665 | EF125: 0.04234673934 | EG125: 0.03223861947 | EH125: 0.02429908676 | EI125: 0.01813261842 | EJ125: 0.01339640129 | EK125: 0.009798798556 | EL125: 0.00709601567 | EM125: 0.005087604671 | EN125: 0.003611346867 | EO125: 0.002537944414 | EP125: 0.001765842898 | EQ125: 0.001216407461 | ER125: 0.0008295893013 | ES125: 0.0005601499031 | ET125: 0.0003744574219 | EU125: 0.0002478321679 | EV125: 0.0001623939943 | EW125: 0.0001053511565 | EX125: 6.766525235e-05 | EY125: 4.30278018e-05 | EZ125: 2.708879386e-05 | FA125: 1.688446221e-05 | FB125: 1.041937938e-05 | FC125: 6.365807858e-06 | FD125: 3.850545464e-06 | FE125: 2.305940199e-06 | FF125: 1.367196319e-06 | FG125: 8.025475539e-07 | FH125: 4.66409863e-07 | FI125: 2.683624396e-07 | FJ125: 1.528737053e-07 | FK125: 8.621858831e-08 | FL125: 4.814221618e-08 | FM125: 2.661388678e-08 | FN125: 1.456624419e-08 | FO125: 7.893033079e-09 | FP125: 4.234452979e-09 | FQ125: 2.249094801e-09 | FR125: 1.182701816e-09 | FS125: 6.157434787e-10 | FT125: 3.173813722e-10 | FU125: 1.619645994e-10 | FV125: 8.183061666e-11 | FW125: 4.093253124e-11 | FX125: 2.027115223e-11 | FY125: 9.939060256e-12 | FZ125: 4.824688369e-12 | GA125: 2.318730453e-12 | GB125: 1.10328654e-12 | GC125: 5.19736753e-13 | GD125: 2.42401662e-13 | GE125: 1.119295641e-13 | GF125: 5.116948986e-14 | GG125: 2.315977933e-14 | GH125: 1.037802714e-14 | GI125: 4.604179452e-15 | GJ125: 2.022305382e-15 | GK125: 8.794239485e-16 | GL125: 3.786229143e-16 | GM125: 1.613884887e-16 | GN125: 6.810755204e-17 | GO125: 2.845607797e-17 | GP125: 1.177095959e-17 | GQ125: 4.820651657e-18
A126: 54 | B126: 168 | C126: 52 | D126: 170 | E126: 82 | F126: 200 | CE126: 0.04385284067 | CF126: 0.05664745171 | CG126: 0.07244694555 | CH126: 0.09173114975 | CI126: 0.1149928001 | CJ126: 0.1427189089 | CK126: 0.1753676327 | CL126: 0.2133410446 | CM126: 0.2569546317 | CN126: 0.3064047817 | CO126: 0.3617359584 | CP126: 0.42280964 | CQ126: 0.4892773757 | CR126: 0.5605604373 | CS126: 0.6358384803 | CT126: 0.7140493476 | CU126: 0.7939016439 | CV126: 0.8739009891 | CW126: 0.9523899759 | CX126: 1.027600852 | CY126: 1.097718923 | CZ126: 1.160953704 | DA126: 1.215614039 | DB126: 1.260182858 | DC126: 1.293386977 | DD126: 1.314257472 | DE126: 1.322176644 | DF126: 1.316908384 | DG126: 1.298609869 | DH126: 1.267823773 | DI126: 1.225451529 | DJ126: 1.172709492 | DK126: 1.111070963 | DL126: 1.04219794 | DM126: 0.9678669897 | DN126: 0.8898938407 | DO126: 0.810061103 | DP126: 0.7300530375 | DQ126: 0.6514005197 | DR126: 0.5754384062 | DS126: 0.5032764899 | DT126: 0.4357842171 | DU126: 0.3735884203 | DV126: 0.3170825709 | DW126: 0.2664455003 | DX126: 0.2216672151 | DY126: 0.1825793241 | DZ126: 0.148887686 | EA126: 0.120205135 | EB126: 0.09608250471 | EC126: 0.07603659606 | ED126: 0.05957417987 | EE126: 0.04621154976 | EF126: 0.03548951379 | EG126: 0.02698401819 | EH126: 0.02031282128 | EI126: 0.01513878179 | EJ126: 0.01117039848 | EK126: 0.008160249888 | EL126: 0.005901947003 | EM126: 0.004226143192 | EN126: 0.002996057648 | EO126: 0.002102873646 | EP126: 0.001461279347 | EQ126: 0.001005333998 | ER126: 0.0006847697199 | ES126: 0.0004617807039 | ET126: 0.0003083074861 | EU126: 0.0002037930711 | EV126: 0.0001333680536 | EW126: 8.641144495e-05 | EX126: 5.543036991e-05 | EY126: 3.520313503e-05 | EZ126: 2.213461443e-05 | FA126: 1.377906143e-05 | FB126: 8.492281202e-06 | FC126: 5.181865684e-06 | FD126: 3.130437175e-06 | FE126: 1.872323499e-06 | FF126: 1.108699467e-06 | FG126: 6.499857642e-07 | FH126: 3.772688135e-07 | FI126: 2.167978758e-07 | FJ126: 1.233434791e-07 | FK126: 6.947593833e-08 | FL126: 3.874446809e-08 | FM126: 2.139153946e-08 | FN126: 1.169314762e-08 | FO126: 6.328166248e-09 | FP126: 3.39063767e-09 | FQ126: 1.798630446e-09 | FR126: 9.446252576e-10 | FS126: 4.91172702e-10 | FT126: 2.528517393e-10 | FU126: 1.288708592e-10 | FV126: 6.502802406e-11 | FW126: 3.248653908e-11 | FX126: 1.6068058e-11 | FY126: 7.868290578e-12 | FZ126: 3.814647784e-12 | GA126: 1.830988238e-12 | GB126: 8.70109117e-13 | GC126: 4.093727584e-13 | GD126: 1.906870563e-13 | GE126: 8.793880201e-14 | GF126: 4.015105217e-14 | GG126: 1.814973847e-14 | GH126: 8.122708487e-15 | GI126: 3.59905446e-15 | GJ126: 1.578821474e-15 | GK126: 6.857008475e-16 | GL126: 2.948447525e-16 | GM126: 1.255189145e-16 | GN126: 5.290320724e-17 | GO126: 2.207556786e-17 | GP126: 9.120083644e-18 | GQ126: 3.730291872e-18
A127: 54 | B127: 168 | C127: 52 | D127: 170 | E127: 82 | F127: 200 | CE127: 0.03891159023 | CF127: 0.05020092708 | CG127: 0.06412118657 | CH127: 0.08108647451 | CI127: 0.1015201713 | CJ127: 0.1258384384 | CK127: 0.1544298871 | CL127: 0.187631799 | CM127: 0.2257036522 | CN127: 0.2687990849 | CO127: 0.3169378009 | CP127: 0.3699792347 | CQ127: 0.4276000176 | CR127: 0.4892773757 | CS127: 0.5542805119 | CT127: 0.6216717601 | CU127: 0.6903188383 | CV127: 0.758918895 | CW127: 0.8260342626 | CX127: 0.8901389655 | CY127: 0.9496741542 | CZ127: 1.003109815 | DA127: 1.04900944 | DB127: 1.086093884 | DC127: 1.113300477 | DD127: 1.129833577 | DE127: 1.13520322 | DF127: 1.12924924 | DG127: 1.112149202 | DH127: 1.084409609 | DI127: 1.04684098 | DJ127: 1.000518512 | DK127: 0.9467309973 | DL127: 0.8869213722 | DM127: 0.8226227178 | DN127: 0.7553936554 | DO127: 0.6867568847 | DP127: 0.6181441537 | DQ127: 0.5508502686 | DR127: 0.4859979308 | DS127: 0.4245143055 | DT127: 0.3671193662 | DU127: 0.3143252829 | DV127: 0.2664455003 | DW127: 0.2236116987 | DX127: 0.1857965761 | DY127: 0.1528403232 | DZ127: 0.1244787572 | EA127: 0.1003713105 | EB127: 0.08012739083 | EC127: 0.06332999631 | ED127: 0.04955585568 | EE127: 0.0383917184 | EF127: 0.02944673707 | EG127: 0.02236113589 | EH127: 0.01681154388 | EI127: 0.01251348828 | EJ127: 0.009221599125 | EK127: 0.006728079925 | EL127: 0.004859964536 | EM127: 0.003475618607 | EN127: 0.002460867225 | EO127: 0.001725048485 | EP127: 0.001197213168 | EQ127: 0.0008226189675 | ER127: 0.0005596068325 | ES127: 0.0003768984512 | ET127: 0.0002513175125 | EU127: 0.0001659121561 | EV127: 0.0001084403017 | EW127: 7.017142283e-05 | EX127: 4.495592137e-05 | EY127: 2.851481633e-05 | EZ127: 1.790652483e-05 | FA127: 1.113292018e-05 | FB127: 6.852734979e-06 | FC127: 4.176147531e-06 | FD127: 2.519676492e-06 | FE127: 1.505118836e-06 | FF127: 8.901308492e-07 | FG127: 5.211874741e-07 | FH127: 3.021281155e-07 | FI127: 1.733985132e-07 | FJ127: 9.852731589e-08 | FK127: 5.542746157e-08 | FL127: 3.087097759e-08 | FM127: 1.702287188e-08 | FN127: 9.293350862e-09 | FO127: 5.02306609e-09 | FP127: 2.68795817e-09 | FQ127: 1.424076025e-09 | FR127: 7.46966111e-10 | FS127: 3.879052683e-10 | FT127: 1.994378173e-10 | FU127: 1.015187828e-10 | FV127: 5.116139134e-11 | FW127: 2.552673951e-11 | FX127: 1.26097188e-11 | FY127: 6.166979602e-12 | FZ127: 2.986047263e-12 | GA127: 1.431455653e-12 | GB127: 6.793853441e-13 | GC127: 3.192357386e-13 | GD127: 1.485128017e-13 | GE127: 6.840271384e-14 | GF127: 3.119175629e-14 | GG127: 1.40819689e-14 | GH127: 6.294249986e-15 | GI127: 2.785362022e-15 | GJ127: 1.220327412e-15 | GK127: 5.293319878e-16 | GL127: 2.273196439e-16 | GM127: 9.665022066e-17 | GN127: 4.068420068e-17 | GO127: 1.695531182e-17 | GP127: 6.995887699e-18 | GQ127: 2.857833567e-18
A128: 54 | B128: 168 | C128: 52 | D128: 170 | E128: 82 | F128: 200 | CE128: 0.03418355952 | CF128: 0.04404535882 | CG128: 0.0561875475 | CH128: 0.07096383137 | CI128: 0.08873421047 | CJ128: 0.1098505356 | CK128: 0.1346388283 | CL128: 0.1633787328 | CM128: 0.1962807813 | CN128: 0.2334624766 | CO128: 0.2749245061 | CP128: 0.3205286645 | CQ128: 0.3699792347 | CR128: 0.42280964 | CS128: 0.478376092 | CT128: 0.5358597138 | CU128: 0.5942782067 | CV128: 0.6525075719 | CW128: 0.7093137236 | CX128: 0.7633930898 | CY128: 0.8134205528 | CZ128: 0.8581023945 | DA128: 0.8962313705 | DB128: 0.9267406733 | DC128: 0.9487534362 | DD128: 0.961624578 | DE128: 0.9649722026 | DF128: 0.9586964218 | DG128: 0.9429843062 | DH128: 0.9183006225 | DI128: 0.8853649961 | DJ128: 0.8451170659 | DK128: 0.7986719851 | DL128: 0.7472692053 | DM128: 0.6922178198 | DN128: 0.6348418082 | DO128: 0.5764283338 | DP128: 0.5181818237 | DQ128: 0.4611859686 | DR128: 0.4063750642 | DS128: 0.3545153725 | DT128: 0.3061964475 | DU128: 0.2618317322 | DV128: 0.2216672151 | DW128: 0.1857965761 | DX128: 0.1541810515 | DY128: 0.1266722122 | DZ128: 0.1030359458 | EA128: 0.0829761393 | EB128: 0.06615683828 | EC128: 0.0522219776 | ED128: 0.04081209997 | EE128: 0.03157778218 | EF128: 0.02418974904 | EG128: 0.01834586342 | EH128: 0.01377532978 | EI128: 0.01024054118 | EJ128: 0.007537040813 | EK128: 0.005492067686 | EL128: 0.003962122968 | EM128: 0.002829939001 | EN128: 0.002001166638 | EO128: 0.001401026948 | EP128: 0.0009711063157 | EQ128: 0.0006664140177 | ER128: 0.0004527709181 | ES128: 0.0003045579772 | ET128: 0.0002028236014 | EU128: 0.0001337285254 | EV128: 8.72944588e-05 | EW128: 5.641652771e-05 | EX128: 3.609799532e-05 | EY128: 2.286740433e-05 | EZ128: 1.434193377e-05 | FA128: 8.905444664e-06 | FB128: 5.47470297e-06 | FC128: 3.33213485e-06 | FD128: 2.007897926e-06 | FE128: 1.197892232e-06 | FF128: 7.075398767e-07 | FG128: 4.137529941e-07 | FH128: 2.395457294e-07 | FI128: 1.373070293e-07 | FJ128: 7.792093668e-08 | FK128: 4.377968306e-08 | FL128: 2.435275598e-08 | FM128: 1.341160259e-08 | FN128: 7.312574276e-09 | FO128: 3.947452927e-09 | FP128: 2.10969991e-09 | FQ128: 1.116301387e-09 | FR128: 5.847891404e-10 | FS128: 3.033012424e-10 | FT128: 1.557421388e-10 | FU128: 7.917628766e-11 | FV128: 3.985118049e-11 | FW128: 1.985840217e-11 | FX128: 9.79725626e-12 | FY128: 4.785437946e-12 | FZ128: 2.314173763e-12 | GA128: 1.107968203e-12 | GB128: 5.251890755e-13 | GC128: 2.464683318e-13 | GD128: 1.145153284e-13 | GE128: 5.267725976e-14 | GF128: 2.399052669e-14 | GG128: 1.081716478e-14 | GH128: 4.828854983e-15 | GI128: 2.134184376e-15 | GJ128: 9.338492287e-16 | GK128: 4.045560011e-16 | GL128: 1.735152245e-16 | GM128: 7.368067234e-17 | GN128: 3.097609226e-17 | GO128: 1.289308166e-17 | GP128: 5.313049872e-18 | GQ128: 2.167644744e-18
A129: 55 | B129: 167 | C129: 52 | D129: 170 | E129: 82 | F129: 200 | CE129: 0.02973121399 | CF129: 0.03826005785 | CG129: 0.04874562657 | CH129: 0.06148692116 | CI129: 0.07678685712 | CJ129: 0.09493975194 | CK129: 0.1162161136 | CL129: 0.1408450729 | CM129: 0.1689950659 | CN129: 0.200753648 | CO129: 0.2361075758 | CP129: 0.2749245061 | CQ129: 0.3169378009 | CR129: 0.3617359584 | CS129: 0.4087581067 | CT129: 0.4572967671 | CU129: 0.5065087339 | CV129: 0.555434435 | CW129: 0.6030255573 | CX129: 0.6481800971 | CY129: 0.6897833698 | CZ129: 0.7267529493 | DA129: 0.758085066 | DB129: 0.7828997149 | DC129: 0.8004816554 | DD129: 0.8103146442 | DE129: 0.8121066127 | DF129: 0.8058040784 | DG129: 0.7915947963 | DH129: 0.7698984678 | DI129: 0.7413461478 | DJ129: 0.7067497609 | DK129: 0.6670637806 | DL129: 0.6233415921 | DM129: 0.5766893173 | DN129: 0.5282199044 | DO129: 0.4790101028 | DP129: 0.4300625636 | DQ129: 0.382274792 | DR129: 0.3364160732 | DS129: 0.2931128572 | DT129: 0.2528424883 | DU129: 0.2159346305 | DV129: 0.1825793241 | DW129: 0.1528403232 | DX129: 0.1266722122 | DY129: 0.1039397859 | DZ129: 0.08443827175 | EA129: 0.06791315534 | EB129: 0.05407861211 | EC129: 0.04263381739 | ED129: 0.03327667762 | EE129: 0.02571477645 | EF129: 0.01967354406 | EG129: 0.01490182663 | EH129: 0.01117515269 | EI129: 0.008297064771 | EJ129: 0.006098914572 | EK129: 0.004438514828 | EL129: 0.003198010279 | EM129: 0.002281282613 | EN129: 0.001611147794 | EO129: 0.001126545473 | EP129: 0.0007798644572 | EQ129: 0.0005344986142 | ER129: 0.0003626862531 | ES129: 0.0002436535039 | ET129: 0.0001620583015 | EU129: 0.0001067153663 | EV129: 6.957283352e-05 | EW129: 4.490652802e-05 | EX129: 2.869698831e-05 | EY129: 1.815600185e-05 | EZ129: 1.137263684e-05 | FA129: 7.052761192e-06 | FB129: 4.330262677e-06 | FC129: 2.632245307e-06 | FD129: 1.584147198e-06 | FE129: 9.438908192e-07 | FF129: 5.568074606e-07 | FG129: 3.25196142e-07 | FH129: 1.880367684e-07 | FI129: 1.076458343e-07 | FJ129: 6.101108276e-08 | FK129: 3.423554865e-08 | FL129: 1.901966691e-08 | FM129: 1.046129808e-08 | FN129: 5.696725617e-09 | FO129: 3.071298888e-09 | FP129: 1.639365979e-09 | FQ129: 8.663368921e-10 | FR129: 4.532676817e-10 | FS129: 2.347900865e-10 | FT129: 1.204097936e-10 | FU129: 6.113654945e-11 | FV129: 3.073244338e-11 | FW129: 1.529502925e-11 | FX129: 7.536341833e-12 | FY129: 3.676443712e-12 | FZ129: 1.775629323e-12 | GA129: 8.490509476e-13 | GB129: 4.019501997e-13 | GC129: 1.883943186e-13 | GD129: 8.742193395e-14 | GE129: 4.016336324e-14 | GF129: 1.826824349e-14 | GG129: 8.226603483e-15 | GH129: 3.667764088e-15 | GI129: 1.618971777e-15 | GJ129: 7.075126627e-16 | GK129: 3.06116128e-16 | GL129: 1.311279468e-16 | GM129: 5.561108464e-17 | GN129: 2.334987315e-17 | GO129: 9.706546527e-18 | GP129: 3.99486411e-18 | GQ129: 1.627782354e-18
A130: 55 | B130: 167 | C130: 52 | D130: 170 | E130: 82 | F130: 200 | CE130: 0.0256014791 | CF130: 0.03290395841 | CG130: 0.04186858593 | CH130: 0.0527455098 | CI130: 0.06578694972 | CJ130: 0.08123647338 | CK130: 0.09931604764 | CL130: 0.1202111771 | CM130: 0.1440546649 | CN130: 0.1709097578 | CO130: 0.200753648 | CP130: 0.2334624766 | CQ130: 0.2687990849 | CR130: 0.3064047817 | CS130: 0.3457963036 | CT130: 0.3863689428 | CU130: 0.4274065052 | CV130: 0.4680983404 | CW130: 0.5075632038 | CX130: 0.5448791802 | CY130: 0.5791183855 | CZ130: 0.6093847014 | DA130: 0.6348524449 | DB130: 0.6548036642 | DC130: 0.6686617194 | DD130: 0.6760189586 | DE130: 0.6766566367 | DF130: 0.6705557193 | DG130: 0.6578978263 | DH130: 0.6390562508 | DI130: 0.6145776719 | DJ130: 0.5851558133 | DK130: 0.5515988158 | DL130: 0.514792465 | DM130: 0.4756616007 | DN130: 0.435132037 | DO130: 0.3940951423 | DP130: 0.3533769018 | DQ130: 0.3137128376 | DR130: 0.2757296557 | DS130: 0.2399339596 | DT130: 0.2067078734 | DU130: 0.1763109851 | DV130: 0.148887686 | DW130: 0.1244787572 | DX130: 0.1030359458 | DY130: 0.08443827175 | DZ130: 0.0685088953 | EA130: 0.05503153778 | EB130: 0.04376565051 | EC130: 0.03445975476 | ED130: 0.02686259918 | EE130: 0.02073198743 | EF130: 0.01584130285 | EG130: 0.0119838927 | EH130: 0.008975568844 | EI130: 0.006655537088 | EJ130: 0.004886088046 | EK130: 0.003551374929 | EL130: 0.002555576086 | EM130: 0.001820699034 | EN130: 0.001284235182 | EO130: 0.0008968256477 | EP130: 0.0006200525982 | EQ130: 0.0004244300245 | ER130: 0.0002876343311 | ES130: 0.0001929889299 | ET130: 0.0001281979648 | EU130: 8.431151987e-05 | EV130: 5.489714528e-05 | EW130: 3.538911151e-05 | EX130: 2.258637906e-05 | EY130: 1.427186145e-05 | EZ130: 8.928359824e-06 | FA130: 5.529932158e-06 | FB130: 3.39097804e-06 | FC130: 2.058672231e-06 | FD130: 1.237389683e-06 | FE130: 7.363475231e-07 | FF130: 4.338266477e-07 | FG130: 2.530501942e-07 | FH130: 1.461349785e-07 | FI130: 8.355236361e-08 | FJ130: 4.72955582e-08 | FK130: 2.650568462e-08 | FL130: 1.47066837e-08 | FM130: 8.078812577e-09 | FN130: 4.393770504e-09 | FO130: 2.365833954e-09 | FP130: 1.261212327e-09 | FQ130: 6.656550153e-10 | FR130: 3.478301831e-10 | FS130: 1.799460747e-10 | FT130: 9.216680753e-11 | FU130: 4.673731586e-11 | FV130: 2.346443194e-11 | FW130: 1.16630833e-11 | FX130: 5.739496103e-12 | FY130: 2.796347942e-12 | FZ130: 1.348856369e-12 | GA130: 6.441652018e-13 | GB130: 3.045691203e-13 | GC130: 1.425711106e-13 | GD130: 6.607455575e-14 | GE130: 3.031754467e-14 | GF130: 1.377243894e-14 | GG130: 6.194193099e-15 | GH130: 2.758136019e-15 | GI130: 1.215916284e-15 | GJ130: 5.306995567e-16 | GK130: 2.293246979e-16 | GL130: 9.810925788e-17 | GM130: 4.155527936e-17 | GN130: 1.742607092e-17 | GO130: 7.234854528e-18 | GP130: 2.973837163e-18 | GQ130: 1.210212462e-18
A131: 55 | B131: 167 | C131: 52 | D131: 170 | E131: 82 | F131: 200 | CE131: 0.02182601887 | CF131: 0.02801610316 | CG131: 0.03560393378 | CH131: 0.04479662513 | CI131: 0.055801987 | CJ131: 0.06881943231 | CK131: 0.08402907122 | CL131: 0.101579272 | CM131: 0.121573154 | CN131: 0.1440546649 | CO131: 0.1689950659 | CP131: 0.1962807813 | CQ131: 0.2257036522 | CR131: 0.2569546317 | CS131: 0.2896218806 | CT131: 0.3231940399 | CU131: 0.3570691852 | CV131: 0.390569618 | CW131: 0.4229622392 | CX131: 0.4534838148 | CY131: 0.4813700229 | CZ131: 0.5058867987 | DA131: 0.5263622161 | DB131: 0.5422169906 | DC131: 0.5529916746 | DD131: 0.5583687687 | DE131: 0.5581882624 | DF131: 0.5524555439 | DG131: 0.5413411329 | DH131: 0.525172255 | DI131: 0.5044168386 | DJ131: 0.4796610268 | DK131: 0.4515817112 | DL131: 0.4209158815 | DM131: 0.388428721 | DN131: 0.3548823599 | DO131: 0.3210070314 | DP131: 0.2874760927 | DQ131: 0.2548859969 | DR131: 0.2237418759 | DS131: 0.1944489617 | DT131: 0.167309668 | DU131: 0.1425258046 | DV131: 0.120205135 | DW131: 0.1003713105 | DX131: 0.0829761393 | DY131: 0.06791315534 | DZ131: 0.05503153778 | EA131: 0.04414956651 | EB131: 0.03506697421 | EC131: 0.02757574151 | ED131: 0.02146906644 | EE131: 0.01654840632 | EF131: 0.01262863021 | EG131: 0.009541427897 | EH131: 0.00713719486 | EI131: 0.005285654728 | EJ131: 0.003875494119 | EK131: 0.002813276568 | EL131: 0.002021877461 | EM131: 0.001438647145 | EN131: 0.001013469774 | EO131: 0.0007068452895 | EP131: 0.0004880844717 | EQ131: 0.0003336742315 | ER131: 0.0002258433993 | ES131: 0.0001513384182 | ET131: 0.0001004033108 | EU131: 6.594834973e-05 | EV131: 4.288613281e-05 | EW131: 2.761130258e-05 | EX131: 1.760005234e-05 | EY131: 1.110703342e-05 | EZ131: 6.939676939e-06 | FA131: 4.292768644e-06 | FB131: 2.629013208e-06 | FC131: 1.59406163e-06 | FD131: 9.569175141e-07 | FE131: 5.687232118e-07 | FF131: 3.346450917e-07 | FG131: 1.949507994e-07 | FH131: 1.124404659e-07 | FI131: 6.42062503e-08 | FJ131: 3.629852969e-08 | FK131: 2.031691742e-08 | FL131: 1.125858088e-08 | FM131: 6.176842733e-09 | FN131: 3.355107896e-09 | FO131: 1.804278165e-09 | FP131: 9.606331089e-10 | FQ131: 5.06370811e-10 | FR131: 2.642632862e-10 | FS131: 1.365406778e-10 | FT131: 6.984644916e-11 | FU131: 3.537395881e-11 | FV131: 1.773699544e-11 | FW131: 8.80508389e-12 | FX131: 4.327568958e-12 | FY131: 2.105772991e-12 | FZ131: 1.01446288e-12 | GA131: 4.838578872e-13 | GB131: 2.284843952e-13 | GC131: 1.068199374e-13 | GD131: 4.944303814e-14 | GE131: 2.265765889e-14 | GF131: 1.027973631e-14 | GG131: 4.61749007e-15 | GH131: 2.053463657e-15 | GI131: 9.041180231e-16 | GJ131: 3.941125711e-16 | GK131: 1.700875416e-16 | GL131: 7.267445365e-17 | GM131: 3.074313146e-17 | GN131: 1.287571882e-17 | GO131: 5.338901653e-18 | GP131: 2.191741914e-18 | GQ131: 8.90807696e-19
A132: 56 | B132: 166 | C132: 52 | D132: 170 | E132: 82 | F132: 200 | CE132: 0.01842218126 | CF132: 0.02361698009 | CG132: 0.02997538233 | CH132: 0.03766709731 | CI132: 0.04686154813 | CJ132: 0.05772024492 | CK132: 0.07038769663 | CL132: 0.08498110955 | CM132: 0.101579272 | CN132: 0.1202111771 | CO132: 0.1408450729 | CP132: 0.1633787328 | CQ132: 0.187631799 | CR132: 0.2133410446 | CS132: 0.2401593211 | CT132: 0.2676588035 | CU132: 0.2953389131 | CV132: 0.3226390035 | CW132: 0.3489555566 | CX132: 0.373663282 | CY132: 0.3961391678 | CZ132: 0.4157882393 | DA132: 0.4320695616 | DB132: 0.4445209141 | DC132: 0.4527805684 | DD132: 0.4566047417 | DE132: 0.4558795482 | DF132: 0.4506266335 | DG132: 0.4410021012 | DH132: 0.4272888068 | DI132: 0.4098825496 | DJ132: 0.3892731029 | DK132: 0.3660213513 | DL132: 0.3407340209 | DM132: 0.314037587 | DN132: 0.2865529081 | DO132: 0.2588719911 | DP132: 0.2315380456 | DQ132: 0.2050296722 | DR132: 0.1797496803 | DS132: 0.1560186771 | DT132: 0.1340732419 | DU132: 0.1140682256 | DV132: 0.09608250471 | DW132: 0.08012739083 | DX132: 0.06615683828 | DY132: 0.05407861211 | DZ132: 0.04376565051 | EA132: 0.03506697421 | EB132: 0.02781763825 | EC132: 0.02184737542 | ED132: 0.01698772973 | EE132: 0.01307761265 | EF132: 0.00996732574 | EG132: 0.007521178374 | EH132: 0.005618885482 | EI132: 0.004155961621 | EJ132: 0.003043336193 | EK132: 0.002206405791 | EL132: 0.001583718178 | EM132: 0.001125453276 | EN132: 0.0007918339043 | EO132: 0.0005515663612 | EP132: 0.0003803807281 | EQ132: 0.000259714558 | ER132: 0.0001755622501 | ES132: 0.000117495988 | ET132: 7.78523976e-05 | EU132: 5.107142804e-05 | EV132: 3.316966355e-05 | EW132: 2.132854288e-05 | EX132: 1.357807995e-05 | EY132: 8.558006102e-06 | EZ132: 5.340278142e-06 | FA132: 3.299227154e-06 | FB132: 2.017983514e-06 | FC132: 1.222024927e-06 | FD132: 7.3265509e-07 | FE132: 4.348867066e-07 | FF132: 2.555699271e-07 | FG132: 1.486963886e-07 | FH132: 8.565409836e-08 | FI132: 4.884869095e-08 | FJ132: 2.758130224e-08 | FK132: 1.541819946e-08 | FL132: 8.533154471e-09 | FM132: 4.675656633e-09 | FN132: 2.536487161e-09 | FO132: 1.362322036e-09 | FP132: 7.244091879e-10 | FQ132: 3.813688117e-10 | FR132: 1.987757736e-10 | FS132: 1.02574353e-10 | FT132: 5.240481298e-11 | FU132: 2.650700254e-11 | FV132: 1.327416217e-11 | FW132: 6.581284632e-12 | FX132: 3.230511443e-12 | FY132: 1.569961306e-12 | FZ132: 7.553768466e-13 | GA132: 3.598284055e-13 | GB132: 1.697009505e-13 | GC132: 7.923738978e-14 | GD132: 3.662967806e-14 | GE132: 1.676459622e-14 | GF132: 7.596440648e-15 | GG132: 3.4078797e-15 | GH132: 1.51361498e-15 | GI132: 6.655851657e-16 | GJ132: 2.897669877e-16 | GK132: 1.248967775e-16 | GL132: 5.329796356e-17 | GM132: 2.251785681e-17 | GN132: 9.418907805e-18 | GO132: 3.900597103e-18 | GP132: 1.599258608e-18 | GQ132: 6.491773447e-19
A133: 56 | B133: 166 | C133: 52 | D133: 170 | E133: 82 | F133: 200 | CE133: 0.01539446607 | CF133: 0.01971051874 | CG133: 0.02498552808 | CH133: 0.03135711268 | CI133: 0.03896194739 | CJ133: 0.04792943392 | CK133: 0.05837420771 | CL133: 0.07038769663 | CM133: 0.08402907122 | CN133: 0.09931604764 | CO133: 0.1162161136 | CP133: 0.1346388283 | CQ133: 0.1544298871 | CR133: 0.1753676327 | CS133: 0.1971626198 | CT133: 0.2194607081 | CU133: 0.2418499641 | CV133: 0.2638714075 | CW133: 0.2850333618 | CX133: 0.304828881 | CY133: 0.3227554495 | CZ133: 0.3383359223 | DA133: 0.3511395053 | DB133: 0.3608014966 | DC133: 0.3670405297 | DD133: 0.3696721818 | DE133: 0.3686180299 | DF133: 0.3639095324 | DG133: 0.3556864698 | DH133: 0.3441900518 | DI133: 0.329751164 | DJ133: 0.3127745559 | DK133: 0.2937200207 | DL133: 0.273081789 | DM133: 0.2513674178 | DN133: 0.2290774201 | DO133: 0.2066867508 | DP133: 0.1846290555 | DQ133: 0.1632843317 | DR133: 0.1429703675 | DS133: 0.1239380358 | DT133: 0.1063702646 | DU133: 0.09038428472 | DV133: 0.07603659606 | DW133: 0.06332999631 | DX133: 0.0522219776 | DY133: 0.04263381739 | DZ133: 0.03445975476 | EA133: 0.02757574151 | EB133: 0.02184737542 | EC133: 0.01713674754 | ED133: 0.01330805482 | EE133: 0.01023193609 | EF133: 0.007788576891 | EG133: 0.005869693981 | EH133: 0.004379553772 | EI133: 0.003235201396 | EJ133: 0.002366082235 | EK133: 0.001713228947 | EL133: 0.001228168707 | EM133: 0.0008716812546 | EN133: 0.0006125117734 | EO133: 0.0004261163815 | EP133: 0.0002934938971 | EQ133: 0.0002001368107 | ER133: 0.0001351176023 | ES133: 9.031376345e-05 | ET133: 5.976583692e-05 | EU133: 3.915697429e-05 | EV133: 2.53993324e-05 | EW133: 1.631144863e-05 | EX133: 1.037098052e-05 | EY133: 6.528360975e-06 | EZ133: 4.068605262e-06 | FA133: 2.510406253e-06 | FB133: 1.53355556e-06 | FC133: 9.274960674e-07 | FD133: 5.553690764e-07 | FE133: 3.292367958e-07 | FF133: 1.932378042e-07 | FG133: 1.122878785e-07 | FH133: 6.459973175e-08 | FI133: 3.679472892e-08 | FJ133: 2.074901841e-08 | FK133: 1.158421367e-08 | FL133: 6.403134406e-09 | FM133: 3.50409387e-09 | FN133: 1.898523166e-09 | FO133: 1.018387652e-09 | FP133: 5.408382568e-10 | FQ133: 2.843667005e-10 | FR133: 1.480291102e-10 | FS133: 7.629087105e-11 | FT133: 3.892737094e-11 | FU133: 1.96650307e-11 | FV133: 9.835382157e-12 | FW133: 4.870178789e-12 | FX133: 2.387567319e-12 | FY133: 1.158839798e-12 | FZ133: 5.568628334e-13 | GA133: 2.649293776e-13 | GB133: 1.247869186e-13 | GC133: 5.819223766e-14 | GD133: 2.686693405e-14 | GE133: 1.228084405e-14 | GF133: 5.557703562e-15 | GG133: 2.490116098e-15 | GH133: 1.104589393e-15 | GI133: 4.851088486e-16 | GJ133: 2.109281674e-16 | GK133: 9.080024441e-17 | GL133: 3.869871201e-17 | GM133: 1.632913048e-17 | GN133: 6.821606488e-18 | GO133: 2.82141728e-18 | GP133: 1.155327301e-18 | GQ133: 4.683815778e-19
A134: 57 | B134: 165 | C134: 53 | D134: 169 | E134: 83 | F134: 199 | CF134: 0.01628653887 | CG134: 0.02061908504 | CH134: 0.02584443454 | CI134: 0.0320716818 | CJ134: 0.03940338113 | CK134: 0.04792943392 | CL134: 0.05772024492 | CM134: 0.06881943231 | CN134: 0.08123647338 | CO134: 0.09493975194 | CP134: 0.1098505356 | CQ134: 0.1258384384 | CR134: 0.1427189089 | CS134: 0.1602532214 | CT134: 0.1781513326 | CU134: 0.1960778054 | CV134: 0.2136608023 | CW134: 0.2305039262 | CX134: 0.2462004571 | CY134: 0.260349314 | CZ134: 0.2725718963 | DA134: 0.2825288286 | DB134: 0.2899355822 | DC134: 0.2945759729 | DD134: 0.2963126411 | DE134: 0.2950938057 | DF134: 0.2909558291 | DG134: 0.284021415 | DH134: 0.274493564 | DI134: 0.2626457035 | DJ134: 0.248808659 | DK134: 0.2333553357 | DL134: 0.2166840956 | DM134: 0.1992018608 | DN134: 0.1813079308 | DO134: 0.1633793889 | DP134: 0.1457588013 | DQ134: 0.1287447014 | DR134: 0.1125851201 | DS134: 0.09747420055 | DT134: 0.08355172555 | DU134: 0.07090522188 | DV134: 0.05957417987 | DW134: 0.04955585568 | DX134: 0.04081209997 | DY134: 0.03327667762 | DZ134: 0.02686259918 | EA134: 0.02146906644 | EB134: 0.01698772973 | EC134: 0.01330805482 | ED134: 0.0103216915 | EE134: 0.007925820333 | EF134: 0.006025521315 | EG134: 0.004535258918 | EH134: 0.003379610106 | EI134: 0.002493378266 | EJ134: 0.001821238381 | EK134: 0.00131705064 | EL134: 0.000942964208 | EM134: 0.0006684131704 | EN134: 0.0004690853221 | EO134: 0.0003259235516 | EP134: 0.0002242005635 | EQ134: 0.000152691447 | ER134: 0.0001029555532 | ES134: 6.872929637e-05 | ET134: 4.542459606e-05 | EU134: 2.972331921e-05 | EV134: 1.92557568e-05 | EW134: 1.235039746e-05 | EX134: 7.842568689e-06 | EY134: 4.930520665e-06 | EZ134: 3.068910978e-06 | FA134: 1.891179943e-06 | FB134: 1.153821085e-06 | FC134: 6.969492323e-07 | FD134: 4.167934374e-07 | FE134: 2.467730084e-07 | FF134: 1.446543486e-07 | FG134: 8.395032614e-08 | FH134: 4.823589449e-08 | FI134: 2.743944611e-08 | FJ134: 1.545387517e-08 | FK134: 8.617008358e-09 | FL134: 4.756994877e-09 | FM134: 2.599955462e-09 | FN134: 1.40687719e-09 | FO134: 7.537086917e-10 | FP134: 3.997678954e-10 | FQ134: 2.099275123e-10 | FR134: 1.091409827e-10 | FS134: 5.617763032e-11 | FT134: 2.86283308e-11 | FU134: 1.444394058e-11 | FV134: 7.214934861e-12 | FW134: 3.56809321e-12 | FX134: 1.747016564e-12 | FY134: 8.468664145e-13 | FZ134: 4.064338319e-13 | GA134: 1.931175972e-13 | GB134: 9.08470651e-14 | GC134: 4.231136237e-14 | GD134: 1.95101304e-14 | GE134: 8.906773126e-15 | GF134: 4.025665292e-15 | GG134: 1.801407604e-15 | GH134: 7.980743911e-16 | GI134: 3.50051396e-16 | GJ134: 1.520118022e-16 | GK134: 6.53551562e-17 | GL134: 2.781886848e-17 | GM134: 1.17234685e-17 | GN134: 4.891362339e-18 | GO134: 2.020508144e-18 | GP134: 8.263203154e-19
A135: 57 | B135: 165 | C135: 53 | D135: 169 | E135: 83 | F135: 199 | CF135: 0.01332344708 | CG135: 0.0168464075 | CH135: 0.02108895487 | CI135: 0.02613724858 | CJ135: 0.0320716818 | CK135: 0.03896194739 | CL135: 0.04686154813 | CM135: 0.055801987 | CN135: 0.06578694972 | CO135: 0.07678685712 | CP135: 0.08873421047 | CQ135: 0.1015201713 | CR135: 0.1149928001 | CS135: 0.1289573238 | CT135: 0.1431787049 | CU135: 0.1573866541 | CV135: 0.1712830671 | CW135: 0.1845516849 | CX135: 0.1968695974 | CY135: 0.2079200385 | CZ135: 0.2174057848 | DA135: 0.2250623762 | DB135: 0.2306703418 | DC135: 0.2340656444 | DD135: 0.2351476503 | DE135: 0.2338840837 | DF135: 0.2303126266 | DG135: 0.2245390513 | DH135: 0.2167320175 | DI135: 0.2071148885 | DJ135: 0.1959551222 | DK135: 0.1835519388 | DL135: 0.1702230576 | DM135: 0.156291318 | DN135: 0.142071961 | DO135: 0.1278612517 | DP135: 0.1139269796 | DQ135: 0.1005012054 | DR135: 0.0877754395 | DS135: 0.07589825834 | DT135: 0.06497520564 | DU135: 0.05507069665 | DV135: 0.04621154976 | DW135: 0.0383917184 | DX135: 0.03157778218 | DY135: 0.02571477645 | DZ135: 0.02073198743 | EA135: 0.01654840632 | EB135: 0.01307761265 | EC135: 0.01023193609 | ED135: 0.007925820333 | EE135: 0.006078377699 | EF135: 0.004615175256 | EG135: 0.003469331245 | EH135: 0.002582024701 | EI135: 0.00190253245 | EJ135: 0.001387908413 | EK135: 0.001002412789 | EL135: 0.0007167858853 | EM135: 0.0005074454301 | EN135: 0.0003556692359 | EO135: 0.0002468086141 | EP135: 0.0001695631125 | EQ135: 0.0001153345702 | ER135: 7.766845721e-05 | ES135: 5.178296463e-05 | ET135: 3.418111283e-05 | EU135: 2.233791018e-05 | EV135: 1.445293129e-05 | EW135: 9.258196427e-06 | EX135: 5.871565348e-06 | EY135: 3.686705628e-06 | EZ135: 2.291817758e-06 | FA135: 1.410518393e-06 | FB135: 8.594774419e-07 | FC135: 5.18498216e-07 | FD135: 3.096828146e-07 | FE135: 1.83123466e-07 | FF135: 1.072081864e-07 | FG135: 6.213967161e-08 | FH135: 3.565882377e-08 | FI135: 2.025919239e-08 | FJ135: 1.139552396e-08 | FK135: 6.346050505e-09 | FL135: 3.498886097e-09 | FM135: 1.909911046e-09 | FN135: 1.032175464e-09 | FO135: 5.522693958e-10 | FP135: 2.925536215e-10 | FQ135: 1.534323847e-10 | FR135: 7.966831771e-11 | FS135: 4.095541334e-11 | FT135: 2.084462255e-11 | FU135: 1.05034945e-11 | FV135: 5.239992253e-12 | FW135: 2.588120736e-12 | FX135: 1.265597112e-12 | FY135: 6.127219984e-13 | FZ135: 2.936895718e-13 | GA135: 1.393704282e-13 | GB135: 6.548016992e-14 | GC135: 3.045832499e-14 | GD135: 1.402682214e-14 | GE135: 6.395428075e-15 | GF135: 2.886934983e-15 | GG135: 1.290213086e-15 | GH135: 5.708775139e-16 | GI135: 2.500814546e-16 | GJ135: 1.084618709e-16 | GK135: 4.657252148e-17 | GL135: 1.979882728e-17 | GM135: 8.333093164e-18 | GN135: 3.472402521e-18 | GO135: 1.432553809e-18 | GP135: 5.851253038e-19
A136: 57 | B136: 165 | C136: 53 | D136: 169 | E136: 83 | F136: 199 | CF136: 0.01079099416 | CG136: 0.01362706316 | CH136: 0.01703727509 | CI136: 0.02108895487 | CJ136: 0.02584443454 | CK136: 0.03135711268 | CL136: 0.03766709731 | CM136: 0.04479662513 | CN136: 0.0527455098 | CO136: 0.06148692116 | CP136: 0.07096383137 | CQ136: 0.08108647451 | CR136: 0.09173114975 | CS136: 0.1027406504 | CT136: 0.113926522 | CU136: 0.1250732466 | CV136: 0.1359443187 | CW136: 0.1462900394 | CX136: 0.1558567107 | CY136: 0.1643967816 | CZ136: 0.1716793938 | DA136: 0.1775007065 | DB136: 0.18169336 | DC136: 0.1841344639 | DD136: 0.1847515805 | DE136: 0.1835262954 | DF136: 0.1804951303 | DG136: 0.1757477345 | DH136: 0.1694224808 | DI136: 0.1616997667 | DJ136: 0.1527934739 | DK136: 0.14294115 | DL136: 0.1323935398 | DM136: 0.1214041049 | DN136: 0.1102191363 | DO136: 0.09906897991 | DP136: 0.08816078204 | DQ136: 0.07767302728 | DR136: 0.06775199458 | DS136: 0.05851012062 | DT136: 0.05002613571 | DU136: 0.04234673934 | DV136: 0.03548951379 | DW136: 0.02944673707 | DX136: 0.02418974904 | DY136: 0.01967354406 | DZ136: 0.01584130285 | EA136: 0.01262863021 | EB136: 0.00996732574 | EC136: 0.007788576891 | ED136: 0.006025521315 | EE136: 0.004615175256 | EF136: 0.003499764514 | EG136: 0.002627522866 | EH136: 0.001953040459 | EI136: 0.001437252363 | EJ136: 0.001047157187 | EK136: 0.0007553492101 | EL136: 0.0005394370059 | EM136: 0.0003814088343 | EN136: 0.0002669917336 | EO136: 0.0001850384311 | EP136: 0.0001269647363 | EQ136: 8.625044565e-05 | ER136: 5.800916786e-05 | ES136: 3.862682203e-05 | ET136: 2.546468902e-05 | EU136: 1.662052853e-05 | EV136: 1.074010034e-05 | EW136: 6.871141664e-06 | EX136: 4.35217672e-06 | EY136: 2.729236656e-06 | EZ136: 1.694466257e-06 | FA136: 1.041553804e-06 | FB136: 6.33851539e-07 | FC136: 3.819006908e-07 | FD136: 2.278087463e-07 | FE136: 1.345387534e-07 | FF136: 7.866498417e-08 | FG136: 4.553785555e-08 | FH136: 2.609881242e-08 | FI136: 1.480900814e-08 | FJ136: 8.31932811e-09 | FK136: 4.62708619e-09 | FL136: 2.547909398e-09 | FM136: 1.389048556e-09 | FN136: 7.49735248e-10 | FO136: 4.006410877e-10 | FP136: 2.119630199e-10 | FQ136: 1.110252516e-10 | FR136: 5.757586726e-11 | FS136: 2.956080565e-11 | FT136: 1.502619772e-11 | FU136: 7.562040295e-12 | FV136: 3.767783418e-12 | FW136: 1.858617102e-12 | FX136: 9.077180732e-13 | FY136: 4.389035478e-13 | FZ136: 2.101088063e-13 | GA136: 9.958099804e-14 | GB136: 4.672676867e-14 | GC136: 2.170761341e-14 | GD136: 9.984250375e-15 | GE136: 4.546486472e-15 | GF136: 2.049714618e-15 | GG136: 9.148880364e-16 | GH136: 4.042961019e-16 | GI136: 1.768838631e-16 | GJ136: 7.661855031e-17 | GK136: 3.285766531e-17 | GL136: 1.395071696e-17 | GM136: 5.864262592e-18 | GN136: 2.440547955e-18 | GO136: 1.00558396e-18 | GP136: 4.102101331e-19
A137: 58 | B137: 164 | C137: 53 | D137: 169 | E137: 83 | F137: 199 | CF137: 0.008652933558 | CG137: 0.01091325471 | CH137: 0.01362706316 | CI137: 0.0168464075 | CJ137: 0.02061908504 | CK137: 0.02498552808 | CL137: 0.02997538233 | CM137: 0.03560393378 | CN137: 0.04186858593 | CO137: 0.04874562657 | CP137: 0.0561875475 | CQ137: 0.06412118657 | CR137: 0.07244694555 | CS137: 0.0810392969 | CT137: 0.08974872843 | CU137: 0.09840518884 | CV137: 0.1068229948 | CW137: 0.1148070491 | CX137: 0.12216011 | CY137: 0.1286907496 | CZ137: 0.134221566 | DA137: 0.1385971588 | DB137: 0.141691373 | DC137: 0.1434133383 | DD137: 0.1437119018 | DE137: 0.1425781527 | DF137: 0.1400458634 | DG137: 0.1361898189 | DH137: 0.1311221479 | DI137: 0.1249869074 | DJ137: 0.1179532862 | DK137: 0.1102078735 | DL137: 0.1019464849 | DM137: 0.09336604103 | DN137: 0.08465696356 | DO137: 0.07599648154 | DP137: 0.06754315447 | DQ137: 0.05943280785 | DR137: 0.05177596627 | DS137: 0.04465676222 | DT137: 0.03813320485 | DU137: 0.03223861947 | DV137: 0.02698401819 | DW137: 0.02236113589 | DX137: 0.01834586342 | DY137: 0.01490182663 | DZ137: 0.0119838927 | EA137: 0.009541427897 | EB137: 0.007521178374 | EC137: 0.005869693981 | ED137: 0.004535258918 | EE137: 0.003469331245 | EF137: 0.002627522866 | EG137: 0.001970172696 | EH137: 0.001462578358 | EI137: 0.001074956884 | EJ137: 0.0007822039459 | EK137: 0.0005635156931 | EL137: 0.0004019287595 | EM137: 0.0002838240583 | EN137: 0.0001984295666 | EO137: 0.0001373474551 | EP137: 9.412216438e-05 | EQ137: 6.385872586e-05 | ER137: 4.289489883e-05 | ES137: 2.85264745e-05 | ET137: 1.878224975e-05 | EU137: 1.224346024e-05 | EV137: 7.901650109e-06 | EW137: 5.048803516e-06 | EX137: 3.193862384e-06 | EY137: 2.000326943e-06 | EZ137: 1.240345927e-06 | FA137: 7.614505773e-07 | FB137: 4.628046042e-07 | FC137: 2.784906871e-07 | FD137: 1.659131228e-07 | FE137: 9.786059542e-08 | FF137: 5.714681429e-08 | FG137: 3.303948367e-08 | FH137: 1.891174195e-08 | FI137: 1.071733659e-08 | FJ137: 6.013111575e-09 | FK137: 3.340171065e-09 | FL137: 1.836941019e-09 | FM137: 1.00018139e-09 | FN137: 5.391621326e-10 | FO137: 2.877511384e-10 | FP137: 1.520448707e-10 | FQ137: 7.953962734e-11 | FR137: 4.119574729e-11 | FS137: 2.112410289e-11 | FT137: 1.072410896e-11 | FU137: 5.390154541e-12 | FV137: 2.682243931e-12 | FW137: 1.321455006e-12 | FX137: 6.445602888e-13 | FY137: 3.112660576e-13 | FZ137: 1.488185402e-13 | GA137: 7.044324766e-14 | GB137: 3.301252594e-14 | GC137: 1.531705233e-14 | GD137: 7.036046349e-15 | GE137: 3.199920897e-15 | GF137: 1.440810446e-15 | GG137: 6.422905167e-16 | GH137: 2.834739963e-16 | GI137: 1.238659671e-16 | GJ137: 5.358556628e-17 | GK137: 2.29509521e-17 | GL137: 9.732191448e-18 | GM137: 4.085805004e-18 | GN137: 1.698250235e-18 | GO137: 6.988480958e-19 | GP137: 2.847219464e-19
A138: 58 | B138: 164 | C138: 53 | D138: 169 | E138: 83 | F138: 199 | CF138: 0.006869455834 | CG138: 0.008652933558 | CH138: 0.01079099416 | CI138: 0.01332344708 | CJ138: 0.01628653887 | CK138: 0.01971051874 | CL138: 0.02361698009 | CM138: 0.02801610316 | CN138: 0.03290395841 | CO138: 0.03826005785 | CP138: 0.04404535882 | CQ138: 0.05020092708 | CR138: 0.05664745171 | CS138: 0.06328577071 | CT138: 0.06999851459 | CU138: 0.07665290704 | CV138: 0.08310468182 | CW138: 0.08920298909 | CX138: 0.09479607999 | CY138: 0.0997374833 | CZ138: 0.1038923302 | DA138: 0.1071434494 | DB138: 0.1093968498 | DC138: 0.1105862328 | DD138: 0.1106762323 | DE138: 0.1096641619 | DF138: 0.1075801478 | DG138: 0.1044856394 | DH138: 0.1004703992 | DI138: 0.09564817908 | DJ138: 0.09015137189 | DK138: 0.08412499063 | DL138: 0.07772035449 | DM138: 0.07108886362 | DN138: 0.06437621315 | DO138: 0.05771734374 | DP138: 0.05123235275 | DQ138: 0.045023507 | DR138: 0.03917341157 | DS138: 0.03374430794 | DT138: 0.0287784044 | DU138: 0.02429908676 | DV138: 0.02031282128 | DW138: 0.01681154388 | DX138: 0.01377532978 | DY138: 0.01117515269 | DZ138: 0.008975568844 | EA138: 0.00713719486 | EB138: 0.005618885482 | EC138: 0.004379553772 | ED138: 0.003379610106 | EE138: 0.002582024701 | EF138: 0.001953040459 | EG138: 0.001462578358 | EH138: 0.001084386497 | EI138: 0.0007959872549 | EJ138: 0.0005784757826 | EK138: 0.0004162184291 | EL138: 0.0002964930273 | EM138: 0.0002091051448 | EN138: 0.0001460064385 | EO138: 0.0001009337367 | EP138: 6.908086245e-05 | EQ138: 4.680973748e-05 | ER138: 3.140304166e-05 | ES138: 2.08575974e-05 | ET138: 1.371557124e-05 | EU138: 8.929364999e-06 | EV138: 5.755516538e-06 | EW138: 3.672866067e-06 | EX138: 2.320507266e-06 | EY138: 1.451502635e-06 | EZ138: 8.988966872e-07 | FA138: 5.511360081e-07 | FB138: 3.345529378e-07 | FC138: 2.010610585e-07 | FD138: 1.19632213e-07 | FE138: 7.047342256e-08 | FF138: 4.110168684e-08 | FG138: 2.373290951e-08 | FH138: 1.356748581e-08 | FI138: 7.679002763e-09 | FJ138: 4.302960178e-09 | FK138: 2.387189442e-09 | FL138: 1.31118357e-09 | FM138: 7.130125384e-10 | FN138: 3.838732864e-10 | FO138: 2.046141527e-10 | FP138: 1.07979299e-10 | FQ138: 5.641601331e-11 | FR138: 2.918242228e-11 | FS138: 1.494504879e-11 | FT138: 7.57757759e-12 | FU138: 3.803824769e-12 | FV138: 1.89046076e-12 | FW138: 9.301904739e-13 | FX138: 4.531407959e-13 | FY138: 2.185503437e-13 | FZ138: 1.043582721e-13 | GA138: 4.933547579e-14 | GB138: 2.309132305e-14 | GC138: 1.070028558e-14 | GD138: 4.909067178e-15 | GE138: 2.229767787e-15 | GF138: 1.002714636e-15 | GG138: 4.4642872e-16 | GH138: 1.967813581e-16 | GI138: 8.587620343e-17 | GJ138: 3.710383276e-17 | GK138: 1.587163863e-17 | GL138: 6.721741626e-18 | GM138: 2.81837591e-18 | GN138: 1.169965557e-18 | GO138: 4.808440984e-19 | GP138: 1.956557245e-19
A139: 59 | B139: 163 | C139: 54 | D139: 168 | E139: 84 | F139: 198 | CG139: 0.006792497727 | CH139: 0.008460142949 | CI139: 0.01043236938 | CJ139: 0.01273635823 | CK139: 0.01539446607 | CL139: 0.01842218126 | CM139: 0.02182601887 | CN139: 0.0256014791 | CO139: 0.02973121399 | CP139: 0.03418355952 | CQ139: 0.03891159023 | CR139: 0.04385284067 | CS139: 0.04892981093 | CT139: 0.0540513318 | CU139: 0.05911481245 | CV139: 0.06400933099 | CW139: 0.06861946304 | CX139: 0.07282967932 | CY139: 0.07652908754 | CZ139: 0.07961625182 | DA139: 0.08200379965 | DB139: 0.08362252538 | DC139: 0.08442472163 | DD139: 0.08438651481 | DE139: 0.08350904543 | DF139: 0.08181841147 | DG139: 0.07936437898 | DH139: 0.07621794875 | DI139: 0.07246794496 | DJ139: 0.06821685455 | DK139: 0.06357618886 | DL139: 0.05866165954 | DM139: 0.05358845734 | DN139: 0.04846689752 | DO139: 0.04339865207 | DP139: 0.03847373209 | DQ139: 0.03376831943 | DR139: 0.02934348105 | DS139: 0.02524473839 | DT139: 0.0215024116 | DU139: 0.01813261842 | DV139: 0.01513878179 | DW139: 0.01251348828 | DX139: 0.01024054118 | DY139: 0.008297064771 | DZ139: 0.006655537088 | EA139: 0.005285654728 | EB139: 0.004155961621 | EC139: 0.003235201396 | ED139: 0.002493378266 | EE139: 0.00190253245 | EF139: 0.001437252363 | EG139: 0.001074956884 | EH139: 0.0007959872549 | EI139: 0.0005835502213 | EJ139: 0.0004235526637 | EK139: 0.0003043642584 | EL139: 0.0002165394061 | EM139: 0.0001525236839 | EN139: 0.0001063640061 | EO139: 7.343602168e-05 | EP139: 5.019733394e-05 | EQ139: 3.39710693e-05 | ER139: 2.276118339e-05 | ES139: 1.5098629e-05 | ET139: 9.916016595e-06 | EU139: 6.447539792e-06 | EV139: 4.150571241e-06 | EW139: 2.645323373e-06 | EX139: 1.669193639e-06 | EY139: 1.042777683e-06 | EZ139: 6.449614989e-07 | FA139: 3.949416238e-07 | FB139: 2.394357968e-07 | FC139: 1.43715069e-07 | FD139: 8.540289457e-08 | FE139: 5.024581889e-08 | FF139: 2.926741204e-08 | FG139: 1.687818607e-08 | FH139: 9.636609794e-09 | FI139: 5.447281672e-09 | FJ139: 3.048543853e-09 | FK139: 1.689126268e-09 | FL139: 9.265926269e-10 | FM139: 5.032370636e-10 | FN139: 2.705910665e-10 | FO139: 1.440493637e-10 | FP139: 7.592176384e-11 | FQ139: 3.961669933e-11 | FR139: 2.046667743e-11 | FS139: 1.046823481e-11 | FT139: 5.30098556e-12 | FU139: 2.657644225e-12 | FV139: 1.319149807e-12 | FW139: 6.482588428e-13 | FX139: 3.153986544e-13 | FY139: 1.519246617e-13 | FZ139: 7.245256659e-14 | GA139: 3.42086808e-14 | GB139: 1.599101144e-14 | GC139: 7.400696535e-15 | GD139: 3.390988477e-15 | GE139: 1.538285997e-15 | GF139: 6.908836493e-16 | GG139: 3.072060737e-16 | GH139: 1.352420472e-16 | GI139: 5.894551e-17 | GJ139: 2.543588063e-17 | GK139: 1.086675516e-17 | GL139: 4.596317715e-18 | GM139: 1.924762972e-18 | GN139: 7.979974889e-19 | GO139: 3.275539563e-19
A140: 60 | B140: 162 | C140: 54 | D140: 168 | E140: 84 | F140: 198 | CG140: 0.005279012492 | CH140: 0.006566757823 | CI140: 0.008087352367 | CJ140: 0.009860950678 | CK140: 0.01190387239 | CL140: 0.0142270479 | CM140: 0.0168344286 | CN140: 0.01972145812 | CO140: 0.02287371567 | CP140: 0.02626585063 | CQ140: 0.02986092641 | CR140: 0.0336102807 | CS140: 0.03745398713 | CT140: 0.04132197109 | CU140: 0.04513579095 | CV140: 0.0488110489 | CW140: 0.05226034572 | CX140: 0.05539664609 | CY140: 0.0581368799 | CZ140: 0.06040557518 | DA140: 0.0621383022 | DB140: 0.06328471038 | DC140: 0.0638109582 | DD140: 0.06370137263 | DE140: 0.06295922453 | DF140: 0.06160656649 | DG140: 0.05968314428 | DH140: 0.05724445699 | DI140: 0.05435909783 | DJ140: 0.05110555345 | DK140: 0.04756866975 | DL140: 0.04383600547 | DM140: 0.0399942902 | DN140: 0.03612618235 | DO140: 0.0323074887 | DP140: 0.02860496283 | DQ140: 0.02507475103 | DR140: 0.02176150495 | DS140: 0.01869813446 | DT140: 0.0159061358 | DU140: 0.01339640129 | DV140: 0.01117039848 | DW140: 0.009221599125 | DX140: 0.007537040813 | DY140: 0.006098914572 | DZ140: 0.004886088046 | EA140: 0.003875494119 | EB140: 0.003043336193 | EC140: 0.002366082235 | ED140: 0.001821238381 | EE140: 0.001387908413 | EF140: 0.001047157187 | EG140: 0.0007822039459 | EH140: 0.0005784757826 | EI140: 0.0004235526637 | EJ140: 0.0003070341675 | EK140: 0.0002203550728 | EL140: 0.0001565728488 | EM140: 0.0001101455382 | EN140: 7.671396326e-05 | EO140: 5.289796761e-05 | EP140: 3.611275384e-05 | EQ140: 2.440839844e-05 | ER140: 1.63333405e-05 | ES140: 1.08210101e-05 | ET140: 7.097700092e-06 | EU140: 4.609189266e-06 | EV140: 2.963387838e-06 | EW140: 1.886294514e-06 | EX140: 1.188741883e-06 | EY140: 7.416904421e-07 | EZ140: 4.581575582e-07 | FA140: 2.801973889e-07 | FB140: 1.696564469e-07 | FC140: 1.017029865e-07 | FD140: 6.036067667e-08 | FE140: 3.546757933e-08 | FF140: 2.063317459e-08 | FG140: 1.188386234e-08 | FH140: 6.776512237e-09 | FI140: 3.825708683e-09 | FJ140: 2.138329471e-09 | FK140: 1.183298739e-09 | FL140: 6.482928576e-10 | FM140: 3.516455512e-10 | FN140: 1.88840905e-10 | FO140: 1.004023953e-10 | FP140: 5.285050359e-11 | FQ140: 2.754299993e-11 | FR140: 1.421118874e-11 | FS140: 7.259498652e-12 | FT140: 3.671469339e-12 | FU140: 1.838358627e-12 | FV140: 9.113341079e-13 | FW140: 4.47282665e-13 | FX140: 2.173419526e-13 | FY140: 1.045591676e-13 | FZ140: 4.980096117e-14 | GA140: 2.348390894e-14 | GB140: 1.096377479e-14 | GC140: 5.067653114e-15 | GD140: 2.31905318e-15 | GE140: 1.050682724e-15 | GF140: 4.712914168e-16 | GG140: 2.092977331e-16 | GH140: 9.20230395e-17 | GI140: 4.005766943e-17 | GJ140: 1.72636188e-17 | GK140: 7.366056618e-18 | GL140: 3.111682824e-18 | GM140: 1.30140553e-18 | GN140: 5.388737496e-19 | GO140: 2.209115708e-19
A141: 60 | B141: 162 | C141: 54 | D141: 168 | E141: 84 | F141: 198 | CG141: 0.004061934658 | CH141: 0.005046396312 | CI141: 0.006207072682 | CJ141: 0.007558739226 | CK141: 0.00911315904 | CL141: 0.01087791326 | CM141: 0.01285521335 | CN141: 0.015040769 | CO141: 0.0174227959 | CP141: 0.01998125268 | CQ141: 0.02268739487 | CR141: 0.02550372419 | CS141: 0.02838439432 | CT141: 0.03127610878 | CU141: 0.03411951536 | CV141: 0.03685106535 | CW141: 0.03940526902 | CX141: 0.04171724318 | CY141: 0.04372541706 | CZ141: 0.04537424118 | DA141: 0.04661673418 | DB141: 0.04741670484 | DC141: 0.04775050294 | DD141: 0.04760818069 | DE141: 0.04699398524 | DF141: 0.04592614809 | DG141: 0.04443598615 | DH141: 0.04256637619 | DI141: 0.04036970633 | DJ141: 0.03790544125 | DK141: 0.03523745857 | DL141: 0.03243132221 | DM141: 0.02955165358 | DN141: 0.02665974396 | DO141: 0.02381152533 | DP141: 0.02105598265 | DQ141: 0.01843405449 | DR141: 0.01597803156 | DS141: 0.01371142959 | DT141: 0.01164928462 | DU141: 0.009798798556 | DV141: 0.008160249888 | DW141: 0.006728079925 | DX141: 0.005492067686 | DY141: 0.004438514828 | DZ141: 0.003551374929 | EA141: 0.002813276568 | EB141: 0.002206405791 | EC141: 0.001713228947 | ED141: 0.00131705064 | EE141: 0.001002412789 | EF141: 0.0007553492101 | EG141: 0.0005635156931 | EH141: 0.0004162184291 | EI141: 0.0003043642584 | EJ141: 0.0002203550728 | EK141: 0.0001579463191 | EL141: 0.0001120864258 | EM141: 7.875054853e-05 | EN141: 5.477863542e-05 | EO141: 3.772470796e-05 | EP141: 2.572157859e-05 | EQ141: 1.73630656e-05 | ER141: 1.1604121e-05 | ES141: 7.678124441e-06 | ET141: 5.029850762e-06 | EU141: 3.26221145e-06 | EV141: 2.094720925e-06 | EW141: 1.331672065e-06 | EX141: 8.381571674e-07 | EY141: 5.22288775e-07 | EZ141: 3.222203582e-07 | FA141: 1.968123357e-07 | FB141: 1.190169207e-07 | FC141: 7.125611814e-08 | FD141: 4.223696115e-08 | FE141: 2.478678639e-08 | FF141: 1.440140418e-08 | FG141: 8.284122448e-09 | FH141: 4.717862018e-09 | FI141: 2.660118697e-09 | FJ141: 1.48495691e-09 | FK141: 8.206986947e-10 | FL141: 4.490665317e-10 | FM141: 2.432734366e-10 | FN141: 1.304775361e-10 | FO141: 6.928414448e-11 | FP141: 3.642411644e-11 | FQ141: 1.895838104e-11 | FR141: 9.769459235e-12 | FS141: 4.98421603e-12 | FT141: 2.517562409e-12 | FU141: 1.258985384e-12 | FV141: 6.23330225e-13 | FW141: 3.05543282e-13 | FX141: 1.482806045e-13 | FY141: 7.12447737e-14 | FZ141: 3.389055883e-14 | GA141: 1.596105169e-14 | GB141: 7.442199935e-15 | GC141: 3.435565378e-15 | GD141: 1.570189818e-15 | GE141: 7.104984775e-16 | GF141: 3.182960151e-16 | GG141: 1.411745157e-16 | GH141: 6.199240236e-17 | GI141: 2.695117364e-17 | GJ141: 1.160042639e-17 | GK141: 4.94341736e-18 | GL141: 2.085631893e-18 | GM141: 8.71174381e-19 | GN141: 3.602712337e-19 | GO141: 1.475064915e-19
A142: 61 | B142: 161 | C142: 54 | D142: 168 | E142: 84 | F142: 198 | CG142: 0.003094355673 | CH142: 0.003839447765 | CI142: 0.004716549004 | CJ142: 0.005736367858 | CK142: 0.00690727412 | CL142: 0.008234428154 | CM142: 0.009718903118 | CN142: 0.01135685593 | CO142: 0.01313881008 | CP142: 0.01504911666 | CQ142: 0.01706565799 | CR142: 0.01915985076 | CS142: 0.02129699168 | CT142: 0.02343696955 | CU142: 0.02553534356 | CV142: 0.02754476111 | CW142: 0.02941666064 | CX142: 0.03110317941 | CY142: 0.0325591648 | CZ142: 0.03374417242 | DA142: 0.03462432873 | DB142: 0.03517393837 | DC142: 0.0353767302 | DD142: 0.03522665741 | DE142: 0.03472819706 | DF142: 0.03389612823 | DG142: 0.03275480406 | DH142: 0.03133696791 | DI142: 0.02968219371 | DJ142: 0.02783505427 | DK142: 0.02584313552 | DL142: 0.02375501958 | DM142: 0.02161835458 | DN142: 0.01947811537 | DO142: 0.01737513898 | DP142: 0.01534499304 | DQ142: 0.01341720821 | DR142: 0.01161487869 | DS142: 0.009954610052 | DT142: 0.008446774136 | DU142: 0.00709601567 | DV142: 0.005901947003 | DW142: 0.004859964536 | DX142: 0.003962122968 | DY142: 0.003198010279 | DZ142: 0.002555576086 | EA142: 0.002021877461 | EB142: 0.001583718178 | EC142: 0.001228168707 | ED142: 0.000942964208 | EE142: 0.0007167858853 | EF142: 0.0005394370059 | EG142: 0.0004019287595 | EH142: 0.0002964930273 | EI142: 0.0002165394061 | EJ142: 0.0001565728488 | EK142: 0.0001120864258 | EL142: 7.944135503e-05 | EM142: 5.574389628e-05 | EN142: 3.872621514e-05 | EO142: 2.663605125e-05 | EP142: 1.813809553e-05 | EQ142: 1.222842666e-05 | ER142: 8.162186933e-06 | ES142: 5.393858456e-06 | ET142: 3.528983352e-06 | EU142: 2.285897374e-06 | EV142: 1.465955891e-06 | EW142: 9.30769476e-07 | EX142: 5.850869574e-07 | EY142: 3.641294095e-07 | EZ142: 2.243614055e-07 | FA142: 1.368666389e-07 | FB142: 8.266165714e-08 | FC142: 4.942738883e-08 | FD142: 2.926094068e-08 | FE142: 1.715007228e-08 | FF142: 9.951778031e-09 | FG142: 5.717319493e-09 | FH142: 3.251930823e-09 | FI142: 1.831248113e-09 | FJ142: 1.020963314e-09 | FK142: 5.635469957e-10 | FL142: 3.07969137e-10 | FM142: 1.666254397e-10 | FN142: 8.92549839e-11 | FO142: 4.733481659e-11 | FP142: 2.485340956e-11 | FQ142: 1.291957745e-11 | FR142: 6.649173999e-12 | FS142: 3.388005771e-12 | FT142: 1.709140007e-12 | FU142: 8.536270994e-13 | FV142: 4.22100438e-13 | FW142: 2.0664289e-13 | FX142: 1.001572026e-13 | FY142: 4.806190281e-14 | FZ142: 2.283372628e-14 | GA142: 1.07401334e-14 | GB142: 5.001492427e-15 | GC142: 2.305932609e-15 | GD142: 1.052569209e-15 | GE142: 4.756765772e-16 | GF142: 2.128285703e-16 | GG142: 9.427686742e-17 | GH142: 4.134637267e-17 | GI142: 1.795257464e-17 | GJ142: 7.717437529e-18 | GK142: 3.284555157e-18 | GL142: 1.384003063e-18 | GM142: 5.773705105e-19 | GN142: 2.38467501e-19 | GO142: 9.751262732e-20
A143: 61 | B143: 161 | C143: 55 | D143: 167 | E143: 85 | F143: 197 | CH143: 0.002892099484 | CI143: 0.003548288522 | CJ143: 0.004310043765 | CK143: 0.005183242034 | CL143: 0.006171324072 | CM143: 0.007274652828 | CN143: 0.00848991313 | CO143: 0.009809599486 | CP143: 0.01122164074 | CQ143: 0.01270920839 | CR143: 0.01425074916 | CS143: 0.015820272 | CT143: 0.01738790471 | CU143: 0.01892071797 | CV143: 0.0203837943 | CW143: 0.02174149976 | CX143: 0.02295889729 | CY143: 0.02400322558 | CZ143: 0.02484535709 | DA143: 0.02546114527 | DB143: 0.02583257398 | DC143: 0.02594863301 | DD143: 0.02580586025 | DE143: 0.02540851325 | DF143: 0.02476835828 | DG143: 0.02390409158 | DH143: 0.02284043243 | DI143: 0.02160694941 | DJ143: 0.02023669767 | DK143: 0.01876475451 | DL143: 0.01722674344 | DM143: 0.0156574322 | DN143: 0.01408947948 | DO143: 0.01255238968 | DP143: 0.01107171588 | DQ143: 0.00966853129 | DR143: 0.008359169602 | DS143: 0.007155217206 | DT143: 0.006063725906 | DU143: 0.005087604671 | DV143: 0.004226143192 | DW143: 0.003475618607 | DX143: 0.002829939001 | DY143: 0.002281282613 | DZ143: 0.001820699034 | EA143: 0.001438647145 | EB143: 0.001125453276 | EC143: 0.0008716812546 | ED143: 0.0006684131704 | EE143: 0.0005074454301 | EF143: 0.0003814088343 | EG143: 0.0002838240583 | EH143: 0.0002091051448 | EI143: 0.0001525236839 | EJ143: 0.0001101455382 | EK143: 7.875054853e-05 | EL143: 5.574389628e-05 | EM143: 3.906592478e-05 | EN143: 2.710540828e-05 | EO143: 1.861962167e-05 | EP143: 1.266318077e-05 | EQ143: 8.526520013e-06 | ER143: 5.684049878e-06 | ES143: 3.751465872e-06 | ET143: 2.451326583e-06 | EU143: 1.585836483e-06 | EV143: 1.015716927e-06 | EW143: 6.440862539e-07 | EX143: 4.043639461e-07 | EY143: 2.513378391e-07 | EZ143: 1.546679691e-07 | FA143: 9.423233311e-08 | FB143: 5.684032603e-08 | FC143: 3.394456377e-08 | FD143: 2.006970359e-08 | FE143: 1.174812991e-08 | FF143: 6.80853348e-09 | FG143: 3.906568731e-09 | FH143: 2.219189644e-09 | FI143: 1.248102978e-09 | FJ143: 6.949658709e-10 | FK143: 3.831189117e-10 | FL143: 2.091032382e-10 | FM143: 1.129912939e-10 | FN143: 6.044860185e-11 | FO143: 3.201729179e-11 | FP143: 1.678958582e-11 | FQ143: 8.716706574e-12 | FR143: 4.480453001e-12 | FS143: 2.280071575e-12 | FT143: 1.148767367e-12 | FU143: 5.730239245e-13 | FV143: 2.829895996e-13 | FW143: 1.383646822e-13 | FX143: 6.697875646e-14 | FY143: 3.210006897e-14 | FZ143: 1.523112233e-14 | GA143: 7.155086724e-15 | GB143: 3.32778265e-15 | GC143: 1.532329136e-15 | GD143: 6.985640319e-16 | GE143: 3.152952567e-16 | GF143: 1.408917972e-16 | GG143: 6.233199626e-17 | GH143: 2.730193435e-17 | GI143: 1.183948619e-17 | GJ143: 5.083108124e-18 | GK143: 2.160642405e-18 | GL143: 9.092713313e-19 | GM143: 3.78844648e-19 | GN143: 1.562736909e-19
A144: 62 | B144: 160 | C144: 55 | D144: 167 | E144: 85 | F144: 197 | CH144: 0.002156824199 | CI144: 0.002642838087 | CJ144: 0.003206146933 | CK144: 0.003850821087 | CL144: 0.004579101987 | CM144: 0.005390938116 | CN144: 0.006283555159 | CO144: 0.00725109462 | CP144: 0.008284356279 | CQ144: 0.00937067809 | CR144: 0.01049398224 | CS144: 0.011635008 | CT144: 0.01277174099 | CU144: 0.01388003541 | CV144: 0.01493441106 | CW144: 0.01590899271 | CX144: 0.01677854589 | CY144: 0.01751955264 | CZ144: 0.01811126395 | DA144: 0.01853666334 | DB144: 0.01878327947 | DC144: 0.01884379337 | DD144: 0.01871639929 | DE144: 0.01840489419 | DF144: 0.01791848979 | DG144: 0.01727136003 | DH144: 0.01648195508 | DI144: 0.0155721282 | DJ144: 0.01456613296 | DK144: 0.01348955503 | DL144: 0.0123682437 | DM144: 0.01122730443 | DN144: 0.01009020567 | DO144: 0.008978041199 | DP144: 0.007908975394 | DQ144: 0.00689788437 | DR144: 0.005956191475 | DS144: 0.005091883359 | DT144: 0.004309682713 | DU144: 0.003611346867 | DV144: 0.002996057648 | DW144: 0.002460867225 | DX144: 0.002001166638 | DY144: 0.001611147794 | DZ144: 0.001284235182 | EA144: 0.001013469774 | EB144: 0.0007918339043 | EC144: 0.0006125117734 | ED144: 0.0004690853221 | EE144: 0.0003556692359 | EF144: 0.0002669917336 | EG144: 0.0001984295666 | EH144: 0.0001460064385 | EI144: 0.0001063640061 | EJ144: 7.671396326e-05 | EK144: 5.477863542e-05 | EL144: 3.872621514e-05 | EM144: 2.710540828e-05 | EN144: 1.878295457e-05 | EO144: 1.288632018e-05 | EP144: 8.752880174e-06 | EQ144: 5.886133439e-06 | ER144: 3.918918925e-06 | ES144: 2.583208788e-06 | ET144: 1.68581454e-06 | EU144: 1.089223835e-06 | EV144: 6.967573078e-07 | EW144: 4.412685583e-07 | EX144: 2.766823721e-07 | EY144: 1.717580307e-07 | EZ144: 1.055625005e-07 | FA144: 6.423316785e-08 | FB144: 3.869599946e-08 | FC144: 2.30796836e-08 | FD144: 1.362858253e-08 | FE144: 7.967619416e-09 | FF144: 4.611726349e-09 | FG144: 2.642746659e-09 | FH144: 1.499355409e-09 | FI144: 8.421912099e-10 | FJ144: 4.68353611e-10 | FK144: 2.578660079e-10 | FL144: 1.40563116e-10 | FM144: 7.585875491e-11 | FN144: 4.05319128e-11 | FO144: 2.144102505e-11 | FP144: 1.122925758e-11 | FQ144: 5.822554993e-12 | FR144: 2.989050202e-12 | FS144: 1.51918224e-12 | FT144: 7.644403367e-13 | FU144: 3.808328219e-13 | FV144: 1.878374577e-13 | FW144: 9.172486638e-14 | FX144: 4.434544619e-14 | FY144: 2.122599343e-14 | FZ144: 1.005875145e-14 | GA144: 4.719295633e-15 | GB144: 2.192135251e-15 | GC144: 1.008125414e-15 | GD144: 4.590064997e-16 | GE144: 2.069093721e-16 | GF144: 9.234184457e-17 | GG144: 4.080129838e-17 | GH144: 1.784869533e-17 | GI144: 7.730294237e-18 | GJ144: 3.314687787e-18 | GK144: 1.40716909e-18 | GL144: 5.914349712e-19 | GM144: 2.46107455e-19 | GN144: 1.013910437e-19
A145: 63 | B145: 159 | C145: 55 | D145: 167 | E145: 85 | F145: 197 | CH145: 0.001592477564 | CI145: 0.001948853722 | CJ145: 0.002361251345 | CK145: 0.00283244998 | CL145: 0.003363871017 | CM145: 0.003955245782 | CN145: 0.004604311231 | CO145: 0.005306558103 | CP145: 0.006055056925 | CQ145: 0.006840385729 | CR145: 0.007650679504 | CS145: 0.00847181535 | CT145: 0.009287739133 | CU145: 0.01008092982 | CV145: 0.01083298718 | CW145: 0.01152531813 | CX145: 0.01213988772 | CY145: 0.01265999323 | CZ145: 0.01307101556 | DA145: 0.01336110095 | DB145: 0.01352172858 | DC145: 0.01354812635 | DD145: 0.01343950637 | DE145: 0.01319910403 | DF145: 0.01283401792 | DG145: 0.01235486163 | DH145: 0.01177525134 | DI145: 0.01111116357 | DJ145: 0.01038020549 | DK145: 0.009600844077 | DL145: 0.008791640828 | DM145: 0.007970535731 | DN145: 0.007154217577 | DO145: 0.006357609225 | DP145: 0.005593486207 | DQ145: 0.004872236579 | DR145: 0.004201759781 | DS145: 0.003587493531 | DT145: 0.003032550828 | DU145: 0.002537944414 | DV145: 0.002102873646 | DW145: 0.001725048485 | DX145: 0.001401026948 | DY145: 0.001126545473 | DZ145: 0.0008968256477 | EA145: 0.0007068452895 | EB145: 0.0005515663612 | EC145: 0.0004261163815 | ED145: 0.0003259235516 | EE145: 0.0002468086141 | EF145: 0.0001850384311 | EG145: 0.0001373474551 | EH145: 0.0001009337367 | EI145: 7.343602168e-05 | EJ145: 5.289796761e-05 | EK145: 3.772470796e-05 | EL145: 2.663605125e-05 | EM145: 1.861962167e-05 | EN145: 1.288632018e-05 | EO145: 8.829661182e-06 | EP145: 5.989853698e-06 | EQ145: 4.022957514e-06 | ER145: 2.675048944e-06 | ES145: 1.761063736e-06 | ET145: 1.147824448e-06 | EU145: 7.40683931e-07 | EV145: 4.732029354e-07 | EW145: 2.993084599e-07 | EX145: 1.874336704e-07 | EY145: 1.162072657e-07 | EZ145: 7.133062187e-08 | FA145: 4.334867161e-08 | FB145: 2.6081504e-08 | FC145: 1.553626159e-08 | FD145: 9.162573544e-09 | FE145: 5.349897696e-09 | FF145: 3.092648314e-09 | FG145: 1.769997489e-09 | FH145: 1.002932765e-09 | FI145: 5.626366831e-10 | FJ145: 3.124937414e-10 | FK145: 1.718350124e-10 | FL145: 9.35489783e-11 | FM145: 5.042239774e-11 | FN145: 2.690698238e-11 | FO145: 1.421554616e-11 | FP145: 7.435653792e-12 | FQ145: 3.850630323e-12 | FR145: 1.974247277e-12 | FS145: 1.002139831e-12 | FT145: 5.036306533e-13 | FU145: 2.505838296e-13 | FV145: 1.23438599e-13 | FW145: 6.020131543e-14 | FX145: 2.906819287e-14 | FY145: 1.389591473e-14 | FZ145: 6.576779827e-15 | GA145: 3.081743728e-15 | GB145: 1.429673258e-15 | GC145: 6.56650262e-16 | GD145: 2.985991074e-16 | GE145: 1.344311592e-16 | GF145: 5.991953539e-17 | GG145: 2.644198083e-17 | GH145: 1.15525163e-17 | GI145: 4.99707939e-18 | GJ145: 2.13999601e-18 | GK145: 9.073330556e-19 | GL145: 3.808706946e-19 | GM145: 1.582870692e-19 | GN145: 6.512839458e-20
A146: 63 | B146: 159 | C146: 56 | D146: 166 | E146: 86 | F146: 196 | CI146: 0.001422803693 | CJ146: 0.001721702342 | CK146: 0.002062662685 | CL146: 0.002446557396 | CM146: 0.002873026692 | CN146: 0.003340265347 | CO146: 0.003844849373 | CP146: 0.004381620381 | CQ146: 0.004943644362 | CR146: 0.005522258708 | CS146: 0.006107216724 | CT146: 0.006686932975 | CU146: 0.007248825809 | CV146: 0.007779745899 | CW146: 0.008266472326 | CX146: 0.008696251178 | CY146: 0.009057346644 | CZ146: 0.009339571663 | DA146: 0.009534764776 | DB146: 0.009637182053 | DC146: 0.009643777861 | DD146: 0.009554355317 | DE146: 0.009371576044 | DF146: 0.009100828575 | DG146: 0.008749964473 | DH146: 0.008328920189 | DI146: 0.007849250088 | DJ146: 0.00732360121 | DK146: 0.006765162987 | DL146: 0.006187125077 | DM146: 0.005602173856 | DN146: 0.005022053378 | DO146: 0.004457210259 | DP146: 0.003916534656 | DQ146: 0.003407201994 | DR146: 0.002934613046 | DS146: 0.002502423799 | DT146: 0.002112651852 | DU146: 0.001765842898 | DV146: 0.001461279347 | DW146: 0.001197213168 | DX146: 0.0009711063157 | DY146: 0.0007798644572 | DZ146: 0.0006200525982 | EA146: 0.0004880844717 | EB146: 0.0003803807281 | EC146: 0.0002934938971 | ED146: 0.0002242005635 | EE146: 0.0001695631125 | EF146: 0.0001269647363 | EG146: 9.412216438e-05 | EH146: 6.908086245e-05 | EI146: 5.019733394e-05 | EJ146: 3.611275384e-05 | EK146: 2.572157859e-05 | EL146: 1.813809553e-05 | EM146: 1.266318077e-05 | EN146: 8.752880174e-06 | EO146: 5.989853698e-06 | EP146: 4.058247239e-06 | EQ146: 2.722186301e-06 | ER146: 1.807816065e-06 | ES146: 1.188632755e-06 | ET146: 7.737456166e-07 | EU146: 4.986614145e-07 | EV146: 3.181781722e-07 | EW146: 2.00998148e-07 | EX146: 1.257102773e-07 | EY146: 7.784067047e-08 | EZ146: 4.771988702e-08 | FA146: 2.89633839e-08 | FB146: 1.740428755e-08 | FC146: 1.035428833e-08 | FD146: 6.098756779e-09 | FE146: 3.556472284e-09 | FF146: 2.05331036e-09 | FG146: 1.173672215e-09 | FH146: 6.641957675e-10 | FI146: 3.721366461e-10 | FJ146: 2.06426681e-10 | FK146: 1.133669012e-10 | FL146: 6.164016273e-11 | FM146: 3.31816771e-11 | FN146: 1.76843843e-11 | FO146: 9.331223906e-12 | FP146: 4.874660029e-12 | FQ146: 2.521198901e-12 | FR146: 1.291002078e-12 | FS146: 6.544912255e-13 | FT146: 3.285018131e-13 | FU146: 1.632408203e-13 | FV146: 8.031133059e-14 | FW146: 3.911847621e-14 | FX146: 1.88644476e-14 | FY146: 9.006650507e-15 | FZ146: 4.257352244e-15 | GA146: 1.992383392e-15 | GB146: 9.23130918e-16 | GC146: 4.234583841e-16 | GD146: 1.92315917e-16 | GE146: 8.647225401e-17 | GF146: 3.84942076e-17 | GG146: 1.696567112e-17 | GH146: 7.402931978e-18 | GI146: 3.19811097e-18 | GJ146: 1.36785592e-18 | GK146: 5.792209143e-19 | GL146: 2.428315827e-19 | GM146: 1.007913266e-19
A147: 64 | B147: 158 | C147: 56 | D147: 166 | E147: 86 | F147: 196 | CI147: 0.001028413526 | CJ147: 0.001242885088 | CK147: 0.001487137859 | CL147: 0.001761686141 | CM147: 0.00206615501 | CN147: 0.002399132969 | CO147: 0.002758054173 | CP147: 0.003139122912 | CQ147: 0.00353729194 | CR147: 0.003946304052 | CS147: 0.004358802963 | CT147: 0.004766515249 | CU147: 0.005160500105 | CV147: 0.005531458403 | CW147: 0.005870087374 | CX147: 0.006167462757 | CY147: 0.006415426899 | CZ147: 0.006606959446 | DA147: 0.006736507174 | DB147: 0.006800251381 | DC147: 0.006796294869 | DD147: 0.00672475574 | DE147: 0.006587761542 | DF147: 0.006389344161 | DG147: 0.006135242717 | DH147: 0.005832627893 | DI147: 0.00548976618 | DJ147: 0.005115645948 | DK147: 0.004719588855 | DL147: 0.004310869832 | DM147: 0.003898366866 | DN147: 0.003490258231 | DO147: 0.003093780288 | DP147: 0.002715053747 | DQ147: 0.002358981037 | DR147: 0.002029212474 | DS147: 0.001728174736 | DT147: 0.001457151931 | DU147: 0.001216407461 | DV147: 0.001005333998 | DW147: 0.0008226189675 | DX147: 0.0006664140177 | DY147: 0.0005344986142 | DZ147: 0.0004244300245 | EA147: 0.0003336742315 | EB147: 0.000259714558 | EC147: 0.0002001368107 | ED147: 0.000152691447 | EE147: 0.0001153345702 | EF147: 8.625044565e-05 | EG147: 6.385872586e-05 | EH147: 4.680973748e-05 | EI147: 3.39710693e-05 | EJ147: 2.440839844e-05 | EK147: 1.73630656e-05 | EL147: 1.222842666e-05 | EM147: 8.526520013e-06 | EN147: 5.886133439e-06 | EO147: 4.022957514e-06 | EP147: 2.722186301e-06 | EQ147: 1.823674381e-06 | ER147: 1.209577795e-06 | ES147: 7.942868435e-07 | ET147: 5.163901952e-07 | EU147: 3.323805954e-07 | EV147: 2.118119169e-07 | EW147: 1.336356021e-07 | EX147: 8.347395947e-08 | EY147: 5.16222475e-08 | EZ147: 3.160675125e-08 | FA147: 1.915930996e-08 | FB147: 1.149838705e-08 | FC147: 6.832050044e-09 | FD147: 4.019038896e-09 | FE147: 2.340725223e-09 | FF147: 1.349695239e-09 | FG147: 7.70509596e-10 | FH147: 4.354892541e-10 | FI147: 2.436878574e-10 | FJ147: 1.350042346e-10 | FK147: 7.404878684e-11 | FL147: 4.021106352e-11 | FM147: 2.161873245e-11 | FN147: 1.150726062e-11 | FO147: 6.064161049e-12 | FP147: 3.163927762e-12 | FQ147: 1.634328849e-12 | FR147: 8.358135163e-13 | FS147: 4.231909661e-13 | FT147: 2.12138963e-13 | FU147: 1.052837997e-13 | FV147: 5.173205301e-14 | FW147: 2.516604291e-14 | FX147: 1.212068618e-14 | FY147: 5.779583416e-15 | FZ147: 2.728493482e-15 | GA147: 1.275282383e-15 | GB147: 5.901288613e-16 | GC147: 2.703612247e-16 | GD147: 1.226306444e-16 | GE147: 5.506944133e-17 | GF147: 2.448383174e-17 | GG147: 1.077718051e-17 | GH147: 4.696647682e-18 | GI147: 2.026412538e-18 | GJ147: 8.656150531e-19 | GK147: 3.660823509e-19 | GL147: 1.532815341e-19 | GM147: 6.354156983e-20
A148: 65 | B148: 157 | C148: 57 | D148: 165 | E148: 87 | F148: 195 | CJ148: 0.0008883026128 | CK148: 0.001061527631 | CL148: 0.001255910588 | CM148: 0.001471103388 | CN148: 0.001706022384 | CO148: 0.001958769393 | CP148: 0.002226583307 | CQ148: 0.002505830225 | CR148: 0.00279203844 | CS148: 0.003079982141 | CT148: 0.003363814656 | CU148: 0.003637248504 | CV148: 0.003893775825 | CW148: 0.00412691924 | CX148: 0.004330500082 | CY148: 0.004498908778 | CZ148: 0.004627360964 | DA148: 0.004712123073 | DB148: 0.004750692567 | DC148: 0.004741920663 | DD148: 0.004686069178 | DE148: 0.004584797543 | DF148: 0.004441080907 | DG148: 0.004259064947 | DH148: 0.004043867297 | DI148: 0.003801338843 | DJ148: 0.003537800398 | DK148: 0.003259771247 | DL148: 0.002973705652 | DM148: 0.002685751871 | DN148: 0.002401545674 | DO148: 0.002126047042 | DP148: 0.001863425112 | DQ148: 0.001616992752 | DR148: 0.001389188751 | DS148: 0.001181602762 | DT148: 0.0009950359974 | DU148: 0.0008295893013 | DV148: 0.0006847697199 | DW148: 0.0005596068325 | DX148: 0.0004527709181 | DY148: 0.0003626862531 | DZ148: 0.0002876343311 | EA148: 0.0002258433993 | EB148: 0.0001755622501 | EC148: 0.0001351176023 | ED148: 0.0001029555532 | EE148: 7.766845721e-05 | EF148: 5.800916786e-05 | EG148: 4.289489883e-05 | EH148: 3.140304166e-05 | EI148: 2.276118339e-05 | EJ148: 1.63333405e-05 | EK148: 1.1604121e-05 | EL148: 8.162186933e-06 | EM148: 5.684049878e-06 | EN148: 3.918918925e-06 | EO148: 2.675048944e-06 | EP148: 1.807816065e-06 | EQ148: 1.209577795e-06 | ER148: 8.012543951e-07 | ES148: 5.254895684e-07 | ET148: 3.412045617e-07 | EU148: 2.193424114e-07 | EV148: 1.396006542e-07 | EW148: 8.796488692e-08 | EX148: 5.48767394e-08 | EY148: 3.389411547e-08 | EZ148: 2.072608932e-08 | FA148: 1.254779692e-08 | FB148: 7.520983784e-09 | FC148: 4.463123234e-09 | FD148: 2.622165868e-09 | FE148: 1.52524109e-09 | FF148: 8.783627068e-10 | FG148: 5.008023237e-10 | FH148: 2.826935096e-10 | FI148: 1.579873792e-10 | FJ148: 8.741500915e-11 | FK148: 4.788579203e-11 | FL148: 2.59707444e-11 | FM148: 1.394502111e-11 | FN148: 7.413290335e-12 | FO148: 3.90175412e-12 | FP148: 2.033133242e-12 | FQ148: 1.048887332e-12 | FR148: 5.357336109e-13 | FS148: 2.709106031e-13 | FT148: 1.356313759e-13 | FU148: 6.722818507e-14 | FV148: 3.299131768e-14 | FW148: 1.602894695e-14 | FX148: 7.710230766e-15 | FY148: 3.671865941e-15 | FZ148: 1.731264055e-15 | GA148: 8.081590913e-16 | GB148: 3.734973017e-16 | GC148: 1.708972717e-16 | GD148: 7.74176253e-17 | GE148: 3.47217509e-17 | GF148: 1.541773027e-17 | GG148: 6.777918231e-18 | GH148: 2.95004922e-18 | GI148: 1.271215718e-18 | GJ148: 5.423333372e-19 | GK148: 2.29071154e-19 | GL148: 9.579251183e-20
A149: 66 | B149: 156 | C149: 57 | D149: 165 | E149: 87 | F149: 195 | CJ149: 0.0006285617611 | CK149: 0.0007501850956 | CL149: 0.0008864330932 | CM149: 0.001037004273 | CN149: 0.001201080694 | CO149: 0.001377275688 | CP149: 0.001563603493 | CQ149: 0.001757476139 | CR149: 0.001955731804 | CS149: 0.002154697036 | CT149: 0.002350283142 | CU149: 0.002538114509 | CV149: 0.00271368412 | CW149: 0.002872529054 | CX149: 0.003010416751 | CY149: 0.003123531348 | CZ149: 0.003208648703 | DA149: 0.003263288937 | DB149: 0.003285836437 | DC149: 0.003275619207 | DD149: 0.003232942139 | DE149: 0.003159071897 | DF149: 0.00305617447 | DG149: 0.002927209676 | DH149: 0.002775789801 | DI149: 0.00260601178 | DJ149: 0.002422273782 | DK149: 0.00222908761 | DL149: 0.002030897955 | DM149: 0.001831918388 | DN149: 0.001635992079 | DO149: 0.001446482976 | DP149: 0.001266200591 | DQ149: 0.001097359056 | DR149: 0.0009415687748 | DS149: 0.000799857089 | DT149: 0.0006727129748 | DU149: 0.0005601499031 | DV149: 0.0004617807039 | DW149: 0.0003768984512 | DX149: 0.0003045579772 | DY149: 0.0002436535039 | DZ149: 0.0001929889299 | EA149: 0.0001513384182 | EB149: 0.000117495988 | EC149: 9.031376345e-05 | ED149: 6.872929637e-05 | EE149: 5.178296463e-05 | EF149: 3.862682203e-05 | EG149: 2.85264745e-05 | EH149: 2.08575974e-05 | EI149: 1.5098629e-05 | EJ149: 1.08210101e-05 | EK149: 7.678124441e-06 | EL149: 5.393858456e-06 | EM149: 3.751465872e-06 | EN149: 2.583208788e-06 | EO149: 1.761063736e-06 | EP149: 1.188632755e-06 | EQ149: 7.942868435e-07 | ER149: 5.254895684e-07 | ES149: 3.441976371e-07 | ET149: 2.232074701e-07 | EU149: 1.433067414e-07 | EV149: 9.109227988e-08 | EW149: 5.732625589e-08 | EX149: 3.571763042e-08 | EY149: 2.203275249e-08 | EZ149: 1.345587448e-08 | FA149: 8.136022749e-09 | FB149: 4.870453891e-09 | FC149: 2.886581164e-09 | FD149: 1.693772845e-09 | FE149: 9.839739782e-10 | FF149: 5.659383394e-10 | FG149: 3.222639115e-10 | FH149: 1.816817428e-10 | FI149: 1.014070048e-10 | FJ149: 5.603787768e-11 | FK149: 3.065860976e-11 | FL149: 1.660658342e-11 | FM149: 8.905640924e-12 | FN149: 4.728322872e-12 | FO149: 2.485456256e-12 | FP149: 1.293487328e-12 | FQ149: 6.664618407e-13 | FR149: 3.399738028e-13 | FS149: 1.717009402e-13 | FT149: 8.585329119e-14 | FU149: 4.250091489e-14 | FV149: 2.083035467e-14 | FW149: 1.010769446e-14 | FX149: 4.855842607e-15 | FY149: 2.309586076e-15 | FZ149: 1.087578864e-15 | GA149: 5.07042567e-16 | GB149: 2.340373313e-16 | GC149: 1.069505221e-16 | GD149: 4.838800716e-17 | GE149: 2.167452649e-17 | GF149: 9.612106099e-18 | GG149: 4.220311901e-18 | GH149: 1.834541736e-18 | GI149: 7.89528296e-19 | GJ149: 3.36406871e-19 | GK149: 1.419119837e-19 | GL149: 5.926937389e-20
A150: 67 | B150: 155 | C150: 57 | D150: 165 | E150: 87 | F150: 195 | CJ150: 0.0004403439457 | CK150: 0.0005248831306 | CL150: 0.0006194271768 | CM150: 0.0007237272941 | CN150: 0.0008371758709 | CO150: 0.0009587723674 | CP150: 0.001087104692 | CQ150: 0.001220349666 | CR150: 0.001356295305 | CS150: 0.001492386409 | CT150: 0.001625793443 | CU150: 0.001753502966 | CV150: 0.001872426148 | CW150: 0.001979520232 | CX150: 0.002071916494 | CY150: 0.002147047269 | CZ150: 0.002202764248 | DA150: 0.002237440461 | DB150: 0.002250049181 | DC150: 0.002240214427 | DD150: 0.002208229583 | DE150: 0.002155042864 | DF150: 0.002082210619 | DG150: 0.001991821686 | DH150: 0.00188639793 | DI150: 0.001768777564 | DJ150: 0.001641988783 | DK150: 0.001509121499 | DL150: 0.001373204701 | DM150: 0.001237096027 | DN150: 0.001103388867 | DO150: 0.0009743406876 | DP150: 0.0008518245152 | DQ150: 0.0007373038235 | DR150: 0.0006318294903 | DS150: 0.0005360562379 | DT150: 0.0004502750374 | DU150: 0.0003744574219 | DV150: 0.0003083074861 | DW150: 0.0002513175125 | DX150: 0.0002028236014 | DY150: 0.0001620583015 | DZ150: 0.0001281979648 | EA150: 0.0001004033108 | EB150: 7.78523976e-05 | EC150: 5.976583692e-05 | ED150: 4.542459606e-05 | EE150: 3.418111283e-05 | EF150: 2.546468902e-05 | EG150: 1.878224975e-05 | EH150: 1.371557124e-05 | EI150: 9.916016595e-06 | EJ150: 7.097700092e-06 | EK150: 5.029850762e-06 | EL150: 3.528983352e-06 | EM150: 2.451326583e-06 | EN150: 1.68581454e-06 | EO150: 1.147824448e-06 | EP150: 7.737456166e-07 | EQ150: 5.163901952e-07 | ER150: 3.412045617e-07 | ES150: 2.232074701e-07 | ET150: 1.445638403e-07 | EU150: 9.26974278e-08 | EV150: 5.884814061e-08 | EW150: 3.698749013e-08 | EX150: 2.301622183e-08 | EY150: 1.417980511e-08 | EZ150: 8.64895315e-09 | FA150: 5.222926117e-09 | FB150: 3.122635375e-09 | FC150: 1.848356434e-09 | FD150: 1.083196447e-09 | FE150: 6.284717855e-10 | FF150: 3.610118013e-10 | FG150: 2.053118744e-10 | FH150: 1.156015859e-10 | FI150: 6.444223157e-11 | FJ150: 3.556594935e-11 | FK150: 1.94336911e-11 | FL150: 1.051315918e-11 | FM150: 5.630775859e-12 | FN150: 2.985797122e-12 | FO150: 1.567506699e-12 | FP150: 8.147334944e-13 | FQ150: 4.192555222e-13 | FR150: 2.135989274e-13 | FS150: 1.077398579e-13 | FT150: 5.380353179e-14 | FU150: 2.660126111e-14 | FV150: 1.30211914e-14 | FW150: 6.310391072e-15 | FX150: 3.027742113e-15 | FY150: 1.43826378e-15 | FZ150: 6.764181634e-16 | GA150: 3.149553815e-16 | GB150: 1.45191055e-16 | GC150: 6.626554038e-17 | GD150: 2.994281879e-17 | GE150: 1.33953688e-17 | GF150: 5.932991465e-18 | GG150: 2.601655731e-18 | GH150: 1.129491549e-18 | GI150: 4.854820754e-19 | GJ150: 2.065953151e-19 | GK150: 8.704118466e-20 | GL150: 3.630664951e-20
